Workbook

Sheet WYBIERZ ANALIZATOR!
L1: 1

Sheet Wariant_I
AJ1: 1 | AZ1: Świadczenia dodatkowe dla wariantu I, II, II BIS: DLA DZIECI | CE1: agent | CF1: email | CG1: nr telefonu
B2: Doradca: | AV2: STAWKI TARYFOWE DLA ŚWIADCZEŃ PODSTAWOWYCH | AY2: =IF(AND(AY3=TRUE,AY4=TRUE),TRUE,FALSE) -> TRUE | CE2: Broniszewski Sławomir | CF2: slbroniszewski@agentpzu.pl | CG2: 603245422 | CH2: ; | CJ2: =CG2&CH2&CF2 -> 603245422; slbroniszewski@agentpzu.pl
B3: Imię i nazwisko | C3: Imię i nazwisko | F3: Magdalena Biernacka | AY3: TRUE | AZ3: zwrot kosztów leczenia do wysokości 20 % sumy ubezpieczenia | BK3: =IF($G$9=BL3,TRUE,FALSE) -> FALSE | BL3: Centrum kształcenia | BM3: Gdańsk | BO3: ≤40% | BP3: 0 | CE3: Derkacz Jerzy | CF3: jderkacz@agentpzu.pl | CG3: 607576620 | CH3: ; | CJ3: =CG3&CH3&CF3 -> 607576620; jderkacz@agentpzu.pl
B4: Telefon | C4: Telefon | F4: 502 731 458 | AV4: rodzaj placówki | AW4: wariant I | AX4: wariant II | AY4: =IF(BJ4>0,TRUE,FALSE) -> TRUE | AZ4: zwrot kosztów leczenia do wysokości 30 % sumy ubezpieczenia | BJ4: 2 | BK4: =IF($G$9=BL4,TRUE,FALSE) -> FALSE | BL4: Dom dziecka | BM4: Katowice | BO4: nowa = pozyskana w 2015r. | BP4: -0.01 | CE4: Golas Marcin | CF4: mgolas@agentpzu.pl | CG4: 881298939 | CH4: ; | CJ4: 881298939; mgolas@agentpzu.pl
B5: Oddział Region. | C5: Oddział | F5: Warszawa | AV5: żłobek | AW5: 4.7 | AX5: 4 | AY5: =BJ5 -> 0 | AZ5: ryczałt za okres czasowej, całkowitej niezdolności do nauki lub pracy trwający dłużej niż 14 dni - 0,06% sumy ubezpieczenia za każdy dzień (do 180 dni łącznie ze wszystkich zdarzeń objętych umową) | BK5: FALSE | BL5: Gimnazjum | BM5: Kraków | BO5: wznowiona = pozyskana w 2014r. | BP5: -0.02 | CE5: Kalina Elżbieta | CF5: ekalina@agentpzu.pl | CG5: 601987169 | CH5: ; | CJ5: 601987169; ekalina@agentpzu.pl
B6: Adres | C6: Adres | F6: 07-200 Wyszków, ul. 11 Listopada 4 | AV6: przedszkole | AY6: =BJ6 -> 0 | AZ6: dieta szpitalna, za każdy dzień pobytu w szpitalu 0,2% sumy ubezpieczenia (płatna przez maksymalny okres 90 dni z tytułu jednego nieszczęśliwego wypadku lub zdarzenia objętego umową) | BK6: FALSE | BL6: Inne | BM6: Lublin | BO6: >40% / NU w PZU (3 lata) | BP6: -0.03 | CE6: Kędzia Jerzy | CF6: jkedzia@agentpzu.pl | CG6: 607082785 | CH6: ; | CJ6: 607082785; jkedzia@agentpzu.pl
AV7: szkoła podstawowa | AY7: TRUE | AZ7: Jednorazowe świadczenie w przypadku zgonu ubezpieczonego spowodowane nowotworem złośliwym | BJ7: TRUE | BK7: FALSE | BL7: Liceum ogólnokształcące | BM7: Łódź | BP7: -0.04 | CE7: Kołodyński Adam | CF7: adakolodynski@agentpzu.pl | CG7: 603169150 | CH7: ; | CJ7: 603169150; adakolodynski@agentpzu.pl
G8: WYBIERZ/WYPEŁNIJ DANE | AP8: TABELA GŁÓWNA !!! | AV8: gimnazjum | AY8: TRUE | AZ8: Jednorazowe świadczenie w przypadku zgonu dziecka, ucznia, studenta w wieku do 25 lat z powodu wrodoznej wady serca | BJ8: TRUE | BK8: FALSE | BL8: Liceum zawodowe | BM8: Poznań | BP8: -0.05 | CE8: Kwiatkowski Dariusz | CF8: dakwiatkowski@agentpzu.pl | CG8: 505632290 | CH8: ; | CJ8: 505632290; dakwiatkowski@agentpzu.pl
B9: Placówka: | G9: Szkoła podstawowa | L9: WYBIERZ Z LISTY | AQ9: w I | AR9: w II | AV9: liceum ogólnokształcące | BK9: TRUE | BL9: Szkoła podstawowa | BM9: Szczecin | BP9: -0.06 | CE9: Kwikert Bożena | CF9: bkwikert@agentpzu.pl | CG9: 605148579 | CH9: ; | CJ9: 605148579; bkwikert@agentpzu.pl
B10: Oddział Regionalny: | G10: Warszawa | L10: WYBIERZ Z LISTY | O10: =IF(AND(G11="≤40%",SUM(BI39:BQ39)=1),"SPRAWDŹ MOŻLIWOŚĆ PRZEDSTAWIENIA KLIENTOWI DODATKOWEJ ZNIŻKI", "") -> SPRAWDŹ MOŻLIWOŚĆ PRZEDSTAWIENIA KLIENTOWI DODATKOWEJ ZNIŻKI | AP10: Taryfa | AQ10: =IF($G$9="Szkoła wyższa",AW18,IF($G$9="Szkoła policealna",AW18,IF($G$9="Szkoła sportowa",AW17,AW5))) -> 4.7 | AR10: =IF($G$9="Szkoła wyższa",AX18,IF($G$9="Szkoła policealna",AX18,IF($G$9="Szkoła sportowa",AX17,AX5))) -> 4 | AV10: liceum zawodowe | AY10: TRUE | AZ10: Jednorazowe świadczenie w przypadku śmierci przedstawiciela ustawowego | BJ10: TRUE | BK10: FALSE | BL10: Szkoła policealna | BM10: Warszawa | BP10: -0.07 | CE10: Maciejewski Piotr | CF10: pmaciejewski@agentpzu.pl | CG10: 601176465 | CH10: ; | CJ10: 601176465; pmaciejewski@agentpzu.pl
B11: Szkodowość placówki: | G11: ≤40% | L11: WYBIERZ Z LISTY | AP11: wariant I | AQ11: =IF(G$10="Gdańsk",BI37)+IF(G$10="Katowice",BJ37)+IF(G$10="Kraków",BK37)+IF(G$10="Lublin",BL37)+IF(G$10="Łódź",BM37)+IF(G$10="Poznań",BN37)+IF(G$10="Warszawa",BO37)+IF(G$10="Wrocław",BP37)+IF(G$10="Szczecin",BQ37) -> 0.9 | AV11: technikum | AY11: TRUE | AZ11: Jednorazowe świadczenie w przypadku amputacji kończyny spowodowanej nowotworem złośliwym u dziecka, ucznia, studenta w wieku do 25 lat | BJ11: TRUE | BK11: FALSE | BL11: Szkoła sportowa | BM11: Wrocław | BP11: -0.08 | CE11: Majewska Magdalena | CF11: magdamajewska@agentpzu.pl | CG11: 790776238 | CH11: ; | CJ11: 790776238; magdamajewska@agentpzu.pl
B12: Podwyższona zniżka z tabeli (do -10%): | G12: -0.1 | L12: WYBIERZ Z LISTY | AH12: NOWE | AI12: =IF(G11="nowa = pozyskana w 2015r.",TRUE,FALSE) -> FALSE | AP12: wariant II | AQ12: =IF(G$10="Gdańsk",BI38)+IF(G$10="Katowice",BJ38)+IF(G$10="Kraków",BK38)+IF(G$10="Lublin",BL38)+IF(G$10="Łódź",BM38)+IF(G$10="Poznań",BN38)+IF(G$10="Warszawa",BO38)+IF(G$10="Wrocław",BP38)+IF(G$10="Szczecin",BQ38) -> 1.2 | AV12: zasadnicza szkoła zawodowa | BK12: =IF($G$9=BL12,TRUE,FALSE) -> FALSE | BL12: Technikum | BP12: -0.09 | CE12: Nitzke Zbigniew | CF12: znitzke@agentpzu.pl | CG12: 601643921 | CH12: ; | CJ12: 601643921; znitzke@agentpzu.pl
B13: Zniżka incydentalna (format: -x%): | L13: WYPEŁNIJ RĘCZNIE | AH13: WZNOWIONE | AI13: =IF(AI12=TRUE,FALSE,TRUE) -> TRUE | AP13: wariant II ograniczony (wariant II - 30%) | AQ13: 0.7 | AV13: zespół szkół | AY13: =IF(AND(AY14=TRUE,AY4=TRUE),TRUE,FALSE) -> TRUE | AZ13: Świadczenia dodatkowe dla wariantu I, II, II BIS: DLA PERSONELU | BK13: =IF($G$9=BL13,TRUE,FALSE) -> FALSE | BL13: Zasadnicza szkoła zawodowa | BP13: -0.1 | CE13: Nowicka Mieczysława | CF13: minowicka@agentpzu.pl | CG13: 607182438 | CH13: ; | CJ13: 607182438; minowicka@agentpzu.pl
AP14: zniżka incydentalna | AQ14: =1+$G13 -> 1 | AR14: =1+$G13 -> 1 | AS14: =1+$G13 -> 1 | AV14: centrum kształcenia | AY14: TRUE | AZ14: zwrot kosztów leczenia do wysokości 20 % sumy ubezpieczenia | BK14: =IF($G$9=BL14,TRUE,FALSE) -> FALSE | BL14: Zespół szkół | CE14: Pędziwiatr Mirosław | CF14: mipedziwiatr@agentpzu.pl | CG14: 601709687 | CH14: ; | CJ14: 601709687; mipedziwiatr@agentpzu.pl
AI15: składka podstawowa | AJ15: suma 1 | AK15: suma 2 | AL15: suma 3 | AV15: dom dziecka | AZ15: zwrot kosztów leczenia do wysokości 30 % sumy ubezpieczenia | BK15: =IF($G$9=BL15,TRUE,FALSE) -> FALSE | BL15: Żłobek, przedszkole | CE15: Piątek Lech | CF15: lpiatek@agentpzu.pl | CG15: 603820065 | CH15: ; | CJ15: 603820065; lpiatek@agentpzu.pl
AH16: wariant 1 | AI16: ze zniżką | AJ16: =IF(AND(AD25=TRUE,$AM$31=TRUE),AJ31,IF(AND(AD25=TRUE,$AT$27=TRUE),AQ27,"")) ->  | AK16: =IF(AND(AE25=TRUE,$AM$31=TRUE),AK31,IF(AND(AE25=TRUE,$AT$27=TRUE),AR27,"")) ->  | AL16: =IF(AND(AF25=TRUE,$AM$31=TRUE),AL31,IF(AND(AF25=TRUE,$AT$27=TRUE),AS27,"")) ->  | AP16: SZKODOWOŚĆ | AV16: inne | AY16: =BJ16 -> 0 | AZ16: ryczałt za okres czasowej, całkowitej niezdolności do nauki lub pracy trwający dłużej niż 14 dni - 0,06% sumy ubezpieczenia za każdy dzień (do 180 dni łącznie ze wszystkich zdarzeń objętych umową) | CE16: Pietrzak Przemysław | CF16: ppietrzak@agentpzu.pl | CG16: 603786176 | CH16: ; | CJ16: 603786176; ppietrzak@agentpzu.pl
F17: Szkoła Podstawowa im. C.K. Norwida w Dąbrówce | AI17: bez zniżki | AJ17: =IF(AND(AD25=TRUE,$AM$31=TRUE),AJ32,IF(AND(AD25=TRUE,$AT$27=TRUE),AQ29,"")) ->  | AK17: =IF(AND(AE25=TRUE,$AM$31=TRUE),AK32,IF(AND(AE25=TRUE,$AT$27=TRUE),AR29,"")) ->  | AL17: =IF(AND(AF25=TRUE,$AM$31=TRUE),AL32,IF(AND(AF25=TRUE,$AT$27=TRUE),AS29,"")) ->  | AQ17: ≤40% | AR17: NOWA | AS17: >40% | AT17: WZNOWIONA | AV17: szkoły sptotowe wszystkich szczebli | AW17: 9.5 | AX17: 8 | AY17: =BJ17 -> 0 | AZ17: dieta szpitalna, za każdy dzień pobytu w szpitalu 0,2% sumy ubezpieczenia (płatna przez maksymalny okres 90 dni z tytułu jednego nieszczęśliwego wypadku lub zdarzenia objętego umową) | CE17: Podjuk Bronisław | CF17: bpodjuk@agentpzu.pl | CG17: 601683712 | CH17: ; | CJ17: 601683712; bpodjuk@agentpzu.pl
F18: T. Kościuszki 20, 05-252 Dąbrówka | AH18: wariant 2 | AI18: ze zniżką | AJ18: =IF(AND(AD26=TRUE,$AM$33=TRUE),AJ33,IF(AND(AD26=TRUE,$AT$30=TRUE),AQ30,"")) ->  | AK18: =IF(AND(AE26=TRUE,$AM$33=TRUE),AK33,IF(AND(AE26=TRUE,$AT$30=TRUE),AR30,"")) ->  | AL18: =IF(AND(AF26=TRUE,$AM$33=TRUE),AL33,IF(AND(AF26=TRUE,$AT$30=TRUE),AS30,"")) ->  | AV18: szkoła policealna | AW18: 3 | AX18: 2.5 | AY18: =BJ18 -> TRUE | AZ18: Jednorazowe świadczenie w przypadku zgonu ubezpieczonego spowodowane nowotworem złośliwym | BJ18: TRUE | CE18: Rosa Ilona | CF18: irosa@agentpzu.pl | CG18: 697098159 | CH18: ; | CJ18: 697098159; irosa@agentpzu.pl
AI19: bez zniżki | AJ19: =IF(AND(AD26=TRUE,$AM$33=TRUE),AJ34,IF(AND(AD26=TRUE,$AT$30=TRUE),AQ32,"")) ->  | AL19: =IF(AND(AF26=TRUE,$AM$33=TRUE),AL34,IF(AND(AF26=TRUE,$AT$30=TRUE),AS32,"")) ->  | AP19: Taryfa | AQ19: =AQ10 -> 4.7 | AR19: =AQ10 -> 4.7 | AS19: =AQ10 -> 4.7 | AT19: =AQ10 -> 4.7 | AV19: szkoła wyższa | AZ19: Jednorazowe świadczenie w przypadku zgonu dziecka, ucznia, studenta w wieku do 25 lat z powodu wrodoznej wady serca | CE19: Ryżak Agata | CF19: aryzak@agentpzu.pl | CG19: 667960950 | CH19: ; | CJ19: 667960950; aryzak@agentpzu.pl
I20: 10000 | L20: 11000 | O20: 12000 | AH20: wariant 2 bis | AI20: ze zniżką | AJ20: =IF(AND(AD27=TRUE,$AM$33=TRUE),AJ35,IF(AND(AD27=TRUE,$AT$30=TRUE),AQ33,"")) ->  | AP20: wariant I | AQ20: =IF(SUM(BI37:BQ37)>1,1,SUM(BI37:BQ37)+G$12) -> 0.8 | AR20: =IF(SUM(BI37:BQ37)>1,1,SUM(BI37:BQ37)) -> 0.9 | AS20: =AQ11 -> 0.9 | AT20: =IF(SUM(BI37:BQ37)>1,1.1,SUM(BI37:BQ37)) -> 0.9 | CE20: Sawczyn Benedykt | CF20: bsawczyn@agentpzu.pl | CG20: 601654508 | CH20: ; | CJ20: 601654508; bsawczyn@agentpzu.pl
AI21: bez zniżki | AJ21: =IF(AND(AD27=TRUE,$AM$33=TRUE),AJ36,IF(AND(AD27=TRUE,$AT$30=TRUE),AQ35,"")) ->  | AK21: =IF(AND(AE27=TRUE,$AM$33=TRUE),AK36,IF(AND(AE27=TRUE,$AT$30=TRUE),AR35,"")) ->  | AL21: =IF(AND(AF27=TRUE,$AM$33=TRUE),AL36,IF(AND(AF27=TRUE,$AT$30=TRUE),AS35,"")) ->  | AP21: wariant II | AQ21: =IF(SUM(BI38:BQ38)>1,1,SUM(BI38:BQ38)+G$12) -> 1 | AR21: =IF(SUM(BI38:BQ38)>1,1,SUM(BI38:BQ38)) -> 1 | AS21: =AQ12 -> 1.2 | AT21: =IF(SUM(BI38:BQ38)>1,1.1,SUM(BI38:BQ38)) -> 1.1 | AZ21: Jednorazowe świadczenie w przypadku śmierci przedstawiciela ustawowego | CE21: Słupianek Leszek | CF21: lslupianek@agentpzu.pl | CG21: 609397853 | CH21: ; | CJ21: 609397853; lslupianek@agentpzu.pl
B22: =C22 -> ,0 | C22: =CELL("format",I30) -> ,0 | D22: =IF(C22=",0",1,2) -> 1 | G22: =D22 -> 1 | AP22: wariant II ograniczony (wariant II - 30%) | AQ22: 0.7 | AR22: 0.7 | AS22: 0.7 | AT22: 0.7 | AZ22: Jednorazowe świadczenie w przypadku amputacji kończyny spowodowanej nowotworem złośliwym u dziecka, ucznia, studenta w wieku do 25 lat | CE22: Walczak Stanisław | CF22: stwalczak@agentpzu.pl | CG22: 693112343 | CH22: ; | CJ22: 693112343; stwalczak@agentpzu.pl
D23: =IF(C23=",0",1,2) -> 2 | AP23: zniżka incydentalna | AQ23: =AQ14 -> 1 | AR23: =AQ14 -> 1 | AS23: =AQ14 -> 1 | AT23: =AQ14 -> 1 | AV23: składkę roczną za ubezpieczenie 1 osoby oblicza się mnożąc stawkę taryfową przez 1/1000 sumy ubezpieczenia | CE23: Wardęga Andrzej | CF23: awardęga@agentpzu.pl | CG23: 601958772 | CH23: ; | CJ23: 601958772; awardęga@agentpzu.pl
D24: =IF(C24=",0",1,2) -> 2 | AD24: WYBÓR WARIANTU | CE24: Więcław Stanisław | CF24: swieclaw@agentpzu.pl | CG24: 608102452 | CH24: ; | CJ24: 608102452; swieclaw@agentpzu.pl
D25: =IF(C25=",0",1,2) -> 2 | AD25: =IF(AE23=1,TRUE,FALSE) -> FALSE | AE25: =IF(AE23=2,TRUE,FALSE) -> FALSE | AF25: =IF(AE23=3,TRUE,FALSE) -> FALSE | AP25: SKŁADKA PODSTAWOWA | AQ25: suma 1 | AR25: suma 2 | AS25: suma 3 | AV25: na składkę wyjściową nakłada się zniżki/zwyżki z poniższej tabeli przy czym zniżki stosuje się zawsze a zwyżki tylko wtedy kiedy wskaźnik szkodowości dla placówki jest wyższy niż 40% lub placówka nie była ubezpieczona w każdym z 3 poprzednich lat | CE25: Woźny Dorota | CF25: dowozny@agentpzu.pl | CG25: 600906655 | CH25: ; | CJ25: 600906655; dowozny@agentpzu.pl
AD26: =IF(AE23=4,TRUE,FALSE) -> FALSE | AE26: =IF(AE23=5,TRUE,FALSE) -> FALSE | AF26: =IF(AE23=6,TRUE,FALSE) -> FALSE | AJ26: Wysokość zniżki z tabeli | AP26: zniżka incydentalna | CE26: Zadka Małgorzata | CF26: mzadka@agentpzu.pl | CG26: 607573755 | CH26: ; | CJ26: 607573755; mzadka@agentpzu.pl
R27: Informacja nt. wysokości zniżki/zwyżki z tabeli | AD27: =IF(AE23=7,TRUE,FALSE) -> FALSE | AE27: =IF(AE23=8,TRUE,FALSE) -> FALSE | AF27: =IF(AE23=9,TRUE,FALSE) -> FALSE | AJ27: wariant I | AK27: =IF($G$11="≤40%",$AQ$20-1,IF($G$11="nowa = pozyskana w 2015r.",$AR$20-1,IF($G$11=">40% / nu w PZU (3 lata)",$AS$20-1,IF($G$11="wznowiona = pozyskana w 2014r.",$AT$20-1,0)))) -> -0.2 | AO27: WARIANT 1 | AP27: ZE ZNIŻKĄ | AQ27: =IF($G$11="≤40%",$I$20*$AQ$19*$AQ$20/1000*$AQ$23,IF($G$11="nowa = pozyskana w 2015r.",$I$20*$AQ$19*$AR$20/1000*$AR$23,IF($G$11=">40% / nu w PZU (3 lata)",$I$20*$AQ$19*$AS$20/1000*$AS$23,IF($G$11="wznowiona = pozyskana w 2014r.",$I$20*$AT$19*$AT$20/1000*$AT$23,0)))) -> 37.6 | AR27: =IF($G$11="≤40%",$L$20*$AQ$19*$AQ$20/1000*$AQ$23,IF($G$11="nowa = pozyskana w 2015r.",$L$20*$AQ$19*$AR$20/1000*$AR$23,IF($G$11=">40% / nu w PZU (3 lata)",$L$20*$AQ$19*$AS$20/1000*$AS$23,IF($G$11="wznowiona = pozyskana w 2014r.",$L$20*$AT$19*$AT$20/1000*$AT$23,0)))) -> 41.36 | AS27: =IF($G$11="≤40%",$O$20*$AQ$19*$AQ$20/1000*$AQ$23,IF($G$11="nowa = pozyskana w 2015r.",$O$20*$AQ$19*$AR$20/1000*$AR$23,IF($G$11=">40% / nu w PZU (3 lata)",$O$20*$AQ$19*$AS$20/1000*$AS$23,IF($G$11="wznowiona = pozyskana w 2014r.",$O$20*$AT$19*$AT$20/1000*$AT$23,0)))) -> 45.12 | AT27: =IF(AM31=TRUE,FALSE,TRUE) -> TRUE | AV27: wskaźnik szkodowości = | AW27: odszkodowania z polis z lat 2011-2013 | AZ27: > 40% | CE27: Żuberek Marek | CF27: mazuberek@agentpzu.pl | CG27: 604337747 | CH27: ; | CJ27: 604337747; mazuberek@agentpzu.pl
F28: Świadczenia podstawowe | I28: =AQ28 -> 37.6 | J28: =I28 -> 37.6 | L28: =AR28 -> 41.36 | M28: =L28 -> 41.36 | O28: =AS28 -> 45.12 | P28: =O28 -> 45.12 | R28: =AK27 -> -0.2 | AD28: =I20 -> 10000 | AE28: =L20 -> 11000 | AF28: =O20 -> 12000 | AJ28: wariant II | AK28: =IF($G$11="≤40%",$AQ$21-1,IF($G$11="nowa = pozyskana w 2015r.",$AR$21-1,IF($G$11=">40% / nu w PZU (3 lata)",$AS$21-1,IF($G$11="wznowiona = pozyskana w 2014r.",$AT$21-1,0)))) -> 0 | AP28: FINALNY WYNIK | AQ28: =IF(AND(AQ$39=TRUE,$AM31=TRUE),AJ31,IF(AND(AQ$39=FALSE,$AM31=TRUE),AJ32,IF(AND(AQ$39=FALSE,$AM31=FALSE),AQ29,IF(AND(AQ$39=TRUE,$AM31=FALSE),AQ27,0)))) -> 37.6 | AR28: =IF(AND(AR$39=TRUE,$AM31=TRUE),AK31,IF(AND(AR$39=FALSE,$AM31=TRUE),AK32,IF(AND(AR$39=FALSE,$AM31=FALSE),AR29,IF(AND(AR$39=TRUE,$AM31=FALSE),AR27,0)))) -> 41.36 | AS28: =IF(AND(AS$39=TRUE,$AM31=TRUE),AL31,IF(AND(AS$39=FALSE,$AM31=TRUE),AL32,IF(AND(AS$39=FALSE,$AM31=FALSE),AS29,IF(AND(AS$39=TRUE,$AM31=FALSE),AS27,0)))) -> 45.12 | AW28: (przypis z lat 2011-2012) + 50% x (przypis z roku 2013)
F29: Świadczenia dodatkowe | I29: =AQ46 -> 2.4 | J29: =AJ46 -> 2.1 | L29: =AR46 -> 2.6 | M29: =AK46 -> 2.3 | O29: =AS51 -> 2.8 | P29: =AL51 -> 2.5 | R29: Korekta wysokości zniżki/zwyżki z tabeli | AJ29: wariant II bis | AK29: 0.3 | AP29: BEZ ZNIŻKI | AQ29: =IF($G$11="≤40%",$I$20*$AQ$19*$AQ$20/1000,IF($G$11="nowa = pozyskana w 2015r.",$I$20*$AQ$19*$AR$20/1000,IF($G$11=">40% / nu w PZU (3 lata)",$I$20*$AQ$19*$AS$20/1000,IF($G$11="wznowiona = pozyskana w 2014r.",$I$20*$AT$19*$AT$20/1000,0)))) -> 37.6 | AR29: =IF($G$11="≤40%",$L$20*$AQ$19*$AQ$20/1000,IF($G$11="nowa = pozyskana w 2015r.",$L$20*$AQ$19*$AR$20/1000,IF($G$11=">40% / nu w PZU (3 lata)",$L$20*$AQ$19*$AS$20/1000,IF($G$11="wznowiona = pozyskana w 2014r.",$L$20*$AT$19*$AT$20/1000,0)))) -> 41.36 | AS29: =IF($G$11="≤40%",$O$20*$AQ$19*$AQ$20/1000,IF($G$11="nowa = pozyskana w 2015r.",$O$20*$AQ$19*$AR$20/1000,IF($G$11=">40% / nu w PZU (3 lata)",$O$20*$AQ$19*$AS$20/1000,IF($G$11="wznowiona = pozyskana w 2014r.",$O$20*$AT$19*$AT$20/1000,0)))) -> 45.12
F30: Razem wysokość składki | I30: =I28+I29 -> 40 | J30: =J28+J29 -> 39.7 | L30: =L28+L29 -> 43.96 | M30: =M28+M29 -> 43.66 | O30: =O28+O29 -> 47.92 | P30: =P28+P29 -> 47.62 | S30: dla zniżek: maksymalnie z tabeli, ale może być niższa (do zera włącznie). Np. jest 30%, ale może być 15%, albo 0% | AO30: WARIANT 2 | AP30: ZE ZNIŻKĄ | AQ30: =IF($G$11="≤40%",$I$20*$AR$10*$AQ$21/1000*$AQ$23,IF($G$11="nowa = pozyskana w 2015r.",$I$20*$AR$10*$AR$21/1000*$AR$23,IF($G$11=">40% / nu w PZU (3 lata)",$I$20*$AR$10*$AS$21/1000*$AS$23,IF($G$11="wznowiona = pozyskana w 2014r.",$I$20*$AR$10*$AT$21/1000*$AT$23,0)))) -> 40 | AR30: =IF($G$11="≤40%",$L$20*$AR$10*$AQ$21/1000*$AQ$23,IF($G$11="nowa = pozyskana w 2015r.",$L$20*$AR$10*$AR$21/1000*$AR$23,IF($G$11=">40% / nu w PZU (3 lata)",$L$20*$AR$10*$AS$21/1000*$AS$23,IF($G$11="wznowiona = pozyskana w 2014r.",$L$20*$AR$10*$AT$21/1000*$AT$23,0)))) -> 44 | AS30: =IF($G$11="≤40%",$O$20*$AR$10*$AQ$21/1000*$AQ$23,IF($G$11="nowa = pozyskana w 2015r.",$O$20*$AR$10*$AR$21/1000*$AR$23,IF($G$11=">40% / nu w PZU (3 lata)",$O$20*$AR$10*$AS$21/1000*$AS$23,IF($G$11="wznowiona = pozyskana w 2014r.",$O$20*$AR$10*$AT$21/1000*$AT$23,0)))) -> 48 | AT30: =IF(AM33=TRUE,FALSE,TRUE) -> TRUE | AV30: w przypadku placówek, dla których wskaźnik szkodowości jest równy lub niższy od 40% a z tabeli wynika zwyżka wówczas stosuje się taryfowe stawki wyjściowe
S31: dla zwyżek: nie mniej niż wysokość zwyżki, ale może być więcej niż poziom zwyżki (bez ograniczeń wysokości). Np.. Jest 60%, ale może być 80%. | AG31: ZNIŻKA Z PALCA | AH31: ZE ZNIŻKĄ | AI31: WARIANT I | AJ31: =IF($G$11="≤40%",$I$20*$AQ$19*AI37/1000*$AQ$23,IF($G$11="nowa = pozyskana w 2015r.",$I$20*$AQ$19*AI37/1000*$AR$23,IF($G$11=">40% / nu w PZU (3 lata)",$I$20*$AQ$19*AI37/1000*$AS$23,IF($G$11="wznowiona = pozyskana w 2014r.",$I$20*$AT$19*AI37/1000*$AT$23,0)))) -> 47 | AK31: =IF($G$11="≤40%",$L$20*$AQ$19*AI37/1000*$AQ$23,IF($G$11="nowa = pozyskana w 2015r.",$L$20*$AQ$19*AI37/1000*$AR$23,IF($G$11=">40% / nu w PZU (3 lata)",$L$20*$AQ$19*AI37/1000*$AS$23,IF($G$11="wznowiona = pozyskana w 2014r.",$L$20*$AT$19*AI37/1000*$AT$23,0)))) -> 51.7 | AL31: =IF($G$11="≤40%",$O$20*$AQ$19*AI37/1000*$AQ$23,IF($G$11="nowa = pozyskana w 2015r.",$O$20*$AQ$19*AI37/1000*$AR$23,IF($G$11=">40% / nu w PZU (3 lata)",$O$20*$AQ$19*AI37/1000*$AS$23,IF($G$11="wznowiona = pozyskana w 2014r.",$O$20*$AT$19*AI37/1000*$AT$23,0)))) -> 56.4 | AM31: =IF(AJ37=TRUE,TRUE,FALSE) -> FALSE | AP31: FINALNY WYNIK | AQ31: =IF(AND(AQ$40=TRUE,$AM33=TRUE),AJ33,IF(AND(AQ$40=FALSE,$AM33=TRUE),AJ34,IF(AND(AQ$40=FALSE,$AM33=FALSE),AQ32,IF(AND(AQ$40=TRUE,$AM33=FALSE),AQ30,0)))) -> 40 | AR31: =IF(AND(AR$40=TRUE,$AM33=TRUE),AK33,IF(AND(AR$40=FALSE,$AM33=TRUE),AK34,IF(AND(AR$40=FALSE,$AM33=FALSE),AR32,IF(AND(AR$40=TRUE,$AM33=FALSE),AR30,0)))) -> 44 | AS31: =IF(AND(AS$40=TRUE,$AM33=TRUE),AL33,IF(AND(AS$40=FALSE,$AM33=TRUE),AL34,IF(AND(AS$40=FALSE,$AM33=FALSE),AS32,IF(AND(AS$40=TRUE,$AM33=FALSE),AS30,0)))) -> 48 | AV31: w przypadku placówek, dla których wskaźnik szkodowości jest równy lub niższy od 40% a z tabeli wynika zniżka wówczas ta zniżka z tabeli może zostać zwiększona o 10 punktów procentowych
AH32: BEZ ZNIŻKI | AJ32: =IF($G$11="≤40%",$I$20*$AQ$19*AI37/1000,IF($G$11="nowa = pozyskana w 2015r.",$I$20*$AQ$19*AI37/1000,IF($G$11=">40% / nu w PZU (3 lata)",$I$20*$AQ$19*AI37/1000,IF($G$11="wznowiona = pozyskana w 2014r.",$I$20*$AT$19*AI37/1000,0)))) -> 47 | AK32: =IF($G$11="≤40%",$L$20*$AQ$19*AI37/1000,IF($G$11="nowa = pozyskana w 2015r.",$L$20*$AQ$19*AI37/1000,IF($G$11=">40% / nu w PZU (3 lata)",$L$20*$AQ$19*AI37/1000,IF($G$11="wznowiona = pozyskana w 2014r.",$L$20*$AT$19*AI37/1000,0)))) -> 51.7 | AL32: =IF($G$11="≤40%",$O$20*$AQ$19*AI37/1000,IF($G$11="nowa = pozyskana w 2015r.",$O$20*$AQ$19*AI37/1000,IF($G$11=">40% / nu w PZU (3 lata)",$O$20*$AQ$19*AI37/1000,IF($G$11="wznowiona = pozyskana w 2014r.",$O$20*$AT$19*AI37/1000,0)))) -> 56.4 | AP32: BEZ ZNIŻKI | AQ32: =IF($G$11="≤40%",$I$20*$AR$10*$AQ$21/1000,IF($G$11="nowa = pozyskana w 2015r.",$I$20*$AR$10*$AR$21/1000,IF($G$11=">40% / nu w PZU (3 lata)",$I$20*$AR$10*$AS$21/1000,IF($G$11="wznowiona = pozyskana w 2014r.",$I$20*$AR$10*$AT$21/1000,0)))) -> 40 | AR32: =IF($G$11="≤40%",$L$20*$AR$10*$AQ$21/1000,IF($G$11="nowa = pozyskana w 2015r.",$L$20*$AR$10*$AR$21/1000,IF($G$11=">40% / nu w PZU (3 lata)",$L$20*$AR$10*$AS$21/1000,IF($G$11="wznowiona = pozyskana w 2014r.",$L$20*$AR$10*$AT$21/1000,0)))) -> 44 | AS32: =IF($G$11="≤40%",$O$20*$AR$10*$AQ$21/1000,IF($G$11="nowa = pozyskana w 2015r.",$O$20*$AR$10*$AR$21/1000,IF($G$11=">40% / nu w PZU (3 lata)",$O$20*$AR$10*$AS$21/1000,IF($G$11="wznowiona = pozyskana w 2014r.",$O$20*$AR$10*$AT$21/1000,0)))) -> 48 | AV32: w przypadku placówek nowych tj. takich, które nie były ubezpieczone w PZU w akacji szkolnej 2013/2014 i z tabeli wynika zwyżka stosuje się wyjściowe stawki taryfowe a jeśli z tabeli wynika zniżka to stosuje się tę zniżkę
S33: dodatkowo komunikat w sytuacji, gdy ktoś wpisze z palca niewłaściwy poziom zniżki lub zwyżki (bo standardowo nie będzie się uwzględniało) | AH33: ZE ZNIŻKĄ | AI33: WARIANT II | AJ33: =IF($G$11="≤40%",$I$20*$AR$10*AI38/1000*$AQ$23,IF($G$11="nowa = pozyskana w 2015r.",$I$20*$AR$10*AI38/1000*$AR$23,IF($G$11=">40% / nu w PZU (3 lata)",$I$20*$AR$10*AI38/1000*$AS$23,IF($G$11="wznowiona = pozyskana w 2014r.",$I$20*$AR$10*AI38/1000*$AT$23,0)))) -> 40 | AK33: =IF($G$11="≤40%",$L$20*$AR$10*AI38/1000*$AQ$23,IF($G$11="nowa = pozyskana w 2015r.",$L$20*$AR$10*AI38/1000*$AR$23,IF($G$11=">40% / nu w PZU (3 lata)",$L$20*$AR$10*AI38/1000*$AS$23,IF($G$11="wznowiona = pozyskana w 2014r.",$L$20*$AR$10*AI38/1000*$AT$23,0)))) -> 44 | AL33: =IF($G$11="≤40%",$O$20*$AR$10*AI38/1000*$AQ$23,IF($G$11="nowa = pozyskana w 2015r.",$O$20*$AR$10*AI38/1000*$AR$23,IF($G$11=">40% / nu w PZU (3 lata)",$O$20*$AR$10*AI38/1000*$AS$23,IF($G$11="wznowiona = pozyskana w 2014r.",$O$20*$AR$10*AI38/1000*$AT$23,0)))) -> 48 | AM33: =IF(AJ38=TRUE,TRUE,FALSE) -> FALSE | AO33: WARIANT 2 BIS | AP33: ZE ZNIŻKĄ | AQ33: =IF($G$11="≤40%",$I$20*$AR$10*$AQ$21/1000*$AQ$22*$AQ$23,IF($G$11="nowa = pozyskana w 2015r.",$I$20*$AR$10*$AR$21/1000*$AQ$22*$AR$23,IF($G$11=">40% / nu w PZU (3 lata)",$I$20*$AR$10*$AS$21/1000*$AQ$22*$AS$23,IF($G$11="wznowiona = pozyskana w 2014r.",$I$20*$AR$10*$AT$21/1000*$AT$23*AQ22,0)))) -> 28 | AR33: =IF($G$11="≤40%",$L$20*$AR$10*$AQ$21/1000*$AQ$22*$AQ$23,IF($G$11="nowa = pozyskana w 2015r.",$L$20*$AR$10*$AR$21/1000*$AQ$22*$AR$23,IF($G$11=">40% / nu w PZU (3 lata)",$L$20*$AR$10*$AS$21/1000*$AQ$22*$AS$23,IF($G$11="wznowiona = pozyskana w 2014r.",$L$20*$AR$10*$AT$21/1000*$AT$23*AQ22,0)))) -> 30.8 | AS33: =IF($G$11="≤40%",$O$20*$AR$10*$AQ$21/1000*$AQ$22*$AQ$23,IF($G$11="nowa = pozyskana w 2015r.",$O$20*$AR$10*$AR$21/1000*$AR$22*$AR$23,IF($G$11=">40% / nu w PZU (3 lata)",$O$20*$AR$10*$AS$21/1000*$AS$22*$AS$23,IF($G$11="wznowiona = pozyskana w 2014r.",$O$20*$AR$10*$AT$21/1000*$AT$23*AQ22,0)))) -> 33.6
AH34: BEZ ZNIŻKI | AJ34: =IF($G$11="≤40%",$I$20*$AR$10*AI38/1000,IF($G$11="nowa = pozyskana w 2015r.",$I$20*$AR$10*AI38/1000,IF($G$11=">40% / nu w PZU (3 lata)",$I$20*$AR$10*AI38/1000,IF($G$11="wznowiona = pozyskana w 2014r.",$I$20*$AR$10*AI38/1000,0)))) -> 40 | AK34: =IF($G$11="≤40%",$L$20*$AR$10*AI38/1000,IF($G$11="nowa = pozyskana w 2015r.",$L$20*$AR$10*AI38/1000,IF($G$11=">40% / nu w PZU (3 lata)",$L$20*$AR$10*AI38/1000,IF($G$11="wznowiona = pozyskana w 2014r.",$L$20*$AR$10*AI38/1000,0)))) -> 44 | AL34: =IF($G$11="≤40%",$O$20*$AR$10*AI38/1000,IF($G$11="nowa = pozyskana w 2015r.",$O$20*$AR$10*AI38/1000,IF($G$11=">40% / nu w PZU (3 lata)",$O$20*$AR$10*AI38/1000,IF($G$11="wznowiona = pozyskana w 2014r.",$O$20*$AR$10*AI38/1000,0)))) -> 48 | AP34: FINALNY WYNIK | AQ34: =IF(AND(AQ$41=TRUE,$AM35=TRUE),AJ35,IF(AND(AQ$41=FALSE,$AM35=TRUE),AJ36,IF(AND(AQ$41=FALSE,$AM35=FALSE),AQ35,IF(AND(AQ$41=TRUE,$AM35=FALSE),AQ33,0)))) -> 28 | AR34: =IF(AND(AR$41=TRUE,$AM35=TRUE),AK35,IF(AND(AR$41=FALSE,$AM35=TRUE),AK36,IF(AND(AR$41=FALSE,$AM35=FALSE),AR35,IF(AND(AR$41=TRUE,$AM35=FALSE),AR33,0)))) -> 30.8 | AS34: =IF(AND(AS$41=TRUE,$AM35=TRUE),AL35,IF(AND(AS$41=FALSE,$AM35=TRUE),AL36,IF(AND(AS$41=FALSE,$AM35=FALSE),AS35,IF(AND(AS$41=TRUE,$AM35=FALSE),AS33,0)))) -> 33.6
AH35: ZE ZNIŻKĄ | AI35: WARIANT II BIS | AJ35: =IF($G$11="≤40%",$I$20*$AR$10*AI38/1000*$AQ$22*$AQ$23,IF($G$11="nowa = pozyskana w 2015r.",$I$20*$AR$10*AI38/1000*$AQ$22*$AR$23,IF($G$11=">40% / nu w PZU (3 lata)",$I$20*$AR$10*AI38/1000*$AQ$22*$AS$23,IF($G$11="wznowiona = pozyskana w 2014r.",$I$20*$AR$10*AI38/1000*$AT$23*$AQ$22,0)))) -> 28 | AK35: =IF($G$11="≤40%",$L$20*$AR$10*AI38/1000*$AQ$22*$AQ$23,IF($G$11="nowa = pozyskana w 2015r.",$L$20*$AR$10*AI38/1000*$AQ$22*$AR$23,IF($G$11=">40% / nu w PZU (3 lata)",$L$20*$AR$10*AI38/1000*$AQ$22*$AS$23,IF($G$11="wznowiona = pozyskana w 2014r.",$L$20*$AR$10*AI38/1000*$AT$23*$AQ$22,0)))) -> 30.8 | AL35: =IF($G$11="≤40%",$O$20*$AR$10*AI38/1000*$AQ$22*$AQ$23,IF($G$11="nowa = pozyskana w 2015r.",$O$20*$AR$10*AI38/1000*$AR$22*$AR$23,IF($G$11=">40% / nu w PZU (3 lata)",$O$20*$AR$10*AI38/1000*$AS$22*$AS$23,IF($G$11="wznowiona = pozyskana w 2014r.",$O$20*$AR$10*AI38/1000*$AT$23*$AQ$22,0)))) -> 33.6 | AM35: =IF(AM33=TRUE,TRUE,FALSE) -> FALSE | AP35: BEZ ZNIŻKI | AQ35: =IF($G$11="≤40%",$I$20*$AR$10*$AQ$21/1000*$AQ$22,IF($G$11="nowa = pozyskana w 2015r.",$I$20*$AR$10*$AR$21/1000*$AQ$22,IF($G$11=">40% / nu w PZU (3 lata)",$I$20*$AR$10*$AS$21/1000*$AQ$22,IF($G$11="wznowiona = pozyskana w 2014r.",$I$20*$AR$10*$AT$21/1000*$AT$22,0)))) -> 28 | AR35: =IF($G$11="≤40%",$L$20*$AR$10*$AQ$21/1000*$AQ$22,IF($G$11="nowa = pozyskana w 2015r.",$L$20*$AR$10*$AR$21/1000*$AQ$22,IF($G$11=">40% / nu w PZU (3 lata)",$L$20*$AR$10*$AS$21/1000*$AQ$22,IF($G$11="wznowiona = pozyskana w 2014r.",$L$20*$AR$10*$AT$21/1000*$AT$22,0)))) -> 30.8 | AS35: =IF($G$11="≤40%",$O$20*$AR$10*$AQ$21/1000*$AQ$22,IF($G$11="nowa = pozyskana w 2015r.",$O$20*$AR$10*$AR$21/1000*$AR$22,IF($G$11=">40% / nu w PZU (3 lata)",$O$20*$AR$10*$AS$21/1000*$AS$22,IF($G$11="wznowiona = pozyskana w 2014r.",$O$20*$AR$10*$AT$21/1000*$AT$22,0)))) -> 33.6 | AV35: Tabela maksymalnych zniżek składki dla poszczególnych rodzajów placówek oraz minimalnych zwyżek składki dla placówek wyróżnionych ustalonych jako stawki wyjściowe dla tego rodzaju placówek na rok szkolny 2014/2015. | BI35: TABELA ZNIŻEK/ZWYŻEK
AH36: BEZ ZNIŻKI | AJ36: =IF($G$11="≤40%",$I$20*$AR$10*AI38/1000*$AQ$22,IF($G$11="nowa = pozyskana w 2015r.",$I$20*$AR$10*AI38/1000*$AQ$22,IF($G$11=">40% / nu w PZU (3 lata)",$I$20*$AR$10*AI38/1000*$AQ$22,IF($G$11="wznowiona = pozyskana w 2014r.",$I$20*$AR$10*AI38/1000*$AQ$22,0)))) -> 28 | AK36: =IF($G$11="≤40%",$L$20*$AR$10*AI38/1000*$AQ$22,IF($G$11="nowa = pozyskana w 2015r.",$L$20*$AR$10*AI38/1000*$AQ$22,IF($G$11=">40% / nu w PZU (3 lata)",$L$20*$AR$10*AI38/1000*$AQ$22,IF($G$11="wznowiona = pozyskana w 2014r.",$L$20*$AR$10*AI38/1000*$AQ$22,0)))) -> 30.8 | AL36: =IF($G$11="≤40%",$O$20*$AR$10*AI38/1000*$AQ$22,IF($G$11="nowa = pozyskana w 2015r.",$O$20*$AR$10*AI38/1000*$AR$22,IF($G$11=">40% / nu w PZU (3 lata)",$O$20*$AR$10*AI38/1000*$AS$22,IF($G$11="wznowiona = pozyskana w 2014r.",$O$20*$AR$10*AI38/1000*$AQ$22,0)))) -> 33.6 | AV36: Rodzaj Placówki | AW36: Wariant | AX36: Oddział | BI36: Gdańsk | BJ36: Katowice | BK36: Kraków | BL36: Lublin | BM36: Łódź | BN36: Poznań | BO36: Warszawa | BP36: Wrocław | BQ36: Szczecin
AE37: WARIANT I | AG37: % ZNIŻKI Z PALCA | AI37: =IF(AJ37=TRUE,1+R30,1) -> 1 | AQ37: Zniżka incydentalna | AX37: Gdańsk | AY37: Katowice | AZ37: Kraków | BA37: Lublin | BB37: Łódź | BC37: Poznań | BD37: Warszawa | BE37: Wrocław | BF37: Szczecin | BH37: WARIANT I | BI37: =IF(AND($G$9="Żłobek, przedszkole",$G$10="Gdańsk"),1+AX38,IF(AND($G$9="Szkoła sportowa",$G$10="Gdańsk"),1+AX40,IF(AND($G$9="Szkoła podstawowa",$G$10="Gdańsk"),1+AX42,IF(AND($G$9="Liceum ogólnokształcące",$G$10="Gdańsk"),1+AX44,IF(AND($G$9="Liceum zawodowe",$G$10="Gdańsk"),1+AX46,IF(AND($G$9="Technikum",$G$10="Gdańsk"),1+AX48,IF(AND($G$9="Zasadnicza szkoła zawodowa",$G$10="Gdańsk"),1+AX50,IF(AND($G$9="Szkoła policealna",$G$10="Gdańsk"),1+AX52,IF(AND($G$9="Szkoła wyższa",$G$10="Gdańsk"),1+AX54,IF(AND($G$9="Inne",$G$10="Gdańsk"),1+AX56,IF(AND($G$9="Zespół szkół",$G$10="Gdańsk"),1+AX58,IF(AND($G$9="Gimnazjum",$G$10="Gdańsk"),1+AX60,IF(AND($G$9="Centrum kształcenia",$G$10="Gdańsk"),1+AX62,IF(AND($G$9="Dom dziecka",$G$10="Gdańsk"),1+AX64,"-")))))))))))))) -> - | BJ37: =IF(AND($G$9="Żłobek, przedszkole",$G$10="Katowice"),1+AY38,IF(AND($G$9="Szkoła sportowa",$G$10="Katowice"),1+AY40,IF(AND($G$9="Szkoła podstawowa",$G$10="Katowice"),1+AY42,IF(AND($G$9="Liceum ogólnokształcące",$G$10="Katowice"),1+AY44,IF(AND($G$9="Liceum zawodowe",$G$10="Katowice"),1+AY46,IF(AND($G$9="Technikum",$G$10="Katowice"),1+AY48,IF(AND($G$9="Zasadnicza szkoła zawodowa",$G$10="Katowice"),1+AY50,IF(AND($G$9="Szkoła policealna",$G$10="Katowice"),1+AY52,IF(AND($G$9="Szkoła wyższa",$G$10="Katowice"),1+AY54,IF(AND($G$9="Inne",$G$10="Katowice"),1+AY56,IF(AND($G$9="Zespół szkół",$G$10="Katowice"),1+AY58,IF(AND($G$9="Gimnazjum",$G$10="Katowice"),1+AY60,IF(AND($G$9="Centrum kształcenia",$G$10="Katowice"),1+AY62,IF(AND($G$9="Dom dziecka",$G$10="Katowice"),1+AY64,"-")))))))))))))) -> - | BK37: =IF(AND($G$9="Żłobek, przedszkole",$G$10="Kraków"),1+AZ38,IF(AND($G$9="Szkoła sportowa",$G$10="Kraków"),1+AZ40,IF(AND($G$9="Szkoła podstawowa",$G$10="Kraków"),1+AZ42,IF(AND($G$9="Liceum ogólnokształcące",$G$10="Kraków"),1+AZ44,IF(AND($G$9="Liceum zawodowe",$G$10="Kraków"),1+AZ46,IF(AND($G$9="Technikum",$G$10="Kraków"),1+AZ48,IF(AND($G$9="Zasadnicza szkoła zawodowa",$G$10="Kraków"),1+AZ50,IF(AND($G$9="Szkoła policealna",$G$10="Kraków"),1+AZ52,IF(AND($G$9="Szkoła wyższa",$G$10="Kraków"),1+AZ54,IF(AND($G$9="Inne",$G$10="Kraków"),1+AZ56,IF(AND($G$9="Zespół szkół",$G$10="Kraków"),1+AZ58,IF(AND($G$9="Gimnazjum",$G$10="Kraków"),1+AZ60,IF(AND($G$9="Centrum kształcenia",$G$10="Kraków"),1+AZ62,IF(AND($G$9="Dom dziecka",$G$10="Kraków"),1+AZ64,"-")))))))))))))) -> - | BL37: =IF(AND($G$9="Żłobek, przedszkole",$G$10="Lublin"),1+BA38,IF(AND($G$9="Szkoła sportowa",$G$10="Lublin"),1+BA40,IF(AND($G$9="Szkoła podstawowa",$G$10="Lublin"),1+BA42,IF(AND($G$9="Liceum ogólnokształcące",$G$10="Lublin"),1+BA44,IF(AND($G$9="Liceum zawodowe",$G$10="Lublin"),1+BA46,IF(AND($G$9="Technikum",$G$10="Lublin"),1+BA48,IF(AND($G$9="Zasadnicza szkoła zawodowa",$G$10="Lublin"),1+BA50,IF(AND($G$9="Szkoła policealna",$G$10="Lublin"),1+BA52,IF(AND($G$9="Szkoła wyższa",$G$10="Lublin"),1+BA54,IF(AND($G$9="Inne",$G$10="Lublin"),1+BA56,IF(AND($G$9="Zespół szkół",$G$10="Lublin"),1+BA58,IF(AND($G$9="Gimnazjum",$G$10="Lublin"),1+BA60,IF(AND($G$9="Centrum kształcenia",$G$10="Lublin"),1+BA62,IF(AND($G$9="Dom dziecka",$G$10="Lublin"),1+BA64,"-")))))))))))))) -> - | BM37: =IF(AND($G$9="Żłobek, przedszkole",$G$10="Łódź"),1+BB38,IF(AND($G$9="Szkoła sportowa",$G$10="Łódź"),1+BB40,IF(AND($G$9="Szkoła podstawowa",$G$10="Łódź"),1+BB42,IF(AND($G$9="Liceum ogólnokształcące",$G$10="Łódź"),1+BB44,IF(AND($G$9="Liceum zawodowe",$G$10="Łódź"),1+BB46,IF(AND($G$9="Technikum",$G$10="Łódź"),1+BB48,IF(AND($G$9="Zasadnicza szkoła zawodowa",$G$10="Łódź"),1+BB50,IF(AND($G$9="Szkoła policealna",$G$10="Łódź"),1+BB52,IF(AND($G$9="Szkoła wyższa",$G$10="Łódź"),1+BB54,IF(AND($G$9="Inne",$G$10="Łódź"),1+BB56,IF(AND($G$9="Zespół szkół",$G$10="Łódź"),1+BB58,IF(AND($G$9="Gimnazjum",$G$10="Łódź"),1+BB60,IF(AND($G$9="Centrum kształcenia",$G$10="Łódź"),1+BB62,IF(AND($G$9="Dom dziecka",$G$10="Łódź"),1+BB64,"-")))))))))))))) -> - | BN37: =IF(AND($G$9="Żłobek, przedszkole",$G$10="Poznań"),1+BC38,IF(AND($G$9="Szkoła sportowa",$G$10="Poznań"),1+BC40,IF(AND($G$9="Szkoła podstawowa",$G$10="Poznań"),1+BC42,IF(AND($G$9="Liceum ogólnokształcące",$G$10="Poznań"),1+BC44,IF(AND($G$9="Liceum zawodowe",$G$10="Poznań"),1+BC46,IF(AND($G$9="Technikum",$G$10="Poznań"),1+BC48,IF(AND($G$9="Zasadnicza szkoła zawodowa",$G$10="Poznań"),1+BC50,IF(AND($G$9="Szkoła policealna",$G$10="Poznań"),1+BC52,IF(AND($G$9="Szkoła wyższa",$G$10="Poznań"),1+BC54,IF(AND($G$9="Inne",$G$10="Poznań"),1+BC56,IF(AND($G$9="Zespół szkół",$G$10="Poznań"),1+BC58,IF(AND($G$9="Gimnazjum",$G$10="Poznań"),1+BC60,IF(AND($G$9="Centrum kształcenia",$G$10="Poznań"),1+BC62,IF(AND($G$9="Dom dziecka",$G$10="Poznań"),1+BC64,"-")))))))))))))) -> - | BO37: =IF(AND($G$9="Żłobek, przedszkole",$G$10="Warszawa"),1+BD38,IF(AND($G$9="Szkoła sportowa",$G$10="Warszawa"),1+BD40,IF(AND($G$9="Szkoła podstawowa",$G$10="Warszawa"),1+BD42,IF(AND($G$9="Liceum ogólnokształcące",$G$10="Warszawa"),1+BD44,IF(AND($G$9="Liceum zawodowe",$G$10="Warszawa"),1+BD46,IF(AND($G$9="Technikum",$G$10="Warszawa"),1+BD48,IF(AND($G$9="Zasadnicza szkoła zawodowa",$G$10="Warszawa"),1+BD50,IF(AND($G$9="Szkoła policealna",$G$10="Warszawa"),1+BD52,IF(AND($G$9="Szkoła wyższa",$G$10="Warszawa"),1+BD54,IF(AND($G$9="Inne",$G$10="Warszawa"),1+BD56,IF(AND($G$9="Zespół szkół",$G$10="Warszawa"),1+BD58,IF(AND($G$9="Gimnazjum",$G$10="Warszawa"),1+BD60,IF(AND($G$9="Centrum kształcenia",$G$10="Warszawa"),1+BD62,IF(AND($G$9="Dom dziecka",$G$10="Warszawa"),1+BD64,"-")))))))))))))) -> 0.9 | BP37: =IF(AND($G$9="Żłobek, przedszkole",$G$10="Wrocław"),1+BE38,IF(AND($G$9="Szkoła sportowa",$G$10="Wrocław"),1+BE40,IF(AND($G$9="Szkoła podstawowa",$G$10="Wrocław"),1+BE42,IF(AND($G$9="Liceum ogólnokształcące",$G$10="Wrocław"),1+BE44,IF(AND($G$9="Liceum zawodowe",$G$10="Wrocław"),1+BE46,IF(AND($G$9="Technikum",$G$10="Wrocław"),1+BE48,IF(AND($G$9="Zasadnicza szkoła zawodowa",$G$10="Wrocław"),1+BE50,IF(AND($G$9="Szkoła policealna",$G$10="Wrocław"),1+BE52,IF(AND($G$9="Szkoła wyższa",$G$10="Wrocław"),1+BE54,IF(AND($G$9="Inne",$G$10="Wrocław"),1+BE56,IF(AND($G$9="Zespół szkół",$G$10="Wrocław"),1+BE58,IF(AND($G$9="Gimnazjum",$G$10="Wrocław"),1+BE60,IF(AND($G$9="Centrum kształcenia",$G$10="Wrocław"),1+BE62,IF(AND($G$9="Dom dziecka",$G$10="Wrocław"),1+BE64,"-")))))))))))))) -> - | BQ37: =IF(AND($G$9="Żłobek, przedszkole",$G$10="Szczecin"),1+BF38,IF(AND($G$9="Szkoła sportowa",$G$10="Szczecin"),1+BF40,IF(AND($G$9="Szkoła podstawowa",$G$10="Szczecin"),1+BF42,IF(AND($G$9="Liceum ogólnokształcące",$G$10="Szczecin"),1+BF44,IF(AND($G$9="Liceum zawodowe",$G$10="Szczecin"),1+BF46,IF(AND($G$9="Technikum",$G$10="Szczecin"),1+BF48,IF(AND($G$9="Zasadnicza szkoła zawodowa",$G$10="Szczecin"),1+BF50,IF(AND($G$9="Szkoła policealna",$G$10="Szczecin"),1+BF52,IF(AND($G$9="Szkoła wyższa",$G$10="Szczecin"),1+BF54,IF(AND($G$9="Inne",$G$10="Szczecin"),1+BF56,IF(AND($G$9="Zespół szkół",$G$10="Szczecin"),1+BF58,IF(AND($G$9="Gimnazjum",$G$10="Szczecin"),1+BF60,IF(AND($G$9="Centrum kształcenia",$G$10="Szczecin"),1+BF62,IF(AND($G$9="Dom dziecka",$G$10="Szczecin"),1+BF64,"-")))))))))))))) -> -
AE38: WARIANT II | AG38: % ZNIŻKI Z PALCA | AI38: =IF(AJ38=TRUE,1+R31,1) -> 1 | AQ38: Suma 1 | AR38: Suma 2 | AS38: Suma 3 | AV38: Żłobek, przedszkole | AW38: Wariant I | AX38: -0.3 | AY38: -0.15 | AZ38: -0.3 | BA38: -0.3 | BB38: -0.25 | BC38: -0.2 | BD38: -0.3 | BE38: -0.3 | BF38: -0.3 | BH38: WARIANT II | BI38: =IF(AND($G$9="Żłobek, przedszkole",$G$10="Gdańsk"),1+AX39,IF(AND($G$9="Szkoła sportowa",$G$10="Gdańsk"),1+AX41,IF(AND($G$9="Szkoła podstawowa",$G$10="Gdańsk"),1+AX43,IF(AND($G$9="Liceum ogólnokształcące",$G$10="Gdańsk"),1+AX45,IF(AND($G$9="Liceum zawodowe",$G$10="Gdańsk"),1+AX47,IF(AND($G$9="Technikum",$G$10="Gdańsk"),1+AX49,IF(AND($G$9="Zasadnicza szkoła zawodowa",$G$10="Gdańsk"),1+AX51,IF(AND($G$9="Szkoła policealna",$G$10="Gdańsk"),1+AX53,IF(AND($G$9="Szkoła wyższa",$G$10="Gdańsk"),1+AX55,IF(AND($G$9="Inne",$G$10="Gdańsk"),1+AX57,IF(AND($G$9="Zespół szkół",$G$10="Gdańsk"),1+AX59,IF(AND($G$9="Gimnazjum",$G$10="Gdańsk"),1+AX61,IF(AND($G$9="Centrum kształcenia",$G$10="Gdańsk"),1+AX63,IF(AND($G$9="Dom dziecka",$G$10="Gdańsk"),1+AX65,"-")))))))))))))) -> - | BJ38: =IF(AND($G$9="Żłobek, przedszkole",$G$10="Katowice"),1+AY39,IF(AND($G$9="Szkoła sportowa",$G$10="Katowice"),1+AY41,IF(AND($G$9="Szkoła podstawowa",$G$10="Katowice"),1+AY43,IF(AND($G$9="Liceum ogólnokształcące",$G$10="Katowice"),1+AY45,IF(AND($G$9="Liceum zawodowe",$G$10="Katowice"),1+AY47,IF(AND($G$9="Technikum",$G$10="Katowice"),1+AY49,IF(AND($G$9="Zasadnicza szkoła zawodowa",$G$10="Katowice"),1+AY51,IF(AND($G$9="Szkoła policealna",$G$10="Katowice"),1+AY53,IF(AND($G$9="Szkoła wyższa",$G$10="Katowice"),1+AY55,IF(AND($G$9="Inne",$G$10="Katowice"),1+AY57,IF(AND($G$9="Zespół szkół",$G$10="Katowice"),1+AY59,IF(AND($G$9="Gimnazjum",$G$10="Katowice"),1+AY61,IF(AND($G$9="Centrum kształcenia",$G$10="Katowice"),1+AY63,IF(AND($G$9="Dom dziecka",$G$10="Katowice"),1+AY65,"-")))))))))))))) -> - | BK38: =IF(AND($G$9="Żłobek, przedszkole",$G$10="Kraków"),1+AZ39,IF(AND($G$9="Szkoła sportowa",$G$10="Kraków"),1+AZ41,IF(AND($G$9="Szkoła podstawowa",$G$10="Kraków"),1+AZ43,IF(AND($G$9="Liceum ogólnokształcące",$G$10="Kraków"),1+AZ45,IF(AND($G$9="Liceum zawodowe",$G$10="Kraków"),1+AZ47,IF(AND($G$9="Technikum",$G$10="Kraków"),1+AZ49,IF(AND($G$9="Zasadnicza szkoła zawodowa",$G$10="Kraków"),1+AZ51,IF(AND($G$9="Szkoła policealna",$G$10="Kraków"),1+AZ53,IF(AND($G$9="Szkoła wyższa",$G$10="Kraków"),1+AZ55,IF(AND($G$9="Inne",$G$10="Kraków"),1+AZ57,IF(AND($G$9="Zespół szkół",$G$10="Kraków"),1+AZ59,IF(AND($G$9="Gimnazjum",$G$10="Kraków"),1+AZ61,IF(AND($G$9="Centrum kształcenia",$G$10="Kraków"),1+AZ63,IF(AND($G$9="Dom dziecka",$G$10="Kraków"),1+AZ65,"-")))))))))))))) -> - | BL38: =IF(AND($G$9="Żłobek, przedszkole",$G$10="Lublin"),1+BA39,IF(AND($G$9="Szkoła sportowa",$G$10="Lublin"),1+BA41,IF(AND($G$9="Szkoła podstawowa",$G$10="Lublin"),1+BA43,IF(AND($G$9="Liceum ogólnokształcące",$G$10="Lublin"),1+BA45,IF(AND($G$9="Liceum zawodowe",$G$10="Lublin"),1+BA47,IF(AND($G$9="Technikum",$G$10="Lublin"),1+BA49,IF(AND($G$9="Zasadnicza szkoła zawodowa",$G$10="Lublin"),1+BA51,IF(AND($G$9="Szkoła policealna",$G$10="Lublin"),1+BA53,IF(AND($G$9="Szkoła wyższa",$G$10="Lublin"),1+BA55,IF(AND($G$9="Inne",$G$10="Lublin"),1+BA57,IF(AND($G$9="Zespół szkół",$G$10="Lublin"),1+BA59,IF(AND($G$9="Gimnazjum",$G$10="Lublin"),1+BA61,IF(AND($G$9="Centrum kształcenia",$G$10="Lublin"),1+BA63,IF(AND($G$9="Dom dziecka",$G$10="Lublin"),1+BA65,"-")))))))))))))) -> - | BM38: =IF(AND($G$9="Żłobek, przedszkole",$G$10="Łódź"),1+BB39,IF(AND($G$9="Szkoła sportowa",$G$10="Łódź"),1+BB41,IF(AND($G$9="Szkoła podstawowa",$G$10="Łódź"),1+BB43,IF(AND($G$9="Liceum ogólnokształcące",$G$10="Łódź"),1+BB45,IF(AND($G$9="Liceum zawodowe",$G$10="Łódź"),1+BB47,IF(AND($G$9="Technikum",$G$10="Łódź"),1+BB49,IF(AND($G$9="Zasadnicza szkoła zawodowa",$G$10="Łódź"),1+BB51,IF(AND($G$9="Szkoła policealna",$G$10="Łódź"),1+BB53,IF(AND($G$9="Szkoła wyższa",$G$10="Łódź"),1+BB55,IF(AND($G$9="Inne",$G$10="Łódź"),1+BB57,IF(AND($G$9="Zespół szkół",$G$10="Łódź"),1+BB59,IF(AND($G$9="Gimnazjum",$G$10="Łódź"),1+BB61,IF(AND($G$9="Centrum kształcenia",$G$10="Łódź"),1+BB63,IF(AND($G$9="Dom dziecka",$G$10="Łódź"),1+BB65,"-")))))))))))))) -> - | BN38: =IF(AND($G$9="Żłobek, przedszkole",$G$10="Poznań"),1+BC39,IF(AND($G$9="Szkoła sportowa",$G$10="Poznań"),1+BC41,IF(AND($G$9="Szkoła podstawowa",$G$10="Poznań"),1+BC43,IF(AND($G$9="Liceum ogólnokształcące",$G$10="Poznań"),1+BC45,IF(AND($G$9="Liceum zawodowe",$G$10="Poznań"),1+BC47,IF(AND($G$9="Technikum",$G$10="Poznań"),1+BC49,IF(AND($G$9="Zasadnicza szkoła zawodowa",$G$10="Poznań"),1+BC51,IF(AND($G$9="Szkoła policealna",$G$10="Poznań"),1+BC53,IF(AND($G$9="Szkoła wyższa",$G$10="Poznań"),1+BC55,IF(AND($G$9="Inne",$G$10="Poznań"),1+BC57,IF(AND($G$9="Zespół szkół",$G$10="Poznań"),1+BC59,IF(AND($G$9="Gimnazjum",$G$10="Poznań"),1+BC61,IF(AND($G$9="Centrum kształcenia",$G$10="Poznań"),1+BC63,IF(AND($G$9="Dom dziecka",$G$10="Poznań"),1+BC65,"-")))))))))))))) -> - | BO38: =IF(AND($G$9="Żłobek, przedszkole",$G$10="Warszawa"),1+BD39,IF(AND($G$9="Szkoła sportowa",$G$10="Warszawa"),1+BD41,IF(AND($G$9="Szkoła podstawowa",$G$10="Warszawa"),1+BD43,IF(AND($G$9="Liceum ogólnokształcące",$G$10="Warszawa"),1+BD45,IF(AND($G$9="Liceum zawodowe",$G$10="Warszawa"),1+BD47,IF(AND($G$9="Technikum",$G$10="Warszawa"),1+BD49,IF(AND($G$9="Zasadnicza szkoła zawodowa",$G$10="Warszawa"),1+BD51,IF(AND($G$9="Szkoła policealna",$G$10="Warszawa"),1+BD53,IF(AND($G$9="Szkoła wyższa",$G$10="Warszawa"),1+BD55,IF(AND($G$9="Inne",$G$10="Warszawa"),1+BD57,IF(AND($G$9="Zespół szkół",$G$10="Warszawa"),1+BD59,IF(AND($G$9="Gimnazjum",$G$10="Warszawa"),1+BD61,IF(AND($G$9="Centrum kształcenia",$G$10="Warszawa"),1+BD63,IF(AND($G$9="Dom dziecka",$G$10="Warszawa"),1+BD65,"-")))))))))))))) -> 1.2 | BP38: =IF(AND($G$9="Żłobek, przedszkole",$G$10="Wrocław"),1+BE39,IF(AND($G$9="Szkoła sportowa",$G$10="Wrocław"),1+BE41,IF(AND($G$9="Szkoła podstawowa",$G$10="Wrocław"),1+BE43,IF(AND($G$9="Liceum ogólnokształcące",$G$10="Wrocław"),1+BE45,IF(AND($G$9="Liceum zawodowe",$G$10="Wrocław"),1+BE47,IF(AND($G$9="Technikum",$G$10="Wrocław"),1+BE49,IF(AND($G$9="Zasadnicza szkoła zawodowa",$G$10="Wrocław"),1+BE51,IF(AND($G$9="Szkoła policealna",$G$10="Wrocław"),1+BE53,IF(AND($G$9="Szkoła wyższa",$G$10="Wrocław"),1+BE55,IF(AND($G$9="Inne",$G$10="Wrocław"),1+BE57,IF(AND($G$9="Zespół szkół",$G$10="Wrocław"),1+BE59,IF(AND($G$9="Gimnazjum",$G$10="Wrocław"),1+BE61,IF(AND($G$9="Centrum kształcenia",$G$10="Wrocław"),1+BE63,IF(AND($G$9="Dom dziecka",$G$10="Wrocław"),1+BE65,"-")))))))))))))) -> - | BQ38: =IF(AND($G$9="Żłobek, przedszkole",$G$10="Szczecin"),1+BF39,IF(AND($G$9="Szkoła sportowa",$G$10="Szczecin"),1+BF41,IF(AND($G$9="Szkoła podstawowa",$G$10="Szczecin"),1+BF43,IF(AND($G$9="Liceum ogólnokształcące",$G$10="Szczecin"),1+BF45,IF(AND($G$9="Liceum zawodowe",$G$10="Szczecin"),1+BF47,IF(AND($G$9="Technikum",$G$10="Szczecin"),1+BF49,IF(AND($G$9="Zasadnicza szkoła zawodowa",$G$10="Szczecin"),1+BF51,IF(AND($G$9="Szkoła policealna",$G$10="Szczecin"),1+BF53,IF(AND($G$9="Szkoła wyższa",$G$10="Szczecin"),1+BF55,IF(AND($G$9="Inne",$G$10="Szczecin"),1+BF57,IF(AND($G$9="Zespół szkół",$G$10="Szczecin"),1+BF59,IF(AND($G$9="Gimnazjum",$G$10="Szczecin"),1+BF61,IF(AND($G$9="Centrum kształcenia",$G$10="Szczecin"),1+BF63,IF(AND($G$9="Dom dziecka",$G$10="Szczecin"),1+BF65,"-")))))))))))))) -> -
F39: Zwrot kosztów leczenia do wysokości: | G39: sumy ubezpieczenia | I39: =IF(AY3=TRUE,IF(AQ39=TRUE,(((IF(AND($BJ$4=1,$AY$3=TRUE),(I$20*$AV$95/1000),IF(AND($BJ$4=2,$AY$3=TRUE),(I$20*$AW$95/1000),""))))*AQ23),((IF(AND($BJ$4=1,$AY$3=TRUE),(I$20*$AV$95/1000),IF(AND($BJ$4=2,$AY$3=TRUE),(I$20*$AW$95/1000),""))))),"") -> 2 | J39: =IF(AY14=TRUE,IF(AQ39=TRUE,(((IF(AND($BJ$4=1,$AY$14=TRUE),(I$20*$AV$95/1000),IF(AND($BJ$4=2,$AY$14=TRUE),(I$20*$AW$95/1000),""))))*AQ23),((IF(AND($BJ$4=1,$AY$14=TRUE),(I$20*$AV$95/1000),IF(AND($BJ$4=2,$AY$14=TRUE),(I$20*$AW$95/1000),""))))),"") -> 2 | L39: =IF(AY3=TRUE,IF(AR39=TRUE,(((IF(AND($BJ$4=1,$AY$3=TRUE),(L$20*$AV$95/1000),IF(AND($BJ$4=2,$AY$3=TRUE),(L$20*$AW$95/1000),""))))*AQ23),((IF(AND($BJ$4=1,$AY$3=TRUE),(L$20*$AV$95/1000),IF(AND($BJ$4=2,$AY$3=TRUE),(L$20*$AW$95/1000),""))))),"") -> 2.2 | M39: =IF(AY14=TRUE,IF(AR39=TRUE,(((IF(AND($BJ$4=1,$AY$14=TRUE),(L$20*$AV$95/1000),IF(AND($BJ$4=2,$AY$14=TRUE),(L$20*$AW$95/1000),""))))*AQ23),((IF(AND($BJ$4=1,$AY$14=TRUE),(L$20*$AV$95/1000),IF(AND($BJ$4=2,$AY$14=TRUE),(L$20*$AW$95/1000),""))))),"") -> 2.2 | O39: =IF(AY3=TRUE,IF(AS39=TRUE,(((IF(AND($BJ$4=1,$AY$3=TRUE),(O$20*$AV$95/1000),IF(AND($BJ$4=2,$AY$3=TRUE),(O$20*$AW$95/1000),""))))*AQ23),((IF(AND($BJ$4=1,$AY$3=TRUE),(O$20*$AV$95/1000),IF(AND($BJ$4=2,$AY$3=TRUE),(O$20*$AW$95/1000),""))))),"") -> 2.4 | P39: =IF(AY14=TRUE,IF(AS39=TRUE,(((IF(AND($BJ$4=1,$AY$14=TRUE),(O$20*$AV$95/1000),IF(AND($BJ$4=2,$AY$14=TRUE),(O$20*$AW$95/1000),""))))*AQ23),((IF(AND($BJ$4=1,$AY$14=TRUE),(O$20*$AV$95/1000),IF(AND($BJ$4=2,$AY$14=TRUE),(O$20*$AW$95/1000),""))))),"") -> 2.4 | AP39: Wariant 1 | AW39: Wariant II | AX39: -0.2 | AY39: -0.1 | AZ39: -0.25 | BA39: -0.25 | BB39: -0.15 | BC39: -0.2 | BD39: -0.3 | BE39: -0.25 | BF39: -0.2 | BH39: Zniżka (1/0) | BI39: =IF(OR(BI37<1,BI38<1),1,"") ->  | BJ39: =IF(OR(BJ37<1,BJ38<1),1,"") ->  | BO39: 1
F40: Ryczałt za okres czasowej, całkowitej niezdolności do nauki lub pracy trwający dłużej niż 14 dni - 0,06% sumy ubezpieczenia za każdy dzień (do 180 dni łącznie ze wszystkich zdarzeń objętych umową) | I40: =IF(BJ5=TRUE,IF(AQ39=TRUE,(((IF($BJ$5=TRUE,(I$20*$AX$95/1000),0)))*AQ23),(((IF($BJ$5=TRUE,(I$20*$AX$95/1000),0))))),"") ->  | J40: =IF(BJ16=TRUE,IF(AQ39=TRUE,(((IF($BJ$16=TRUE,(I$20*$AX$95/1000),0)))*AQ23),(((IF($BJ$16=TRUE,(I$20*$AX$95/1000),0))))),"") ->  | L40: =IF(BJ5=TRUE,IF(AR39=TRUE,(((IF($BJ$5=TRUE,(L$20*$AX$95/1000),0)))*AQ23),(((IF($BJ$5=TRUE,(L$20*$AX$95/1000),0))))),"") ->  | M40: =IF(BJ16=TRUE,IF(AR39=TRUE,(((IF($BJ$16=TRUE,(L$20*$AX$95/1000),0)))*AQ23),(((IF($BJ$16=TRUE,(L$20*$AX$95/1000),0))))),"") ->  | O40: =IF(BJ5=TRUE,IF(AS39=TRUE,(((IF($BJ$5=TRUE,(O$20*$AX$95/1000),0)))*AQ23),(((IF($BJ$5=TRUE,(O$20*$AX$95/1000),0))))),"") ->  | P40: =IF(BJ16=TRUE,IF(AS39=TRUE,(((IF($BJ$16=TRUE,(O$20*$AX$95/1000),0)))*AQ23),(((IF($BJ$16=TRUE,(O$20*$AX$95/1000),0))))),"") ->  | AP40: Wariant 2 | AV40: Szkoła sportowa | AW40: Wariant I | AX40: 0 | AY40: 0 | AZ40: 0 | BA40: 0 | BB40: 0 | BC40: 0 | BD40: 0 | BE40: 0 | BF40: 0
F41: Dieta szpitalna, za każdy dzień pobytu w szpitalu 0,2% sumy ubezpieczenia (płatna przez maksymalny okres 90 dni z tytułu jednego nieszczęśliwego wypadku lub zdarzenia objętego umową) | I41: =IF(BJ6=TRUE,IF(AQ39=TRUE,(((IF($BJ$6=TRUE,(I$20*$AY$95/1000),0)))*AQ23),(((IF($BJ$6=TRUE,(I$20*$AY$95/1000),0))))),"") ->  | J41: =IF(BJ17=TRUE,IF(AQ39=TRUE,(((IF($BJ$17=TRUE,(I$20*$AY$95/1000),0)))*AQ23),(((IF($BJ$17=TRUE,(I$20*$AY$95/1000),0))))),"") ->  | L41: =IF(BJ6=TRUE,IF(AR39=TRUE,(((IF($BJ$6=TRUE,(L$20*$AY$95/1000),0)))*AQ23),(((IF($BJ$6=TRUE,(L$20*$AY$95/1000),0))))),"") ->  | M41: =IF(BJ17=TRUE,IF(AR39=TRUE,(((IF($BJ$17=TRUE,(L$20*$AY$95/1000),0)))*AQ23),(((IF($BJ$17=TRUE,(L$20*$AY$95/1000),0))))),"") ->  | O41: =IF(BJ6=TRUE,IF(AS39=TRUE,(((IF($BJ$6=TRUE,(O$20*$AY$95/1000),0)))*AQ23),(((IF($BJ$6=TRUE,(O$20*$AY$95/1000),0))))),"") ->  | P41: =IF(BJ17=TRUE,IF(AS39=TRUE,(((IF($BJ$17=TRUE,(O$20*$AY$95/1000),0)))*AQ23),(((IF($BJ$17=TRUE,(O$20*$AY$95/1000),0))))),"") ->  | AC41: ZNIŻKA | AD41: Kiedy powyżej 0 | AE41: =IF(R30>0,TRUE, FALSE) -> FALSE | AP41: Wariant 2 BIS | AW41: Wariant II | AX41: 0 | AY41: 0 | AZ41: 0 | BA41: 0 | BB41: 0 | BC41: 0 | BD41: 0 | BE41: 0 | BF41: 0
F42: Jednorazowe świadczenie w przypadku zgonu ubezpieczonego spowodowane nowotworem złośliwym w wysokości 1.000 zł | I42: =IF(BJ7=TRUE,IF(AQ39=TRUE,(((IF($BJ$7=TRUE,0.1,0)))*AQ23),(((IF($BJ$7=TRUE,0.1,0))))),"") -> 0.1 | J42: =IF(BJ18=TRUE,IF(AQ39=TRUE,(((IF($BJ$18=TRUE,0.1,0)))*AQ23),(((IF($BJ$18=TRUE,0.1,0))))),"") -> 0.1 | L42: =IF(BJ7=TRUE,IF(AR39=TRUE,(((IF($BJ$7=TRUE,0.1,0)))*AQ23),(((IF($BJ$7=TRUE,0.1,0))))),"") -> 0.1 | M42: =IF(BJ18=TRUE,IF(AS39=TRUE,(((IF($BJ$18=TRUE,0.1,0)))*AQ23),(((IF($BJ$18=TRUE,0.1,0))))),"") -> 0.1 | O42: =IF(BJ7=TRUE,IF(AS39=TRUE,(((IF($BJ$7=TRUE,0.1,0)))*AQ23),(((IF($BJ$7=TRUE,0.1,0))))),"") -> 0.1 | P42: =IF(BJ18=TRUE,IF(AS39=TRUE,(((IF($BJ$18=TRUE,0.1,0)))*AQ23),(((IF($BJ$18=TRUE,0.1,0))))),"") -> 0.1 | Z42: Zniżka | AA42: =IF(R28<0,TRUE,IF(R28=0,TRUE,IF(R28>0,FALSE,0))) -> TRUE | AD42: Kiedy 0 | AE42: =IF(R30=0,TRUE,FALSE) -> TRUE | AH42: PERSONEL | AO42: DZIECI | AV42: Szkoła podstawowa | AW42: Wariant I | AX42: -0.05 | AY42: 0.2 | AZ42: -0.15 | BA42: 0.1 | BB42: 0.05 | BC42: -0.1 | BD42: -0.1 | BE42: 0.25 | BF42: 0.15
F43: Jednorazowe świadczenie w przypadku zgonu dziecka lub ucznia w wieku do 25 lat z powodu wrodzonej wady serca w wysokości 1.000 zł | I43: =IF(BJ8=TRUE,IF(AQ39=TRUE,(((IF($BJ$8=TRUE,0.1,0)))*AQ23),(((IF($BJ$8=TRUE,0.1,0))))),"") -> 0.1 | L43: =IF(BJ8=TRUE,IF(AR39=TRUE,(((IF($BJ$8=TRUE,0.1,0)))*AQ23),(((IF($BJ$8=TRUE,0.1,0))))),"") -> 0.1 | O43: =IF(BJ8=TRUE,IF(AS39=TRUE,(((IF($BJ$8=TRUE,0.1,0)))*AQ23),(((IF($BJ$8=TRUE,0.1,0))))),"") -> 0.1 | Z43: Zwyżka | AA43: =IF(AA42=TRUE,FALSE,TRUE) -> FALSE | AD43: Pomiędzy 0 a zniżka z tabeli | AE43: =IF(AND(R30<0,R30>R28),TRUE,FALSE) -> FALSE | AI43: ŚWIADCZENIA DODATKOWE | AJ43: suma 1 | AK43: suma 2 | AL43: suma 3 | AP43: ŚWIADCZENIA DODATKOWE | AQ43: suma 1 | AR43: suma 2 | AS43: suma 3 | AW43: Wariant II | AX43: 0.3 | AY43: 0.6 | AZ43: 0 | BA43: 0.3 | BB43: 0.5 | BC43: 0.3 | BD43: 0.2 | BE43: 0.5 | BF43: 0.3
F44: Jednorazowe świadczenie w przypadku śmierci przedstawiciela ustawowego lub osoby, która ma na utrzymaniu ucznia w wysokości 1.000 zł | I44: =IF(BJ10=TRUE,IF(AQ39=TRUE,(((IF($BJ$10=TRUE,0.1,0)))*AQ23),(((IF($BJ$10=TRUE,0.1,0))))),"") -> 0.1 | L44: =IF(BJ10=TRUE,IF(AR39=TRUE,(((IF($BJ$10=TRUE,0.1,0)))*AQ23),(((IF($BJ$10=TRUE,0.1,0))))),"") -> 0.1 | O44: =IF(BJ10=TRUE,IF(AS39=TRUE,(((IF($BJ$10=TRUE,0.1,0)))*AQ23),(((IF($BJ$10=TRUE,0.1,0))))),"") -> 0.1 | AD44: Kiedy poniżej zniżki z tabeli | AE44: =IF(R30<R28,TRUE,FALSE) -> FALSE | AI44: zniżka incydentalna | AP44: zniżka incydentalna | AV44: Liceum ogólnokształcące | AW44: Wariant I | AX44: -0.2 | AY44: 0.05 | AZ44: -0.1 | BA44: -0.1 | BB44: -0.05 | BC44: -0.1 | BD44: -0.2 | BE44: 0.05 | BF44: -0.1
F45: Jednorazowe świadczenie w przypadku amputacji kończyny spowodowanej nowotworem złośliwym u dziecka lub ucznia w wieku do 25 lat w wysokości 1.000 zł | I45: =IF(BJ11=TRUE,IF(AQ39=TRUE,(((IF($BJ$11=TRUE,0.1,0)))*AQ23),(((IF($BJ$11=TRUE,0.1,0))))),"") -> 0.1 | L45: =IF(BJ11=TRUE,IF(AR39=TRUE,(((IF($BJ$11=TRUE,0.1,0)))*AQ23),(((IF($BJ$11=TRUE,0.1,0))))),"") -> 0.1 | O45: =IF(BJ11=TRUE,IF(AS39=TRUE,(((IF($BJ$11=TRUE,0.1,0)))*AQ23),(((IF($BJ$11=TRUE,0.1,0))))),"") -> 0.1 | AD45: Kiedy równe z palca i z tabeli | AE45: =IF(R30=R28,TRUE,FALSE) -> FALSE | AH45: WARIANT 1 | AI45: ZE ZNIŻKĄ | AJ45: =((IF(AND($BJ$4=1,$AY$14=TRUE),(I$20*$AV$95/1000),IF(AND($BJ$4=2,$AY$14=TRUE),(I$20*$AW$95/1000),0)))+(IF($BJ$16=TRUE,(I$20*$AX$95/1000),0))+(IF($BJ$17=TRUE,(I$20*$AY$95/1000),0))+(IF($BJ$18=TRUE,0.1,0)))*$AQ$23 -> 2.1 | AK45: =((IF(AND($BJ$4=1,$AY$14=TRUE),(L$20*$AV$95/1000),IF(AND($BJ$4=2,$AY$14=TRUE),(L$20*$AW$95/1000),0)))+(IF($BJ$16=TRUE,(L$20*$AX$95/1000),0))+(IF($BJ$17=TRUE,(L$20*$AY$95/1000),0))+(IF($BJ$18=TRUE,0.1,0)))*$AQ$23 -> 2.3 | AL45: =((IF(AND($BJ$4=1,$AY$14=TRUE),(O$20*$AV$95/1000),IF(AND($BJ$4=2,$AY$14=TRUE),(O$20*$AW$95/1000),0)))+(IF($BJ$16=TRUE,(O$20*$AX$95/1000),0))+(IF($BJ$17=TRUE,(O$20*$AY$95/1000),0))+(IF($BJ$18=TRUE,0.1,0)))*$AQ$23 -> 2.5 | AO45: WARIANT 1 | AP45: ZE ZNIŻKĄ | AQ45: =((IF(AND($BJ$4=1,$AY$3=TRUE),(I$20*$AV$95/1000),IF(AND($BJ$4=2,$AY$3=TRUE),(I$20*$AW$95/1000),0)))+(IF($BJ$5=TRUE,(I$20*$AX$95/1000),0))+(IF($BJ$6=TRUE,(I$20*$AY$95/1000),0))+(IF($BJ$7=TRUE,0.1,0))+(IF($BJ$8=TRUE,0.1,0))+(IF($BJ$9=TRUE,0.1,0))+(IF($BJ$10=TRUE,0.1,0))+(IF($BJ$11=TRUE,0.1,0)))*$AQ$23 -> 2.4 | AR45: =((IF(AND($BJ$4=1,$AY$3=TRUE),(L$20*$AV$95/1000),IF(AND($BJ$4=2,$AY$3=TRUE),(L$20*$AW$95/1000),0)))+(IF($BJ$5=TRUE,(L$20*$AX$95/1000),0))+(IF($BJ$6=TRUE,(L$20*$AY$95/1000),0))+(IF($BJ$7=TRUE,0.1,0))+(IF($BJ$8=TRUE,0.1,0))+(IF($BJ$9=TRUE,0.1,0))+(IF($BJ$10=TRUE,0.1,0))+(IF($BJ$11=TRUE,0.1,0)))*$AQ$23 -> 2.6 | AS45: =((IF(AND($BJ$4=1,$AY$3=TRUE),(O$20*$AV$95/1000),IF(AND($BJ$4=2,$AY$3=TRUE),(O$20*$AW$95/1000),0)))+(IF($BJ$5=TRUE,(O$20*$AX$95/1000),0))+(IF($BJ$6=TRUE,(O$20*$AY$95/1000),0))+(IF($BJ$7=TRUE,0.1,0))+(IF($BJ$8=TRUE,0.1,0))+(IF($BJ$9=TRUE,0.1,0))+(IF($BJ$10=TRUE,0.1,0))+(IF($BJ$11=TRUE,0.1,0)))*$AQ$23 -> 2.8 | AW45: Wariant II | AX45: -0.1 | AY45: 0.15 | AZ45: -0.1 | BA45: 0.05 | BB45: 0.1 | BC45: 0.05 | BD45: -0.2 | BE45: -0.05 | BF45: 0
B46: W przypadku objęcia ubezpieczeniem wszystkich dzieci i młodzieży danej placówki, do której uczęszczają uczniowie znajdujący się w trudnej sytuacji materialnej, PZU SA - na wniosek ubezpieczającego - może zastosować specjalną zniżkę od składki należnej z całej polisy. Zniżka nie ma zastosowania do umów zawieranych ze szkołami wieczorowymi i zaocznymi. | AI46: FINALNY WYNIK | AJ46: =IF(AQ$39=TRUE,AJ45,AJ47) -> 2.1 | AK46: =IF(AR$39=TRUE,AK45,AK47) -> 2.3 | AL46: =IF(AS$39=TRUE,AL45,AL47) -> 2.5 | AP46: FINALNY WYNIK | AQ46: =IF(AQ$39=TRUE,AQ45,AQ47) -> 2.4 | AR46: =IF(AR$39=TRUE,AR45,AR47) -> 2.6 | AS46: =IF(AS$39=TRUE,AS45,AS47) -> 2.8 | AV46: Liceum zawodowe | AW46: Wariant I | AX46: -0.15 | AY46: -0.1 | AZ46: -0.15 | BA46: -0.05 | BB46: -0.05 | BC46: -0.05 | BD46: -0.05 | BE46: -0.05 | BF46: -0.05
AI47: BEZ ZNIŻKI | AJ47: =(IF(AND($BJ$4=1,$AY$14=TRUE),(I$20*$AV$95/1000),IF(AND($BJ$4=2,$AY$14=TRUE),(I$20*$AW$95/1000),0)))+(IF($BJ$16=TRUE,(I$20*$AX$95/1000),0))+(IF($BJ$17=TRUE,(I$20*$AY$95/1000),0))+(IF($BJ$18=TRUE,0.1,0)) -> 2.1 | AK47: =(IF(AND($BJ$4=1,$AY$14=TRUE),(L$20*$AV$95/1000),IF(AND($BJ$4=2,$AY$14=TRUE),(L$20*$AW$95/1000),0)))+(IF($BJ$16=TRUE,(L$20*$AX$95/1000),0))+(IF($BJ$17=TRUE,(L$20*$AY$95/1000),0))+(IF($BJ$18=TRUE,0.1,0)) -> 2.3 | AL47: =(IF(AND($BJ$4=1,$AY$14=TRUE),(O$20*$AV$95/1000),IF(AND($BJ$4=2,$AY$14=TRUE),(O$20*$AW$95/1000),0)))+(IF($BJ$16=TRUE,(O$20*$AX$95/1000),0))+(IF($BJ$17=TRUE,(O$20*$AY$95/1000),0))+(IF($BJ$18=TRUE,0.1,0)) -> 2.5 | AP47: BEZ ZNIŻKI | AQ47: =(IF(AND($BJ$4=1,$AY$3=TRUE),(I$20*$AV$95/1000),IF(AND($BJ$4=2,$AY$3=TRUE),(I$20*$AW$95/1000),0)))+(IF($BJ$5=TRUE,(I$20*$AX$95/1000),0))+(IF($BJ$6=TRUE,(I$20*$AY$95/1000),0))+(IF($BJ$7=TRUE,0.1,0))+(IF($BJ$8=TRUE,0.1,0))+(IF($BJ$9=TRUE,0.1,0))+(IF($BJ$10=TRUE,0.1,0))+(IF($BJ$11=TRUE,0.1,0)) -> 2.4 | AR47: =(IF(AND($BJ$4=1,$AY$3=TRUE),(L$20*$AV$95/1000),IF(AND($BJ$4=2,$AY$3=TRUE),(L$20*$AW$95/1000),0)))+(IF($BJ$5=TRUE,(L$20*$AX$95/1000),0))+(IF($BJ$6=TRUE,(L$20*$AY$95/1000),0))+(IF($BJ$7=TRUE,0.1,0))+(IF($BJ$8=TRUE,0.1,0))+(IF($BJ$9=TRUE,0.1,0))+(IF($BJ$10=TRUE,0.1,0))+(IF($BJ$11=TRUE,0.1,0)) -> 2.6 | AS47: =(IF(AND($BJ$4=1,$AY$3=TRUE),(O$20*$AV$95/1000),IF(AND($BJ$4=2,$AY$3=TRUE),(O$20*$AW$95/1000),0)))+(IF($BJ$5=TRUE,(O$20*$AX$95/1000),0))+(IF($BJ$6=TRUE,(O$20*$AY$95/1000),0))+(IF($BJ$7=TRUE,0.1,0))+(IF($BJ$8=TRUE,0.1,0))+(IF($BJ$9=TRUE,0.1,0))+(IF($BJ$10=TRUE,0.1,0))+(IF($BJ$11=TRUE,0.1,0)) -> 2.8 | AW47: Wariant II | AX47: -0.1 | AY47: -0.05 | AZ47: -0.05 | BA47: 0 | BB47: -0.15 | BC47: -0.05 | BD47: 0.05 | BE47: -0.05 | BF47: -0.1
AH48: WARIANT 2 | AI48: ZE ZNIŻKĄ | AJ48: =((IF(AND($BJ$4=1,$AY$14=TRUE),(I$20*$AV$95/1000),IF(AND($BJ$4=2,$AY$14=TRUE),(I$20*$AW$95/1000),0)))+(IF($BJ$16=TRUE,(I$20*$AX$95/1000),0))+(IF($BJ$17=TRUE,(I$20*$AY$95/1000),0))+(IF($BJ$18=TRUE,0.1,0)))*$AQ$23 -> 2.1 | AK48: =((IF(AND($BJ$4=1,$AY$14=TRUE),(L$20*$AV$95/1000),IF(AND($BJ$4=2,$AY$14=TRUE),(L$20*$AW$95/1000),0)))+(IF($BJ$16=TRUE,(L$20*$AX$95/1000),0))+(IF($BJ$17=TRUE,(L$20*$AY$95/1000),0))+(IF($BJ$18=TRUE,0.1,0)))*$AQ$23 -> 2.3 | AL48: =((IF(AND($BJ$4=1,$AY$14=TRUE),(O$20*$AV$95/1000),IF(AND($BJ$4=2,$AY$14=TRUE),(O$20*$AW$95/1000),0)))+(IF($BJ$16=TRUE,(O$20*$AX$95/1000),0))+(IF($BJ$17=TRUE,(O$20*$AY$95/1000),0))+(IF($BJ$18=TRUE,0.1,0)))*$AQ$23 -> 2.5 | AO48: WARIANT 2 | AP48: ZE ZNIŻKĄ | AQ48: =((IF(AND($BJ$4=1,$AY$3=TRUE),(I$20*$AV$95/1000),IF(AND($BJ$4=2,$AY$3=TRUE),(I$20*$AW$95/1000),0)))+(IF($BJ$5=TRUE,(I$20*$AX$95/1000),0))+(IF($BJ$6=TRUE,(I$20*$AY$95/1000),0))+(IF($BJ$7=TRUE,0.1,0))+(IF($BJ$8=TRUE,0.1,0))+(IF($BJ$9=TRUE,0.1,0))+(IF($BJ$10=TRUE,0.1,0))+(IF($BJ$11=TRUE,0.1,0)))*$AQ$23 -> 2.4 | AR48: =((IF(AND($BJ$4=1,$AY$3=TRUE),(L$20*$AV$95/1000),IF(AND($BJ$4=2,$AY$3=TRUE),(L$20*$AW$95/1000),0)))+(IF($BJ$5=TRUE,(L$20*$AX$95/1000),0))+(IF($BJ$6=TRUE,(L$20*$AY$95/1000),0))+(IF($BJ$7=TRUE,0.1,0))+(IF($BJ$8=TRUE,0.1,0))+(IF($BJ$9=TRUE,0.1,0))+(IF($BJ$10=TRUE,0.1,0))+(IF($BJ$11=TRUE,0.1,0)))*$AQ$23 -> 2.6 | AS48: =((IF(AND($BJ$4=1,$AY$3=TRUE),(O$20*$AV$95/1000),IF(AND($BJ$4=2,$AY$3=TRUE),(O$20*$AW$95/1000),0)))+(IF($BJ$5=TRUE,(O$20*$AX$95/1000),0))+(IF($BJ$6=TRUE,(O$20*$AY$95/1000),0))+(IF($BJ$7=TRUE,0.1,0))+(IF($BJ$8=TRUE,0.1,0))+(IF($BJ$9=TRUE,0.1,0))+(IF($BJ$10=TRUE,0.1,0))+(IF($BJ$11=TRUE,0.1,0)))*$AQ$23 -> 2.8 | AV48: Technikum | AW48: Wariant I | AX48: -0.05 | AY48: 0.25 | AZ48: -0.05 | BA48: -0.1 | BB48: 0 | BC48: -0.05 | BD48: -0.1 | BE48: 0 | BF48: 0.15
B49: Przedstawiciel PZU: | AI49: FINALNY WYNIK | AJ49: =IF(AQ$40=TRUE,AJ48,AJ50) -> 2.1 | AK49: =IF(AR$40=TRUE,AK48,AK50) -> 2.3 | AL49: =IF(AS$40=TRUE,AL48,AL50) -> 2.5 | AP49: FINALNY WYNIK | AQ49: =IF(AQ$40=TRUE,AQ48,AQ50) -> 2.4 | AR49: =IF(AR$40=TRUE,AR48,AR50) -> 2.6 | AS49: =IF(AS$40=TRUE,AS48,AS50) -> 2.8 | AW49: Wariant II | AX49: 0.2 | AY49: 0.2 | AZ49: 0.2 | BA49: 0.3 | BB49: 0.2 | BC49: 0.3 | BD49: 0.3 | BE49: 0.2 | BF49: 0.2
B50: =IF(F3>0,F3,"") -> Magdalena Biernacka | AI50: BEZ ZNIŻKI | AJ50: =(IF(AND($BJ$4=1,$AY$14=TRUE),(I$20*$AV$95/1000),IF(AND($BJ$4=2,$AY$14=TRUE),(I$20*$AW$95/1000),0)))+(IF($BJ$16=TRUE,(I$20*$AX$95/1000),0))+(IF($BJ$17=TRUE,(I$20*$AY$95/1000),0))+(IF($BJ$18=TRUE,0.1,0)) -> 2.1 | AK50: =(IF(AND($BJ$4=1,$AY$14=TRUE),(L$20*$AV$95/1000),IF(AND($BJ$4=2,$AY$14=TRUE),(L$20*$AW$95/1000),0)))+(IF($BJ$16=TRUE,(L$20*$AX$95/1000),0))+(IF($BJ$17=TRUE,(L$20*$AY$95/1000),0))+(IF($BJ$18=TRUE,0.1,0)) -> 2.3 | AL50: =(IF(AND($BJ$4=1,$AY$14=TRUE),(O$20*$AV$95/1000),IF(AND($BJ$4=2,$AY$14=TRUE),(O$20*$AW$95/1000),0)))+(IF($BJ$16=TRUE,(O$20*$AX$95/1000),0))+(IF($BJ$17=TRUE,(O$20*$AY$95/1000),0))+(IF($BJ$18=TRUE,0.1,0)) -> 2.5 | AP50: BEZ ZNIŻKI | AQ50: =(IF(AND($BJ$4=1,$AY$3=TRUE),(I$20*$AV$95/1000),IF(AND($BJ$4=2,$AY$3=TRUE),(I$20*$AW$95/1000),0)))+(IF($BJ$5=TRUE,(I$20*$AX$95/1000),0))+(IF($BJ$6=TRUE,(I$20*$AY$95/1000),0))+(IF($BJ$7=TRUE,0.1,0))+(IF($BJ$8=TRUE,0.1,0))+(IF($BJ$9=TRUE,0.1,0))+(IF($BJ$10=TRUE,0.1,0))+(IF($BJ$11=TRUE,0.1,0)) -> 2.4 | AR50: =(IF(AND($BJ$4=1,$AY$3=TRUE),(L$20*$AV$95/1000),IF(AND($BJ$4=2,$AY$3=TRUE),(L$20*$AW$95/1000),0)))+(IF($BJ$5=TRUE,(L$20*$AX$95/1000),0))+(IF($BJ$6=TRUE,(L$20*$AY$95/1000),0))+(IF($BJ$7=TRUE,0.1,0))+(IF($BJ$8=TRUE,0.1,0))+(IF($BJ$9=TRUE,0.1,0))+(IF($BJ$10=TRUE,0.1,0))+(IF($BJ$11=TRUE,0.1,0)) -> 2.6 | AS50: =(IF(AND($BJ$4=1,$AY$3=TRUE),(O$20*$AV$95/1000),IF(AND($BJ$4=2,$AY$3=TRUE),(O$20*$AW$95/1000),0)))+(IF($BJ$5=TRUE,(O$20*$AX$95/1000),0))+(IF($BJ$6=TRUE,(O$20*$AY$95/1000),0))+(IF($BJ$7=TRUE,0.1,0))+(IF($BJ$8=TRUE,0.1,0))+(IF($BJ$9=TRUE,0.1,0))+(IF($BJ$10=TRUE,0.1,0))+(IF($BJ$11=TRUE,0.1,0)) -> 2.8 | AV50: Zasadnicza szkoła zawodowa | AW50: Wariant I | AX50: -0.05 | AY50: 0.1 | AZ50: 0 | BA50: -0.05 | BB50: 0.05 | BC50: -0.05 | BD50: 0 | BE50: 0.15 | BF50: 0.05
B51: =IF(F4>0,F4,"") -> 502 731 458 | AH51: WARIANT 2 BIS | AI51: ZE ZNIŻKĄ | AJ51: =((IF(AND($BJ$4=1,$AY$14=TRUE),(I$20*$AV$95/1000),IF(AND($BJ$4=2,$AY$14=TRUE),(I$20*$AW$95/1000),0)))+(IF($BJ$16=TRUE,(I$20*$AX$95/1000),0))+(IF($BJ$17=TRUE,(I$20*$AY$95/1000),0))+(IF($BJ$18=TRUE,0.1,0)))*$AQ$23 -> 2.1 | AK51: =((IF(AND($BJ$4=1,$AY$14=TRUE),(L$20*$AV$95/1000),IF(AND($BJ$4=2,$AY$14=TRUE),(L$20*$AW$95/1000),0)))+(IF($BJ$16=TRUE,(L$20*$AX$95/1000),0))+(IF($BJ$17=TRUE,(L$20*$AY$95/1000),0))+(IF($BJ$18=TRUE,0.1,0)))*$AQ$23 -> 2.3 | AL51: =((IF(AND($BJ$4=1,$AY$14=TRUE),(O$20*$AV$95/1000),IF(AND($BJ$4=2,$AY$14=TRUE),(O$20*$AW$95/1000),0)))+(IF($BJ$16=TRUE,(O$20*$AX$95/1000),0))+(IF($BJ$17=TRUE,(O$20*$AY$95/1000),0))+(IF($BJ$18=TRUE,0.1,0)))*$AQ$23 -> 2.5 | AO51: WARIANT 2 BIS | AP51: ZE ZNIŻKĄ | AQ51: =((IF(AND($BJ$4=1,$AY$3=TRUE),(I$20*$AV$95/1000),IF(AND($BJ$4=2,$AY$3=TRUE),(I$20*$AW$95/1000),0)))+(IF($BJ$5=TRUE,(I$20*$AX$95/1000),0))+(IF($BJ$6=TRUE,(I$20*$AY$95/1000),0))+(IF($BJ$7=TRUE,0.1,0))+(IF($BJ$8=TRUE,0.1,0))+(IF($BJ$9=TRUE,0.1,0))+(IF($BJ$10=TRUE,0.1,0))+(IF($BJ$11=TRUE,0.1,0)))*$AQ$23 -> 2.4 | AR51: =((IF(AND($BJ$4=1,$AY$3=TRUE),(L$20*$AV$95/1000),IF(AND($BJ$4=2,$AY$3=TRUE),(L$20*$AW$95/1000),0)))+(IF($BJ$5=TRUE,(L$20*$AX$95/1000),0))+(IF($BJ$6=TRUE,(L$20*$AY$95/1000),0))+(IF($BJ$7=TRUE,0.1,0))+(IF($BJ$8=TRUE,0.1,0))+(IF($BJ$9=TRUE,0.1,0))+(IF($BJ$10=TRUE,0.1,0))+(IF($BJ$11=TRUE,0.1,0)))*$AQ$23 -> 2.6 | AS51: =((IF(AND($BJ$4=1,$AY$3=TRUE),(O$20*$AV$95/1000),IF(AND($BJ$4=2,$AY$3=TRUE),(O$20*$AW$95/1000),0)))+(IF($BJ$5=TRUE,(O$20*$AX$95/1000),0))+(IF($BJ$6=TRUE,(O$20*$AY$95/1000),0))+(IF($BJ$7=TRUE,0.1,0))+(IF($BJ$8=TRUE,0.1,0))+(IF($BJ$9=TRUE,0.1,0))+(IF($BJ$10=TRUE,0.1,0))+(IF($BJ$11=TRUE,0.1,0)))*$AQ$23 -> 2.8 | AW51: Wariant II | AX51: 0.2 | AY51: 0.3 | AZ51: 0.3 | BA51: 0.2 | BB51: 0.2 | BC51: 0.3 | BD51: 0.2 | BE51: 0.2 | BF51: 0.2
B52: =IF(F5>0,F5,"") -> Warszawa | AI52: FINALNY WYNIK | AJ52: =IF(AQ$41=TRUE,AJ51,AJ53) -> 2.1 | AK52: =IF(AR$41=TRUE,AK51,AK53) -> 2.3 | AL52: =IF(AS$41=TRUE,AL51,AL53) -> 2.5 | AP52: FINALNY WYNIK | AQ52: =IF(AQ$41=TRUE,AQ51,AQ53) -> 2.4 | AR52: =IF(AR$41=TRUE,AR51,AR53) -> 2.6 | AS52: =IF(AS$41=TRUE,AS51,AS53) -> 2.8 | AV52: Szkoła policealna | AW52: Wariant I | AX52: -0.1 | AY52: 0 | AZ52: -0.1 | BA52: 0.05 | BB52: -0.1 | BC52: -0.1 | BD52: 0.1 | BE52: 0.05 | BF52: -0.05
B53: =IF(F6>0,F6,"") -> 07-200 Wyszków, ul. 11 Listopada 4 | H53: PODPIS | AI53: BEZ ZNIŻKI | AJ53: =(IF(AND($BJ$4=1,$AY$14=TRUE),(I$20*$AV$95/1000),IF(AND($BJ$4=2,$AY$14=TRUE),(I$20*$AW$95/1000),0)))+(IF($BJ$16=TRUE,(I$20*$AX$95/1000),0))+(IF($BJ$17=TRUE,(I$20*$AY$95/1000),0))+(IF($BJ$18=TRUE,0.1,0)) -> 2.1 | AK53: =(IF(AND($BJ$4=1,$AY$14=TRUE),(L$20*$AV$95/1000),IF(AND($BJ$4=2,$AY$14=TRUE),(L$20*$AW$95/1000),0)))+(IF($BJ$16=TRUE,(L$20*$AX$95/1000),0))+(IF($BJ$17=TRUE,(L$20*$AY$95/1000),0))+(IF($BJ$18=TRUE,0.1,0)) -> 2.3 | AL53: =(IF(AND($BJ$4=1,$AY$14=TRUE),(O$20*$AV$95/1000),IF(AND($BJ$4=2,$AY$14=TRUE),(O$20*$AW$95/1000),0)))+(IF($BJ$16=TRUE,(O$20*$AX$95/1000),0))+(IF($BJ$17=TRUE,(O$20*$AY$95/1000),0))+(IF($BJ$18=TRUE,0.1,0)) -> 2.5 | AP53: BEZ ZNIŻKI | AQ53: =(IF(AND($BJ$4=1,$AY$3=TRUE),(I$20*$AV$95/1000),IF(AND($BJ$4=2,$AY$3=TRUE),(I$20*$AW$95/1000),0)))+(IF($BJ$5=TRUE,(I$20*$AX$95/1000),0))+(IF($BJ$6=TRUE,(I$20*$AY$95/1000),0))+(IF($BJ$7=TRUE,0.1,0))+(IF($BJ$8=TRUE,0.1,0))+(IF($BJ$9=TRUE,0.1,0))+(IF($BJ$10=TRUE,0.1,0))+(IF($BJ$11=TRUE,0.1,0)) -> 2.4 | AR53: =(IF(AND($BJ$4=1,$AY$3=TRUE),(L$20*$AV$95/1000),IF(AND($BJ$4=2,$AY$3=TRUE),(L$20*$AW$95/1000),0)))+(IF($BJ$5=TRUE,(L$20*$AX$95/1000),0))+(IF($BJ$6=TRUE,(L$20*$AY$95/1000),0))+(IF($BJ$7=TRUE,0.1,0))+(IF($BJ$8=TRUE,0.1,0))+(IF($BJ$9=TRUE,0.1,0))+(IF($BJ$10=TRUE,0.1,0))+(IF($BJ$11=TRUE,0.1,0)) -> 2.6 | AS53: =(IF(AND($BJ$4=1,$AY$3=TRUE),(O$20*$AV$95/1000),IF(AND($BJ$4=2,$AY$3=TRUE),(O$20*$AW$95/1000),0)))+(IF($BJ$5=TRUE,(O$20*$AX$95/1000),0))+(IF($BJ$6=TRUE,(O$20*$AY$95/1000),0))+(IF($BJ$7=TRUE,0.1,0))+(IF($BJ$8=TRUE,0.1,0))+(IF($BJ$9=TRUE,0.1,0))+(IF($BJ$10=TRUE,0.1,0))+(IF($BJ$11=TRUE,0.1,0)) -> 2.8 | AW53: Wariant II | AX53: 0 | AY53: 0.15 | AZ53: 0 | BA53: 0 | BB53: 0 | BC53: 0.1 | BD53: 0 | BE53: -0.1 | BF53: -0.1
AV54: Szkoła wyższa | AW54: Wariant I | AX54: 0 | AY54: -0.1 | AZ54: -0.1 | BA54: -0.15 | BB54: -0.1 | BC54: -0.1 | BD54: -0.1 | BE54: -0.1 | BF54: -0.15
AW55: Wariant II | AX55: -0.2 | AY55: -0.2 | AZ55: -0.2 | BA55: -0.1 | BB55: -0.05 | BC55: -0.2 | BD55: -0.1 | BE55: -0.1 | BF55: -0.1
AV56: Inne | AW56: Wariant I | AX56: -0.15 | AY56: -0.15 | AZ56: -0.2 | BA56: -0.2 | BB56: -0.05 | BC56: -0.2 | BD56: -0.2 | BE56: -0.05 | BF56: -0.2
AW57: Wariant II | AX57: -0.15 | AY57: -0.15 | AZ57: -0.15 | BA57: -0.15 | BB57: -0.05 | BC57: -0.15 | BD57: -0.1 | BE57: 0 | BF57: -0.1
AV58: Zespół szkół | AW58: Wariant I | AX58: 0.05 | AY58: 0.2 | AZ58: -0.05 | BA58: 0.2 | BB58: 0.3 | BC58: -0.05 | BD58: -0.15 | BE58: 0.2 | BF58: 0.1
AW59: Wariant II | AX59: 0.4 | AY59: 0.5 | AZ59: 0.4 | BA59: 0.5 | BB59: 0.4 | BC59: 0.3 | BD59: 0.3 | BE59: 0.5 | BF59: 0.4
AV60: Gimnazjum | AW60: Wariant I | AX60: 0.4 | AY60: 0.4 | AZ60: 0.15 | BA60: 0.4 | BB60: 0.25 | BC60: 0.35 | BD60: 0.15 | BE60: 0.4 | BF60: 0.3
AW61: Wariant II | AX61: 0.7 | AY61: 0.7 | AZ61: 0.5 | BA61: 0.7 | BB61: 0.7 | BC61: 0.7 | BD61: 0.7 | BE61: 0.7 | BF61: 0.7
AV62: Centrum kształcenia | AW62: Wariant I | AX62: -0.2 | AY62: -0.1 | AZ62: -0.1 | BA62: -0.15 | BB62: -0.15 | BC62: -0.1 | BD62: -0.1 | BE62: -0.05 | BF62: -0.05
AW63: Wariant II | AX63: 0.05 | AY63: -0.2 | AZ63: -0.1 | BA63: -0.05 | BB63: -0.05 | BC63: -0.1 | BD63: -0.15 | BE63: -0.15 | BF63: -0.1
AV64: Dom dziecka | AW64: Wariant I | AX64: -0.25 | AY64: -0.25 | AZ64: -0.25 | BA64: -0.25 | BB64: -0.25 | BC64: -0.25 | BD64: -0.25 | BE64: -0.25 | BF64: -0.25
AW65: Wariant II | AX65: -0.25 | AY65: -0.15 | AZ65: -0.25 | BA65: -0.15 | BB65: -0.25 | BC65: -0.25 | BD65: -0.15 | BE65: -0.25 | BF65: -0.25
AV68: Przykład wyliczenia składki za świadczenia podstawowedla szkoły podstawowej w Oddziale w Warszawie o wskaźniku szkodowości > 40%
AV69: suma ubezpieczenia | AW69: 10000
AW70: wariant I | AX70: wariant II | AY70: wariant II Bis*
AV71: składka za 1 osobę za świadczenia podstawowe | AW71: =AW5*AW69/1000*0.9 -> 42.3 | AX71: =AX5*AW69/1000*1.2 -> 48 | AY71: =AX71*0.7 -> 33.6
AV72: * składka za wariant II BIS = składka za wariant II - zniżka 30%
AV74: Przykład wyliczenia składki za świadczenia podstawowe dla szkoły podstawowej w Oddziale w Warszawie o wskaźniku szkodowości ≤ 40%
AV75: suma ubezpieczenia | AW75: 10000
AW76: wariant I | AX76: wariant II | AY76: wariant II Bis*
AV77: składka za 1 osobę za świadczenia podstawowe | AW77: =AW5*AW75/1000*0.8 -> 37.6 | AX77: =AX5*AW75/1000 -> 40 | AY77: =AX77*0.7 -> 28
AV78: * składka za wariant II BIS = składka za wariant II - zniżka 30%
AV80: Przykład wyliczenia składki za swiadczenia podstawowe dla nowej szkoły podstawowej w Oddziale w Warszawie
AV81: suma ubezpieczenia | AW81: 10000
AW82: wariant I | AX82: wariant II | AY82: wariant II Bis*
AV83: składka za 1 osobę za świadczenia podstawowe | AW83: =AW5*AW81/1000*0.9 -> 42.3 | AX83: =AX5*AW81/1000 -> 40 | AY83: =AX83*0.7 -> 28
AV84: * składka za wariant II BIS = składka za wariant II - zniżka 30%
AV86: Zniżki/zwyżki z tabeli stosuje się wyłącznie do taryfowych stawek wyjściowych za świadczenia podstawowe.
AV87: Zniżek/zwyżek z tabeli nie stosuje się do taryfowych stawek wyjściowych za świadczenia dodatkowe
AV89: STAWKI TARYFOWE DLA ŚWIADCZEŃ DODATKOWYCH
AV91: niezależnie od rodzaju placówki i wariantu ubezpieczenia
AV93: Koszty leczenia | AX93: Ryczałt za okres niezdolności | AY93: Dieta szpitalna
AV94: do 20% | AW94: do 30%
AV95: 0.15 | AW95: 0.2 | AX95: 0.45 | AY95: 0.75
AV97: składkę roczną za ubezpieczenie 1 osoby oblicza się mnożąc stawkę taryfową przez 1/1000 sumy ubezpieczenia
AV99: Przykład wyliczenia składki za świadczenia dodatkowe
AV100: suma ubezpieczenia dla świadczeń podstawowych | AW100: 10000
AW101: składka
AV102: Koszty leczenia do 20% | AW102: =AV95*AW100/1000 -> 1.5
AV103: Koszty leczenia do 30% | AW103: =AW95*AW100/1000 -> 2
AV104: Ryczałt za okres niezdolności | AW104: =AX95*AW100/1000 -> 4.5
AV105: Dieta szpitalna | AW105: =AY95*AW100/1000 -> 7.5
AV107: Jednorazowe świadczenie w przypadku zgonu ubezpieczonego spowodowane nowotworem złośliwym | AW107: Jednorazowe świadczenie w przypadku zgonu dziecka, ucznia, studenta w wieku do 25 lat z powodu wrodoznej wady serca | AX107: Zwrot czesnego za każdy 1.000 zł | AY107: Jednorazowe świadczenie w przypadku śmierci przedstawiciela ustawowego | AZ107: Jednorazowe świadczenie w przypadku amputacji kończyny spowodowanej nowotworem złośliwym u dziecka, ucznia, studenta w wieku do 25 lat
AV108: 0.1 | AW108: 0.1 | AX108: 0.1 | AY108: 0.1 | AZ108: 0.1
AV110: składka roczna - niezależna od wysokości sumy ubezpieczenia
AV112: Przykład wyliczenia składki za świadczenia dodatkowe
AV114: Jednorazowe świadczenie w przypadku zgonu ubezpieczonego spowodowane nowotworem złośliwym | AW114: 0.1
AV115: Jednorazowe świadczenie w przypadku zgonu dziecka, ucznia, studenta w wieku do 25 lat z powodu wrodoznej wady serca | AW115: 0.1
AV116: Zwrot czesnego za każdy 1.000 zł | AW116: 0.1
AV117: Jednorazowe świadczenie w przypadku śmierci przedstawiciela ustawowego | AW117: 0.1
AV118: Jednorazowe świadczenie w przypadku amputacji kończyny spowodowanej nowotworem złośliwym u dziecka, ucznia, studenta w wieku do 25 lat | AW118: 0.1
AV120: Składka razem = składka za świadczenia podstawowe + składka za świadczenia dodatkowe
AV122: Przykład wyliczenia składki za świadczenia podstawowe i świadczenia dodatkowe (wszystkie w tym koszty leczenia do 30%) dla szkoły podstawowej w Oddziale w Warszawie o wskaźniku szkodowości > 40%
AV123: suma ubezpieczenia | AW123: 10000
AW124: wariant I | AX124: wariant II | AY124: wariant II Bis*
AV125: składka za 1 osobę za świadczenia podstawowe i świadczenia dodatkowe | AW125: =AW71+$C$94+$D$94+$E$94+$C$101+$C$102+$C$103+$C$104+$B$107+$C$107+$D$107+$E$107+$F$107 -> 42.3 | AX125: =AX71+$C$94+$D$94+$E$94+$C$101+$C$102+$C$103+$C$104+$B$107+$C$107+$D$107+$E$107+$F$107 -> 48 | AY125: =AY71+$C$94+$D$94+$E$94+$C$101+$C$102+$C$103+$C$104+$B$107+$C$107+$D$107+$E$107+$F$107 -> 33.6
AV128: Przykład wyliczenia składki za świadczenia podstawowe dla szkoły podstawowej w Oddziale w Warszawie o wskaźniku szkodowości ≤ 40%
AV129: suma ubezpieczenia | AW129: 10000
AW130: wariant I | AX130: wariant II | AY130: wariant II Bis*
AV131: składka za 1 osobę za świadczenia podstawowe i świadczenia dodatkowe | AW131: =AW77+$C$94+$D$94+$E$94+$C$101+$C$102+$C$103+$C$104+$B$107+$C$107+$D$107+$E$107+$F$107 -> 37.6 | AX131: =AX77+$C$94+$D$94+$E$94+$C$101+$C$102+$C$103+$C$104+$B$107+$C$107+$D$107+$E$107+$F$107 -> 40 | AY131: =AY77+$C$94+$D$94+$E$94+$C$101+$C$102+$C$103+$C$104+$B$107+$C$107+$D$107+$E$107+$F$107 -> 28
AV134: Przykład wyliczenia składki za swiadczenia podstawowe dla nowej szkoły podstawowej w Oddziale w Warszawie
AV135: suma ubezpieczenia | AW135: 10000
AW136: wariant I | AX136: wariant II | AY136: wariant II Bis*
AV137: składka za 1 osobę za świadczenia podstawowe i świadczenia dodatkowe | AW137: =AW83+$C$94+$D$94+$E$94+$C$101+$C$102+$C$103+$C$104+$B$107+$C$107+$D$107+$E$107+$F$107 -> 42.3 | AX137: =AX83+$C$94+$D$94+$E$94+$C$101+$C$102+$C$103+$C$104+$B$107+$C$107+$D$107+$E$107+$F$107 -> 40 | AY137: =AY83+$C$94+$D$94+$E$94+$C$101+$C$102+$C$103+$C$104+$B$107+$C$107+$D$107+$E$107+$F$107 -> 28
AV139: ZNIŻKA INCYDENTALNA
AV141: zniżkę incydentalną stosuje się na samym końcu
AV143: Przykład wyliczenia składki za świadczenia podstawowe i świadczenia dodatkowe (wszystkie w tym koszty leczenia do 30%) dla szkoły podstawowej w Oddziale w Warszawie o wskaźniku szkodowości > 40% z zastosowaniem zniżki incydentalnej w wysokości 25%
AV144: suma ubezpieczenia | AW144: 10000
AW145: wariant I | AX145: wariant II | AY145: wariant II Bis*
AV146: składka za 1 osobę za świadczenia podstawowe i świadczenia dodatkowe | AW146: =(AW71+$C$94+$D$94+$E$94+$C$101+$C$102+$C$103+$C$104+$B$107+$C$107+$D$107+$E$107+$F$107)*0.75 -> 31.725 | AX146: =(AX71+$C$94+$D$94+$E$94+$C$101+$C$102+$C$103+$C$104+$B$107+$C$107+$D$107+$E$107+$F$107)*0.75 -> 36 | AY146: =(AY71+$C$94+$D$94+$E$94+$C$101+$C$102+$C$103+$C$104+$B$107+$C$107+$D$107+$E$107+$F$107)*0.75 -> 25.2
AV149: Przykład wyliczenia składki za świadczenia podstawowe dla szkoły podstawowej w Oddziale w Warszawie o wskaźniku szkodowości ≤ 40% z zastosowaniem zniżki incydentalnej w wysokości 25%
AV150: suma ubezpieczenia | AW150: 10000
AW151: wariant I | AX151: wariant II | AY151: wariant II Bis*
AV152: składka za 1 osobę za świadczenia podstawowe i świadczenia dodatkowe | AW152: =(AW77+$C$94+$D$94+$E$94+$C$101+$C$102+$C$103+$C$104+$B$107+$C$107+$D$107+$E$107+$F$107)*0.75 -> 28.2 | AX152: =(AX77+$C$94+$D$94+$E$94+$C$101+$C$102+$C$103+$C$104+$B$107+$C$107+$D$107+$E$107+$F$107)*0.75 -> 30 | AY152: =(AY77+$C$94+$D$94+$E$94+$C$101+$C$102+$C$103+$C$104+$B$107+$C$107+$D$107+$E$107+$F$107)*0.75 -> 21
AV155: Przykład wyliczenia składki za swiadczenia podstawowe dla nowej szkoły podstawowej w Oddziale w Warszawie z zastosowaniem zniżki incydentalnej w wysokości 25%
AV156: suma ubezpieczenia | AW156: 10000
AW157: wariant I | AX157: wariant II | AY157: wariant II Bis*
AV158: składka za 1 osobę za świadczenia podstawowe i świadczenia dodatkowe | AW158: =(AW83+$C$94+$D$94+$E$94+$C$101+$C$102+$C$103+$C$104+$B$107+$C$107+$D$107+$E$107+$F$107)*0.75 -> 31.725 | AX158: =(AX83+$C$94+$D$94+$E$94+$C$101+$C$102+$C$103+$C$104+$B$107+$C$107+$D$107+$E$107+$F$107)*0.75 -> 30 | AY158: =(AY83+$C$94+$D$94+$E$94+$C$101+$C$102+$C$103+$C$104+$B$107+$C$107+$D$107+$E$107+$F$107)*0.75 -> 21

Sheet Wariant_II
AJ1: 1 | AZ1: Świadczenia dodatkowe dla wariantu I, II, II BIS: DLA DZIECI | CE1: agent | CF1: email | CG1: nr telefonu
B2: Doradca: | AV2: STAWKI TARYFOWE DLA ŚWIADCZEŃ PODSTAWOWYCH | AY2: =IF(AND(AY3=TRUE,AY4=TRUE),TRUE,FALSE) -> FALSE | CE2: Broniszewski Sławomir | CF2: slbroniszewski@agentpzu.pl | CG2: 603245422 | CH2: ; | CJ2: =CG2&CH2&CF2 -> 603245422; slbroniszewski@agentpzu.pl
B3: Imię i nazwisko | C3: Imię i nazwisko | AZ3: zwrot kosztów leczenia do wysokości 20 % sumy ubezpieczenia | BK3: =IF($G$9=BL3,TRUE,FALSE) -> FALSE | BL3: Centrum kształcenia | BM3: Gdańsk | BO3: ≤40% | BP3: 0 | CE3: Derkacz Jerzy | CF3: jderkacz@agentpzu.pl | CG3: 607576620 | CH3: ; | CJ3: =CG3&CH3&CF3 -> 607576620; jderkacz@agentpzu.pl
B4: Telefon | C4: Telefon | AV4: rodzaj placówki | AW4: wariant I | AX4: wariant II | AY4: =IF(BJ4>0,TRUE,FALSE) -> FALSE | AZ4: zwrot kosztów leczenia do wysokości 30 % sumy ubezpieczenia | BK4: =IF($G$9=BL4,TRUE,FALSE) -> FALSE | BL4: Dom dziecka | BM4: Katowice | BO4: nowa = pozyskana w 2015r. | BP4: -0.01 | CE4: Golas Marcin | CF4: mgolas@agentpzu.pl | CG4: 881298939 | CH4: ; | CJ4: 881298939; mgolas@agentpzu.pl
B5: Oddział Region. | C5: Oddział | AV5: żłobek | AW5: 4.7 | AX5: 4 | AY5: =BJ5 -> 0 | AZ5: ryczałt za okres czasowej, całkowitej niezdolności do nauki lub pracy trwający dłużej niż 14 dni - 0,06% sumy ubezpieczenia za każdy dzień (do 180 dni łącznie ze wszystkich zdarzeń objętych umową) | BK5: FALSE | BL5: Gimnazjum | BM5: Kraków | BO5: wznowiona = pozyskana w 2014r. | BP5: -0.02 | CE5: Kalina Elżbieta | CF5: ekalina@agentpzu.pl | CG5: 601987169 | CH5: ; | CJ5: 601987169; ekalina@agentpzu.pl
B6: Adres | C6: Adres | AV6: przedszkole | AY6: =BJ6 -> 0 | AZ6: dieta szpitalna, za każdy dzień pobytu w szpitalu 0,2% sumy ubezpieczenia (płatna przez maksymalny okres 90 dni z tytułu jednego nieszczęśliwego wypadku lub zdarzenia objętego umową) | BK6: FALSE | BL6: Inne | BM6: Lublin | BO6: >40% / NU w PZU (3 lata) | BP6: -0.03 | CE6: Kędzia Jerzy | CF6: jkedzia@agentpzu.pl | CG6: 607082785 | CH6: ; | CJ6: 607082785; jkedzia@agentpzu.pl
AV7: szkoła podstawowa | AY7: 0 | AZ7: Jednorazowe świadczenie w przypadku zgonu ubezpieczonego spowodowane nowotworem złośliwym | BK7: FALSE | BL7: Liceum ogólnokształcące | BM7: Łódź | BP7: -0.04 | CE7: Kołodyński Adam | CF7: adakolodynski@agentpzu.pl | CG7: 603169150 | CH7: ; | CJ7: 603169150; adakolodynski@agentpzu.pl
G8: WYBIERZ/WYPEŁNIJ DANE | AP8: TABELA GŁÓWNA !!! | AV8: gimnazjum | AY8: 0 | AZ8: Jednorazowe świadczenie w przypadku zgonu dziecka, ucznia, studenta w wieku do 25 lat z powodu wrodoznej wady serca | BK8: FALSE | BL8: Liceum zawodowe | BM8: Poznań | BP8: -0.05 | CE8: Kwiatkowski Dariusz | CF8: dakwiatkowski@agentpzu.pl | CG8: 505632290 | CH8: ; | CJ8: 505632290; dakwiatkowski@agentpzu.pl
B9: Placówka: | L9: WYBIERZ Z LISTY | AQ9: w I | AR9: w II | AV9: liceum ogólnokształcące | BK9: FALSE | BL9: Szkoła podstawowa | BM9: Szczecin | BP9: -0.06 | CE9: Kwikert Bożena | CF9: bkwikert@agentpzu.pl | CG9: 605148579 | CH9: ; | CJ9: 605148579; bkwikert@agentpzu.pl
B10: Oddział Regionalny: | L10: WYBIERZ Z LISTY | O10: =IF(AND(G11="≤40%",SUM(BI39:BQ39)=1),"SPRAWDŹ MOŻLIWOŚĆ PRZEDSTAWIENIA KLIENTOWI DODATKOWEJ ZNIŻKI", "") ->  | AP10: Taryfa | AQ10: =IF($G$9="Szkoła wyższa",AW18,IF($G$9="Szkoła policealna",AW18,IF($G$9="Szkoła sportowa",AW17,AW5))) -> 4.7 | AR10: =IF($G$9="Szkoła wyższa",AX18,IF($G$9="Szkoła policealna",AX18,IF($G$9="Szkoła sportowa",AX17,AX5))) -> 4 | AV10: liceum zawodowe | AY10: 0 | AZ10: Jednorazowe świadczenie w przypadku śmierci przedstawiciela ustawowego | BK10: FALSE | BL10: Szkoła policealna | BM10: Warszawa | BP10: -0.07 | CE10: Maciejewski Piotr | CF10: pmaciejewski@agentpzu.pl | CG10: 601176465 | CH10: ; | CJ10: 601176465; pmaciejewski@agentpzu.pl
B11: Szkodowość placówki: | L11: WYBIERZ Z LISTY | AP11: wariant I | AQ11: =IF(G$10="Gdańsk",BI37)+IF(G$10="Katowice",BJ37)+IF(G$10="Kraków",BK37)+IF(G$10="Lublin",BL37)+IF(G$10="Łódź",BM37)+IF(G$10="Poznań",BN37)+IF(G$10="Warszawa",BO37)+IF(G$10="Wrocław",BP37)+IF(G$10="Szczecin",BQ37) -> 0 | AV11: technikum | AY11: 0 | AZ11: Jednorazowe świadczenie w przypadku amputacji kończyny spowodowanej nowotworem złośliwym u dziecka, ucznia, studenta w wieku do 25 lat | BK11: FALSE | BL11: Szkoła sportowa | BM11: Wrocław | BP11: -0.08 | CE11: Majewska Magdalena | CF11: magdamajewska@agentpzu.pl | CG11: 790776238 | CH11: ; | CJ11: 790776238; magdamajewska@agentpzu.pl
B12: Podwyższona zniżka z tabeli (do -10%): | L12: WYBIERZ Z LISTY | AH12: NOWE | AI12: =IF(G11="nowa = pozyskana w 2015r.",TRUE,FALSE) -> FALSE | AP12: wariant II | AQ12: =IF(G$10="Gdańsk",BI38)+IF(G$10="Katowice",BJ38)+IF(G$10="Kraków",BK38)+IF(G$10="Lublin",BL38)+IF(G$10="Łódź",BM38)+IF(G$10="Poznań",BN38)+IF(G$10="Warszawa",BO38)+IF(G$10="Wrocław",BP38)+IF(G$10="Szczecin",BQ38) -> 0 | AV12: zasadnicza szkoła zawodowa | BK12: FALSE | BL12: Technikum | BP12: -0.09 | CE12: Nitzke Zbigniew | CF12: znitzke@agentpzu.pl | CG12: 601643921 | CH12: ; | CJ12: 601643921; znitzke@agentpzu.pl
B13: Zniżka incydentalna (format: -x%): | L13: WYPEŁNIJ RĘCZNIE | AH13: WZNOWIONE | AI13: =IF(AI12=TRUE,FALSE,TRUE) -> TRUE | AP13: wariant II ograniczony (wariant II - 30%) | AQ13: 0.7 | AV13: zespół szkół | AY13: =IF(AND(AY14=TRUE,AY4=TRUE),TRUE,FALSE) -> FALSE | AZ13: Świadczenia dodatkowe dla wariantu I, II, II BIS: DLA PERSONELU | BK13: FALSE | BL13: Zasadnicza szkoła zawodowa | BP13: -0.1 | CE13: Nowicka Mieczysława | CF13: minowicka@agentpzu.pl | CG13: 607182438 | CH13: ; | CJ13: 607182438; minowicka@agentpzu.pl
AP14: zniżka incydentalna | AQ14: =1+$G13 -> 1 | AR14: =1+$G13 -> 1 | AS14: =1+$G13 -> 1 | AV14: centrum kształcenia | AZ14: zwrot kosztów leczenia do wysokości 20 % sumy ubezpieczenia | BK14: FALSE | BL14: Zespół szkół | CE14: Pędziwiatr Mirosław | CF14: mipedziwiatr@agentpzu.pl | CG14: 601709687 | CH14: ; | CJ14: 601709687; mipedziwiatr@agentpzu.pl
AI15: składka podstawowa | AJ15: suma 1 | AK15: suma 2 | AL15: suma 3 | AV15: dom dziecka | AZ15: zwrot kosztów leczenia do wysokości 30 % sumy ubezpieczenia | BK15: FALSE | BL15: Żłobek, przedszkole | CE15: Piątek Lech | CF15: lpiatek@agentpzu.pl | CG15: 603820065 | CH15: ; | CJ15: 603820065; lpiatek@agentpzu.pl
AH16: wariant 1 | AI16: ze zniżką | AJ16: =IF(AND(AD25=TRUE,$AM$31=TRUE),AJ31,IF(AND(AD25=TRUE,$AT$27=TRUE),AQ27,"")) ->  | AK16: =IF(AND(AE25=TRUE,$AM$31=TRUE),AK31,IF(AND(AE25=TRUE,$AT$27=TRUE),AR27,"")) ->  | AL16: =IF(AND(AF25=TRUE,$AM$31=TRUE),AL31,IF(AND(AF25=TRUE,$AT$27=TRUE),AS27,"")) ->  | AP16: SZKODOWOŚĆ | AV16: inne | AY16: =BJ16 -> 0 | AZ16: ryczałt za okres czasowej, całkowitej niezdolności do nauki lub pracy trwający dłużej niż 14 dni - 0,06% sumy ubezpieczenia za każdy dzień (do 180 dni łącznie ze wszystkich zdarzeń objętych umową) | CE16: Pietrzak Przemysław | CF16: ppietrzak@agentpzu.pl | CG16: 603786176 | CH16: ; | CJ16: 603786176; ppietrzak@agentpzu.pl
AI17: bez zniżki | AJ17: =IF(AND(AD25=TRUE,$AM$31=TRUE),AJ32,IF(AND(AD25=TRUE,$AT$27=TRUE),AQ29,"")) ->  | AK17: =IF(AND(AE25=TRUE,$AM$31=TRUE),AK32,IF(AND(AE25=TRUE,$AT$27=TRUE),AR29,"")) ->  | AL17: =IF(AND(AF25=TRUE,$AM$31=TRUE),AL32,IF(AND(AF25=TRUE,$AT$27=TRUE),AS29,"")) ->  | AQ17: ≤40% | AR17: NOWA | AS17: >40% | AT17: WZNOWIONA | AV17: szkoły sptotowe wszystkich szczebli | AW17: 9.5 | AX17: 8 | AY17: =BJ17 -> 0 | AZ17: dieta szpitalna, za każdy dzień pobytu w szpitalu 0,2% sumy ubezpieczenia (płatna przez maksymalny okres 90 dni z tytułu jednego nieszczęśliwego wypadku lub zdarzenia objętego umową) | CE17: Podjuk Bronisław | CF17: bpodjuk@agentpzu.pl | CG17: 601683712 | CH17: ; | CJ17: 601683712; bpodjuk@agentpzu.pl
AH18: wariant 2 | AI18: ze zniżką | AJ18: =IF(AND(AD26=TRUE,$AM$33=TRUE),AJ33,IF(AND(AD26=TRUE,$AT$30=TRUE),AQ30,"")) ->  | AK18: =IF(AND(AE26=TRUE,$AM$33=TRUE),AK33,IF(AND(AE26=TRUE,$AT$30=TRUE),AR30,"")) ->  | AL18: =IF(AND(AF26=TRUE,$AM$33=TRUE),AL33,IF(AND(AF26=TRUE,$AT$30=TRUE),AS30,"")) ->  | AV18: szkoła policealna | AW18: 3 | AX18: 2.5 | AY18: =BJ18 -> 0 | AZ18: Jednorazowe świadczenie w przypadku zgonu ubezpieczonego spowodowane nowotworem złośliwym | CE18: Rosa Ilona | CF18: irosa@agentpzu.pl | CG18: 697098159 | CH18: ; | CJ18: 697098159; irosa@agentpzu.pl
AI19: bez zniżki | AJ19: =IF(AND(AD26=TRUE,$AM$33=TRUE),AJ34,IF(AND(AD26=TRUE,$AT$30=TRUE),AQ32,"")) ->  | AL19: =IF(AND(AF26=TRUE,$AM$33=TRUE),AL34,IF(AND(AF26=TRUE,$AT$30=TRUE),AS32,"")) ->  | AP19: Taryfa | AQ19: =AQ10 -> 4.7 | AR19: =AQ10 -> 4.7 | AS19: =AQ10 -> 4.7 | AT19: =AQ10 -> 4.7 | AV19: szkoła wyższa | AZ19: Jednorazowe świadczenie w przypadku zgonu dziecka, ucznia, studenta w wieku do 25 lat z powodu wrodoznej wady serca | CE19: Ryżak Agata | CF19: aryzak@agentpzu.pl | CG19: 667960950 | CH19: ; | CJ19: 667960950; aryzak@agentpzu.pl
I20: 8000 | L20: 9000 | O20: 10000 | AH20: wariant 2 bis | AI20: ze zniżką | AJ20: =IF(AND(AD27=TRUE,$AM$33=TRUE),AJ35,IF(AND(AD27=TRUE,$AT$30=TRUE),AQ33,"")) ->  | AP20: wariant I | AQ20: =IF(SUM(BI37:BQ37)>1,1,SUM(BI37:BQ37)+G$12) -> 0 | AR20: =IF(SUM(BI37:BQ37)>1,1,SUM(BI37:BQ37)) -> 0 | AS20: =AQ11 -> 0 | AT20: =IF(SUM(BI37:BQ37)>1,1.1,SUM(BI37:BQ37)) -> 0 | CE20: Sawczyn Benedykt | CF20: bsawczyn@agentpzu.pl | CG20: 601654508 | CH20: ; | CJ20: 601654508; bsawczyn@agentpzu.pl
AI21: bez zniżki | AJ21: =IF(AND(AD27=TRUE,$AM$33=TRUE),AJ36,IF(AND(AD27=TRUE,$AT$30=TRUE),AQ35,"")) ->  | AK21: =IF(AND(AE27=TRUE,$AM$33=TRUE),AK36,IF(AND(AE27=TRUE,$AT$30=TRUE),AR35,"")) ->  | AL21: =IF(AND(AF27=TRUE,$AM$33=TRUE),AL36,IF(AND(AF27=TRUE,$AT$30=TRUE),AS35,"")) ->  | AP21: wariant II | AQ21: =IF(SUM(BI38:BQ38)>1,1,SUM(BI38:BQ38)+G$12) -> 0 | AR21: =IF(SUM(BI38:BQ38)>1,1,SUM(BI38:BQ38)) -> 0 | AS21: =AQ12 -> 0 | AT21: =IF(SUM(BI38:BQ38)>1,1.1,SUM(BI38:BQ38)) -> 0 | AZ21: Jednorazowe świadczenie w przypadku śmierci przedstawiciela ustawowego | CE21: Słupianek Leszek | CF21: lslupianek@agentpzu.pl | CG21: 609397853 | CH21: ; | CJ21: 609397853; lslupianek@agentpzu.pl
C22: =CELL("format",I30) -> ,1 | D22: =IF(C22=",0",1,2) -> 2 | AP22: wariant II ograniczony (wariant II - 30%) | AQ22: 0.7 | AR22: 0.7 | AS22: 0.7 | AT22: 0.7 | AZ22: Jednorazowe świadczenie w przypadku amputacji kończyny spowodowanej nowotworem złośliwym u dziecka, ucznia, studenta w wieku do 25 lat | CE22: Walczak Stanisław | CF22: stwalczak@agentpzu.pl | CG22: 693112343 | CH22: ; | CJ22: 693112343; stwalczak@agentpzu.pl
D23: =IF(C23=",0",1,2) -> 2 | AP23: zniżka incydentalna | AQ23: =AQ14 -> 1 | AR23: =AQ14 -> 1 | AS23: =AQ14 -> 1 | AT23: =AQ14 -> 1 | AV23: składkę roczną za ubezpieczenie 1 osoby oblicza się mnożąc stawkę taryfową przez 1/1000 sumy ubezpieczenia | CE23: Wardęga Andrzej | CF23: awardęga@agentpzu.pl | CG23: 601958772 | CH23: ; | CJ23: 601958772; awardęga@agentpzu.pl
D24: =IF(C24=",0",1,2) -> 2 | AD24: WYBÓR WARIANTU | CE24: Więcław Stanisław | CF24: swieclaw@agentpzu.pl | CG24: 608102452 | CH24: ; | CJ24: 608102452; swieclaw@agentpzu.pl
D25: =IF(C25=",0",1,2) -> 2 | AD25: =IF(AE23=1,TRUE,FALSE) -> FALSE | AE25: =IF(AE23=2,TRUE,FALSE) -> FALSE | AF25: =IF(AE23=3,TRUE,FALSE) -> FALSE | AP25: SKŁADKA PODSTAWOWA | AQ25: suma 1 | AR25: suma 2 | AS25: suma 3 | AV25: na składkę wyjściową nakłada się zniżki/zwyżki z poniższej tabeli przy czym zniżki stosuje się zawsze a zwyżki tylko wtedy kiedy wskaźnik szkodowości dla placówki jest wyższy niż 40% lub placówka nie była ubezpieczona w każdym z 3 poprzednich lat | CE25: Woźny Dorota | CF25: dowozny@agentpzu.pl | CG25: 600906655 | CH25: ; | CJ25: 600906655; dowozny@agentpzu.pl
AD26: =IF(AE23=4,TRUE,FALSE) -> FALSE | AE26: =IF(AE23=5,TRUE,FALSE) -> FALSE | AF26: =IF(AE23=6,TRUE,FALSE) -> FALSE | AJ26: Wysokość zniżki z tabeli | AP26: zniżka incydentalna | CE26: Zadka Małgorzata | CF26: mzadka@agentpzu.pl | CG26: 607573755 | CH26: ; | CJ26: 607573755; mzadka@agentpzu.pl
R27: Informacja nt. wysokości zniżki/zwyżki z tabeli | AD27: =IF(AE23=7,TRUE,FALSE) -> FALSE | AE27: =IF(AE23=8,TRUE,FALSE) -> FALSE | AF27: =IF(AE23=9,TRUE,FALSE) -> FALSE | AJ27: wariant I | AK27: =IF($G$11="≤40%",$AQ$20-1,IF($G$11="nowa = pozyskana w 2015r.",$AR$20-1,IF($G$11=">40% / nu w PZU (3 lata)",$AS$20-1,IF($G$11="wznowiona = pozyskana w 2014r.",$AT$20-1,0)))) -> 0 | AO27: WARIANT 1 | AP27: ZE ZNIŻKĄ | AQ27: =IF($G$11="≤40%",$I$20*$AQ$19*$AQ$20/1000*$AQ$23,IF($G$11="nowa = pozyskana w 2015r.",$I$20*$AQ$19*$AR$20/1000*$AR$23,IF($G$11=">40% / nu w PZU (3 lata)",$I$20*$AQ$19*$AS$20/1000*$AS$23,IF($G$11="wznowiona = pozyskana w 2014r.",$I$20*$AT$19*$AT$20/1000*$AT$23,0)))) -> 0 | AR27: =IF($G$11="≤40%",$L$20*$AQ$19*$AQ$20/1000*$AQ$23,IF($G$11="nowa = pozyskana w 2015r.",$L$20*$AQ$19*$AR$20/1000*$AR$23,IF($G$11=">40% / nu w PZU (3 lata)",$L$20*$AQ$19*$AS$20/1000*$AS$23,IF($G$11="wznowiona = pozyskana w 2014r.",$L$20*$AT$19*$AT$20/1000*$AT$23,0)))) -> 0 | AS27: =IF($G$11="≤40%",$O$20*$AQ$19*$AQ$20/1000*$AQ$23,IF($G$11="nowa = pozyskana w 2015r.",$O$20*$AQ$19*$AR$20/1000*$AR$23,IF($G$11=">40% / nu w PZU (3 lata)",$O$20*$AQ$19*$AS$20/1000*$AS$23,IF($G$11="wznowiona = pozyskana w 2014r.",$O$20*$AT$19*$AT$20/1000*$AT$23,0)))) -> 0 | AT27: =IF(AM31=TRUE,FALSE,TRUE) -> TRUE | AV27: wskaźnik szkodowości = | AW27: odszkodowania z polis z lat 2011-2013 | AZ27: > 40% | CE27: Żuberek Marek | CF27: mazuberek@agentpzu.pl | CG27: 604337747 | CH27: ; | CJ27: 604337747; mazuberek@agentpzu.pl
F28: Świadczenia podstawowe | I28: =AQ31 -> 0 | J28: =I28 -> 0 | L28: =AR31 -> 0 | M28: =L28 -> 0 | O28: =AS31 -> 0 | P28: =O28 -> 0 | R28: =AK28 -> 0 | AD28: =I20 -> 8000 | AE28: =L20 -> 9000 | AF28: =O20 -> 10000 | AJ28: wariant II | AK28: =IF($G$11="≤40%",$AQ$21-1,IF($G$11="nowa = pozyskana w 2015r.",$AR$21-1,IF($G$11=">40% / nu w PZU (3 lata)",$AS$21-1,IF($G$11="wznowiona = pozyskana w 2014r.",$AT$21-1,0)))) -> 0 | AP28: FINALNY WYNIK | AQ28: =IF(AND(AQ$39=TRUE,$AM31=TRUE),AJ31,IF(AND(AQ$39=FALSE,$AM31=TRUE),AJ32,IF(AND(AQ$39=FALSE,$AM31=FALSE),AQ29,IF(AND(AQ$39=TRUE,$AM31=FALSE),AQ27,0)))) -> 0 | AR28: =IF(AND(AR$39=TRUE,$AM31=TRUE),AK31,IF(AND(AR$39=FALSE,$AM31=TRUE),AK32,IF(AND(AR$39=FALSE,$AM31=FALSE),AR29,IF(AND(AR$39=TRUE,$AM31=FALSE),AR27,0)))) -> 0 | AS28: =IF(AND(AS$39=TRUE,$AM31=TRUE),AL31,IF(AND(AS$39=FALSE,$AM31=TRUE),AL32,IF(AND(AS$39=FALSE,$AM31=FALSE),AS29,IF(AND(AS$39=TRUE,$AM31=FALSE),AS27,0)))) -> 0 | AW28: (przypis z lat 2011-2012) + 50% x (przypis z roku 2013)
F29: Świadczenia dodatkowe | I29: =AQ49 -> 0 | J29: =AJ49 -> 0 | L29: =AR49 -> 0 | M29: =AK49 -> 0 | O29: =AS49 -> 0 | P29: =AL49 -> 0 | R29: Korekta wysokości zniżki/zwyżki z tabeli | AJ29: wariant II bis | AK29: 0.3 | AP29: BEZ ZNIŻKI | AQ29: =IF($G$11="≤40%",$I$20*$AQ$19*$AQ$20/1000,IF($G$11="nowa = pozyskana w 2015r.",$I$20*$AQ$19*$AR$20/1000,IF($G$11=">40% / nu w PZU (3 lata)",$I$20*$AQ$19*$AS$20/1000,IF($G$11="wznowiona = pozyskana w 2014r.",$I$20*$AT$19*$AT$20/1000,0)))) -> 0 | AR29: =IF($G$11="≤40%",$L$20*$AQ$19*$AQ$20/1000,IF($G$11="nowa = pozyskana w 2015r.",$L$20*$AQ$19*$AR$20/1000,IF($G$11=">40% / nu w PZU (3 lata)",$L$20*$AQ$19*$AS$20/1000,IF($G$11="wznowiona = pozyskana w 2014r.",$L$20*$AT$19*$AT$20/1000,0)))) -> 0 | AS29: =IF($G$11="≤40%",$O$20*$AQ$19*$AQ$20/1000,IF($G$11="nowa = pozyskana w 2015r.",$O$20*$AQ$19*$AR$20/1000,IF($G$11=">40% / nu w PZU (3 lata)",$O$20*$AQ$19*$AS$20/1000,IF($G$11="wznowiona = pozyskana w 2014r.",$O$20*$AT$19*$AT$20/1000,0)))) -> 0
F30: Razem wysokość składki | I30: =I28+I29 -> 0 | J30: =J28+J29 -> 0 | L30: =L28+L29 -> 0 | M30: =M28+M29 -> 0 | O30: =O28+O29 -> 0 | P30: =P28+P29 -> 0 | S30: dla zniżek: maksymalnie z tabeli, ale może być niższa (do zera włącznie). Np. jest 30%, ale może być 15%, albo 0% | AO30: WARIANT 2 | AP30: ZE ZNIŻKĄ | AQ30: =IF($G$11="≤40%",$I$20*$AR$10*$AQ$21/1000*$AQ$23,IF($G$11="nowa = pozyskana w 2015r.",$I$20*$AR$10*$AR$21/1000*$AR$23,IF($G$11=">40% / nu w PZU (3 lata)",$I$20*$AR$10*$AS$21/1000*$AS$23,IF($G$11="wznowiona = pozyskana w 2014r.",$I$20*$AR$10*$AT$21/1000*$AT$23,0)))) -> 0 | AR30: =IF($G$11="≤40%",$L$20*$AR$10*$AQ$21/1000*$AQ$23,IF($G$11="nowa = pozyskana w 2015r.",$L$20*$AR$10*$AR$21/1000*$AR$23,IF($G$11=">40% / nu w PZU (3 lata)",$L$20*$AR$10*$AS$21/1000*$AS$23,IF($G$11="wznowiona = pozyskana w 2014r.",$L$20*$AR$10*$AT$21/1000*$AT$23,0)))) -> 0 | AS30: =IF($G$11="≤40%",$O$20*$AR$10*$AQ$21/1000*$AQ$23,IF($G$11="nowa = pozyskana w 2015r.",$O$20*$AR$10*$AR$21/1000*$AR$23,IF($G$11=">40% / nu w PZU (3 lata)",$O$20*$AR$10*$AS$21/1000*$AS$23,IF($G$11="wznowiona = pozyskana w 2014r.",$O$20*$AR$10*$AT$21/1000*$AT$23,0)))) -> 0 | AT30: =IF(AM33=TRUE,FALSE,TRUE) -> TRUE | AV30: w przypadku placówek, dla których wskaźnik szkodowości jest równy lub niższy od 40% a z tabeli wynika zwyżka wówczas stosuje się taryfowe stawki wyjściowe
S31: dla zwyżek: nie mniej niż wysokość zwyżki, ale może być więcej niż poziom zwyżki (bez ograniczeń wysokości). Np.. Jest 60%, ale może być 80%. | AG31: ZNIŻKA Z PALCA | AH31: ZE ZNIŻKĄ | AI31: WARIANT I | AJ31: =IF($G$11="≤40%",$I$20*$AQ$19*AI37/1000*$AQ$23,IF($G$11="nowa = pozyskana w 2015r.",$I$20*$AQ$19*AI37/1000*$AR$23,IF($G$11=">40% / nu w PZU (3 lata)",$I$20*$AQ$19*AI37/1000*$AS$23,IF($G$11="wznowiona = pozyskana w 2014r.",$I$20*$AT$19*AI37/1000*$AT$23,0)))) -> 0 | AK31: =IF($G$11="≤40%",$L$20*$AQ$19*AI37/1000*$AQ$23,IF($G$11="nowa = pozyskana w 2015r.",$L$20*$AQ$19*AI37/1000*$AR$23,IF($G$11=">40% / nu w PZU (3 lata)",$L$20*$AQ$19*AI37/1000*$AS$23,IF($G$11="wznowiona = pozyskana w 2014r.",$L$20*$AT$19*AI37/1000*$AT$23,0)))) -> 0 | AL31: =IF($G$11="≤40%",$O$20*$AQ$19*AI37/1000*$AQ$23,IF($G$11="nowa = pozyskana w 2015r.",$O$20*$AQ$19*AI37/1000*$AR$23,IF($G$11=">40% / nu w PZU (3 lata)",$O$20*$AQ$19*AI37/1000*$AS$23,IF($G$11="wznowiona = pozyskana w 2014r.",$O$20*$AT$19*AI37/1000*$AT$23,0)))) -> 0 | AM31: =IF(AJ37=TRUE,TRUE,FALSE) -> FALSE | AP31: FINALNY WYNIK | AQ31: =IF(AND(AQ$40=TRUE,$AM33=TRUE),AJ33,IF(AND(AQ$40=FALSE,$AM33=TRUE),AJ34,IF(AND(AQ$40=FALSE,$AM33=FALSE),AQ32,IF(AND(AQ$40=TRUE,$AM33=FALSE),AQ30,0)))) -> 0 | AR31: =IF(AND(AR$40=TRUE,$AM33=TRUE),AK33,IF(AND(AR$40=FALSE,$AM33=TRUE),AK34,IF(AND(AR$40=FALSE,$AM33=FALSE),AR32,IF(AND(AR$40=TRUE,$AM33=FALSE),AR30,0)))) -> 0 | AS31: =IF(AND(AS$40=TRUE,$AM33=TRUE),AL33,IF(AND(AS$40=FALSE,$AM33=TRUE),AL34,IF(AND(AS$40=FALSE,$AM33=FALSE),AS32,IF(AND(AS$40=TRUE,$AM33=FALSE),AS30,0)))) -> 0 | AV31: w przypadku placówek, dla których wskaźnik szkodowości jest równy lub niższy od 40% a z tabeli wynika zniżka wówczas ta zniżka z tabeli może zostać zwiększona o 10 punktów procentowych
AH32: BEZ ZNIŻKI | AJ32: =IF($G$11="≤40%",$I$20*$AQ$19*AI37/1000,IF($G$11="nowa = pozyskana w 2015r.",$I$20*$AQ$19*AI37/1000,IF($G$11=">40% / nu w PZU (3 lata)",$I$20*$AQ$19*AI37/1000,IF($G$11="wznowiona = pozyskana w 2014r.",$I$20*$AT$19*AI37/1000,0)))) -> 0 | AK32: =IF($G$11="≤40%",$L$20*$AQ$19*AI37/1000,IF($G$11="nowa = pozyskana w 2015r.",$L$20*$AQ$19*AI37/1000,IF($G$11=">40% / nu w PZU (3 lata)",$L$20*$AQ$19*AI37/1000,IF($G$11="wznowiona = pozyskana w 2014r.",$L$20*$AT$19*AI37/1000,0)))) -> 0 | AL32: =IF($G$11="≤40%",$O$20*$AQ$19*AI37/1000,IF($G$11="nowa = pozyskana w 2015r.",$O$20*$AQ$19*AI37/1000,IF($G$11=">40% / nu w PZU (3 lata)",$O$20*$AQ$19*AI37/1000,IF($G$11="wznowiona = pozyskana w 2014r.",$O$20*$AT$19*AI37/1000,0)))) -> 0 | AP32: BEZ ZNIŻKI | AQ32: =IF($G$11="≤40%",$I$20*$AR$10*$AQ$21/1000,IF($G$11="nowa = pozyskana w 2015r.",$I$20*$AR$10*$AR$21/1000,IF($G$11=">40% / nu w PZU (3 lata)",$I$20*$AR$10*$AS$21/1000,IF($G$11="wznowiona = pozyskana w 2014r.",$I$20*$AR$10*$AT$21/1000,0)))) -> 0 | AR32: =IF($G$11="≤40%",$L$20*$AR$10*$AQ$21/1000,IF($G$11="nowa = pozyskana w 2015r.",$L$20*$AR$10*$AR$21/1000,IF($G$11=">40% / nu w PZU (3 lata)",$L$20*$AR$10*$AS$21/1000,IF($G$11="wznowiona = pozyskana w 2014r.",$L$20*$AR$10*$AT$21/1000,0)))) -> 0 | AS32: =IF($G$11="≤40%",$O$20*$AR$10*$AQ$21/1000,IF($G$11="nowa = pozyskana w 2015r.",$O$20*$AR$10*$AR$21/1000,IF($G$11=">40% / nu w PZU (3 lata)",$O$20*$AR$10*$AS$21/1000,IF($G$11="wznowiona = pozyskana w 2014r.",$O$20*$AR$10*$AT$21/1000,0)))) -> 0 | AV32: w przypadku placówek nowych tj. takich, które nie były ubezpieczone w PZU w akacji szkolnej 2013/2014 i z tabeli wynika zwyżka stosuje się wyjściowe stawki taryfowe a jeśli z tabeli wynika zniżka to stosuje się tę zniżkę
S33: dodatkowo komunikat w sytuacji, gdy ktoś wpisze z palca niewłaściwy poziom zniżki lub zwyżki (bo standardowo nie będzie się uwzględniało) | AH33: ZE ZNIŻKĄ | AI33: WARIANT II | AJ33: =IF($G$11="≤40%",$I$20*$AR$10*AI38/1000*$AQ$23,IF($G$11="nowa = pozyskana w 2015r.",$I$20*$AR$10*AI38/1000*$AR$23,IF($G$11=">40% / nu w PZU (3 lata)",$I$20*$AR$10*AI38/1000*$AS$23,IF($G$11="wznowiona = pozyskana w 2014r.",$I$20*$AR$10*AI38/1000*$AT$23,0)))) -> 0 | AK33: =IF($G$11="≤40%",$L$20*$AR$10*AI38/1000*$AQ$23,IF($G$11="nowa = pozyskana w 2015r.",$L$20*$AR$10*AI38/1000*$AR$23,IF($G$11=">40% / nu w PZU (3 lata)",$L$20*$AR$10*AI38/1000*$AS$23,IF($G$11="wznowiona = pozyskana w 2014r.",$L$20*$AR$10*AI38/1000*$AT$23,0)))) -> 0 | AL33: =IF($G$11="≤40%",$O$20*$AR$10*AI38/1000*$AQ$23,IF($G$11="nowa = pozyskana w 2015r.",$O$20*$AR$10*AI38/1000*$AR$23,IF($G$11=">40% / nu w PZU (3 lata)",$O$20*$AR$10*AI38/1000*$AS$23,IF($G$11="wznowiona = pozyskana w 2014r.",$O$20*$AR$10*AI38/1000*$AT$23,0)))) -> 0 | AM33: =IF(AJ38=TRUE,TRUE,FALSE) -> FALSE | AO33: WARIANT 2 BIS | AP33: ZE ZNIŻKĄ | AQ33: =IF($G$11="≤40%",$I$20*$AR$10*$AQ$21/1000*$AQ$22*$AQ$23,IF($G$11="nowa = pozyskana w 2015r.",$I$20*$AR$10*$AR$21/1000*$AQ$22*$AR$23,IF($G$11=">40% / nu w PZU (3 lata)",$I$20*$AR$10*$AS$21/1000*$AQ$22*$AS$23,IF($G$11="wznowiona = pozyskana w 2014r.",$I$20*$AR$10*$AT$21/1000*$AT$23*AQ22,0)))) -> 0 | AR33: =IF($G$11="≤40%",$L$20*$AR$10*$AQ$21/1000*$AQ$22*$AQ$23,IF($G$11="nowa = pozyskana w 2015r.",$L$20*$AR$10*$AR$21/1000*$AQ$22*$AR$23,IF($G$11=">40% / nu w PZU (3 lata)",$L$20*$AR$10*$AS$21/1000*$AQ$22*$AS$23,IF($G$11="wznowiona = pozyskana w 2014r.",$L$20*$AR$10*$AT$21/1000*$AT$23*AQ22,0)))) -> 0 | AS33: =IF($G$11="≤40%",$O$20*$AR$10*$AQ$21/1000*$AQ$22*$AQ$23,IF($G$11="nowa = pozyskana w 2015r.",$O$20*$AR$10*$AR$21/1000*$AR$22*$AR$23,IF($G$11=">40% / nu w PZU (3 lata)",$O$20*$AR$10*$AS$21/1000*$AS$22*$AS$23,IF($G$11="wznowiona = pozyskana w 2014r.",$O$20*$AR$10*$AT$21/1000*$AT$23*AQ22,0)))) -> 0
AH34: BEZ ZNIŻKI | AJ34: =IF($G$11="≤40%",$I$20*$AR$10*AI38/1000,IF($G$11="nowa = pozyskana w 2015r.",$I$20*$AR$10*AI38/1000,IF($G$11=">40% / nu w PZU (3 lata)",$I$20*$AR$10*AI38/1000,IF($G$11="wznowiona = pozyskana w 2014r.",$I$20*$AR$10*AI38/1000,0)))) -> 0 | AK34: =IF($G$11="≤40%",$L$20*$AR$10*AI38/1000,IF($G$11="nowa = pozyskana w 2015r.",$L$20*$AR$10*AI38/1000,IF($G$11=">40% / nu w PZU (3 lata)",$L$20*$AR$10*AI38/1000,IF($G$11="wznowiona = pozyskana w 2014r.",$L$20*$AR$10*AI38/1000,0)))) -> 0 | AL34: =IF($G$11="≤40%",$O$20*$AR$10*AI38/1000,IF($G$11="nowa = pozyskana w 2015r.",$O$20*$AR$10*AI38/1000,IF($G$11=">40% / nu w PZU (3 lata)",$O$20*$AR$10*AI38/1000,IF($G$11="wznowiona = pozyskana w 2014r.",$O$20*$AR$10*AI38/1000,0)))) -> 0 | AP34: FINALNY WYNIK | AQ34: =IF(AND(AQ$41=TRUE,$AM35=TRUE),AJ35,IF(AND(AQ$41=FALSE,$AM35=TRUE),AJ36,IF(AND(AQ$41=FALSE,$AM35=FALSE),AQ35,IF(AND(AQ$41=TRUE,$AM35=FALSE),AQ33,0)))) -> 0 | AR34: =IF(AND(AR$41=TRUE,$AM35=TRUE),AK35,IF(AND(AR$41=FALSE,$AM35=TRUE),AK36,IF(AND(AR$41=FALSE,$AM35=FALSE),AR35,IF(AND(AR$41=TRUE,$AM35=FALSE),AR33,0)))) -> 0 | AS34: =IF(AND(AS$41=TRUE,$AM35=TRUE),AL35,IF(AND(AS$41=FALSE,$AM35=TRUE),AL36,IF(AND(AS$41=FALSE,$AM35=FALSE),AS35,IF(AND(AS$41=TRUE,$AM35=FALSE),AS33,0)))) -> 0
AH35: ZE ZNIŻKĄ | AI35: WARIANT II BIS | AJ35: =IF($G$11="≤40%",$I$20*$AR$10*AI38/1000*$AQ$22*$AQ$23,IF($G$11="nowa = pozyskana w 2015r.",$I$20*$AR$10*AI38/1000*$AQ$22*$AR$23,IF($G$11=">40% / nu w PZU (3 lata)",$I$20*$AR$10*AI38/1000*$AQ$22*$AS$23,IF($G$11="wznowiona = pozyskana w 2014r.",$I$20*$AR$10*AI38/1000*$AT$23*$AQ$22,0)))) -> 0 | AK35: =IF($G$11="≤40%",$L$20*$AR$10*AI38/1000*$AQ$22*$AQ$23,IF($G$11="nowa = pozyskana w 2015r.",$L$20*$AR$10*AI38/1000*$AQ$22*$AR$23,IF($G$11=">40% / nu w PZU (3 lata)",$L$20*$AR$10*AI38/1000*$AQ$22*$AS$23,IF($G$11="wznowiona = pozyskana w 2014r.",$L$20*$AR$10*AI38/1000*$AT$23*$AQ$22,0)))) -> 0 | AL35: =IF($G$11="≤40%",$O$20*$AR$10*AI38/1000*$AQ$22*$AQ$23,IF($G$11="nowa = pozyskana w 2015r.",$O$20*$AR$10*AI38/1000*$AR$22*$AR$23,IF($G$11=">40% / nu w PZU (3 lata)",$O$20*$AR$10*AI38/1000*$AS$22*$AS$23,IF($G$11="wznowiona = pozyskana w 2014r.",$O$20*$AR$10*AI38/1000*$AT$23*$AQ$22,0)))) -> 0 | AM35: =IF(AM33=TRUE,TRUE,FALSE) -> FALSE | AP35: BEZ ZNIŻKI | AQ35: =IF($G$11="≤40%",$I$20*$AR$10*$AQ$21/1000*$AQ$22,IF($G$11="nowa = pozyskana w 2015r.",$I$20*$AR$10*$AR$21/1000*$AQ$22,IF($G$11=">40% / nu w PZU (3 lata)",$I$20*$AR$10*$AS$21/1000*$AQ$22,IF($G$11="wznowiona = pozyskana w 2014r.",$I$20*$AR$10*$AT$21/1000*$AT$22,0)))) -> 0 | AR35: =IF($G$11="≤40%",$L$20*$AR$10*$AQ$21/1000*$AQ$22,IF($G$11="nowa = pozyskana w 2015r.",$L$20*$AR$10*$AR$21/1000*$AQ$22,IF($G$11=">40% / nu w PZU (3 lata)",$L$20*$AR$10*$AS$21/1000*$AQ$22,IF($G$11="wznowiona = pozyskana w 2014r.",$L$20*$AR$10*$AT$21/1000*$AT$22,0)))) -> 0 | AS35: =IF($G$11="≤40%",$O$20*$AR$10*$AQ$21/1000*$AQ$22,IF($G$11="nowa = pozyskana w 2015r.",$O$20*$AR$10*$AR$21/1000*$AR$22,IF($G$11=">40% / nu w PZU (3 lata)",$O$20*$AR$10*$AS$21/1000*$AS$22,IF($G$11="wznowiona = pozyskana w 2014r.",$O$20*$AR$10*$AT$21/1000*$AT$22,0)))) -> 0 | AV35: Tabela maksymalnych zniżek składki dla poszczególnych rodzajów placówek oraz minimalnych zwyżek składki dla placówek wyróżnionych ustalonych jako stawki wyjściowe dla tego rodzaju placówek na rok szkolny 2014/2015. | BI35: TABELA ZNIŻEK/ZWYŻEK
AH36: BEZ ZNIŻKI | AJ36: =IF($G$11="≤40%",$I$20*$AR$10*AI38/1000*$AQ$22,IF($G$11="nowa = pozyskana w 2015r.",$I$20*$AR$10*AI38/1000*$AQ$22,IF($G$11=">40% / nu w PZU (3 lata)",$I$20*$AR$10*AI38/1000*$AQ$22,IF($G$11="wznowiona = pozyskana w 2014r.",$I$20*$AR$10*AI38/1000*$AQ$22,0)))) -> 0 | AK36: =IF($G$11="≤40%",$L$20*$AR$10*AI38/1000*$AQ$22,IF($G$11="nowa = pozyskana w 2015r.",$L$20*$AR$10*AI38/1000*$AQ$22,IF($G$11=">40% / nu w PZU (3 lata)",$L$20*$AR$10*AI38/1000*$AQ$22,IF($G$11="wznowiona = pozyskana w 2014r.",$L$20*$AR$10*AI38/1000*$AQ$22,0)))) -> 0 | AL36: =IF($G$11="≤40%",$O$20*$AR$10*AI38/1000*$AQ$22,IF($G$11="nowa = pozyskana w 2015r.",$O$20*$AR$10*AI38/1000*$AR$22,IF($G$11=">40% / nu w PZU (3 lata)",$O$20*$AR$10*AI38/1000*$AS$22,IF($G$11="wznowiona = pozyskana w 2014r.",$O$20*$AR$10*AI38/1000*$AQ$22,0)))) -> 0 | AV36: Rodzaj Placówki | AW36: Wariant | AX36: Oddział | BI36: Gdańsk | BJ36: Katowice | BK36: Kraków | BL36: Lublin | BM36: Łódź | BN36: Poznań | BO36: Warszawa | BP36: Wrocław | BQ36: Szczecin
AE37: WARIANT I | AG37: % ZNIŻKI Z PALCA | AI37: =IF(AJ37=TRUE,1+R26,1) -> 1 | AQ37: Zniżka incydentalna | AX37: Gdańsk | AY37: Katowice | AZ37: Kraków | BA37: Lublin | BB37: Łódź | BC37: Poznań | BD37: Warszawa | BE37: Wrocław | BF37: Szczecin | BH37: WARIANT I | BI37: =IF(AND($G$9="Żłobek, przedszkole",$G$10="Gdańsk"),1+AX38,IF(AND($G$9="Szkoła sportowa",$G$10="Gdańsk"),1+AX40,IF(AND($G$9="Szkoła podstawowa",$G$10="Gdańsk"),1+AX42,IF(AND($G$9="Liceum ogólnokształcące",$G$10="Gdańsk"),1+AX44,IF(AND($G$9="Liceum zawodowe",$G$10="Gdańsk"),1+AX46,IF(AND($G$9="Technikum",$G$10="Gdańsk"),1+AX48,IF(AND($G$9="Zasadnicza szkoła zawodowa",$G$10="Gdańsk"),1+AX50,IF(AND($G$9="Szkoła policealna",$G$10="Gdańsk"),1+AX52,IF(AND($G$9="Szkoła wyższa",$G$10="Gdańsk"),1+AX54,IF(AND($G$9="Inne",$G$10="Gdańsk"),1+AX56,IF(AND($G$9="Zespół szkół",$G$10="Gdańsk"),1+AX58,IF(AND($G$9="Gimnazjum",$G$10="Gdańsk"),1+AX60,IF(AND($G$9="Centrum kształcenia",$G$10="Gdańsk"),1+AX62,IF(AND($G$9="Dom dziecka",$G$10="Gdańsk"),1+AX64,"-")))))))))))))) -> - | BJ37: =IF(AND($G$9="Żłobek, przedszkole",$G$10="Katowice"),1+AY38,IF(AND($G$9="Szkoła sportowa",$G$10="Katowice"),1+AY40,IF(AND($G$9="Szkoła podstawowa",$G$10="Katowice"),1+AY42,IF(AND($G$9="Liceum ogólnokształcące",$G$10="Katowice"),1+AY44,IF(AND($G$9="Liceum zawodowe",$G$10="Katowice"),1+AY46,IF(AND($G$9="Technikum",$G$10="Katowice"),1+AY48,IF(AND($G$9="Zasadnicza szkoła zawodowa",$G$10="Katowice"),1+AY50,IF(AND($G$9="Szkoła policealna",$G$10="Katowice"),1+AY52,IF(AND($G$9="Szkoła wyższa",$G$10="Katowice"),1+AY54,IF(AND($G$9="Inne",$G$10="Katowice"),1+AY56,IF(AND($G$9="Zespół szkół",$G$10="Katowice"),1+AY58,IF(AND($G$9="Gimnazjum",$G$10="Katowice"),1+AY60,IF(AND($G$9="Centrum kształcenia",$G$10="Katowice"),1+AY62,IF(AND($G$9="Dom dziecka",$G$10="Katowice"),1+AY64,"-")))))))))))))) -> - | BK37: =IF(AND($G$9="Żłobek, przedszkole",$G$10="Kraków"),1+AZ38,IF(AND($G$9="Szkoła sportowa",$G$10="Kraków"),1+AZ40,IF(AND($G$9="Szkoła podstawowa",$G$10="Kraków"),1+AZ42,IF(AND($G$9="Liceum ogólnokształcące",$G$10="Kraków"),1+AZ44,IF(AND($G$9="Liceum zawodowe",$G$10="Kraków"),1+AZ46,IF(AND($G$9="Technikum",$G$10="Kraków"),1+AZ48,IF(AND($G$9="Zasadnicza szkoła zawodowa",$G$10="Kraków"),1+AZ50,IF(AND($G$9="Szkoła policealna",$G$10="Kraków"),1+AZ52,IF(AND($G$9="Szkoła wyższa",$G$10="Kraków"),1+AZ54,IF(AND($G$9="Inne",$G$10="Kraków"),1+AZ56,IF(AND($G$9="Zespół szkół",$G$10="Kraków"),1+AZ58,IF(AND($G$9="Gimnazjum",$G$10="Kraków"),1+AZ60,IF(AND($G$9="Centrum kształcenia",$G$10="Kraków"),1+AZ62,IF(AND($G$9="Dom dziecka",$G$10="Kraków"),1+AZ64,"-")))))))))))))) -> - | BL37: =IF(AND($G$9="Żłobek, przedszkole",$G$10="Lublin"),1+BA38,IF(AND($G$9="Szkoła sportowa",$G$10="Lublin"),1+BA40,IF(AND($G$9="Szkoła podstawowa",$G$10="Lublin"),1+BA42,IF(AND($G$9="Liceum ogólnokształcące",$G$10="Lublin"),1+BA44,IF(AND($G$9="Liceum zawodowe",$G$10="Lublin"),1+BA46,IF(AND($G$9="Technikum",$G$10="Lublin"),1+BA48,IF(AND($G$9="Zasadnicza szkoła zawodowa",$G$10="Lublin"),1+BA50,IF(AND($G$9="Szkoła policealna",$G$10="Lublin"),1+BA52,IF(AND($G$9="Szkoła wyższa",$G$10="Lublin"),1+BA54,IF(AND($G$9="Inne",$G$10="Lublin"),1+BA56,IF(AND($G$9="Zespół szkół",$G$10="Lublin"),1+BA58,IF(AND($G$9="Gimnazjum",$G$10="Lublin"),1+BA60,IF(AND($G$9="Centrum kształcenia",$G$10="Lublin"),1+BA62,IF(AND($G$9="Dom dziecka",$G$10="Lublin"),1+BA64,"-")))))))))))))) -> - | BM37: =IF(AND($G$9="Żłobek, przedszkole",$G$10="Łódź"),1+BB38,IF(AND($G$9="Szkoła sportowa",$G$10="Łódź"),1+BB40,IF(AND($G$9="Szkoła podstawowa",$G$10="Łódź"),1+BB42,IF(AND($G$9="Liceum ogólnokształcące",$G$10="Łódź"),1+BB44,IF(AND($G$9="Liceum zawodowe",$G$10="Łódź"),1+BB46,IF(AND($G$9="Technikum",$G$10="Łódź"),1+BB48,IF(AND($G$9="Zasadnicza szkoła zawodowa",$G$10="Łódź"),1+BB50,IF(AND($G$9="Szkoła policealna",$G$10="Łódź"),1+BB52,IF(AND($G$9="Szkoła wyższa",$G$10="Łódź"),1+BB54,IF(AND($G$9="Inne",$G$10="Łódź"),1+BB56,IF(AND($G$9="Zespół szkół",$G$10="Łódź"),1+BB58,IF(AND($G$9="Gimnazjum",$G$10="Łódź"),1+BB60,IF(AND($G$9="Centrum kształcenia",$G$10="Łódź"),1+BB62,IF(AND($G$9="Dom dziecka",$G$10="Łódź"),1+BB64,"-")))))))))))))) -> - | BN37: =IF(AND($G$9="Żłobek, przedszkole",$G$10="Poznań"),1+BC38,IF(AND($G$9="Szkoła sportowa",$G$10="Poznań"),1+BC40,IF(AND($G$9="Szkoła podstawowa",$G$10="Poznań"),1+BC42,IF(AND($G$9="Liceum ogólnokształcące",$G$10="Poznań"),1+BC44,IF(AND($G$9="Liceum zawodowe",$G$10="Poznań"),1+BC46,IF(AND($G$9="Technikum",$G$10="Poznań"),1+BC48,IF(AND($G$9="Zasadnicza szkoła zawodowa",$G$10="Poznań"),1+BC50,IF(AND($G$9="Szkoła policealna",$G$10="Poznań"),1+BC52,IF(AND($G$9="Szkoła wyższa",$G$10="Poznań"),1+BC54,IF(AND($G$9="Inne",$G$10="Poznań"),1+BC56,IF(AND($G$9="Zespół szkół",$G$10="Poznań"),1+BC58,IF(AND($G$9="Gimnazjum",$G$10="Poznań"),1+BC60,IF(AND($G$9="Centrum kształcenia",$G$10="Poznań"),1+BC62,IF(AND($G$9="Dom dziecka",$G$10="Poznań"),1+BC64,"-")))))))))))))) -> - | BO37: =IF(AND($G$9="Żłobek, przedszkole",$G$10="Warszawa"),1+BD38,IF(AND($G$9="Szkoła sportowa",$G$10="Warszawa"),1+BD40,IF(AND($G$9="Szkoła podstawowa",$G$10="Warszawa"),1+BD42,IF(AND($G$9="Liceum ogólnokształcące",$G$10="Warszawa"),1+BD44,IF(AND($G$9="Liceum zawodowe",$G$10="Warszawa"),1+BD46,IF(AND($G$9="Technikum",$G$10="Warszawa"),1+BD48,IF(AND($G$9="Zasadnicza szkoła zawodowa",$G$10="Warszawa"),1+BD50,IF(AND($G$9="Szkoła policealna",$G$10="Warszawa"),1+BD52,IF(AND($G$9="Szkoła wyższa",$G$10="Warszawa"),1+BD54,IF(AND($G$9="Inne",$G$10="Warszawa"),1+BD56,IF(AND($G$9="Zespół szkół",$G$10="Warszawa"),1+BD58,IF(AND($G$9="Gimnazjum",$G$10="Warszawa"),1+BD60,IF(AND($G$9="Centrum kształcenia",$G$10="Warszawa"),1+BD62,IF(AND($G$9="Dom dziecka",$G$10="Warszawa"),1+BD64,"-")))))))))))))) -> - | BP37: =IF(AND($G$9="Żłobek, przedszkole",$G$10="Wrocław"),1+BE38,IF(AND($G$9="Szkoła sportowa",$G$10="Wrocław"),1+BE40,IF(AND($G$9="Szkoła podstawowa",$G$10="Wrocław"),1+BE42,IF(AND($G$9="Liceum ogólnokształcące",$G$10="Wrocław"),1+BE44,IF(AND($G$9="Liceum zawodowe",$G$10="Wrocław"),1+BE46,IF(AND($G$9="Technikum",$G$10="Wrocław"),1+BE48,IF(AND($G$9="Zasadnicza szkoła zawodowa",$G$10="Wrocław"),1+BE50,IF(AND($G$9="Szkoła policealna",$G$10="Wrocław"),1+BE52,IF(AND($G$9="Szkoła wyższa",$G$10="Wrocław"),1+BE54,IF(AND($G$9="Inne",$G$10="Wrocław"),1+BE56,IF(AND($G$9="Zespół szkół",$G$10="Wrocław"),1+BE58,IF(AND($G$9="Gimnazjum",$G$10="Wrocław"),1+BE60,IF(AND($G$9="Centrum kształcenia",$G$10="Wrocław"),1+BE62,IF(AND($G$9="Dom dziecka",$G$10="Wrocław"),1+BE64,"-")))))))))))))) -> - | BQ37: =IF(AND($G$9="Żłobek, przedszkole",$G$10="Szczecin"),1+BF38,IF(AND($G$9="Szkoła sportowa",$G$10="Szczecin"),1+BF40,IF(AND($G$9="Szkoła podstawowa",$G$10="Szczecin"),1+BF42,IF(AND($G$9="Liceum ogólnokształcące",$G$10="Szczecin"),1+BF44,IF(AND($G$9="Liceum zawodowe",$G$10="Szczecin"),1+BF46,IF(AND($G$9="Technikum",$G$10="Szczecin"),1+BF48,IF(AND($G$9="Zasadnicza szkoła zawodowa",$G$10="Szczecin"),1+BF50,IF(AND($G$9="Szkoła policealna",$G$10="Szczecin"),1+BF52,IF(AND($G$9="Szkoła wyższa",$G$10="Szczecin"),1+BF54,IF(AND($G$9="Inne",$G$10="Szczecin"),1+BF56,IF(AND($G$9="Zespół szkół",$G$10="Szczecin"),1+BF58,IF(AND($G$9="Gimnazjum",$G$10="Szczecin"),1+BF60,IF(AND($G$9="Centrum kształcenia",$G$10="Szczecin"),1+BF62,IF(AND($G$9="Dom dziecka",$G$10="Szczecin"),1+BF64,"-")))))))))))))) -> -
AE38: WARIANT II | AG38: % ZNIŻKI Z PALCA | AI38: =IF(AJ38=TRUE,1+R30,1) -> 1 | AQ38: Suma 1 | AR38: Suma 2 | AS38: Suma 3 | AV38: Żłobek, przedszkole | AW38: Wariant I | AX38: -0.3 | AY38: -0.15 | AZ38: -0.3 | BA38: -0.3 | BB38: -0.25 | BC38: -0.2 | BD38: -0.3 | BE38: -0.3 | BF38: -0.3 | BH38: WARIANT II | BI38: =IF(AND($G$9="Żłobek, przedszkole",$G$10="Gdańsk"),1+AX39,IF(AND($G$9="Szkoła sportowa",$G$10="Gdańsk"),1+AX41,IF(AND($G$9="Szkoła podstawowa",$G$10="Gdańsk"),1+AX43,IF(AND($G$9="Liceum ogólnokształcące",$G$10="Gdańsk"),1+AX45,IF(AND($G$9="Liceum zawodowe",$G$10="Gdańsk"),1+AX47,IF(AND($G$9="Technikum",$G$10="Gdańsk"),1+AX49,IF(AND($G$9="Zasadnicza szkoła zawodowa",$G$10="Gdańsk"),1+AX51,IF(AND($G$9="Szkoła policealna",$G$10="Gdańsk"),1+AX53,IF(AND($G$9="Szkoła wyższa",$G$10="Gdańsk"),1+AX55,IF(AND($G$9="Inne",$G$10="Gdańsk"),1+AX57,IF(AND($G$9="Zespół szkół",$G$10="Gdańsk"),1+AX59,IF(AND($G$9="Gimnazjum",$G$10="Gdańsk"),1+AX61,IF(AND($G$9="Centrum kształcenia",$G$10="Gdańsk"),1+AX63,IF(AND($G$9="Dom dziecka",$G$10="Gdańsk"),1+AX65,"-")))))))))))))) -> - | BJ38: =IF(AND($G$9="Żłobek, przedszkole",$G$10="Katowice"),1+AY39,IF(AND($G$9="Szkoła sportowa",$G$10="Katowice"),1+AY41,IF(AND($G$9="Szkoła podstawowa",$G$10="Katowice"),1+AY43,IF(AND($G$9="Liceum ogólnokształcące",$G$10="Katowice"),1+AY45,IF(AND($G$9="Liceum zawodowe",$G$10="Katowice"),1+AY47,IF(AND($G$9="Technikum",$G$10="Katowice"),1+AY49,IF(AND($G$9="Zasadnicza szkoła zawodowa",$G$10="Katowice"),1+AY51,IF(AND($G$9="Szkoła policealna",$G$10="Katowice"),1+AY53,IF(AND($G$9="Szkoła wyższa",$G$10="Katowice"),1+AY55,IF(AND($G$9="Inne",$G$10="Katowice"),1+AY57,IF(AND($G$9="Zespół szkół",$G$10="Katowice"),1+AY59,IF(AND($G$9="Gimnazjum",$G$10="Katowice"),1+AY61,IF(AND($G$9="Centrum kształcenia",$G$10="Katowice"),1+AY63,IF(AND($G$9="Dom dziecka",$G$10="Katowice"),1+AY65,"-")))))))))))))) -> - | BK38: =IF(AND($G$9="Żłobek, przedszkole",$G$10="Kraków"),1+AZ39,IF(AND($G$9="Szkoła sportowa",$G$10="Kraków"),1+AZ41,IF(AND($G$9="Szkoła podstawowa",$G$10="Kraków"),1+AZ43,IF(AND($G$9="Liceum ogólnokształcące",$G$10="Kraków"),1+AZ45,IF(AND($G$9="Liceum zawodowe",$G$10="Kraków"),1+AZ47,IF(AND($G$9="Technikum",$G$10="Kraków"),1+AZ49,IF(AND($G$9="Zasadnicza szkoła zawodowa",$G$10="Kraków"),1+AZ51,IF(AND($G$9="Szkoła policealna",$G$10="Kraków"),1+AZ53,IF(AND($G$9="Szkoła wyższa",$G$10="Kraków"),1+AZ55,IF(AND($G$9="Inne",$G$10="Kraków"),1+AZ57,IF(AND($G$9="Zespół szkół",$G$10="Kraków"),1+AZ59,IF(AND($G$9="Gimnazjum",$G$10="Kraków"),1+AZ61,IF(AND($G$9="Centrum kształcenia",$G$10="Kraków"),1+AZ63,IF(AND($G$9="Dom dziecka",$G$10="Kraków"),1+AZ65,"-")))))))))))))) -> - | BL38: =IF(AND($G$9="Żłobek, przedszkole",$G$10="Lublin"),1+BA39,IF(AND($G$9="Szkoła sportowa",$G$10="Lublin"),1+BA41,IF(AND($G$9="Szkoła podstawowa",$G$10="Lublin"),1+BA43,IF(AND($G$9="Liceum ogólnokształcące",$G$10="Lublin"),1+BA45,IF(AND($G$9="Liceum zawodowe",$G$10="Lublin"),1+BA47,IF(AND($G$9="Technikum",$G$10="Lublin"),1+BA49,IF(AND($G$9="Zasadnicza szkoła zawodowa",$G$10="Lublin"),1+BA51,IF(AND($G$9="Szkoła policealna",$G$10="Lublin"),1+BA53,IF(AND($G$9="Szkoła wyższa",$G$10="Lublin"),1+BA55,IF(AND($G$9="Inne",$G$10="Lublin"),1+BA57,IF(AND($G$9="Zespół szkół",$G$10="Lublin"),1+BA59,IF(AND($G$9="Gimnazjum",$G$10="Lublin"),1+BA61,IF(AND($G$9="Centrum kształcenia",$G$10="Lublin"),1+BA63,IF(AND($G$9="Dom dziecka",$G$10="Lublin"),1+BA65,"-")))))))))))))) -> - | BM38: =IF(AND($G$9="Żłobek, przedszkole",$G$10="Łódź"),1+BB39,IF(AND($G$9="Szkoła sportowa",$G$10="Łódź"),1+BB41,IF(AND($G$9="Szkoła podstawowa",$G$10="Łódź"),1+BB43,IF(AND($G$9="Liceum ogólnokształcące",$G$10="Łódź"),1+BB45,IF(AND($G$9="Liceum zawodowe",$G$10="Łódź"),1+BB47,IF(AND($G$9="Technikum",$G$10="Łódź"),1+BB49,IF(AND($G$9="Zasadnicza szkoła zawodowa",$G$10="Łódź"),1+BB51,IF(AND($G$9="Szkoła policealna",$G$10="Łódź"),1+BB53,IF(AND($G$9="Szkoła wyższa",$G$10="Łódź"),1+BB55,IF(AND($G$9="Inne",$G$10="Łódź"),1+BB57,IF(AND($G$9="Zespół szkół",$G$10="Łódź"),1+BB59,IF(AND($G$9="Gimnazjum",$G$10="Łódź"),1+BB61,IF(AND($G$9="Centrum kształcenia",$G$10="Łódź"),1+BB63,IF(AND($G$9="Dom dziecka",$G$10="Łódź"),1+BB65,"-")))))))))))))) -> - | BN38: =IF(AND($G$9="Żłobek, przedszkole",$G$10="Poznań"),1+BC39,IF(AND($G$9="Szkoła sportowa",$G$10="Poznań"),1+BC41,IF(AND($G$9="Szkoła podstawowa",$G$10="Poznań"),1+BC43,IF(AND($G$9="Liceum ogólnokształcące",$G$10="Poznań"),1+BC45,IF(AND($G$9="Liceum zawodowe",$G$10="Poznań"),1+BC47,IF(AND($G$9="Technikum",$G$10="Poznań"),1+BC49,IF(AND($G$9="Zasadnicza szkoła zawodowa",$G$10="Poznań"),1+BC51,IF(AND($G$9="Szkoła policealna",$G$10="Poznań"),1+BC53,IF(AND($G$9="Szkoła wyższa",$G$10="Poznań"),1+BC55,IF(AND($G$9="Inne",$G$10="Poznań"),1+BC57,IF(AND($G$9="Zespół szkół",$G$10="Poznań"),1+BC59,IF(AND($G$9="Gimnazjum",$G$10="Poznań"),1+BC61,IF(AND($G$9="Centrum kształcenia",$G$10="Poznań"),1+BC63,IF(AND($G$9="Dom dziecka",$G$10="Poznań"),1+BC65,"-")))))))))))))) -> - | BO38: =IF(AND($G$9="Żłobek, przedszkole",$G$10="Warszawa"),1+BD39,IF(AND($G$9="Szkoła sportowa",$G$10="Warszawa"),1+BD41,IF(AND($G$9="Szkoła podstawowa",$G$10="Warszawa"),1+BD43,IF(AND($G$9="Liceum ogólnokształcące",$G$10="Warszawa"),1+BD45,IF(AND($G$9="Liceum zawodowe",$G$10="Warszawa"),1+BD47,IF(AND($G$9="Technikum",$G$10="Warszawa"),1+BD49,IF(AND($G$9="Zasadnicza szkoła zawodowa",$G$10="Warszawa"),1+BD51,IF(AND($G$9="Szkoła policealna",$G$10="Warszawa"),1+BD53,IF(AND($G$9="Szkoła wyższa",$G$10="Warszawa"),1+BD55,IF(AND($G$9="Inne",$G$10="Warszawa"),1+BD57,IF(AND($G$9="Zespół szkół",$G$10="Warszawa"),1+BD59,IF(AND($G$9="Gimnazjum",$G$10="Warszawa"),1+BD61,IF(AND($G$9="Centrum kształcenia",$G$10="Warszawa"),1+BD63,IF(AND($G$9="Dom dziecka",$G$10="Warszawa"),1+BD65,"-")))))))))))))) -> - | BP38: =IF(AND($G$9="Żłobek, przedszkole",$G$10="Wrocław"),1+BE39,IF(AND($G$9="Szkoła sportowa",$G$10="Wrocław"),1+BE41,IF(AND($G$9="Szkoła podstawowa",$G$10="Wrocław"),1+BE43,IF(AND($G$9="Liceum ogólnokształcące",$G$10="Wrocław"),1+BE45,IF(AND($G$9="Liceum zawodowe",$G$10="Wrocław"),1+BE47,IF(AND($G$9="Technikum",$G$10="Wrocław"),1+BE49,IF(AND($G$9="Zasadnicza szkoła zawodowa",$G$10="Wrocław"),1+BE51,IF(AND($G$9="Szkoła policealna",$G$10="Wrocław"),1+BE53,IF(AND($G$9="Szkoła wyższa",$G$10="Wrocław"),1+BE55,IF(AND($G$9="Inne",$G$10="Wrocław"),1+BE57,IF(AND($G$9="Zespół szkół",$G$10="Wrocław"),1+BE59,IF(AND($G$9="Gimnazjum",$G$10="Wrocław"),1+BE61,IF(AND($G$9="Centrum kształcenia",$G$10="Wrocław"),1+BE63,IF(AND($G$9="Dom dziecka",$G$10="Wrocław"),1+BE65,"-")))))))))))))) -> - | BQ38: =IF(AND($G$9="Żłobek, przedszkole",$G$10="Szczecin"),1+BF39,IF(AND($G$9="Szkoła sportowa",$G$10="Szczecin"),1+BF41,IF(AND($G$9="Szkoła podstawowa",$G$10="Szczecin"),1+BF43,IF(AND($G$9="Liceum ogólnokształcące",$G$10="Szczecin"),1+BF45,IF(AND($G$9="Liceum zawodowe",$G$10="Szczecin"),1+BF47,IF(AND($G$9="Technikum",$G$10="Szczecin"),1+BF49,IF(AND($G$9="Zasadnicza szkoła zawodowa",$G$10="Szczecin"),1+BF51,IF(AND($G$9="Szkoła policealna",$G$10="Szczecin"),1+BF53,IF(AND($G$9="Szkoła wyższa",$G$10="Szczecin"),1+BF55,IF(AND($G$9="Inne",$G$10="Szczecin"),1+BF57,IF(AND($G$9="Zespół szkół",$G$10="Szczecin"),1+BF59,IF(AND($G$9="Gimnazjum",$G$10="Szczecin"),1+BF61,IF(AND($G$9="Centrum kształcenia",$G$10="Szczecin"),1+BF63,IF(AND($G$9="Dom dziecka",$G$10="Szczecin"),1+BF65,"-")))))))))))))) -> -
F39: Zwrot kosztów leczenia do wysokości: | G39: sumy ubezpieczenia | I39: =IF(AY3=TRUE,IF(AQ39=TRUE,(((IF(AND($BJ$4=1,$AY$3=TRUE),(I$20*$AV$95/1000),IF(AND($BJ$4=2,$AY$3=TRUE),(I$20*$AW$95/1000),""))))*AQ23),((IF(AND($BJ$4=1,$AY$3=TRUE),(I$20*$AV$95/1000),IF(AND($BJ$4=2,$AY$3=TRUE),(I$20*$AW$95/1000),""))))),"") ->  | J39: =IF(AY14=TRUE,IF(AQ39=TRUE,(((IF(AND($BJ$4=1,$AY$14=TRUE),(I$20*$AV$95/1000),IF(AND($BJ$4=2,$AY$14=TRUE),(I$20*$AW$95/1000),""))))*AQ23),((IF(AND($BJ$4=1,$AY$14=TRUE),(I$20*$AV$95/1000),IF(AND($BJ$4=2,$AY$14=TRUE),(I$20*$AW$95/1000),""))))),"") ->  | L39: =IF(AY3=TRUE,IF(AR39=TRUE,(((IF(AND($BJ$4=1,$AY$3=TRUE),(L$20*$AV$95/1000),IF(AND($BJ$4=2,$AY$3=TRUE),(L$20*$AW$95/1000),""))))*AQ23),((IF(AND($BJ$4=1,$AY$3=TRUE),(L$20*$AV$95/1000),IF(AND($BJ$4=2,$AY$3=TRUE),(L$20*$AW$95/1000),""))))),"") ->  | M39: =IF(AY14=TRUE,IF(AR39=TRUE,(((IF(AND($BJ$4=1,$AY$14=TRUE),(L$20*$AV$95/1000),IF(AND($BJ$4=2,$AY$14=TRUE),(L$20*$AW$95/1000),""))))*AQ23),((IF(AND($BJ$4=1,$AY$14=TRUE),(L$20*$AV$95/1000),IF(AND($BJ$4=2,$AY$14=TRUE),(L$20*$AW$95/1000),""))))),"") ->  | O39: =IF(AY3=TRUE,IF(AS39=TRUE,(((IF(AND($BJ$4=1,$AY$3=TRUE),(O$20*$AV$95/1000),IF(AND($BJ$4=2,$AY$3=TRUE),(O$20*$AW$95/1000),""))))*AQ23),((IF(AND($BJ$4=1,$AY$3=TRUE),(O$20*$AV$95/1000),IF(AND($BJ$4=2,$AY$3=TRUE),(O$20*$AW$95/1000),""))))),"") ->  | P39: =IF(AY14=TRUE,IF(AS39=TRUE,(((IF(AND($BJ$4=1,$AY$14=TRUE),(O$20*$AV$95/1000),IF(AND($BJ$4=2,$AY$14=TRUE),(O$20*$AW$95/1000),""))))*AQ23),((IF(AND($BJ$4=1,$AY$14=TRUE),(O$20*$AV$95/1000),IF(AND($BJ$4=2,$AY$14=TRUE),(O$20*$AW$95/1000),""))))),"") ->  | AP39: Wariant 1 | AW39: Wariant II | AX39: -0.2 | AY39: -0.1 | AZ39: -0.25 | BA39: -0.25 | BB39: -0.15 | BC39: -0.2 | BD39: -0.3 | BE39: -0.25 | BF39: -0.2 | BH39: Zniżka (1/0) | BI39: =IF(OR(BI37<1,BI38<1),1,"") ->  | BJ39: =IF(OR(BJ37<1,BJ38<1),1,"") -> 
F40: Ryczałt za okres czasowej, całkowitej niezdolności do nauki lub pracy trwający dłużej niż 14 dni - 0,06% sumy ubezpieczenia za każdy dzień (do 180 dni łącznie ze wszystkich zdarzeń objętych umową) | I40: =IF(BJ5=TRUE,IF(AQ39=TRUE,(((IF($BJ$5=TRUE,(I$20*$AX$95/1000),0)))*AQ23),(((IF($BJ$5=TRUE,(I$20*$AX$95/1000),0))))),"") ->  | J40: =IF(BJ16=TRUE,IF(AQ39=TRUE,(((IF($BJ$16=TRUE,(I$20*$AX$95/1000),0)))*AQ23),(((IF($BJ$16=TRUE,(I$20*$AX$95/1000),0))))),"") ->  | L40: =IF(BJ5=TRUE,IF(AR39=TRUE,(((IF($BJ$5=TRUE,(L$20*$AX$95/1000),0)))*AQ23),(((IF($BJ$5=TRUE,(L$20*$AX$95/1000),0))))),"") ->  | M40: =IF(BJ16=TRUE,IF(AR39=TRUE,(((IF($BJ$16=TRUE,(L$20*$AX$95/1000),0)))*AQ23),(((IF($BJ$16=TRUE,(L$20*$AX$95/1000),0))))),"") ->  | O40: =IF(BJ5=TRUE,IF(AS39=TRUE,(((IF($BJ$5=TRUE,(O$20*$AX$95/1000),0)))*AQ23),(((IF($BJ$5=TRUE,(O$20*$AX$95/1000),0))))),"") ->  | P40: =IF(BJ16=TRUE,IF(AS39=TRUE,(((IF($BJ$16=TRUE,(O$20*$AX$95/1000),0)))*AQ23),(((IF($BJ$16=TRUE,(O$20*$AX$95/1000),0))))),"") ->  | AP40: Wariant 2 | AV40: Szkoła sportowa | AW40: Wariant I | AX40: 0 | AY40: 0 | AZ40: 0 | BA40: 0 | BB40: 0 | BC40: 0 | BD40: 0 | BE40: 0 | BF40: 0
F41: Dieta szpitalna, za każdy dzień pobytu w szpitalu 0,2% sumy ubezpieczenia (płatna przez maksymalny okres 90 dni z tytułu jednego nieszczęśliwego wypadku lub zdarzenia objętego umową) | I41: =IF(BJ6=TRUE,IF(AQ39=TRUE,(((IF($BJ$6=TRUE,(I$20*$AY$95/1000),0)))*AQ23),(((IF($BJ$6=TRUE,(I$20*$AY$95/1000),0))))),"") ->  | J41: =IF(BJ17=TRUE,IF(AQ39=TRUE,(((IF($BJ$17=TRUE,(I$20*$AY$95/1000),0)))*AQ23),(((IF($BJ$17=TRUE,(I$20*$AY$95/1000),0))))),"") ->  | L41: =IF(BJ6=TRUE,IF(AR39=TRUE,(((IF($BJ$6=TRUE,(L$20*$AY$95/1000),0)))*AQ23),(((IF($BJ$6=TRUE,(L$20*$AY$95/1000),0))))),"") ->  | M41: =IF(BJ17=TRUE,IF(AR39=TRUE,(((IF($BJ$17=TRUE,(L$20*$AY$95/1000),0)))*AQ23),(((IF($BJ$17=TRUE,(L$20*$AY$95/1000),0))))),"") ->  | O41: =IF(BJ6=TRUE,IF(AS39=TRUE,(((IF($BJ$6=TRUE,(O$20*$AY$95/1000),0)))*AQ23),(((IF($BJ$6=TRUE,(O$20*$AY$95/1000),0))))),"") ->  | P41: =IF(BJ17=TRUE,IF(AS39=TRUE,(((IF($BJ$17=TRUE,(O$20*$AY$95/1000),0)))*AQ23),(((IF($BJ$17=TRUE,(O$20*$AY$95/1000),0))))),"") ->  | AC41: ZNIŻKA | AD41: Kiedy powyżej 0 | AE41: =IF(R26>0,TRUE, FALSE) -> FALSE | AP41: Wariant 2 BIS | AW41: Wariant II | AX41: 0 | AY41: 0 | AZ41: 0 | BA41: 0 | BB41: 0 | BC41: 0 | BD41: 0 | BE41: 0 | BF41: 0
F42: Jednorazowe świadczenie w przypadku zgonu ubezpieczonego spowodowane nowotworem złośliwym w wysokości 1.000 zł | I42: =IF(BJ7=TRUE,IF(AQ39=TRUE,(((IF($BJ$7=TRUE,0.1,0)))*AQ23),(((IF($BJ$7=TRUE,0.1,0))))),"") ->  | J42: =IF(BJ18=TRUE,IF(AQ39=TRUE,(((IF($BJ$18=TRUE,0.1,0)))*AQ23),(((IF($BJ$18=TRUE,0.1,0))))),"") ->  | L42: =IF(BJ7=TRUE,IF(AR39=TRUE,(((IF($BJ$7=TRUE,0.1,0)))*AQ23),(((IF($BJ$7=TRUE,0.1,0))))),"") ->  | M42: =IF(BJ18=TRUE,IF(AS39=TRUE,(((IF($BJ$18=TRUE,0.1,0)))*AQ23),(((IF($BJ$18=TRUE,0.1,0))))),"") ->  | O42: =IF(BJ7=TRUE,IF(AS39=TRUE,(((IF($BJ$7=TRUE,0.1,0)))*AQ23),(((IF($BJ$7=TRUE,0.1,0))))),"") ->  | P42: =IF(BJ18=TRUE,IF(AS39=TRUE,(((IF($BJ$18=TRUE,0.1,0)))*AQ23),(((IF($BJ$18=TRUE,0.1,0))))),"") ->  | Z42: Zniżka | AA42: =IF(R24<0,TRUE,IF(R24=0,TRUE,IF(R24>0,FALSE,0))) -> TRUE | AD42: Kiedy 0 | AE42: =IF(R26=0,TRUE,FALSE) -> TRUE | AH42: PERSONEL | AO42: DZIECI | AV42: Szkoła podstawowa | AW42: Wariant I | AX42: -0.05 | AY42: 0.2 | AZ42: -0.15 | BA42: 0.1 | BB42: 0.05 | BC42: -0.1 | BD42: -0.1 | BE42: 0.25 | BF42: 0.15
F43: Jednorazowe świadczenie w przypadku zgonu dziecka lub ucznia w wieku do 25 lat z powodu wrodzonej wady serca w wysokości 1.000 zł | I43: =IF(BJ8=TRUE,IF(AQ39=TRUE,(((IF($BJ$8=TRUE,0.1,0)))*AQ23),(((IF($BJ$8=TRUE,0.1,0))))),"") ->  | L43: =IF(BJ8=TRUE,IF(AR39=TRUE,(((IF($BJ$8=TRUE,0.1,0)))*AQ23),(((IF($BJ$8=TRUE,0.1,0))))),"") ->  | O43: =IF(BJ8=TRUE,IF(AS39=TRUE,(((IF($BJ$8=TRUE,0.1,0)))*AQ23),(((IF($BJ$8=TRUE,0.1,0))))),"") ->  | Z43: Zwyżka | AA43: =IF(AA42=TRUE,FALSE,TRUE) -> FALSE | AD43: Pomiędzy 0 a zniżka z tabeli | AE43: =IF(AND(R26<0,R26>R24),TRUE,FALSE) -> FALSE | AI43: ŚWIADCZENIA DODATKOWE | AJ43: suma 1 | AK43: suma 2 | AL43: suma 3 | AP43: ŚWIADCZENIA DODATKOWE | AQ43: suma 1 | AR43: suma 2 | AS43: suma 3 | AW43: Wariant II | AX43: 0.3 | AY43: 0.6 | AZ43: 0 | BA43: 0.3 | BB43: 0.5 | BC43: 0.3 | BD43: 0.2 | BE43: 0.5 | BF43: 0.3
F44: Jednorazowe świadczenie w przypadku śmierci przedstawiciela ustawowego lub osoby, która ma na utrzymaniu ucznia w wysokości 1.000 zł | I44: =IF(BJ10=TRUE,IF(AQ39=TRUE,(((IF($BJ$10=TRUE,0.1,0)))*AQ23),(((IF($BJ$10=TRUE,0.1,0))))),"") ->  | L44: =IF(BJ10=TRUE,IF(AR39=TRUE,(((IF($BJ$10=TRUE,0.1,0)))*AQ23),(((IF($BJ$10=TRUE,0.1,0))))),"") ->  | O44: =IF(BJ10=TRUE,IF(AS39=TRUE,(((IF($BJ$10=TRUE,0.1,0)))*AQ23),(((IF($BJ$10=TRUE,0.1,0))))),"") ->  | AD44: Kiedy poniżej zniżki z tabeli | AE44: =IF(R26<R24,TRUE,FALSE) -> FALSE | AI44: zniżka incydentalna | AP44: zniżka incydentalna | AV44: Liceum ogólnokształcące | AW44: Wariant I | AX44: -0.2 | AY44: 0.05 | AZ44: -0.1 | BA44: -0.1 | BB44: -0.05 | BC44: -0.1 | BD44: -0.2 | BE44: 0.05 | BF44: -0.1
F45: Jednorazowe świadczenie w przypadku amputacji kończyny spowodowanej nowotworem złośliwym u dziecka lub ucznia w wieku do 25 lat w wysokości 1.000 zł | I45: =IF(BJ11=TRUE,IF(AQ39=TRUE,(((IF($BJ$11=TRUE,0.1,0)))*AQ23),(((IF($BJ$11=TRUE,0.1,0))))),"") ->  | L45: =IF(BJ11=TRUE,IF(AR39=TRUE,(((IF($BJ$11=TRUE,0.1,0)))*AQ23),(((IF($BJ$11=TRUE,0.1,0))))),"") ->  | O45: =IF(BJ11=TRUE,IF(AS39=TRUE,(((IF($BJ$11=TRUE,0.1,0)))*AQ23),(((IF($BJ$11=TRUE,0.1,0))))),"") ->  | AD45: Kiedy równe z palca i z tabeli | AE45: =IF(R26=R24,TRUE,FALSE) -> TRUE | AH45: WARIANT 1 | AI45: ZE ZNIŻKĄ | AJ45: =((IF(AND($BJ$4=1,$AY$14=TRUE),(I$20*$AV$95/1000),IF(AND($BJ$4=2,$AY$14=TRUE),(I$20*$AW$95/1000),0)))+(IF($BJ$16=TRUE,(I$20*$AX$95/1000),0))+(IF($BJ$17=TRUE,(I$20*$AY$95/1000),0))+(IF($BJ$18=TRUE,0.1,0)))*$AQ$23 -> 0 | AK45: =((IF(AND($BJ$4=1,$AY$14=TRUE),(L$20*$AV$95/1000),IF(AND($BJ$4=2,$AY$14=TRUE),(L$20*$AW$95/1000),0)))+(IF($BJ$16=TRUE,(L$20*$AX$95/1000),0))+(IF($BJ$17=TRUE,(L$20*$AY$95/1000),0))+(IF($BJ$18=TRUE,0.1,0)))*$AQ$23 -> 0 | AL45: =((IF(AND($BJ$4=1,$AY$14=TRUE),(O$20*$AV$95/1000),IF(AND($BJ$4=2,$AY$14=TRUE),(O$20*$AW$95/1000),0)))+(IF($BJ$16=TRUE,(O$20*$AX$95/1000),0))+(IF($BJ$17=TRUE,(O$20*$AY$95/1000),0))+(IF($BJ$18=TRUE,0.1,0)))*$AQ$23 -> 0 | AO45: WARIANT 1 | AP45: ZE ZNIŻKĄ | AQ45: =((IF(AND($BJ$4=1,$AY$3=TRUE),(I$20*$AV$95/1000),IF(AND($BJ$4=2,$AY$3=TRUE),(I$20*$AW$95/1000),0)))+(IF($BJ$5=TRUE,(I$20*$AX$95/1000),0))+(IF($BJ$6=TRUE,(I$20*$AY$95/1000),0))+(IF($BJ$7=TRUE,0.1,0))+(IF($BJ$8=TRUE,0.1,0))+(IF($BJ$9=TRUE,0.1,0))+(IF($BJ$10=TRUE,0.1,0))+(IF($BJ$11=TRUE,0.1,0)))*$AQ$23 -> 0 | AR45: =((IF(AND($BJ$4=1,$AY$3=TRUE),(L$20*$AV$95/1000),IF(AND($BJ$4=2,$AY$3=TRUE),(L$20*$AW$95/1000),0)))+(IF($BJ$5=TRUE,(L$20*$AX$95/1000),0))+(IF($BJ$6=TRUE,(L$20*$AY$95/1000),0))+(IF($BJ$7=TRUE,0.1,0))+(IF($BJ$8=TRUE,0.1,0))+(IF($BJ$9=TRUE,0.1,0))+(IF($BJ$10=TRUE,0.1,0))+(IF($BJ$11=TRUE,0.1,0)))*$AQ$23 -> 0 | AS45: =((IF(AND($BJ$4=1,$AY$3=TRUE),(O$20*$AV$95/1000),IF(AND($BJ$4=2,$AY$3=TRUE),(O$20*$AW$95/1000),0)))+(IF($BJ$5=TRUE,(O$20*$AX$95/1000),0))+(IF($BJ$6=TRUE,(O$20*$AY$95/1000),0))+(IF($BJ$7=TRUE,0.1,0))+(IF($BJ$8=TRUE,0.1,0))+(IF($BJ$9=TRUE,0.1,0))+(IF($BJ$10=TRUE,0.1,0))+(IF($BJ$11=TRUE,0.1,0)))*$AQ$23 -> 0 | AW45: Wariant II | AX45: -0.1 | AY45: 0.15 | AZ45: -0.1 | BA45: 0.05 | BB45: 0.1 | BC45: 0.05 | BD45: -0.2 | BE45: -0.05 | BF45: 0
B46: W przypadku objęcia ubezpieczeniem wszystkich dzieci i młodzieży danej placówki, do której uczęszczają uczniowie znajdujący się w trudnej sytuacji materialnej, PZU SA - na wniosek ubezpieczającego - może zastosować specjalną zniżkę od składki należnej z całej polisy. Zniżka nie ma zastosowania do umów zawieranych ze szkołami wieczorowymi i zaocznymi. | AI46: FINALNY WYNIK | AJ46: =IF(AQ$39=TRUE,AJ45,AJ47) -> 0 | AK46: =IF(AR$39=TRUE,AK45,AK47) -> 0 | AL46: =IF(AS$39=TRUE,AL45,AL47) -> 0 | AP46: FINALNY WYNIK | AQ46: =IF(AQ$39=TRUE,AQ45,AQ47) -> 0 | AR46: =IF(AR$39=TRUE,AR45,AR47) -> 0 | AS46: =IF(AS$39=TRUE,AS45,AS47) -> 0 | AV46: Liceum zawodowe | AW46: Wariant I | AX46: -0.15 | AY46: -0.1 | AZ46: -0.15 | BA46: -0.05 | BB46: -0.05 | BC46: -0.05 | BD46: -0.05 | BE46: -0.05 | BF46: -0.05
AI47: BEZ ZNIŻKI | AJ47: =(IF(AND($BJ$4=1,$AY$14=TRUE),(I$20*$AV$95/1000),IF(AND($BJ$4=2,$AY$14=TRUE),(I$20*$AW$95/1000),0)))+(IF($BJ$16=TRUE,(I$20*$AX$95/1000),0))+(IF($BJ$17=TRUE,(I$20*$AY$95/1000),0))+(IF($BJ$18=TRUE,0.1,0)) -> 0 | AK47: =(IF(AND($BJ$4=1,$AY$14=TRUE),(L$20*$AV$95/1000),IF(AND($BJ$4=2,$AY$14=TRUE),(L$20*$AW$95/1000),0)))+(IF($BJ$16=TRUE,(L$20*$AX$95/1000),0))+(IF($BJ$17=TRUE,(L$20*$AY$95/1000),0))+(IF($BJ$18=TRUE,0.1,0)) -> 0 | AL47: =(IF(AND($BJ$4=1,$AY$14=TRUE),(O$20*$AV$95/1000),IF(AND($BJ$4=2,$AY$14=TRUE),(O$20*$AW$95/1000),0)))+(IF($BJ$16=TRUE,(O$20*$AX$95/1000),0))+(IF($BJ$17=TRUE,(O$20*$AY$95/1000),0))+(IF($BJ$18=TRUE,0.1,0)) -> 0 | AP47: BEZ ZNIŻKI | AQ47: =(IF(AND($BJ$4=1,$AY$3=TRUE),(I$20*$AV$95/1000),IF(AND($BJ$4=2,$AY$3=TRUE),(I$20*$AW$95/1000),0)))+(IF($BJ$5=TRUE,(I$20*$AX$95/1000),0))+(IF($BJ$6=TRUE,(I$20*$AY$95/1000),0))+(IF($BJ$7=TRUE,0.1,0))+(IF($BJ$8=TRUE,0.1,0))+(IF($BJ$9=TRUE,0.1,0))+(IF($BJ$10=TRUE,0.1,0))+(IF($BJ$11=TRUE,0.1,0)) -> 0 | AR47: =(IF(AND($BJ$4=1,$AY$3=TRUE),(L$20*$AV$95/1000),IF(AND($BJ$4=2,$AY$3=TRUE),(L$20*$AW$95/1000),0)))+(IF($BJ$5=TRUE,(L$20*$AX$95/1000),0))+(IF($BJ$6=TRUE,(L$20*$AY$95/1000),0))+(IF($BJ$7=TRUE,0.1,0))+(IF($BJ$8=TRUE,0.1,0))+(IF($BJ$9=TRUE,0.1,0))+(IF($BJ$10=TRUE,0.1,0))+(IF($BJ$11=TRUE,0.1,0)) -> 0 | AS47: =(IF(AND($BJ$4=1,$AY$3=TRUE),(O$20*$AV$95/1000),IF(AND($BJ$4=2,$AY$3=TRUE),(O$20*$AW$95/1000),0)))+(IF($BJ$5=TRUE,(O$20*$AX$95/1000),0))+(IF($BJ$6=TRUE,(O$20*$AY$95/1000),0))+(IF($BJ$7=TRUE,0.1,0))+(IF($BJ$8=TRUE,0.1,0))+(IF($BJ$9=TRUE,0.1,0))+(IF($BJ$10=TRUE,0.1,0))+(IF($BJ$11=TRUE,0.1,0)) -> 0 | AW47: Wariant II | AX47: -0.1 | AY47: -0.05 | AZ47: -0.05 | BA47: 0 | BB47: -0.15 | BC47: -0.05 | BD47: 0.05 | BE47: -0.05 | BF47: -0.1
AH48: WARIANT 2 | AI48: ZE ZNIŻKĄ | AJ48: =((IF(AND($BJ$4=1,$AY$14=TRUE),(I$20*$AV$95/1000),IF(AND($BJ$4=2,$AY$14=TRUE),(I$20*$AW$95/1000),0)))+(IF($BJ$16=TRUE,(I$20*$AX$95/1000),0))+(IF($BJ$17=TRUE,(I$20*$AY$95/1000),0))+(IF($BJ$18=TRUE,0.1,0)))*$AQ$23 -> 0 | AK48: =((IF(AND($BJ$4=1,$AY$14=TRUE),(L$20*$AV$95/1000),IF(AND($BJ$4=2,$AY$14=TRUE),(L$20*$AW$95/1000),0)))+(IF($BJ$16=TRUE,(L$20*$AX$95/1000),0))+(IF($BJ$17=TRUE,(L$20*$AY$95/1000),0))+(IF($BJ$18=TRUE,0.1,0)))*$AQ$23 -> 0 | AL48: =((IF(AND($BJ$4=1,$AY$14=TRUE),(O$20*$AV$95/1000),IF(AND($BJ$4=2,$AY$14=TRUE),(O$20*$AW$95/1000),0)))+(IF($BJ$16=TRUE,(O$20*$AX$95/1000),0))+(IF($BJ$17=TRUE,(O$20*$AY$95/1000),0))+(IF($BJ$18=TRUE,0.1,0)))*$AQ$23 -> 0 | AO48: WARIANT 2 | AP48: ZE ZNIŻKĄ | AQ48: =((IF(AND($BJ$4=1,$AY$3=TRUE),(I$20*$AV$95/1000),IF(AND($BJ$4=2,$AY$3=TRUE),(I$20*$AW$95/1000),0)))+(IF($BJ$5=TRUE,(I$20*$AX$95/1000),0))+(IF($BJ$6=TRUE,(I$20*$AY$95/1000),0))+(IF($BJ$7=TRUE,0.1,0))+(IF($BJ$8=TRUE,0.1,0))+(IF($BJ$9=TRUE,0.1,0))+(IF($BJ$10=TRUE,0.1,0))+(IF($BJ$11=TRUE,0.1,0)))*$AQ$23 -> 0 | AR48: =((IF(AND($BJ$4=1,$AY$3=TRUE),(L$20*$AV$95/1000),IF(AND($BJ$4=2,$AY$3=TRUE),(L$20*$AW$95/1000),0)))+(IF($BJ$5=TRUE,(L$20*$AX$95/1000),0))+(IF($BJ$6=TRUE,(L$20*$AY$95/1000),0))+(IF($BJ$7=TRUE,0.1,0))+(IF($BJ$8=TRUE,0.1,0))+(IF($BJ$9=TRUE,0.1,0))+(IF($BJ$10=TRUE,0.1,0))+(IF($BJ$11=TRUE,0.1,0)))*$AQ$23 -> 0 | AS48: =((IF(AND($BJ$4=1,$AY$3=TRUE),(O$20*$AV$95/1000),IF(AND($BJ$4=2,$AY$3=TRUE),(O$20*$AW$95/1000),0)))+(IF($BJ$5=TRUE,(O$20*$AX$95/1000),0))+(IF($BJ$6=TRUE,(O$20*$AY$95/1000),0))+(IF($BJ$7=TRUE,0.1,0))+(IF($BJ$8=TRUE,0.1,0))+(IF($BJ$9=TRUE,0.1,0))+(IF($BJ$10=TRUE,0.1,0))+(IF($BJ$11=TRUE,0.1,0)))*$AQ$23 -> 0 | AV48: Technikum | AW48: Wariant I | AX48: -0.05 | AY48: 0.25 | AZ48: -0.05 | BA48: -0.1 | BB48: 0 | BC48: -0.05 | BD48: -0.1 | BE48: 0 | BF48: 0.15
B49: Przedstawiciel PZU: | AI49: FINALNY WYNIK | AJ49: =IF(AQ$40=TRUE,AJ48,AJ50) -> 0 | AK49: =IF(AR$40=TRUE,AK48,AK50) -> 0 | AL49: =IF(AS$40=TRUE,AL48,AL50) -> 0 | AP49: FINALNY WYNIK | AQ49: =IF(AQ$40=TRUE,AQ48,AQ50) -> 0 | AR49: =IF(AR$40=TRUE,AR48,AR50) -> 0 | AS49: =IF(AS$40=TRUE,AS48,AS50) -> 0 | AW49: Wariant II | AX49: 0.2 | AY49: 0.2 | AZ49: 0.2 | BA49: 0.3 | BB49: 0.2 | BC49: 0.3 | BD49: 0.3 | BE49: 0.2 | BF49: 0.2
B50: =IF(F3>0,F3,"") ->  | AI50: BEZ ZNIŻKI | AJ50: =(IF(AND($BJ$4=1,$AY$14=TRUE),(I$20*$AV$95/1000),IF(AND($BJ$4=2,$AY$14=TRUE),(I$20*$AW$95/1000),0)))+(IF($BJ$16=TRUE,(I$20*$AX$95/1000),0))+(IF($BJ$17=TRUE,(I$20*$AY$95/1000),0))+(IF($BJ$18=TRUE,0.1,0)) -> 0 | AK50: =(IF(AND($BJ$4=1,$AY$14=TRUE),(L$20*$AV$95/1000),IF(AND($BJ$4=2,$AY$14=TRUE),(L$20*$AW$95/1000),0)))+(IF($BJ$16=TRUE,(L$20*$AX$95/1000),0))+(IF($BJ$17=TRUE,(L$20*$AY$95/1000),0))+(IF($BJ$18=TRUE,0.1,0)) -> 0 | AL50: =(IF(AND($BJ$4=1,$AY$14=TRUE),(O$20*$AV$95/1000),IF(AND($BJ$4=2,$AY$14=TRUE),(O$20*$AW$95/1000),0)))+(IF($BJ$16=TRUE,(O$20*$AX$95/1000),0))+(IF($BJ$17=TRUE,(O$20*$AY$95/1000),0))+(IF($BJ$18=TRUE,0.1,0)) -> 0 | AP50: BEZ ZNIŻKI | AQ50: =(IF(AND($BJ$4=1,$AY$3=TRUE),(I$20*$AV$95/1000),IF(AND($BJ$4=2,$AY$3=TRUE),(I$20*$AW$95/1000),0)))+(IF($BJ$5=TRUE,(I$20*$AX$95/1000),0))+(IF($BJ$6=TRUE,(I$20*$AY$95/1000),0))+(IF($BJ$7=TRUE,0.1,0))+(IF($BJ$8=TRUE,0.1,0))+(IF($BJ$9=TRUE,0.1,0))+(IF($BJ$10=TRUE,0.1,0))+(IF($BJ$11=TRUE,0.1,0)) -> 0 | AR50: =(IF(AND($BJ$4=1,$AY$3=TRUE),(L$20*$AV$95/1000),IF(AND($BJ$4=2,$AY$3=TRUE),(L$20*$AW$95/1000),0)))+(IF($BJ$5=TRUE,(L$20*$AX$95/1000),0))+(IF($BJ$6=TRUE,(L$20*$AY$95/1000),0))+(IF($BJ$7=TRUE,0.1,0))+(IF($BJ$8=TRUE,0.1,0))+(IF($BJ$9=TRUE,0.1,0))+(IF($BJ$10=TRUE,0.1,0))+(IF($BJ$11=TRUE,0.1,0)) -> 0 | AS50: =(IF(AND($BJ$4=1,$AY$3=TRUE),(O$20*$AV$95/1000),IF(AND($BJ$4=2,$AY$3=TRUE),(O$20*$AW$95/1000),0)))+(IF($BJ$5=TRUE,(O$20*$AX$95/1000),0))+(IF($BJ$6=TRUE,(O$20*$AY$95/1000),0))+(IF($BJ$7=TRUE,0.1,0))+(IF($BJ$8=TRUE,0.1,0))+(IF($BJ$9=TRUE,0.1,0))+(IF($BJ$10=TRUE,0.1,0))+(IF($BJ$11=TRUE,0.1,0)) -> 0 | AV50: Zasadnicza szkoła zawodowa | AW50: Wariant I | AX50: -0.05 | AY50: 0.1 | AZ50: 0 | BA50: -0.05 | BB50: 0.05 | BC50: -0.05 | BD50: 0 | BE50: 0.15 | BF50: 0.05
B51: =IF(F4>0,F4,"") ->  | AH51: WARIANT 2 BIS | AI51: ZE ZNIŻKĄ | AJ51: =((IF(AND($BJ$4=1,$AY$14=TRUE),(I$20*$AV$95/1000),IF(AND($BJ$4=2,$AY$14=TRUE),(I$20*$AW$95/1000),0)))+(IF($BJ$16=TRUE,(I$20*$AX$95/1000),0))+(IF($BJ$17=TRUE,(I$20*$AY$95/1000),0))+(IF($BJ$18=TRUE,0.1,0)))*$AQ$23 -> 0 | AK51: =((IF(AND($BJ$4=1,$AY$14=TRUE),(L$20*$AV$95/1000),IF(AND($BJ$4=2,$AY$14=TRUE),(L$20*$AW$95/1000),0)))+(IF($BJ$16=TRUE,(L$20*$AX$95/1000),0))+(IF($BJ$17=TRUE,(L$20*$AY$95/1000),0))+(IF($BJ$18=TRUE,0.1,0)))*$AQ$23 -> 0 | AL51: =((IF(AND($BJ$4=1,$AY$14=TRUE),(O$20*$AV$95/1000),IF(AND($BJ$4=2,$AY$14=TRUE),(O$20*$AW$95/1000),0)))+(IF($BJ$16=TRUE,(O$20*$AX$95/1000),0))+(IF($BJ$17=TRUE,(O$20*$AY$95/1000),0))+(IF($BJ$18=TRUE,0.1,0)))*$AQ$23 -> 0 | AO51: WARIANT 2 BIS | AP51: ZE ZNIŻKĄ | AQ51: =((IF(AND($BJ$4=1,$AY$3=TRUE),(I$20*$AV$95/1000),IF(AND($BJ$4=2,$AY$3=TRUE),(I$20*$AW$95/1000),0)))+(IF($BJ$5=TRUE,(I$20*$AX$95/1000),0))+(IF($BJ$6=TRUE,(I$20*$AY$95/1000),0))+(IF($BJ$7=TRUE,0.1,0))+(IF($BJ$8=TRUE,0.1,0))+(IF($BJ$9=TRUE,0.1,0))+(IF($BJ$10=TRUE,0.1,0))+(IF($BJ$11=TRUE,0.1,0)))*$AQ$23 -> 0 | AR51: =((IF(AND($BJ$4=1,$AY$3=TRUE),(L$20*$AV$95/1000),IF(AND($BJ$4=2,$AY$3=TRUE),(L$20*$AW$95/1000),0)))+(IF($BJ$5=TRUE,(L$20*$AX$95/1000),0))+(IF($BJ$6=TRUE,(L$20*$AY$95/1000),0))+(IF($BJ$7=TRUE,0.1,0))+(IF($BJ$8=TRUE,0.1,0))+(IF($BJ$9=TRUE,0.1,0))+(IF($BJ$10=TRUE,0.1,0))+(IF($BJ$11=TRUE,0.1,0)))*$AQ$23 -> 0 | AS51: =((IF(AND($BJ$4=1,$AY$3=TRUE),(O$20*$AV$95/1000),IF(AND($BJ$4=2,$AY$3=TRUE),(O$20*$AW$95/1000),0)))+(IF($BJ$5=TRUE,(O$20*$AX$95/1000),0))+(IF($BJ$6=TRUE,(O$20*$AY$95/1000),0))+(IF($BJ$7=TRUE,0.1,0))+(IF($BJ$8=TRUE,0.1,0))+(IF($BJ$9=TRUE,0.1,0))+(IF($BJ$10=TRUE,0.1,0))+(IF($BJ$11=TRUE,0.1,0)))*$AQ$23 -> 0 | AW51: Wariant II | AX51: 0.2 | AY51: 0.3 | AZ51: 0.3 | BA51: 0.2 | BB51: 0.2 | BC51: 0.3 | BD51: 0.2 | BE51: 0.2 | BF51: 0.2
B52: =IF(F5>0,F5,"") ->  | AI52: FINALNY WYNIK | AJ52: =IF(AQ$41=TRUE,AJ51,AJ53) -> 0 | AK52: =IF(AR$41=TRUE,AK51,AK53) -> 0 | AL52: =IF(AS$41=TRUE,AL51,AL53) -> 0 | AP52: FINALNY WYNIK | AQ52: =IF(AQ$41=TRUE,AQ51,AQ53) -> 0 | AR52: =IF(AR$41=TRUE,AR51,AR53) -> 0 | AS52: =IF(AS$41=TRUE,AS51,AS53) -> 0 | AV52: Szkoła policealna | AW52: Wariant I | AX52: -0.1 | AY52: 0 | AZ52: -0.1 | BA52: 0.05 | BB52: -0.1 | BC52: -0.1 | BD52: 0.1 | BE52: 0.05 | BF52: -0.05
B53: =IF(F6>0,F6,"") ->  | H53: PODPIS | AI53: BEZ ZNIŻKI | AJ53: =(IF(AND($BJ$4=1,$AY$14=TRUE),(I$20*$AV$95/1000),IF(AND($BJ$4=2,$AY$14=TRUE),(I$20*$AW$95/1000),0)))+(IF($BJ$16=TRUE,(I$20*$AX$95/1000),0))+(IF($BJ$17=TRUE,(I$20*$AY$95/1000),0))+(IF($BJ$18=TRUE,0.1,0)) -> 0 | AK53: =(IF(AND($BJ$4=1,$AY$14=TRUE),(L$20*$AV$95/1000),IF(AND($BJ$4=2,$AY$14=TRUE),(L$20*$AW$95/1000),0)))+(IF($BJ$16=TRUE,(L$20*$AX$95/1000),0))+(IF($BJ$17=TRUE,(L$20*$AY$95/1000),0))+(IF($BJ$18=TRUE,0.1,0)) -> 0 | AL53: =(IF(AND($BJ$4=1,$AY$14=TRUE),(O$20*$AV$95/1000),IF(AND($BJ$4=2,$AY$14=TRUE),(O$20*$AW$95/1000),0)))+(IF($BJ$16=TRUE,(O$20*$AX$95/1000),0))+(IF($BJ$17=TRUE,(O$20*$AY$95/1000),0))+(IF($BJ$18=TRUE,0.1,0)) -> 0 | AP53: BEZ ZNIŻKI | AQ53: =(IF(AND($BJ$4=1,$AY$3=TRUE),(I$20*$AV$95/1000),IF(AND($BJ$4=2,$AY$3=TRUE),(I$20*$AW$95/1000),0)))+(IF($BJ$5=TRUE,(I$20*$AX$95/1000),0))+(IF($BJ$6=TRUE,(I$20*$AY$95/1000),0))+(IF($BJ$7=TRUE,0.1,0))+(IF($BJ$8=TRUE,0.1,0))+(IF($BJ$9=TRUE,0.1,0))+(IF($BJ$10=TRUE,0.1,0))+(IF($BJ$11=TRUE,0.1,0)) -> 0 | AR53: =(IF(AND($BJ$4=1,$AY$3=TRUE),(L$20*$AV$95/1000),IF(AND($BJ$4=2,$AY$3=TRUE),(L$20*$AW$95/1000),0)))+(IF($BJ$5=TRUE,(L$20*$AX$95/1000),0))+(IF($BJ$6=TRUE,(L$20*$AY$95/1000),0))+(IF($BJ$7=TRUE,0.1,0))+(IF($BJ$8=TRUE,0.1,0))+(IF($BJ$9=TRUE,0.1,0))+(IF($BJ$10=TRUE,0.1,0))+(IF($BJ$11=TRUE,0.1,0)) -> 0 | AS53: =(IF(AND($BJ$4=1,$AY$3=TRUE),(O$20*$AV$95/1000),IF(AND($BJ$4=2,$AY$3=TRUE),(O$20*$AW$95/1000),0)))+(IF($BJ$5=TRUE,(O$20*$AX$95/1000),0))+(IF($BJ$6=TRUE,(O$20*$AY$95/1000),0))+(IF($BJ$7=TRUE,0.1,0))+(IF($BJ$8=TRUE,0.1,0))+(IF($BJ$9=TRUE,0.1,0))+(IF($BJ$10=TRUE,0.1,0))+(IF($BJ$11=TRUE,0.1,0)) -> 0 | AW53: Wariant II | AX53: 0 | AY53: 0.15 | AZ53: 0 | BA53: 0 | BB53: 0 | BC53: 0.1 | BD53: 0 | BE53: -0.1 | BF53: -0.1
AV54: Szkoła wyższa | AW54: Wariant I | AX54: 0 | AY54: -0.1 | AZ54: -0.1 | BA54: -0.15 | BB54: -0.1 | BC54: -0.1 | BD54: -0.1 | BE54: -0.1 | BF54: -0.15
AW55: Wariant II | AX55: -0.2 | AY55: -0.2 | AZ55: -0.2 | BA55: -0.1 | BB55: -0.05 | BC55: -0.2 | BD55: -0.1 | BE55: -0.1 | BF55: -0.1
AV56: Inne | AW56: Wariant I | AX56: -0.15 | AY56: -0.15 | AZ56: -0.2 | BA56: -0.2 | BB56: -0.05 | BC56: -0.2 | BD56: -0.2 | BE56: -0.05 | BF56: -0.2
AW57: Wariant II | AX57: -0.15 | AY57: -0.15 | AZ57: -0.15 | BA57: -0.15 | BB57: -0.05 | BC57: -0.15 | BD57: -0.1 | BE57: 0 | BF57: -0.1
AV58: Zespół szkół | AW58: Wariant I | AX58: 0.05 | AY58: 0.2 | AZ58: -0.05 | BA58: 0.2 | BB58: 0.3 | BC58: -0.05 | BD58: -0.15 | BE58: 0.2 | BF58: 0.1
AW59: Wariant II | AX59: 0.4 | AY59: 0.5 | AZ59: 0.4 | BA59: 0.5 | BB59: 0.4 | BC59: 0.3 | BD59: 0.3 | BE59: 0.5 | BF59: 0.4
AV60: Gimnazjum | AW60: Wariant I | AX60: 0.4 | AY60: 0.4 | AZ60: 0.15 | BA60: 0.4 | BB60: 0.25 | BC60: 0.35 | BD60: 0.15 | BE60: 0.4 | BF60: 0.3
AW61: Wariant II | AX61: 0.7 | AY61: 0.7 | AZ61: 0.5 | BA61: 0.7 | BB61: 0.7 | BC61: 0.7 | BD61: 0.7 | BE61: 0.7 | BF61: 0.7
AV62: Centrum kształcenia | AW62: Wariant I | AX62: -0.2 | AY62: -0.1 | AZ62: -0.1 | BA62: -0.15 | BB62: -0.15 | BC62: -0.1 | BD62: -0.1 | BE62: -0.05 | BF62: -0.05
AW63: Wariant II | AX63: 0.05 | AY63: -0.2 | AZ63: -0.1 | BA63: -0.05 | BB63: -0.05 | BC63: -0.1 | BD63: -0.15 | BE63: -0.15 | BF63: -0.1
AV64: Dom dziecka | AW64: Wariant I | AX64: -0.25 | AY64: -0.25 | AZ64: -0.25 | BA64: -0.25 | BB64: -0.25 | BC64: -0.25 | BD64: -0.25 | BE64: -0.25 | BF64: -0.25
AW65: Wariant II | AX65: -0.25 | AY65: -0.15 | AZ65: -0.25 | BA65: -0.15 | BB65: -0.25 | BC65: -0.25 | BD65: -0.15 | BE65: -0.25 | BF65: -0.25
AV68: Przykład wyliczenia składki za świadczenia podstawowedla szkoły podstawowej w Oddziale w Warszawie o wskaźniku szkodowości > 40%
AV69: suma ubezpieczenia | AW69: 10000
AW70: wariant I | AX70: wariant II | AY70: wariant II Bis*
AV71: składka za 1 osobę za świadczenia podstawowe | AW71: =AW5*AW69/1000*0.9 -> 42.3 | AX71: =AX5*AW69/1000*1.2 -> 48 | AY71: =AX71*0.7 -> 33.6
AV72: * składka za wariant II BIS = składka za wariant II - zniżka 30%
AV74: Przykład wyliczenia składki za świadczenia podstawowe dla szkoły podstawowej w Oddziale w Warszawie o wskaźniku szkodowości ≤ 40%
AV75: suma ubezpieczenia | AW75: 10000
AW76: wariant I | AX76: wariant II | AY76: wariant II Bis*
AV77: składka za 1 osobę za świadczenia podstawowe | AW77: =AW5*AW75/1000*0.8 -> 37.6 | AX77: =AX5*AW75/1000 -> 40 | AY77: =AX77*0.7 -> 28
AV78: * składka za wariant II BIS = składka za wariant II - zniżka 30%
AV80: Przykład wyliczenia składki za swiadczenia podstawowe dla nowej szkoły podstawowej w Oddziale w Warszawie
AV81: suma ubezpieczenia | AW81: 10000
AW82: wariant I | AX82: wariant II | AY82: wariant II Bis*
AV83: składka za 1 osobę za świadczenia podstawowe | AW83: =AW5*AW81/1000*0.9 -> 42.3 | AX83: =AX5*AW81/1000 -> 40 | AY83: =AX83*0.7 -> 28
AV84: * składka za wariant II BIS = składka za wariant II - zniżka 30%
AV86: Zniżki/zwyżki z tabeli stosuje się wyłącznie do taryfowych stawek wyjściowych za świadczenia podstawowe.
AV87: Zniżek/zwyżek z tabeli nie stosuje się do taryfowych stawek wyjściowych za świadczenia dodatkowe
AV89: STAWKI TARYFOWE DLA ŚWIADCZEŃ DODATKOWYCH
AV91: niezależnie od rodzaju placówki i wariantu ubezpieczenia
AV93: Koszty leczenia | AX93: Ryczałt za okres niezdolności | AY93: Dieta szpitalna
AV94: do 20% | AW94: do 30%
AV95: 0.15 | AW95: 0.2 | AX95: 0.45 | AY95: 0.75
AV97: składkę roczną za ubezpieczenie 1 osoby oblicza się mnożąc stawkę taryfową przez 1/1000 sumy ubezpieczenia
AV99: Przykład wyliczenia składki za świadczenia dodatkowe
AV100: suma ubezpieczenia dla świadczeń podstawowych | AW100: 10000
AW101: składka
AV102: Koszty leczenia do 20% | AW102: =AV95*AW100/1000 -> 1.5
AV103: Koszty leczenia do 30% | AW103: =AW95*AW100/1000 -> 2
AV104: Ryczałt za okres niezdolności | AW104: =AX95*AW100/1000 -> 4.5
AV105: Dieta szpitalna | AW105: =AY95*AW100/1000 -> 7.5
AV107: Jednorazowe świadczenie w przypadku zgonu ubezpieczonego spowodowane nowotworem złośliwym | AW107: Jednorazowe świadczenie w przypadku zgonu dziecka, ucznia, studenta w wieku do 25 lat z powodu wrodoznej wady serca | AX107: Zwrot czesnego za każdy 1.000 zł | AY107: Jednorazowe świadczenie w przypadku śmierci przedstawiciela ustawowego | AZ107: Jednorazowe świadczenie w przypadku amputacji kończyny spowodowanej nowotworem złośliwym u dziecka, ucznia, studenta w wieku do 25 lat
AV108: 0.1 | AW108: 0.1 | AX108: 0.1 | AY108: 0.1 | AZ108: 0.1
AV110: składka roczna - niezależna od wysokości sumy ubezpieczenia
AV112: Przykład wyliczenia składki za świadczenia dodatkowe
AV114: Jednorazowe świadczenie w przypadku zgonu ubezpieczonego spowodowane nowotworem złośliwym | AW114: 0.1
AV115: Jednorazowe świadczenie w przypadku zgonu dziecka, ucznia, studenta w wieku do 25 lat z powodu wrodoznej wady serca | AW115: 0.1
AV116: Zwrot czesnego za każdy 1.000 zł | AW116: 0.1
AV117: Jednorazowe świadczenie w przypadku śmierci przedstawiciela ustawowego | AW117: 0.1
AV118: Jednorazowe świadczenie w przypadku amputacji kończyny spowodowanej nowotworem złośliwym u dziecka, ucznia, studenta w wieku do 25 lat | AW118: 0.1
AV120: Składka razem = składka za świadczenia podstawowe + składka za świadczenia dodatkowe
AV122: Przykład wyliczenia składki za świadczenia podstawowe i świadczenia dodatkowe (wszystkie w tym koszty leczenia do 30%) dla szkoły podstawowej w Oddziale w Warszawie o wskaźniku szkodowości > 40%
AV123: suma ubezpieczenia | AW123: 10000
AW124: wariant I | AX124: wariant II | AY124: wariant II Bis*
AV125: składka za 1 osobę za świadczenia podstawowe i świadczenia dodatkowe | AW125: =AW71+$C$94+$D$94+$E$94+$C$101+$C$102+$C$103+$C$104+$B$107+$C$107+$D$107+$E$107+$F$107 -> 42.3 | AX125: =AX71+$C$94+$D$94+$E$94+$C$101+$C$102+$C$103+$C$104+$B$107+$C$107+$D$107+$E$107+$F$107 -> 48 | AY125: =AY71+$C$94+$D$94+$E$94+$C$101+$C$102+$C$103+$C$104+$B$107+$C$107+$D$107+$E$107+$F$107 -> 33.6
AV128: Przykład wyliczenia składki za świadczenia podstawowe dla szkoły podstawowej w Oddziale w Warszawie o wskaźniku szkodowości ≤ 40%
AV129: suma ubezpieczenia | AW129: 10000
AW130: wariant I | AX130: wariant II | AY130: wariant II Bis*
AV131: składka za 1 osobę za świadczenia podstawowe i świadczenia dodatkowe | AW131: =AW77+$C$94+$D$94+$E$94+$C$101+$C$102+$C$103+$C$104+$B$107+$C$107+$D$107+$E$107+$F$107 -> 37.6 | AX131: =AX77+$C$94+$D$94+$E$94+$C$101+$C$102+$C$103+$C$104+$B$107+$C$107+$D$107+$E$107+$F$107 -> 40 | AY131: =AY77+$C$94+$D$94+$E$94+$C$101+$C$102+$C$103+$C$104+$B$107+$C$107+$D$107+$E$107+$F$107 -> 28
AV134: Przykład wyliczenia składki za swiadczenia podstawowe dla nowej szkoły podstawowej w Oddziale w Warszawie
AV135: suma ubezpieczenia | AW135: 10000
AW136: wariant I | AX136: wariant II | AY136: wariant II Bis*
AV137: składka za 1 osobę za świadczenia podstawowe i świadczenia dodatkowe | AW137: =AW83+$C$94+$D$94+$E$94+$C$101+$C$102+$C$103+$C$104+$B$107+$C$107+$D$107+$E$107+$F$107 -> 42.3 | AX137: =AX83+$C$94+$D$94+$E$94+$C$101+$C$102+$C$103+$C$104+$B$107+$C$107+$D$107+$E$107+$F$107 -> 40 | AY137: =AY83+$C$94+$D$94+$E$94+$C$101+$C$102+$C$103+$C$104+$B$107+$C$107+$D$107+$E$107+$F$107 -> 28
AV139: ZNIŻKA INCYDENTALNA
AV141: zniżkę incydentalną stosuje się na samym końcu
AV143: Przykład wyliczenia składki za świadczenia podstawowe i świadczenia dodatkowe (wszystkie w tym koszty leczenia do 30%) dla szkoły podstawowej w Oddziale w Warszawie o wskaźniku szkodowości > 40% z zastosowaniem zniżki incydentalnej w wysokości 25%
AV144: suma ubezpieczenia | AW144: 10000
AW145: wariant I | AX145: wariant II | AY145: wariant II Bis*
AV146: składka za 1 osobę za świadczenia podstawowe i świadczenia dodatkowe | AW146: =(AW71+$C$94+$D$94+$E$94+$C$101+$C$102+$C$103+$C$104+$B$107+$C$107+$D$107+$E$107+$F$107)*0.75 -> 31.725 | AX146: =(AX71+$C$94+$D$94+$E$94+$C$101+$C$102+$C$103+$C$104+$B$107+$C$107+$D$107+$E$107+$F$107)*0.75 -> 36 | AY146: =(AY71+$C$94+$D$94+$E$94+$C$101+$C$102+$C$103+$C$104+$B$107+$C$107+$D$107+$E$107+$F$107)*0.75 -> 25.2
AV149: Przykład wyliczenia składki za świadczenia podstawowe dla szkoły podstawowej w Oddziale w Warszawie o wskaźniku szkodowości ≤ 40% z zastosowaniem zniżki incydentalnej w wysokości 25%
AV150: suma ubezpieczenia | AW150: 10000
AW151: wariant I | AX151: wariant II | AY151: wariant II Bis*
AV152: składka za 1 osobę za świadczenia podstawowe i świadczenia dodatkowe | AW152: =(AW77+$C$94+$D$94+$E$94+$C$101+$C$102+$C$103+$C$104+$B$107+$C$107+$D$107+$E$107+$F$107)*0.75 -> 28.2 | AX152: =(AX77+$C$94+$D$94+$E$94+$C$101+$C$102+$C$103+$C$104+$B$107+$C$107+$D$107+$E$107+$F$107)*0.75 -> 30 | AY152: =(AY77+$C$94+$D$94+$E$94+$C$101+$C$102+$C$103+$C$104+$B$107+$C$107+$D$107+$E$107+$F$107)*0.75 -> 21
AV155: Przykład wyliczenia składki za swiadczenia podstawowe dla nowej szkoły podstawowej w Oddziale w Warszawie z zastosowaniem zniżki incydentalnej w wysokości 25%
AV156: suma ubezpieczenia | AW156: 10000
AW157: wariant I | AX157: wariant II | AY157: wariant II Bis*
AV158: składka za 1 osobę za świadczenia podstawowe i świadczenia dodatkowe | AW158: =(AW83+$C$94+$D$94+$E$94+$C$101+$C$102+$C$103+$C$104+$B$107+$C$107+$D$107+$E$107+$F$107)*0.75 -> 31.725 | AX158: =(AX83+$C$94+$D$94+$E$94+$C$101+$C$102+$C$103+$C$104+$B$107+$C$107+$D$107+$E$107+$F$107)*0.75 -> 30 | AY158: =(AY83+$C$94+$D$94+$E$94+$C$101+$C$102+$C$103+$C$104+$B$107+$C$107+$D$107+$E$107+$F$107)*0.75 -> 21

Sheet Wariant_I_II
AJ1: 1 | AZ1: Świadczenia dodatkowe dla wariantu I, II, II BIS: DLA DZIECI | CE1: agent | CF1: email | CG1: nr telefonu
B2: Doradca: | AV2: STAWKI TARYFOWE DLA ŚWIADCZEŃ PODSTAWOWYCH | AY2: =IF(AND(AY3=TRUE,AY4=TRUE),TRUE,FALSE) -> FALSE | CE2: Broniszewski Sławomir | CF2: slbroniszewski@agentpzu.pl | CG2: 603245422 | CH2: ; | CJ2: =CG2&CH2&CF2 -> 603245422; slbroniszewski@agentpzu.pl
B3: Imię i nazwisko | C3: Imię i nazwisko | AZ3: zwrot kosztów leczenia do wysokości 20 % sumy ubezpieczenia | BK3: =IF($G$9=BL3,TRUE,FALSE) -> FALSE | BL3: Centrum kształcenia | BM3: Gdańsk | BO3: ≤40% | BP3: 0 | CE3: Derkacz Jerzy | CF3: jderkacz@agentpzu.pl | CG3: 607576620 | CH3: ; | CJ3: =CG3&CH3&CF3 -> 607576620; jderkacz@agentpzu.pl
B4: Telefon | C4: Telefon | AV4: rodzaj placówki | AW4: wariant I | AX4: wariant II | AY4: =IF(BJ4>0,TRUE,FALSE) -> FALSE | AZ4: zwrot kosztów leczenia do wysokości 30 % sumy ubezpieczenia | BK4: =IF($G$9=BL4,TRUE,FALSE) -> FALSE | BL4: Dom dziecka | BM4: Katowice | BO4: nowa = pozyskana w 2015r. | BP4: -0.01 | CE4: Golas Marcin | CF4: mgolas@agentpzu.pl | CG4: 881298939 | CH4: ; | CJ4: 881298939; mgolas@agentpzu.pl
B5: Oddział Region. | C5: Oddział | AV5: żłobek | AW5: 4.7 | AX5: 4 | AY5: =BJ5 -> 0 | AZ5: ryczałt za okres czasowej, całkowitej niezdolności do nauki lub pracy trwający dłużej niż 14 dni - 0,06% sumy ubezpieczenia za każdy dzień (do 180 dni łącznie ze wszystkich zdarzeń objętych umową) | BK5: FALSE | BL5: Gimnazjum | BM5: Kraków | BO5: wznowiona = pozyskana w 2014r. | BP5: -0.02 | CE5: Kalina Elżbieta | CF5: ekalina@agentpzu.pl | CG5: 601987169 | CH5: ; | CJ5: 601987169; ekalina@agentpzu.pl
B6: Adres | C6: Adres | AV6: przedszkole | AY6: =BJ6 -> 0 | AZ6: dieta szpitalna, za każdy dzień pobytu w szpitalu 0,2% sumy ubezpieczenia (płatna przez maksymalny okres 90 dni z tytułu jednego nieszczęśliwego wypadku lub zdarzenia objętego umową) | BK6: FALSE | BL6: Inne | BM6: Lublin | BO6: >40% / NU w PZU (3 lata) | BP6: -0.03 | CE6: Kędzia Jerzy | CF6: jkedzia@agentpzu.pl | CG6: 607082785 | CH6: ; | CJ6: 607082785; jkedzia@agentpzu.pl
AV7: szkoła podstawowa | AY7: 0 | AZ7: Jednorazowe świadczenie w przypadku zgonu ubezpieczonego spowodowane nowotworem złośliwym | BK7: FALSE | BL7: Liceum ogólnokształcące | BM7: Łódź | BP7: -0.04 | CE7: Kołodyński Adam | CF7: adakolodynski@agentpzu.pl | CG7: 603169150 | CH7: ; | CJ7: 603169150; adakolodynski@agentpzu.pl
G8: WYBIERZ/WYPEŁNIJ DANE | AP8: TABELA GŁÓWNA !!! | AV8: gimnazjum | AY8: 0 | AZ8: Jednorazowe świadczenie w przypadku zgonu dziecka, ucznia, studenta w wieku do 25 lat z powodu wrodoznej wady serca | BK8: FALSE | BL8: Liceum zawodowe | BM8: Poznań | BP8: -0.05 | CE8: Kwiatkowski Dariusz | CF8: dakwiatkowski@agentpzu.pl | CG8: 505632290 | CH8: ; | CJ8: 505632290; dakwiatkowski@agentpzu.pl
B9: Placówka: | L9: WYBIERZ Z LISTY | AQ9: w I | AR9: w II | AV9: liceum ogólnokształcące | BK9: FALSE | BL9: Szkoła podstawowa | BM9: Szczecin | BP9: -0.06 | CE9: Kwikert Bożena | CF9: bkwikert@agentpzu.pl | CG9: 605148579 | CH9: ; | CJ9: 605148579; bkwikert@agentpzu.pl
B10: Oddział Regionalny: | L10: WYBIERZ Z LISTY | O10: =IF(AND(G11="≤40%",SUM(BI39:BQ39)=1),"SPRAWDŹ MOŻLIWOŚĆ PRZEDSTAWIENIA KLIENTOWI DODATKOWEJ ZNIŻKI", "") ->  | AP10: Taryfa | AQ10: =IF($G$9="Szkoła wyższa",AW18,IF($G$9="Szkoła policealna",AW18,IF($G$9="Szkoła sportowa",AW17,AW5))) -> 4.7 | AR10: =IF($G$9="Szkoła wyższa",AX18,IF($G$9="Szkoła policealna",AX18,IF($G$9="Szkoła sportowa",AX17,AX5))) -> 4 | AV10: liceum zawodowe | AY10: 0 | AZ10: Jednorazowe świadczenie w przypadku śmierci przedstawiciela ustawowego | BK10: FALSE | BL10: Szkoła policealna | BM10: Warszawa | BP10: -0.07 | CE10: Maciejewski Piotr | CF10: pmaciejewski@agentpzu.pl | CG10: 601176465 | CH10: ; | CJ10: 601176465; pmaciejewski@agentpzu.pl
B11: Szkodowość placówki: | L11: WYBIERZ Z LISTY | AP11: wariant I | AQ11: =IF(G$10="Gdańsk",BI37)+IF(G$10="Katowice",BJ37)+IF(G$10="Kraków",BK37)+IF(G$10="Lublin",BL37)+IF(G$10="Łódź",BM37)+IF(G$10="Poznań",BN37)+IF(G$10="Warszawa",BO37)+IF(G$10="Wrocław",BP37)+IF(G$10="Szczecin",BQ37) -> 0 | AV11: technikum | AY11: 0 | AZ11: Jednorazowe świadczenie w przypadku amputacji kończyny spowodowanej nowotworem złośliwym u dziecka, ucznia, studenta w wieku do 25 lat | BK11: FALSE | BL11: Szkoła sportowa | BM11: Wrocław | BP11: -0.08 | CE11: Majewska Magdalena | CF11: magdamajewska@agentpzu.pl | CG11: 790776238 | CH11: ; | CJ11: 790776238; magdamajewska@agentpzu.pl
B12: Podwyższona zniżka z tabeli (do -10%): | L12: WYBIERZ Z LISTY | AH12: NOWE | AI12: =IF(G11="nowa = pozyskana w 2015r.",TRUE,FALSE) -> FALSE | AP12: wariant II | AQ12: =IF(G$10="Gdańsk",BI38)+IF(G$10="Katowice",BJ38)+IF(G$10="Kraków",BK38)+IF(G$10="Lublin",BL38)+IF(G$10="Łódź",BM38)+IF(G$10="Poznań",BN38)+IF(G$10="Warszawa",BO38)+IF(G$10="Wrocław",BP38)+IF(G$10="Szczecin",BQ38) -> 0 | AV12: zasadnicza szkoła zawodowa | BK12: FALSE | BL12: Technikum | BP12: -0.09 | CE12: Nitzke Zbigniew | CF12: znitzke@agentpzu.pl | CG12: 601643921 | CH12: ; | CJ12: 601643921; znitzke@agentpzu.pl
B13: Zniżka incydentalna (format: -x%): | L13: WYPEŁNIJ RĘCZNIE | AH13: WZNOWIONE | AI13: =IF(AI12=TRUE,FALSE,TRUE) -> TRUE | AP13: wariant II ograniczony (wariant II - 30%) | AQ13: 0.7 | AV13: zespół szkół | AY13: =IF(AND(AY14=TRUE,AY4=TRUE),TRUE,FALSE) -> FALSE | AZ13: Świadczenia dodatkowe dla wariantu I, II, II BIS: DLA PERSONELU | BK13: FALSE | BL13: Zasadnicza szkoła zawodowa | BP13: -0.1 | CE13: Nowicka Mieczysława | CF13: minowicka@agentpzu.pl | CG13: 607182438 | CH13: ; | CJ13: 607182438; minowicka@agentpzu.pl
AP14: zniżka incydentalna | AQ14: =1+$G13 -> 1 | AR14: =1+$G13 -> 1 | AS14: =1+$G13 -> 1 | AV14: centrum kształcenia | AZ14: zwrot kosztów leczenia do wysokości 20 % sumy ubezpieczenia | BK14: FALSE | BL14: Zespół szkół | CE14: Pędziwiatr Mirosław | CF14: mipedziwiatr@agentpzu.pl | CG14: 601709687 | CH14: ; | CJ14: 601709687; mipedziwiatr@agentpzu.pl
AI15: składka podstawowa | AJ15: suma 1 | AK15: suma 2 | AL15: suma 3 | AV15: dom dziecka | AZ15: zwrot kosztów leczenia do wysokości 30 % sumy ubezpieczenia | BK15: FALSE | BL15: Żłobek, przedszkole | CE15: Piątek Lech | CF15: lpiatek@agentpzu.pl | CG15: 603820065 | CH15: ; | CJ15: 603820065; lpiatek@agentpzu.pl
AH16: wariant 1 | AI16: ze zniżką | AJ16: =IF(AND(AD25=TRUE,$AM$31=TRUE),AJ31,IF(AND(AD25=TRUE,$AT$27=TRUE),AQ27,"")) ->  | AK16: =IF(AND(AE25=TRUE,$AM$31=TRUE),AK31,IF(AND(AE25=TRUE,$AT$27=TRUE),AR27,"")) ->  | AL16: =IF(AND(AF25=TRUE,$AM$31=TRUE),AL31,IF(AND(AF25=TRUE,$AT$27=TRUE),AS27,"")) ->  | AP16: SZKODOWOŚĆ | AV16: inne | AY16: =BJ16 -> 0 | AZ16: ryczałt za okres czasowej, całkowitej niezdolności do nauki lub pracy trwający dłużej niż 14 dni - 0,06% sumy ubezpieczenia za każdy dzień (do 180 dni łącznie ze wszystkich zdarzeń objętych umową) | CE16: Pietrzak Przemysław | CF16: ppietrzak@agentpzu.pl | CG16: 603786176 | CH16: ; | CJ16: 603786176; ppietrzak@agentpzu.pl
AI17: bez zniżki | AJ17: =IF(AND(AD25=TRUE,$AM$31=TRUE),AJ32,IF(AND(AD25=TRUE,$AT$27=TRUE),AQ29,"")) ->  | AK17: =IF(AND(AE25=TRUE,$AM$31=TRUE),AK32,IF(AND(AE25=TRUE,$AT$27=TRUE),AR29,"")) ->  | AL17: =IF(AND(AF25=TRUE,$AM$31=TRUE),AL32,IF(AND(AF25=TRUE,$AT$27=TRUE),AS29,"")) ->  | AQ17: ≤40% | AR17: NOWA | AS17: >40% | AT17: WZNOWIONA | AV17: szkoły sptotowe wszystkich szczebli | AW17: 9.5 | AX17: 8 | AY17: =BJ17 -> 0 | AZ17: dieta szpitalna, za każdy dzień pobytu w szpitalu 0,2% sumy ubezpieczenia (płatna przez maksymalny okres 90 dni z tytułu jednego nieszczęśliwego wypadku lub zdarzenia objętego umową) | CE17: Podjuk Bronisław | CF17: bpodjuk@agentpzu.pl | CG17: 601683712 | CH17: ; | CJ17: 601683712; bpodjuk@agentpzu.pl
AH18: wariant 2 | AI18: ze zniżką | AJ18: =IF(AND(AD26=TRUE,$AM$33=TRUE),AJ33,IF(AND(AD26=TRUE,$AT$30=TRUE),AQ30,"")) ->  | AK18: =IF(AND(AE26=TRUE,$AM$33=TRUE),AK33,IF(AND(AE26=TRUE,$AT$30=TRUE),AR30,"")) ->  | AL18: =IF(AND(AF26=TRUE,$AM$33=TRUE),AL33,IF(AND(AF26=TRUE,$AT$30=TRUE),AS30,"")) ->  | AV18: szkoła policealna | AW18: 3 | AX18: 2.5 | AY18: =BJ18 -> 0 | AZ18: Jednorazowe świadczenie w przypadku zgonu ubezpieczonego spowodowane nowotworem złośliwym | CE18: Rosa Ilona | CF18: irosa@agentpzu.pl | CG18: 697098159 | CH18: ; | CJ18: 697098159; irosa@agentpzu.pl
AI19: bez zniżki | AJ19: =IF(AND(AD26=TRUE,$AM$33=TRUE),AJ34,IF(AND(AD26=TRUE,$AT$30=TRUE),AQ32,"")) ->  | AL19: =IF(AND(AF26=TRUE,$AM$33=TRUE),AL34,IF(AND(AF26=TRUE,$AT$30=TRUE),AS32,"")) ->  | AP19: Taryfa | AQ19: =AQ10 -> 4.7 | AR19: =AQ10 -> 4.7 | AS19: =AQ10 -> 4.7 | AT19: =AQ10 -> 4.7 | AV19: szkoła wyższa | AZ19: Jednorazowe świadczenie w przypadku zgonu dziecka, ucznia, studenta w wieku do 25 lat z powodu wrodoznej wady serca | CE19: Ryżak Agata | CF19: aryzak@agentpzu.pl | CG19: 667960950 | CH19: ; | CJ19: 667960950; aryzak@agentpzu.pl
I20: 8000 | L20: 9000 | O20: 10000 | AH20: wariant 2 bis | AI20: ze zniżką | AJ20: =IF(AND(AD27=TRUE,$AM$33=TRUE),AJ35,IF(AND(AD27=TRUE,$AT$30=TRUE),AQ33,"")) ->  | AP20: wariant I | AQ20: =IF(SUM(BI37:BQ37)>1,1,SUM(BI37:BQ37)+G$12) -> 0 | AR20: =IF(SUM(BI37:BQ37)>1,1,SUM(BI37:BQ37)) -> 0 | AS20: =AQ11 -> 0 | AT20: =IF(SUM(BI37:BQ37)>1,1.1,SUM(BI37:BQ37)) -> 0 | CE20: Sawczyn Benedykt | CF20: bsawczyn@agentpzu.pl | CG20: 601654508 | CH20: ; | CJ20: 601654508; bsawczyn@agentpzu.pl
AI21: bez zniżki | AJ21: =IF(AND(AD27=TRUE,$AM$33=TRUE),AJ36,IF(AND(AD27=TRUE,$AT$30=TRUE),AQ35,"")) ->  | AK21: =IF(AND(AE27=TRUE,$AM$33=TRUE),AK36,IF(AND(AE27=TRUE,$AT$30=TRUE),AR35,"")) ->  | AL21: =IF(AND(AF27=TRUE,$AM$33=TRUE),AL36,IF(AND(AF27=TRUE,$AT$30=TRUE),AS35,"")) ->  | AP21: wariant II | AQ21: =IF(SUM(BI38:BQ38)>1,1,SUM(BI38:BQ38)+G$12) -> 0 | AR21: =IF(SUM(BI38:BQ38)>1,1,SUM(BI38:BQ38)) -> 0 | AS21: =AQ12 -> 0 | AT21: =IF(SUM(BI38:BQ38)>1,1.1,SUM(BI38:BQ38)) -> 0 | AZ21: Jednorazowe świadczenie w przypadku śmierci przedstawiciela ustawowego | CE21: Słupianek Leszek | CF21: lslupianek@agentpzu.pl | CG21: 609397853 | CH21: ; | CJ21: 609397853; lslupianek@agentpzu.pl
C22: =CELL("format",I25) -> ,1 | D22: =IF(C22=",0",1,2) -> 2 | G22: =D22 -> 2 | AP22: wariant II ograniczony (wariant II - 30%) | AQ22: 0.7 | AR22: 0.7 | AS22: 0.7 | AT22: 0.7 | AZ22: Jednorazowe świadczenie w przypadku amputacji kończyny spowodowanej nowotworem złośliwym u dziecka, ucznia, studenta w wieku do 25 lat | CE22: Walczak Stanisław | CF22: stwalczak@agentpzu.pl | CG22: 693112343 | CH22: ; | CJ22: 693112343; stwalczak@agentpzu.pl
F23: Świadczenia podstawowe | I23: =AQ28 -> 0 | J23: =I23 -> 0 | L23: =AR28 -> 0 | M23: =L23 -> 0 | O23: =AS28 -> 0 | P23: =O23 -> 0 | R23: Informacja nt. wysokości zniżki/zwyżki z tabeli | AP23: zniżka incydentalna | AQ23: =AQ14 -> 1 | AR23: =AQ14 -> 1 | AS23: =AQ14 -> 1 | AT23: =AQ14 -> 1 | AV23: składkę roczną za ubezpieczenie 1 osoby oblicza się mnożąc stawkę taryfową przez 1/1000 sumy ubezpieczenia | CE23: Wardęga Andrzej | CF23: awardęga@agentpzu.pl | CG23: 601958772 | CH23: ; | CJ23: 601958772; awardęga@agentpzu.pl
F24: Świadczenia dodatkowe | I24: =AQ46 -> 0 | J24: =AJ46 -> 0 | L24: =AR46 -> 0 | M24: =AK46 -> 0 | O24: =AS46 -> 0 | P24: =AL46 -> 0 | R24: =AK27 -> 0 | AD24: WYBÓR WARIANTU | CE24: Więcław Stanisław | CF24: swieclaw@agentpzu.pl | CG24: 608102452 | CH24: ; | CJ24: 608102452; swieclaw@agentpzu.pl
F25: Razem wysokość składki | I25: =I23+I24 -> 0 | J25: =J23+J24 -> 0 | L25: =L23+L24 -> 0 | M25: =M23+M24 -> 0 | O25: =O23+O24 -> 0 | P25: =P23+P24 -> 0 | R25: Korekta wysokości zniżki/zwyżki z tabeli | AD25: =IF(AE23=1,TRUE,FALSE) -> FALSE | AE25: =IF(AE23=2,TRUE,FALSE) -> FALSE | AF25: =IF(AE23=3,TRUE,FALSE) -> FALSE | AP25: SKŁADKA PODSTAWOWA | AQ25: suma 1 | AR25: suma 2 | AS25: suma 3 | AV25: na składkę wyjściową nakłada się zniżki/zwyżki z poniższej tabeli przy czym zniżki stosuje się zawsze a zwyżki tylko wtedy kiedy wskaźnik szkodowości dla placówki jest wyższy niż 40% lub placówka nie była ubezpieczona w każdym z 3 poprzednich lat | CE25: Woźny Dorota | CF25: dowozny@agentpzu.pl | CG25: 600906655 | CH25: ; | CJ25: 600906655; dowozny@agentpzu.pl
AD26: =IF(AE23=4,TRUE,FALSE) -> FALSE | AE26: =IF(AE23=5,TRUE,FALSE) -> FALSE | AF26: =IF(AE23=6,TRUE,FALSE) -> FALSE | AJ26: Wysokość zniżki z tabeli | AP26: zniżka incydentalna | CE26: Zadka Małgorzata | CF26: mzadka@agentpzu.pl | CG26: 607573755 | CH26: ; | CJ26: 607573755; mzadka@agentpzu.pl
AD27: =IF(AE23=7,TRUE,FALSE) -> FALSE | AE27: =IF(AE23=8,TRUE,FALSE) -> FALSE | AF27: =IF(AE23=9,TRUE,FALSE) -> FALSE | AJ27: wariant I | AK27: =IF($G$11="≤40%",$AQ$20-1,IF($G$11="nowa = pozyskana w 2015r.",$AR$20-1,IF($G$11=">40% / nu w PZU (3 lata)",$AS$20-1,IF($G$11="wznowiona = pozyskana w 2014r.",$AT$20-1,0)))) -> 0 | AO27: WARIANT 1 | AP27: ZE ZNIŻKĄ | AQ27: =IF($G$11="≤40%",$I$20*$AQ$19*$AQ$20/1000*$AQ$23,IF($G$11="nowa = pozyskana w 2015r.",$I$20*$AQ$19*$AR$20/1000*$AR$23,IF($G$11=">40% / nu w PZU (3 lata)",$I$20*$AQ$19*$AS$20/1000*$AS$23,IF($G$11="wznowiona = pozyskana w 2014r.",$I$20*$AT$19*$AT$20/1000*$AT$23,0)))) -> 0 | AR27: =IF($G$11="≤40%",$L$20*$AQ$19*$AQ$20/1000*$AQ$23,IF($G$11="nowa = pozyskana w 2015r.",$L$20*$AQ$19*$AR$20/1000*$AR$23,IF($G$11=">40% / nu w PZU (3 lata)",$L$20*$AQ$19*$AS$20/1000*$AS$23,IF($G$11="wznowiona = pozyskana w 2014r.",$L$20*$AT$19*$AT$20/1000*$AT$23,0)))) -> 0 | AS27: =IF($G$11="≤40%",$O$20*$AQ$19*$AQ$20/1000*$AQ$23,IF($G$11="nowa = pozyskana w 2015r.",$O$20*$AQ$19*$AR$20/1000*$AR$23,IF($G$11=">40% / nu w PZU (3 lata)",$O$20*$AQ$19*$AS$20/1000*$AS$23,IF($G$11="wznowiona = pozyskana w 2014r.",$O$20*$AT$19*$AT$20/1000*$AT$23,0)))) -> 0 | AT27: =IF(AM31=TRUE,FALSE,TRUE) -> TRUE | AV27: wskaźnik szkodowości = | AW27: odszkodowania z polis z lat 2011-2013 | AZ27: > 40% | CE27: Żuberek Marek | CF27: mazuberek@agentpzu.pl | CG27: 604337747 | CH27: ; | CJ27: 604337747; mazuberek@agentpzu.pl
F28: Świadczenia podstawowe | I28: =AQ31 -> 0 | J28: =I28 -> 0 | L28: =AR31 -> 0 | M28: =L28 -> 0 | O28: =AS31 -> 0 | P28: =O28 -> 0 | R28: Informacja nt. wysokości zniżki/zwyżki z tabeli | AD28: =I20 -> 8000 | AE28: =L20 -> 9000 | AF28: =O20 -> 10000 | AJ28: wariant II | AK28: =IF($G$11="≤40%",$AQ$21-1,IF($G$11="nowa = pozyskana w 2015r.",$AR$21-1,IF($G$11=">40% / nu w PZU (3 lata)",$AS$21-1,IF($G$11="wznowiona = pozyskana w 2014r.",$AT$21-1,0)))) -> 0 | AP28: FINALNY WYNIK | AQ28: =IF(AND(AQ$39=TRUE,$AM31=TRUE),AJ31,IF(AND(AQ$39=FALSE,$AM31=TRUE),AJ32,IF(AND(AQ$39=FALSE,$AM31=FALSE),AQ29,IF(AND(AQ$39=TRUE,$AM31=FALSE),AQ27,0)))) -> 0 | AR28: =IF(AND(AR$39=TRUE,$AM31=TRUE),AK31,IF(AND(AR$39=FALSE,$AM31=TRUE),AK32,IF(AND(AR$39=FALSE,$AM31=FALSE),AR29,IF(AND(AR$39=TRUE,$AM31=FALSE),AR27,0)))) -> 0 | AS28: =IF(AND(AS$39=TRUE,$AM31=TRUE),AL31,IF(AND(AS$39=FALSE,$AM31=TRUE),AL32,IF(AND(AS$39=FALSE,$AM31=FALSE),AS29,IF(AND(AS$39=TRUE,$AM31=FALSE),AS27,0)))) -> 0 | AW28: (przypis z lat 2011-2012) + 50% x (przypis z roku 2013)
F29: Świadczenia dodatkowe | I29: =AQ49 -> 0 | J29: =AJ49 -> 0 | L29: =AR49 -> 0 | M29: =AK49 -> 0 | O29: =AS49 -> 0 | P29: =AL49 -> 0 | R29: =AK28 -> 0 | AJ29: wariant II bis | AK29: 0.3 | AP29: BEZ ZNIŻKI | AQ29: =IF($G$11="≤40%",$I$20*$AQ$19*$AQ$20/1000,IF($G$11="nowa = pozyskana w 2015r.",$I$20*$AQ$19*$AR$20/1000,IF($G$11=">40% / nu w PZU (3 lata)",$I$20*$AQ$19*$AS$20/1000,IF($G$11="wznowiona = pozyskana w 2014r.",$I$20*$AT$19*$AT$20/1000,0)))) -> 0 | AR29: =IF($G$11="≤40%",$L$20*$AQ$19*$AQ$20/1000,IF($G$11="nowa = pozyskana w 2015r.",$L$20*$AQ$19*$AR$20/1000,IF($G$11=">40% / nu w PZU (3 lata)",$L$20*$AQ$19*$AS$20/1000,IF($G$11="wznowiona = pozyskana w 2014r.",$L$20*$AT$19*$AT$20/1000,0)))) -> 0 | AS29: =IF($G$11="≤40%",$O$20*$AQ$19*$AQ$20/1000,IF($G$11="nowa = pozyskana w 2015r.",$O$20*$AQ$19*$AR$20/1000,IF($G$11=">40% / nu w PZU (3 lata)",$O$20*$AQ$19*$AS$20/1000,IF($G$11="wznowiona = pozyskana w 2014r.",$O$20*$AT$19*$AT$20/1000,0)))) -> 0
F30: Razem wysokość składki | I30: =I28+I29 -> 0 | J30: =J28+J29 -> 0 | L30: =L28+L29 -> 0 | M30: =M28+M29 -> 0 | O30: =O28+O29 -> 0 | P30: =P28+P29 -> 0 | R30: Korekta wysokości zniżki/zwyżki z tabeli | S30: dla zniżek: maksymalnie z tabeli, ale może być niższa (do zera włącznie). Np. jest 30%, ale może być 15%, albo 0% | AO30: WARIANT 2 | AP30: ZE ZNIŻKĄ | AQ30: =IF($G$11="≤40%",$I$20*$AR$10*$AQ$21/1000*$AQ$23,IF($G$11="nowa = pozyskana w 2015r.",$I$20*$AR$10*$AR$21/1000*$AR$23,IF($G$11=">40% / nu w PZU (3 lata)",$I$20*$AR$10*$AS$21/1000*$AS$23,IF($G$11="wznowiona = pozyskana w 2014r.",$I$20*$AR$10*$AT$21/1000*$AT$23,0)))) -> 0 | AR30: =IF($G$11="≤40%",$L$20*$AR$10*$AQ$21/1000*$AQ$23,IF($G$11="nowa = pozyskana w 2015r.",$L$20*$AR$10*$AR$21/1000*$AR$23,IF($G$11=">40% / nu w PZU (3 lata)",$L$20*$AR$10*$AS$21/1000*$AS$23,IF($G$11="wznowiona = pozyskana w 2014r.",$L$20*$AR$10*$AT$21/1000*$AT$23,0)))) -> 0 | AS30: =IF($G$11="≤40%",$O$20*$AR$10*$AQ$21/1000*$AQ$23,IF($G$11="nowa = pozyskana w 2015r.",$O$20*$AR$10*$AR$21/1000*$AR$23,IF($G$11=">40% / nu w PZU (3 lata)",$O$20*$AR$10*$AS$21/1000*$AS$23,IF($G$11="wznowiona = pozyskana w 2014r.",$O$20*$AR$10*$AT$21/1000*$AT$23,0)))) -> 0 | AT30: =IF(AM33=TRUE,FALSE,TRUE) -> TRUE | AV30: w przypadku placówek, dla których wskaźnik szkodowości jest równy lub niższy od 40% a z tabeli wynika zwyżka wówczas stosuje się taryfowe stawki wyjściowe
S31: dla zwyżek: nie mniej niż wysokość zwyżki, ale może być więcej niż poziom zwyżki (bez ograniczeń wysokości). Np.. Jest 60%, ale może być 80%. | AG31: ZNIŻKA Z PALCA | AH31: ZE ZNIŻKĄ | AI31: WARIANT I | AJ31: =IF($G$11="≤40%",$I$20*$AQ$19*AI37/1000*$AQ$23,IF($G$11="nowa = pozyskana w 2015r.",$I$20*$AQ$19*AI37/1000*$AR$23,IF($G$11=">40% / nu w PZU (3 lata)",$I$20*$AQ$19*AI37/1000*$AS$23,IF($G$11="wznowiona = pozyskana w 2014r.",$I$20*$AT$19*AI37/1000*$AT$23,0)))) -> 0 | AK31: =IF($G$11="≤40%",$L$20*$AQ$19*AI37/1000*$AQ$23,IF($G$11="nowa = pozyskana w 2015r.",$L$20*$AQ$19*AI37/1000*$AR$23,IF($G$11=">40% / nu w PZU (3 lata)",$L$20*$AQ$19*AI37/1000*$AS$23,IF($G$11="wznowiona = pozyskana w 2014r.",$L$20*$AT$19*AI37/1000*$AT$23,0)))) -> 0 | AL31: =IF($G$11="≤40%",$O$20*$AQ$19*AI37/1000*$AQ$23,IF($G$11="nowa = pozyskana w 2015r.",$O$20*$AQ$19*AI37/1000*$AR$23,IF($G$11=">40% / nu w PZU (3 lata)",$O$20*$AQ$19*AI37/1000*$AS$23,IF($G$11="wznowiona = pozyskana w 2014r.",$O$20*$AT$19*AI37/1000*$AT$23,0)))) -> 0 | AM31: =IF(AJ37=TRUE,TRUE,FALSE) -> FALSE | AP31: FINALNY WYNIK | AQ31: =IF(AND(AQ$40=TRUE,$AM33=TRUE),AJ33,IF(AND(AQ$40=FALSE,$AM33=TRUE),AJ34,IF(AND(AQ$40=FALSE,$AM33=FALSE),AQ32,IF(AND(AQ$40=TRUE,$AM33=FALSE),AQ30,0)))) -> 0 | AR31: =IF(AND(AR$40=TRUE,$AM33=TRUE),AK33,IF(AND(AR$40=FALSE,$AM33=TRUE),AK34,IF(AND(AR$40=FALSE,$AM33=FALSE),AR32,IF(AND(AR$40=TRUE,$AM33=FALSE),AR30,0)))) -> 0 | AS31: =IF(AND(AS$40=TRUE,$AM33=TRUE),AL33,IF(AND(AS$40=FALSE,$AM33=TRUE),AL34,IF(AND(AS$40=FALSE,$AM33=FALSE),AS32,IF(AND(AS$40=TRUE,$AM33=FALSE),AS30,0)))) -> 0 | AV31: w przypadku placówek, dla których wskaźnik szkodowości jest równy lub niższy od 40% a z tabeli wynika zniżka wówczas ta zniżka z tabeli może zostać zwiększona o 10 punktów procentowych
AH32: BEZ ZNIŻKI | AJ32: =IF($G$11="≤40%",$I$20*$AQ$19*AI37/1000,IF($G$11="nowa = pozyskana w 2015r.",$I$20*$AQ$19*AI37/1000,IF($G$11=">40% / nu w PZU (3 lata)",$I$20*$AQ$19*AI37/1000,IF($G$11="wznowiona = pozyskana w 2014r.",$I$20*$AT$19*AI37/1000,0)))) -> 0 | AK32: =IF($G$11="≤40%",$L$20*$AQ$19*AI37/1000,IF($G$11="nowa = pozyskana w 2015r.",$L$20*$AQ$19*AI37/1000,IF($G$11=">40% / nu w PZU (3 lata)",$L$20*$AQ$19*AI37/1000,IF($G$11="wznowiona = pozyskana w 2014r.",$L$20*$AT$19*AI37/1000,0)))) -> 0 | AL32: =IF($G$11="≤40%",$O$20*$AQ$19*AI37/1000,IF($G$11="nowa = pozyskana w 2015r.",$O$20*$AQ$19*AI37/1000,IF($G$11=">40% / nu w PZU (3 lata)",$O$20*$AQ$19*AI37/1000,IF($G$11="wznowiona = pozyskana w 2014r.",$O$20*$AT$19*AI37/1000,0)))) -> 0 | AP32: BEZ ZNIŻKI | AQ32: =IF($G$11="≤40%",$I$20*$AR$10*$AQ$21/1000,IF($G$11="nowa = pozyskana w 2015r.",$I$20*$AR$10*$AR$21/1000,IF($G$11=">40% / nu w PZU (3 lata)",$I$20*$AR$10*$AS$21/1000,IF($G$11="wznowiona = pozyskana w 2014r.",$I$20*$AR$10*$AT$21/1000,0)))) -> 0 | AR32: =IF($G$11="≤40%",$L$20*$AR$10*$AQ$21/1000,IF($G$11="nowa = pozyskana w 2015r.",$L$20*$AR$10*$AR$21/1000,IF($G$11=">40% / nu w PZU (3 lata)",$L$20*$AR$10*$AS$21/1000,IF($G$11="wznowiona = pozyskana w 2014r.",$L$20*$AR$10*$AT$21/1000,0)))) -> 0 | AS32: =IF($G$11="≤40%",$O$20*$AR$10*$AQ$21/1000,IF($G$11="nowa = pozyskana w 2015r.",$O$20*$AR$10*$AR$21/1000,IF($G$11=">40% / nu w PZU (3 lata)",$O$20*$AR$10*$AS$21/1000,IF($G$11="wznowiona = pozyskana w 2014r.",$O$20*$AR$10*$AT$21/1000,0)))) -> 0 | AV32: w przypadku placówek nowych tj. takich, które nie były ubezpieczone w PZU w akacji szkolnej 2013/2014 i z tabeli wynika zwyżka stosuje się wyjściowe stawki taryfowe a jeśli z tabeli wynika zniżka to stosuje się tę zniżkę
S33: dodatkowo komunikat w sytuacji, gdy ktoś wpisze z palca niewłaściwy poziom zniżki lub zwyżki (bo standardowo nie będzie się uwzględniało) | AH33: ZE ZNIŻKĄ | AI33: WARIANT II | AJ33: =IF($G$11="≤40%",$I$20*$AR$10*AI38/1000*$AQ$23,IF($G$11="nowa = pozyskana w 2015r.",$I$20*$AR$10*AI38/1000*$AR$23,IF($G$11=">40% / nu w PZU (3 lata)",$I$20*$AR$10*AI38/1000*$AS$23,IF($G$11="wznowiona = pozyskana w 2014r.",$I$20*$AR$10*AI38/1000*$AT$23,0)))) -> 0 | AK33: =IF($G$11="≤40%",$L$20*$AR$10*AI38/1000*$AQ$23,IF($G$11="nowa = pozyskana w 2015r.",$L$20*$AR$10*AI38/1000*$AR$23,IF($G$11=">40% / nu w PZU (3 lata)",$L$20*$AR$10*AI38/1000*$AS$23,IF($G$11="wznowiona = pozyskana w 2014r.",$L$20*$AR$10*AI38/1000*$AT$23,0)))) -> 0 | AL33: =IF($G$11="≤40%",$O$20*$AR$10*AI38/1000*$AQ$23,IF($G$11="nowa = pozyskana w 2015r.",$O$20*$AR$10*AI38/1000*$AR$23,IF($G$11=">40% / nu w PZU (3 lata)",$O$20*$AR$10*AI38/1000*$AS$23,IF($G$11="wznowiona = pozyskana w 2014r.",$O$20*$AR$10*AI38/1000*$AT$23,0)))) -> 0 | AM33: =IF(AJ38=TRUE,TRUE,FALSE) -> FALSE | AO33: WARIANT 2 BIS | AP33: ZE ZNIŻKĄ | AQ33: =IF($G$11="≤40%",$I$20*$AR$10*$AQ$21/1000*$AQ$22*$AQ$23,IF($G$11="nowa = pozyskana w 2015r.",$I$20*$AR$10*$AR$21/1000*$AQ$22*$AR$23,IF($G$11=">40% / nu w PZU (3 lata)",$I$20*$AR$10*$AS$21/1000*$AQ$22*$AS$23,IF($G$11="wznowiona = pozyskana w 2014r.",$I$20*$AR$10*$AT$21/1000*$AT$23*AQ22,0)))) -> 0 | AR33: =IF($G$11="≤40%",$L$20*$AR$10*$AQ$21/1000*$AQ$22*$AQ$23,IF($G$11="nowa = pozyskana w 2015r.",$L$20*$AR$10*$AR$21/1000*$AQ$22*$AR$23,IF($G$11=">40% / nu w PZU (3 lata)",$L$20*$AR$10*$AS$21/1000*$AQ$22*$AS$23,IF($G$11="wznowiona = pozyskana w 2014r.",$L$20*$AR$10*$AT$21/1000*$AT$23*AQ22,0)))) -> 0 | AS33: =IF($G$11="≤40%",$O$20*$AR$10*$AQ$21/1000*$AQ$22*$AQ$23,IF($G$11="nowa = pozyskana w 2015r.",$O$20*$AR$10*$AR$21/1000*$AR$22*$AR$23,IF($G$11=">40% / nu w PZU (3 lata)",$O$20*$AR$10*$AS$21/1000*$AS$22*$AS$23,IF($G$11="wznowiona = pozyskana w 2014r.",$O$20*$AR$10*$AT$21/1000*$AT$23*AQ22,0)))) -> 0
AH34: BEZ ZNIŻKI | AJ34: =IF($G$11="≤40%",$I$20*$AR$10*AI38/1000,IF($G$11="nowa = pozyskana w 2015r.",$I$20*$AR$10*AI38/1000,IF($G$11=">40% / nu w PZU (3 lata)",$I$20*$AR$10*AI38/1000,IF($G$11="wznowiona = pozyskana w 2014r.",$I$20*$AR$10*AI38/1000,0)))) -> 0 | AK34: =IF($G$11="≤40%",$L$20*$AR$10*AI38/1000,IF($G$11="nowa = pozyskana w 2015r.",$L$20*$AR$10*AI38/1000,IF($G$11=">40% / nu w PZU (3 lata)",$L$20*$AR$10*AI38/1000,IF($G$11="wznowiona = pozyskana w 2014r.",$L$20*$AR$10*AI38/1000,0)))) -> 0 | AL34: =IF($G$11="≤40%",$O$20*$AR$10*AI38/1000,IF($G$11="nowa = pozyskana w 2015r.",$O$20*$AR$10*AI38/1000,IF($G$11=">40% / nu w PZU (3 lata)",$O$20*$AR$10*AI38/1000,IF($G$11="wznowiona = pozyskana w 2014r.",$O$20*$AR$10*AI38/1000,0)))) -> 0 | AP34: FINALNY WYNIK | AQ34: =IF(AND(AQ$41=TRUE,$AM35=TRUE),AJ35,IF(AND(AQ$41=FALSE,$AM35=TRUE),AJ36,IF(AND(AQ$41=FALSE,$AM35=FALSE),AQ35,IF(AND(AQ$41=TRUE,$AM35=FALSE),AQ33,0)))) -> 0 | AR34: =IF(AND(AR$41=TRUE,$AM35=TRUE),AK35,IF(AND(AR$41=FALSE,$AM35=TRUE),AK36,IF(AND(AR$41=FALSE,$AM35=FALSE),AR35,IF(AND(AR$41=TRUE,$AM35=FALSE),AR33,0)))) -> 0 | AS34: =IF(AND(AS$41=TRUE,$AM35=TRUE),AL35,IF(AND(AS$41=FALSE,$AM35=TRUE),AL36,IF(AND(AS$41=FALSE,$AM35=FALSE),AS35,IF(AND(AS$41=TRUE,$AM35=FALSE),AS33,0)))) -> 0
AH35: ZE ZNIŻKĄ | AI35: WARIANT II BIS | AJ35: =IF($G$11="≤40%",$I$20*$AR$10*AI38/1000*$AQ$22*$AQ$23,IF($G$11="nowa = pozyskana w 2015r.",$I$20*$AR$10*AI38/1000*$AQ$22*$AR$23,IF($G$11=">40% / nu w PZU (3 lata)",$I$20*$AR$10*AI38/1000*$AQ$22*$AS$23,IF($G$11="wznowiona = pozyskana w 2014r.",$I$20*$AR$10*AI38/1000*$AT$23*$AQ$22,0)))) -> 0 | AK35: =IF($G$11="≤40%",$L$20*$AR$10*AI38/1000*$AQ$22*$AQ$23,IF($G$11="nowa = pozyskana w 2015r.",$L$20*$AR$10*AI38/1000*$AQ$22*$AR$23,IF($G$11=">40% / nu w PZU (3 lata)",$L$20*$AR$10*AI38/1000*$AQ$22*$AS$23,IF($G$11="wznowiona = pozyskana w 2014r.",$L$20*$AR$10*AI38/1000*$AT$23*$AQ$22,0)))) -> 0 | AL35: =IF($G$11="≤40%",$O$20*$AR$10*AI38/1000*$AQ$22*$AQ$23,IF($G$11="nowa = pozyskana w 2015r.",$O$20*$AR$10*AI38/1000*$AR$22*$AR$23,IF($G$11=">40% / nu w PZU (3 lata)",$O$20*$AR$10*AI38/1000*$AS$22*$AS$23,IF($G$11="wznowiona = pozyskana w 2014r.",$O$20*$AR$10*AI38/1000*$AT$23*$AQ$22,0)))) -> 0 | AM35: =IF(AM33=TRUE,TRUE,FALSE) -> FALSE | AP35: BEZ ZNIŻKI | AQ35: =IF($G$11="≤40%",$I$20*$AR$10*$AQ$21/1000*$AQ$22,IF($G$11="nowa = pozyskana w 2015r.",$I$20*$AR$10*$AR$21/1000*$AQ$22,IF($G$11=">40% / nu w PZU (3 lata)",$I$20*$AR$10*$AS$21/1000*$AQ$22,IF($G$11="wznowiona = pozyskana w 2014r.",$I$20*$AR$10*$AT$21/1000*$AT$22,0)))) -> 0 | AR35: =IF($G$11="≤40%",$L$20*$AR$10*$AQ$21/1000*$AQ$22,IF($G$11="nowa = pozyskana w 2015r.",$L$20*$AR$10*$AR$21/1000*$AQ$22,IF($G$11=">40% / nu w PZU (3 lata)",$L$20*$AR$10*$AS$21/1000*$AQ$22,IF($G$11="wznowiona = pozyskana w 2014r.",$L$20*$AR$10*$AT$21/1000*$AT$22,0)))) -> 0 | AS35: =IF($G$11="≤40%",$O$20*$AR$10*$AQ$21/1000*$AQ$22,IF($G$11="nowa = pozyskana w 2015r.",$O$20*$AR$10*$AR$21/1000*$AR$22,IF($G$11=">40% / nu w PZU (3 lata)",$O$20*$AR$10*$AS$21/1000*$AS$22,IF($G$11="wznowiona = pozyskana w 2014r.",$O$20*$AR$10*$AT$21/1000*$AT$22,0)))) -> 0 | AV35: Tabela maksymalnych zniżek składki dla poszczególnych rodzajów placówek oraz minimalnych zwyżek składki dla placówek wyróżnionych ustalonych jako stawki wyjściowe dla tego rodzaju placówek na rok szkolny 2014/2015. | BI35: TABELA ZNIŻEK/ZWYŻEK
AH36: BEZ ZNIŻKI | AJ36: =IF($G$11="≤40%",$I$20*$AR$10*AI38/1000*$AQ$22,IF($G$11="nowa = pozyskana w 2015r.",$I$20*$AR$10*AI38/1000*$AQ$22,IF($G$11=">40% / nu w PZU (3 lata)",$I$20*$AR$10*AI38/1000*$AQ$22,IF($G$11="wznowiona = pozyskana w 2014r.",$I$20*$AR$10*AI38/1000*$AQ$22,0)))) -> 0 | AK36: =IF($G$11="≤40%",$L$20*$AR$10*AI38/1000*$AQ$22,IF($G$11="nowa = pozyskana w 2015r.",$L$20*$AR$10*AI38/1000*$AQ$22,IF($G$11=">40% / nu w PZU (3 lata)",$L$20*$AR$10*AI38/1000*$AQ$22,IF($G$11="wznowiona = pozyskana w 2014r.",$L$20*$AR$10*AI38/1000*$AQ$22,0)))) -> 0 | AL36: =IF($G$11="≤40%",$O$20*$AR$10*AI38/1000*$AQ$22,IF($G$11="nowa = pozyskana w 2015r.",$O$20*$AR$10*AI38/1000*$AR$22,IF($G$11=">40% / nu w PZU (3 lata)",$O$20*$AR$10*AI38/1000*$AS$22,IF($G$11="wznowiona = pozyskana w 2014r.",$O$20*$AR$10*AI38/1000*$AQ$22,0)))) -> 0 | AV36: Rodzaj Placówki | AW36: Wariant | AX36: Oddział | BI36: Gdańsk | BJ36: Katowice | BK36: Kraków | BL36: Lublin | BM36: Łódź | BN36: Poznań | BO36: Warszawa | BP36: Wrocław | BQ36: Szczecin
AE37: WARIANT I | AG37: % ZNIŻKI Z PALCA | AI37: =IF(AJ37=TRUE,1+R26,1) -> 1 | AQ37: Zniżka incydentalna | AX37: Gdańsk | AY37: Katowice | AZ37: Kraków | BA37: Lublin | BB37: Łódź | BC37: Poznań | BD37: Warszawa | BE37: Wrocław | BF37: Szczecin | BH37: WARIANT I | BI37: =IF(AND($G$9="Żłobek, przedszkole",$G$10="Gdańsk"),1+AX38,IF(AND($G$9="Szkoła sportowa",$G$10="Gdańsk"),1+AX40,IF(AND($G$9="Szkoła podstawowa",$G$10="Gdańsk"),1+AX42,IF(AND($G$9="Liceum ogólnokształcące",$G$10="Gdańsk"),1+AX44,IF(AND($G$9="Liceum zawodowe",$G$10="Gdańsk"),1+AX46,IF(AND($G$9="Technikum",$G$10="Gdańsk"),1+AX48,IF(AND($G$9="Zasadnicza szkoła zawodowa",$G$10="Gdańsk"),1+AX50,IF(AND($G$9="Szkoła policealna",$G$10="Gdańsk"),1+AX52,IF(AND($G$9="Szkoła wyższa",$G$10="Gdańsk"),1+AX54,IF(AND($G$9="Inne",$G$10="Gdańsk"),1+AX56,IF(AND($G$9="Zespół szkół",$G$10="Gdańsk"),1+AX58,IF(AND($G$9="Gimnazjum",$G$10="Gdańsk"),1+AX60,IF(AND($G$9="Centrum kształcenia",$G$10="Gdańsk"),1+AX62,IF(AND($G$9="Dom dziecka",$G$10="Gdańsk"),1+AX64,"-")))))))))))))) -> - | BJ37: =IF(AND($G$9="Żłobek, przedszkole",$G$10="Katowice"),1+AY38,IF(AND($G$9="Szkoła sportowa",$G$10="Katowice"),1+AY40,IF(AND($G$9="Szkoła podstawowa",$G$10="Katowice"),1+AY42,IF(AND($G$9="Liceum ogólnokształcące",$G$10="Katowice"),1+AY44,IF(AND($G$9="Liceum zawodowe",$G$10="Katowice"),1+AY46,IF(AND($G$9="Technikum",$G$10="Katowice"),1+AY48,IF(AND($G$9="Zasadnicza szkoła zawodowa",$G$10="Katowice"),1+AY50,IF(AND($G$9="Szkoła policealna",$G$10="Katowice"),1+AY52,IF(AND($G$9="Szkoła wyższa",$G$10="Katowice"),1+AY54,IF(AND($G$9="Inne",$G$10="Katowice"),1+AY56,IF(AND($G$9="Zespół szkół",$G$10="Katowice"),1+AY58,IF(AND($G$9="Gimnazjum",$G$10="Katowice"),1+AY60,IF(AND($G$9="Centrum kształcenia",$G$10="Katowice"),1+AY62,IF(AND($G$9="Dom dziecka",$G$10="Katowice"),1+AY64,"-")))))))))))))) -> - | BK37: =IF(AND($G$9="Żłobek, przedszkole",$G$10="Kraków"),1+AZ38,IF(AND($G$9="Szkoła sportowa",$G$10="Kraków"),1+AZ40,IF(AND($G$9="Szkoła podstawowa",$G$10="Kraków"),1+AZ42,IF(AND($G$9="Liceum ogólnokształcące",$G$10="Kraków"),1+AZ44,IF(AND($G$9="Liceum zawodowe",$G$10="Kraków"),1+AZ46,IF(AND($G$9="Technikum",$G$10="Kraków"),1+AZ48,IF(AND($G$9="Zasadnicza szkoła zawodowa",$G$10="Kraków"),1+AZ50,IF(AND($G$9="Szkoła policealna",$G$10="Kraków"),1+AZ52,IF(AND($G$9="Szkoła wyższa",$G$10="Kraków"),1+AZ54,IF(AND($G$9="Inne",$G$10="Kraków"),1+AZ56,IF(AND($G$9="Zespół szkół",$G$10="Kraków"),1+AZ58,IF(AND($G$9="Gimnazjum",$G$10="Kraków"),1+AZ60,IF(AND($G$9="Centrum kształcenia",$G$10="Kraków"),1+AZ62,IF(AND($G$9="Dom dziecka",$G$10="Kraków"),1+AZ64,"-")))))))))))))) -> - | BL37: =IF(AND($G$9="Żłobek, przedszkole",$G$10="Lublin"),1+BA38,IF(AND($G$9="Szkoła sportowa",$G$10="Lublin"),1+BA40,IF(AND($G$9="Szkoła podstawowa",$G$10="Lublin"),1+BA42,IF(AND($G$9="Liceum ogólnokształcące",$G$10="Lublin"),1+BA44,IF(AND($G$9="Liceum zawodowe",$G$10="Lublin"),1+BA46,IF(AND($G$9="Technikum",$G$10="Lublin"),1+BA48,IF(AND($G$9="Zasadnicza szkoła zawodowa",$G$10="Lublin"),1+BA50,IF(AND($G$9="Szkoła policealna",$G$10="Lublin"),1+BA52,IF(AND($G$9="Szkoła wyższa",$G$10="Lublin"),1+BA54,IF(AND($G$9="Inne",$G$10="Lublin"),1+BA56,IF(AND($G$9="Zespół szkół",$G$10="Lublin"),1+BA58,IF(AND($G$9="Gimnazjum",$G$10="Lublin"),1+BA60,IF(AND($G$9="Centrum kształcenia",$G$10="Lublin"),1+BA62,IF(AND($G$9="Dom dziecka",$G$10="Lublin"),1+BA64,"-")))))))))))))) -> - | BM37: =IF(AND($G$9="Żłobek, przedszkole",$G$10="Łódź"),1+BB38,IF(AND($G$9="Szkoła sportowa",$G$10="Łódź"),1+BB40,IF(AND($G$9="Szkoła podstawowa",$G$10="Łódź"),1+BB42,IF(AND($G$9="Liceum ogólnokształcące",$G$10="Łódź"),1+BB44,IF(AND($G$9="Liceum zawodowe",$G$10="Łódź"),1+BB46,IF(AND($G$9="Technikum",$G$10="Łódź"),1+BB48,IF(AND($G$9="Zasadnicza szkoła zawodowa",$G$10="Łódź"),1+BB50,IF(AND($G$9="Szkoła policealna",$G$10="Łódź"),1+BB52,IF(AND($G$9="Szkoła wyższa",$G$10="Łódź"),1+BB54,IF(AND($G$9="Inne",$G$10="Łódź"),1+BB56,IF(AND($G$9="Zespół szkół",$G$10="Łódź"),1+BB58,IF(AND($G$9="Gimnazjum",$G$10="Łódź"),1+BB60,IF(AND($G$9="Centrum kształcenia",$G$10="Łódź"),1+BB62,IF(AND($G$9="Dom dziecka",$G$10="Łódź"),1+BB64,"-")))))))))))))) -> - | BN37: =IF(AND($G$9="Żłobek, przedszkole",$G$10="Poznań"),1+BC38,IF(AND($G$9="Szkoła sportowa",$G$10="Poznań"),1+BC40,IF(AND($G$9="Szkoła podstawowa",$G$10="Poznań"),1+BC42,IF(AND($G$9="Liceum ogólnokształcące",$G$10="Poznań"),1+BC44,IF(AND($G$9="Liceum zawodowe",$G$10="Poznań"),1+BC46,IF(AND($G$9="Technikum",$G$10="Poznań"),1+BC48,IF(AND($G$9="Zasadnicza szkoła zawodowa",$G$10="Poznań"),1+BC50,IF(AND($G$9="Szkoła policealna",$G$10="Poznań"),1+BC52,IF(AND($G$9="Szkoła wyższa",$G$10="Poznań"),1+BC54,IF(AND($G$9="Inne",$G$10="Poznań"),1+BC56,IF(AND($G$9="Zespół szkół",$G$10="Poznań"),1+BC58,IF(AND($G$9="Gimnazjum",$G$10="Poznań"),1+BC60,IF(AND($G$9="Centrum kształcenia",$G$10="Poznań"),1+BC62,IF(AND($G$9="Dom dziecka",$G$10="Poznań"),1+BC64,"-")))))))))))))) -> - | BO37: =IF(AND($G$9="Żłobek, przedszkole",$G$10="Warszawa"),1+BD38,IF(AND($G$9="Szkoła sportowa",$G$10="Warszawa"),1+BD40,IF(AND($G$9="Szkoła podstawowa",$G$10="Warszawa"),1+BD42,IF(AND($G$9="Liceum ogólnokształcące",$G$10="Warszawa"),1+BD44,IF(AND($G$9="Liceum zawodowe",$G$10="Warszawa"),1+BD46,IF(AND($G$9="Technikum",$G$10="Warszawa"),1+BD48,IF(AND($G$9="Zasadnicza szkoła zawodowa",$G$10="Warszawa"),1+BD50,IF(AND($G$9="Szkoła policealna",$G$10="Warszawa"),1+BD52,IF(AND($G$9="Szkoła wyższa",$G$10="Warszawa"),1+BD54,IF(AND($G$9="Inne",$G$10="Warszawa"),1+BD56,IF(AND($G$9="Zespół szkół",$G$10="Warszawa"),1+BD58,IF(AND($G$9="Gimnazjum",$G$10="Warszawa"),1+BD60,IF(AND($G$9="Centrum kształcenia",$G$10="Warszawa"),1+BD62,IF(AND($G$9="Dom dziecka",$G$10="Warszawa"),1+BD64,"-")))))))))))))) -> - | BP37: =IF(AND($G$9="Żłobek, przedszkole",$G$10="Wrocław"),1+BE38,IF(AND($G$9="Szkoła sportowa",$G$10="Wrocław"),1+BE40,IF(AND($G$9="Szkoła podstawowa",$G$10="Wrocław"),1+BE42,IF(AND($G$9="Liceum ogólnokształcące",$G$10="Wrocław"),1+BE44,IF(AND($G$9="Liceum zawodowe",$G$10="Wrocław"),1+BE46,IF(AND($G$9="Technikum",$G$10="Wrocław"),1+BE48,IF(AND($G$9="Zasadnicza szkoła zawodowa",$G$10="Wrocław"),1+BE50,IF(AND($G$9="Szkoła policealna",$G$10="Wrocław"),1+BE52,IF(AND($G$9="Szkoła wyższa",$G$10="Wrocław"),1+BE54,IF(AND($G$9="Inne",$G$10="Wrocław"),1+BE56,IF(AND($G$9="Zespół szkół",$G$10="Wrocław"),1+BE58,IF(AND($G$9="Gimnazjum",$G$10="Wrocław"),1+BE60,IF(AND($G$9="Centrum kształcenia",$G$10="Wrocław"),1+BE62,IF(AND($G$9="Dom dziecka",$G$10="Wrocław"),1+BE64,"-")))))))))))))) -> - | BQ37: =IF(AND($G$9="Żłobek, przedszkole",$G$10="Szczecin"),1+BF38,IF(AND($G$9="Szkoła sportowa",$G$10="Szczecin"),1+BF40,IF(AND($G$9="Szkoła podstawowa",$G$10="Szczecin"),1+BF42,IF(AND($G$9="Liceum ogólnokształcące",$G$10="Szczecin"),1+BF44,IF(AND($G$9="Liceum zawodowe",$G$10="Szczecin"),1+BF46,IF(AND($G$9="Technikum",$G$10="Szczecin"),1+BF48,IF(AND($G$9="Zasadnicza szkoła zawodowa",$G$10="Szczecin"),1+BF50,IF(AND($G$9="Szkoła policealna",$G$10="Szczecin"),1+BF52,IF(AND($G$9="Szkoła wyższa",$G$10="Szczecin"),1+BF54,IF(AND($G$9="Inne",$G$10="Szczecin"),1+BF56,IF(AND($G$9="Zespół szkół",$G$10="Szczecin"),1+BF58,IF(AND($G$9="Gimnazjum",$G$10="Szczecin"),1+BF60,IF(AND($G$9="Centrum kształcenia",$G$10="Szczecin"),1+BF62,IF(AND($G$9="Dom dziecka",$G$10="Szczecin"),1+BF64,"-")))))))))))))) -> -
AE38: WARIANT II | AG38: % ZNIŻKI Z PALCA | AI38: =IF(AJ38=TRUE,1+R31,1) -> 1 | AQ38: Suma 1 | AR38: Suma 2 | AS38: Suma 3 | AV38: Żłobek, przedszkole | AW38: Wariant I | AX38: -0.3 | AY38: -0.15 | AZ38: -0.3 | BA38: -0.3 | BB38: -0.25 | BC38: -0.2 | BD38: -0.3 | BE38: -0.3 | BF38: -0.3 | BH38: WARIANT II | BI38: =IF(AND($G$9="Żłobek, przedszkole",$G$10="Gdańsk"),1+AX39,IF(AND($G$9="Szkoła sportowa",$G$10="Gdańsk"),1+AX41,IF(AND($G$9="Szkoła podstawowa",$G$10="Gdańsk"),1+AX43,IF(AND($G$9="Liceum ogólnokształcące",$G$10="Gdańsk"),1+AX45,IF(AND($G$9="Liceum zawodowe",$G$10="Gdańsk"),1+AX47,IF(AND($G$9="Technikum",$G$10="Gdańsk"),1+AX49,IF(AND($G$9="Zasadnicza szkoła zawodowa",$G$10="Gdańsk"),1+AX51,IF(AND($G$9="Szkoła policealna",$G$10="Gdańsk"),1+AX53,IF(AND($G$9="Szkoła wyższa",$G$10="Gdańsk"),1+AX55,IF(AND($G$9="Inne",$G$10="Gdańsk"),1+AX57,IF(AND($G$9="Zespół szkół",$G$10="Gdańsk"),1+AX59,IF(AND($G$9="Gimnazjum",$G$10="Gdańsk"),1+AX61,IF(AND($G$9="Centrum kształcenia",$G$10="Gdańsk"),1+AX63,IF(AND($G$9="Dom dziecka",$G$10="Gdańsk"),1+AX65,"-")))))))))))))) -> - | BJ38: =IF(AND($G$9="Żłobek, przedszkole",$G$10="Katowice"),1+AY39,IF(AND($G$9="Szkoła sportowa",$G$10="Katowice"),1+AY41,IF(AND($G$9="Szkoła podstawowa",$G$10="Katowice"),1+AY43,IF(AND($G$9="Liceum ogólnokształcące",$G$10="Katowice"),1+AY45,IF(AND($G$9="Liceum zawodowe",$G$10="Katowice"),1+AY47,IF(AND($G$9="Technikum",$G$10="Katowice"),1+AY49,IF(AND($G$9="Zasadnicza szkoła zawodowa",$G$10="Katowice"),1+AY51,IF(AND($G$9="Szkoła policealna",$G$10="Katowice"),1+AY53,IF(AND($G$9="Szkoła wyższa",$G$10="Katowice"),1+AY55,IF(AND($G$9="Inne",$G$10="Katowice"),1+AY57,IF(AND($G$9="Zespół szkół",$G$10="Katowice"),1+AY59,IF(AND($G$9="Gimnazjum",$G$10="Katowice"),1+AY61,IF(AND($G$9="Centrum kształcenia",$G$10="Katowice"),1+AY63,IF(AND($G$9="Dom dziecka",$G$10="Katowice"),1+AY65,"-")))))))))))))) -> - | BK38: =IF(AND($G$9="Żłobek, przedszkole",$G$10="Kraków"),1+AZ39,IF(AND($G$9="Szkoła sportowa",$G$10="Kraków"),1+AZ41,IF(AND($G$9="Szkoła podstawowa",$G$10="Kraków"),1+AZ43,IF(AND($G$9="Liceum ogólnokształcące",$G$10="Kraków"),1+AZ45,IF(AND($G$9="Liceum zawodowe",$G$10="Kraków"),1+AZ47,IF(AND($G$9="Technikum",$G$10="Kraków"),1+AZ49,IF(AND($G$9="Zasadnicza szkoła zawodowa",$G$10="Kraków"),1+AZ51,IF(AND($G$9="Szkoła policealna",$G$10="Kraków"),1+AZ53,IF(AND($G$9="Szkoła wyższa",$G$10="Kraków"),1+AZ55,IF(AND($G$9="Inne",$G$10="Kraków"),1+AZ57,IF(AND($G$9="Zespół szkół",$G$10="Kraków"),1+AZ59,IF(AND($G$9="Gimnazjum",$G$10="Kraków"),1+AZ61,IF(AND($G$9="Centrum kształcenia",$G$10="Kraków"),1+AZ63,IF(AND($G$9="Dom dziecka",$G$10="Kraków"),1+AZ65,"-")))))))))))))) -> - | BL38: =IF(AND($G$9="Żłobek, przedszkole",$G$10="Lublin"),1+BA39,IF(AND($G$9="Szkoła sportowa",$G$10="Lublin"),1+BA41,IF(AND($G$9="Szkoła podstawowa",$G$10="Lublin"),1+BA43,IF(AND($G$9="Liceum ogólnokształcące",$G$10="Lublin"),1+BA45,IF(AND($G$9="Liceum zawodowe",$G$10="Lublin"),1+BA47,IF(AND($G$9="Technikum",$G$10="Lublin"),1+BA49,IF(AND($G$9="Zasadnicza szkoła zawodowa",$G$10="Lublin"),1+BA51,IF(AND($G$9="Szkoła policealna",$G$10="Lublin"),1+BA53,IF(AND($G$9="Szkoła wyższa",$G$10="Lublin"),1+BA55,IF(AND($G$9="Inne",$G$10="Lublin"),1+BA57,IF(AND($G$9="Zespół szkół",$G$10="Lublin"),1+BA59,IF(AND($G$9="Gimnazjum",$G$10="Lublin"),1+BA61,IF(AND($G$9="Centrum kształcenia",$G$10="Lublin"),1+BA63,IF(AND($G$9="Dom dziecka",$G$10="Lublin"),1+BA65,"-")))))))))))))) -> - | BM38: =IF(AND($G$9="Żłobek, przedszkole",$G$10="Łódź"),1+BB39,IF(AND($G$9="Szkoła sportowa",$G$10="Łódź"),1+BB41,IF(AND($G$9="Szkoła podstawowa",$G$10="Łódź"),1+BB43,IF(AND($G$9="Liceum ogólnokształcące",$G$10="Łódź"),1+BB45,IF(AND($G$9="Liceum zawodowe",$G$10="Łódź"),1+BB47,IF(AND($G$9="Technikum",$G$10="Łódź"),1+BB49,IF(AND($G$9="Zasadnicza szkoła zawodowa",$G$10="Łódź"),1+BB51,IF(AND($G$9="Szkoła policealna",$G$10="Łódź"),1+BB53,IF(AND($G$9="Szkoła wyższa",$G$10="Łódź"),1+BB55,IF(AND($G$9="Inne",$G$10="Łódź"),1+BB57,IF(AND($G$9="Zespół szkół",$G$10="Łódź"),1+BB59,IF(AND($G$9="Gimnazjum",$G$10="Łódź"),1+BB61,IF(AND($G$9="Centrum kształcenia",$G$10="Łódź"),1+BB63,IF(AND($G$9="Dom dziecka",$G$10="Łódź"),1+BB65,"-")))))))))))))) -> - | BN38: =IF(AND($G$9="Żłobek, przedszkole",$G$10="Poznań"),1+BC39,IF(AND($G$9="Szkoła sportowa",$G$10="Poznań"),1+BC41,IF(AND($G$9="Szkoła podstawowa",$G$10="Poznań"),1+BC43,IF(AND($G$9="Liceum ogólnokształcące",$G$10="Poznań"),1+BC45,IF(AND($G$9="Liceum zawodowe",$G$10="Poznań"),1+BC47,IF(AND($G$9="Technikum",$G$10="Poznań"),1+BC49,IF(AND($G$9="Zasadnicza szkoła zawodowa",$G$10="Poznań"),1+BC51,IF(AND($G$9="Szkoła policealna",$G$10="Poznań"),1+BC53,IF(AND($G$9="Szkoła wyższa",$G$10="Poznań"),1+BC55,IF(AND($G$9="Inne",$G$10="Poznań"),1+BC57,IF(AND($G$9="Zespół szkół",$G$10="Poznań"),1+BC59,IF(AND($G$9="Gimnazjum",$G$10="Poznań"),1+BC61,IF(AND($G$9="Centrum kształcenia",$G$10="Poznań"),1+BC63,IF(AND($G$9="Dom dziecka",$G$10="Poznań"),1+BC65,"-")))))))))))))) -> - | BO38: =IF(AND($G$9="Żłobek, przedszkole",$G$10="Warszawa"),1+BD39,IF(AND($G$9="Szkoła sportowa",$G$10="Warszawa"),1+BD41,IF(AND($G$9="Szkoła podstawowa",$G$10="Warszawa"),1+BD43,IF(AND($G$9="Liceum ogólnokształcące",$G$10="Warszawa"),1+BD45,IF(AND($G$9="Liceum zawodowe",$G$10="Warszawa"),1+BD47,IF(AND($G$9="Technikum",$G$10="Warszawa"),1+BD49,IF(AND($G$9="Zasadnicza szkoła zawodowa",$G$10="Warszawa"),1+BD51,IF(AND($G$9="Szkoła policealna",$G$10="Warszawa"),1+BD53,IF(AND($G$9="Szkoła wyższa",$G$10="Warszawa"),1+BD55,IF(AND($G$9="Inne",$G$10="Warszawa"),1+BD57,IF(AND($G$9="Zespół szkół",$G$10="Warszawa"),1+BD59,IF(AND($G$9="Gimnazjum",$G$10="Warszawa"),1+BD61,IF(AND($G$9="Centrum kształcenia",$G$10="Warszawa"),1+BD63,IF(AND($G$9="Dom dziecka",$G$10="Warszawa"),1+BD65,"-")))))))))))))) -> - | BP38: =IF(AND($G$9="Żłobek, przedszkole",$G$10="Wrocław"),1+BE39,IF(AND($G$9="Szkoła sportowa",$G$10="Wrocław"),1+BE41,IF(AND($G$9="Szkoła podstawowa",$G$10="Wrocław"),1+BE43,IF(AND($G$9="Liceum ogólnokształcące",$G$10="Wrocław"),1+BE45,IF(AND($G$9="Liceum zawodowe",$G$10="Wrocław"),1+BE47,IF(AND($G$9="Technikum",$G$10="Wrocław"),1+BE49,IF(AND($G$9="Zasadnicza szkoła zawodowa",$G$10="Wrocław"),1+BE51,IF(AND($G$9="Szkoła policealna",$G$10="Wrocław"),1+BE53,IF(AND($G$9="Szkoła wyższa",$G$10="Wrocław"),1+BE55,IF(AND($G$9="Inne",$G$10="Wrocław"),1+BE57,IF(AND($G$9="Zespół szkół",$G$10="Wrocław"),1+BE59,IF(AND($G$9="Gimnazjum",$G$10="Wrocław"),1+BE61,IF(AND($G$9="Centrum kształcenia",$G$10="Wrocław"),1+BE63,IF(AND($G$9="Dom dziecka",$G$10="Wrocław"),1+BE65,"-")))))))))))))) -> - | BQ38: =IF(AND($G$9="Żłobek, przedszkole",$G$10="Szczecin"),1+BF39,IF(AND($G$9="Szkoła sportowa",$G$10="Szczecin"),1+BF41,IF(AND($G$9="Szkoła podstawowa",$G$10="Szczecin"),1+BF43,IF(AND($G$9="Liceum ogólnokształcące",$G$10="Szczecin"),1+BF45,IF(AND($G$9="Liceum zawodowe",$G$10="Szczecin"),1+BF47,IF(AND($G$9="Technikum",$G$10="Szczecin"),1+BF49,IF(AND($G$9="Zasadnicza szkoła zawodowa",$G$10="Szczecin"),1+BF51,IF(AND($G$9="Szkoła policealna",$G$10="Szczecin"),1+BF53,IF(AND($G$9="Szkoła wyższa",$G$10="Szczecin"),1+BF55,IF(AND($G$9="Inne",$G$10="Szczecin"),1+BF57,IF(AND($G$9="Zespół szkół",$G$10="Szczecin"),1+BF59,IF(AND($G$9="Gimnazjum",$G$10="Szczecin"),1+BF61,IF(AND($G$9="Centrum kształcenia",$G$10="Szczecin"),1+BF63,IF(AND($G$9="Dom dziecka",$G$10="Szczecin"),1+BF65,"-")))))))))))))) -> -
F39: Zwrot kosztów leczenia do wysokości: | G39: sumy ubezpieczenia | I39: =IF(AY3=TRUE,IF(AQ39=TRUE,(((IF(AND($BJ$4=1,$AY$3=TRUE),(I$20*$AV$95/1000),IF(AND($BJ$4=2,$AY$3=TRUE),(I$20*$AW$95/1000),""))))*AQ23),((IF(AND($BJ$4=1,$AY$3=TRUE),(I$20*$AV$95/1000),IF(AND($BJ$4=2,$AY$3=TRUE),(I$20*$AW$95/1000),""))))),"") ->  | J39: =IF(AY14=TRUE,IF(AQ39=TRUE,(((IF(AND($BJ$4=1,$AY$14=TRUE),(I$20*$AV$95/1000),IF(AND($BJ$4=2,$AY$14=TRUE),(I$20*$AW$95/1000),""))))*AQ23),((IF(AND($BJ$4=1,$AY$14=TRUE),(I$20*$AV$95/1000),IF(AND($BJ$4=2,$AY$14=TRUE),(I$20*$AW$95/1000),""))))),"") ->  | L39: =IF(AY3=TRUE,IF(AR39=TRUE,(((IF(AND($BJ$4=1,$AY$3=TRUE),(L$20*$AV$95/1000),IF(AND($BJ$4=2,$AY$3=TRUE),(L$20*$AW$95/1000),""))))*AQ23),((IF(AND($BJ$4=1,$AY$3=TRUE),(L$20*$AV$95/1000),IF(AND($BJ$4=2,$AY$3=TRUE),(L$20*$AW$95/1000),""))))),"") ->  | M39: =IF(AY14=TRUE,IF(AR39=TRUE,(((IF(AND($BJ$4=1,$AY$14=TRUE),(L$20*$AV$95/1000),IF(AND($BJ$4=2,$AY$14=TRUE),(L$20*$AW$95/1000),""))))*AQ23),((IF(AND($BJ$4=1,$AY$14=TRUE),(L$20*$AV$95/1000),IF(AND($BJ$4=2,$AY$14=TRUE),(L$20*$AW$95/1000),""))))),"") ->  | O39: =IF(AY3=TRUE,IF(AS39=TRUE,(((IF(AND($BJ$4=1,$AY$3=TRUE),(O$20*$AV$95/1000),IF(AND($BJ$4=2,$AY$3=TRUE),(O$20*$AW$95/1000),""))))*AQ23),((IF(AND($BJ$4=1,$AY$3=TRUE),(O$20*$AV$95/1000),IF(AND($BJ$4=2,$AY$3=TRUE),(O$20*$AW$95/1000),""))))),"") ->  | P39: =IF(AY14=TRUE,IF(AS39=TRUE,(((IF(AND($BJ$4=1,$AY$14=TRUE),(O$20*$AV$95/1000),IF(AND($BJ$4=2,$AY$14=TRUE),(O$20*$AW$95/1000),""))))*AQ23),((IF(AND($BJ$4=1,$AY$14=TRUE),(O$20*$AV$95/1000),IF(AND($BJ$4=2,$AY$14=TRUE),(O$20*$AW$95/1000),""))))),"") ->  | AP39: Wariant 1 | AW39: Wariant II | AX39: -0.2 | AY39: -0.1 | AZ39: -0.25 | BA39: -0.25 | BB39: -0.15 | BC39: -0.2 | BD39: -0.3 | BE39: -0.25 | BF39: -0.2 | BH39: Zniżka (1/0) | BI39: =IF(OR(BI37<1,BI38<1),1,"") ->  | BJ39: =IF(OR(BJ37<1,BJ38<1),1,"") -> 
F40: Ryczałt za okres czasowej, całkowitej niezdolności do nauki lub pracy trwający dłużej niż 14 dni - 0,06% sumy ubezpieczenia za każdy dzień (do 180 dni łącznie ze wszystkich zdarzeń objętych umową) | I40: =IF(BJ5=TRUE,IF(AQ39=TRUE,(((IF($BJ$5=TRUE,(I$20*$AX$95/1000),0)))*AQ23),(((IF($BJ$5=TRUE,(I$20*$AX$95/1000),0))))),"") ->  | J40: =IF(BJ16=TRUE,IF(AQ39=TRUE,(((IF($BJ$16=TRUE,(I$20*$AX$95/1000),0)))*AQ23),(((IF($BJ$16=TRUE,(I$20*$AX$95/1000),0))))),"") ->  | L40: =IF(BJ5=TRUE,IF(AR39=TRUE,(((IF($BJ$5=TRUE,(L$20*$AX$95/1000),0)))*AQ23),(((IF($BJ$5=TRUE,(L$20*$AX$95/1000),0))))),"") ->  | M40: =IF(BJ16=TRUE,IF(AR39=TRUE,(((IF($BJ$16=TRUE,(L$20*$AX$95/1000),0)))*AQ23),(((IF($BJ$16=TRUE,(L$20*$AX$95/1000),0))))),"") ->  | O40: =IF(BJ5=TRUE,IF(AS39=TRUE,(((IF($BJ$5=TRUE,(O$20*$AX$95/1000),0)))*AQ23),(((IF($BJ$5=TRUE,(O$20*$AX$95/1000),0))))),"") ->  | P40: =IF(BJ16=TRUE,IF(AS39=TRUE,(((IF($BJ$16=TRUE,(O$20*$AX$95/1000),0)))*AQ23),(((IF($BJ$16=TRUE,(O$20*$AX$95/1000),0))))),"") ->  | AP40: Wariant 2 | AV40: Szkoła sportowa | AW40: Wariant I | AX40: 0 | AY40: 0 | AZ40: 0 | BA40: 0 | BB40: 0 | BC40: 0 | BD40: 0 | BE40: 0 | BF40: 0
F41: Dieta szpitalna, za każdy dzień pobytu w szpitalu 0,2% sumy ubezpieczenia (płatna przez maksymalny okres 90 dni z tytułu jednego nieszczęśliwego wypadku lub zdarzenia objętego umową) | I41: =IF(BJ6=TRUE,IF(AQ39=TRUE,(((IF($BJ$6=TRUE,(I$20*$AY$95/1000),0)))*AQ23),(((IF($BJ$6=TRUE,(I$20*$AY$95/1000),0))))),"") ->  | J41: =IF(BJ17=TRUE,IF(AQ39=TRUE,(((IF($BJ$17=TRUE,(I$20*$AY$95/1000),0)))*AQ23),(((IF($BJ$17=TRUE,(I$20*$AY$95/1000),0))))),"") ->  | L41: =IF(BJ6=TRUE,IF(AR39=TRUE,(((IF($BJ$6=TRUE,(L$20*$AY$95/1000),0)))*AQ23),(((IF($BJ$6=TRUE,(L$20*$AY$95/1000),0))))),"") ->  | M41: =IF(BJ17=TRUE,IF(AR39=TRUE,(((IF($BJ$17=TRUE,(L$20*$AY$95/1000),0)))*AQ23),(((IF($BJ$17=TRUE,(L$20*$AY$95/1000),0))))),"") ->  | O41: =IF(BJ6=TRUE,IF(AS39=TRUE,(((IF($BJ$6=TRUE,(O$20*$AY$95/1000),0)))*AQ23),(((IF($BJ$6=TRUE,(O$20*$AY$95/1000),0))))),"") ->  | P41: =IF(BJ17=TRUE,IF(AS39=TRUE,(((IF($BJ$17=TRUE,(O$20*$AY$95/1000),0)))*AQ23),(((IF($BJ$17=TRUE,(O$20*$AY$95/1000),0))))),"") ->  | AC41: ZNIŻKA | AD41: Kiedy powyżej 0 | AE41: =IF(R26>0,TRUE, FALSE) -> FALSE | AP41: Wariant 2 BIS | AW41: Wariant II | AX41: 0 | AY41: 0 | AZ41: 0 | BA41: 0 | BB41: 0 | BC41: 0 | BD41: 0 | BE41: 0 | BF41: 0
F42: Jednorazowe świadczenie w przypadku zgonu ubezpieczonego spowodowane nowotworem złośliwym w wysokości 1.000 zł | I42: =IF(BJ7=TRUE,IF(AQ39=TRUE,(((IF($BJ$7=TRUE,0.1,0)))*AQ23),(((IF($BJ$7=TRUE,0.1,0))))),"") ->  | J42: =IF(BJ18=TRUE,IF(AQ39=TRUE,(((IF($BJ$18=TRUE,0.1,0)))*AQ23),(((IF($BJ$18=TRUE,0.1,0))))),"") ->  | L42: =IF(BJ7=TRUE,IF(AR39=TRUE,(((IF($BJ$7=TRUE,0.1,0)))*AQ23),(((IF($BJ$7=TRUE,0.1,0))))),"") ->  | M42: =IF(BJ18=TRUE,IF(AS39=TRUE,(((IF($BJ$18=TRUE,0.1,0)))*AQ23),(((IF($BJ$18=TRUE,0.1,0))))),"") ->  | O42: =IF(BJ7=TRUE,IF(AS39=TRUE,(((IF($BJ$7=TRUE,0.1,0)))*AQ23),(((IF($BJ$7=TRUE,0.1,0))))),"") ->  | P42: =IF(BJ18=TRUE,IF(AS39=TRUE,(((IF($BJ$18=TRUE,0.1,0)))*AQ23),(((IF($BJ$18=TRUE,0.1,0))))),"") ->  | Z42: Zniżka | AA42: =IF(R24<0,TRUE,IF(R24=0,TRUE,IF(R24>0,FALSE,0))) -> TRUE | AD42: Kiedy 0 | AE42: =IF(R26=0,TRUE,FALSE) -> TRUE | AH42: PERSONEL | AO42: DZIECI | AV42: Szkoła podstawowa | AW42: Wariant I | AX42: -0.05 | AY42: 0.2 | AZ42: -0.15 | BA42: 0.1 | BB42: 0.05 | BC42: -0.1 | BD42: -0.1 | BE42: 0.25 | BF42: 0.15
F43: Jednorazowe świadczenie w przypadku zgonu dziecka lub ucznia w wieku do 25 lat z powodu wrodzonej wady serca w wysokości 1.000 zł | I43: =IF(BJ8=TRUE,IF(AQ39=TRUE,(((IF($BJ$8=TRUE,0.1,0)))*AQ23),(((IF($BJ$8=TRUE,0.1,0))))),"") ->  | L43: =IF(BJ8=TRUE,IF(AR39=TRUE,(((IF($BJ$8=TRUE,0.1,0)))*AQ23),(((IF($BJ$8=TRUE,0.1,0))))),"") ->  | O43: =IF(BJ8=TRUE,IF(AS39=TRUE,(((IF($BJ$8=TRUE,0.1,0)))*AQ23),(((IF($BJ$8=TRUE,0.1,0))))),"") ->  | Z43: Zwyżka | AA43: =IF(AA42=TRUE,FALSE,TRUE) -> FALSE | AD43: Pomiędzy 0 a zniżka z tabeli | AE43: =IF(AND(R26<0,R26>R24),TRUE,FALSE) -> FALSE | AI43: ŚWIADCZENIA DODATKOWE | AJ43: suma 1 | AK43: suma 2 | AL43: suma 3 | AP43: ŚWIADCZENIA DODATKOWE | AQ43: suma 1 | AR43: suma 2 | AS43: suma 3 | AW43: Wariant II | AX43: 0.3 | AY43: 0.6 | AZ43: 0 | BA43: 0.3 | BB43: 0.5 | BC43: 0.3 | BD43: 0.2 | BE43: 0.5 | BF43: 0.3
F44: Jednorazowe świadczenie w przypadku śmierci przedstawiciela ustawowego lub osoby, która ma na utrzymaniu ucznia w wysokości 1.000 zł | I44: =IF(BJ10=TRUE,IF(AQ39=TRUE,(((IF($BJ$10=TRUE,0.1,0)))*AQ23),(((IF($BJ$10=TRUE,0.1,0))))),"") ->  | L44: =IF(BJ10=TRUE,IF(AR39=TRUE,(((IF($BJ$10=TRUE,0.1,0)))*AQ23),(((IF($BJ$10=TRUE,0.1,0))))),"") ->  | O44: =IF(BJ10=TRUE,IF(AS39=TRUE,(((IF($BJ$10=TRUE,0.1,0)))*AQ23),(((IF($BJ$10=TRUE,0.1,0))))),"") ->  | AD44: Kiedy poniżej zniżki z tabeli | AE44: =IF(R26<R24,TRUE,FALSE) -> FALSE | AI44: zniżka incydentalna | AP44: zniżka incydentalna | AV44: Liceum ogólnokształcące | AW44: Wariant I | AX44: -0.2 | AY44: 0.05 | AZ44: -0.1 | BA44: -0.1 | BB44: -0.05 | BC44: -0.1 | BD44: -0.2 | BE44: 0.05 | BF44: -0.1
F45: Jednorazowe świadczenie w przypadku amputacji kończyny spowodowanej nowotworem złośliwym u dziecka lub ucznia w wieku do 25 lat w wysokości 1.000 zł | I45: =IF(BJ11=TRUE,IF(AQ39=TRUE,(((IF($BJ$11=TRUE,0.1,0)))*AQ23),(((IF($BJ$11=TRUE,0.1,0))))),"") ->  | L45: =IF(BJ11=TRUE,IF(AR39=TRUE,(((IF($BJ$11=TRUE,0.1,0)))*AQ23),(((IF($BJ$11=TRUE,0.1,0))))),"") ->  | O45: =IF(BJ11=TRUE,IF(AS39=TRUE,(((IF($BJ$11=TRUE,0.1,0)))*AQ23),(((IF($BJ$11=TRUE,0.1,0))))),"") ->  | AD45: Kiedy równe z palca i z tabeli | AE45: =IF(R26=R24,TRUE,FALSE) -> TRUE | AH45: WARIANT 1 | AI45: ZE ZNIŻKĄ | AJ45: =((IF(AND($BJ$4=1,$AY$14=TRUE),(I$20*$AV$95/1000),IF(AND($BJ$4=2,$AY$14=TRUE),(I$20*$AW$95/1000),0)))+(IF($BJ$16=TRUE,(I$20*$AX$95/1000),0))+(IF($BJ$17=TRUE,(I$20*$AY$95/1000),0))+(IF($BJ$18=TRUE,0.1,0)))*$AQ$23 -> 0 | AK45: =((IF(AND($BJ$4=1,$AY$14=TRUE),(L$20*$AV$95/1000),IF(AND($BJ$4=2,$AY$14=TRUE),(L$20*$AW$95/1000),0)))+(IF($BJ$16=TRUE,(L$20*$AX$95/1000),0))+(IF($BJ$17=TRUE,(L$20*$AY$95/1000),0))+(IF($BJ$18=TRUE,0.1,0)))*$AQ$23 -> 0 | AL45: =((IF(AND($BJ$4=1,$AY$14=TRUE),(O$20*$AV$95/1000),IF(AND($BJ$4=2,$AY$14=TRUE),(O$20*$AW$95/1000),0)))+(IF($BJ$16=TRUE,(O$20*$AX$95/1000),0))+(IF($BJ$17=TRUE,(O$20*$AY$95/1000),0))+(IF($BJ$18=TRUE,0.1,0)))*$AQ$23 -> 0 | AO45: WARIANT 1 | AP45: ZE ZNIŻKĄ | AQ45: =((IF(AND($BJ$4=1,$AY$3=TRUE),(I$20*$AV$95/1000),IF(AND($BJ$4=2,$AY$3=TRUE),(I$20*$AW$95/1000),0)))+(IF($BJ$5=TRUE,(I$20*$AX$95/1000),0))+(IF($BJ$6=TRUE,(I$20*$AY$95/1000),0))+(IF($BJ$7=TRUE,0.1,0))+(IF($BJ$8=TRUE,0.1,0))+(IF($BJ$9=TRUE,0.1,0))+(IF($BJ$10=TRUE,0.1,0))+(IF($BJ$11=TRUE,0.1,0)))*$AQ$23 -> 0 | AR45: =((IF(AND($BJ$4=1,$AY$3=TRUE),(L$20*$AV$95/1000),IF(AND($BJ$4=2,$AY$3=TRUE),(L$20*$AW$95/1000),0)))+(IF($BJ$5=TRUE,(L$20*$AX$95/1000),0))+(IF($BJ$6=TRUE,(L$20*$AY$95/1000),0))+(IF($BJ$7=TRUE,0.1,0))+(IF($BJ$8=TRUE,0.1,0))+(IF($BJ$9=TRUE,0.1,0))+(IF($BJ$10=TRUE,0.1,0))+(IF($BJ$11=TRUE,0.1,0)))*$AQ$23 -> 0 | AS45: =((IF(AND($BJ$4=1,$AY$3=TRUE),(O$20*$AV$95/1000),IF(AND($BJ$4=2,$AY$3=TRUE),(O$20*$AW$95/1000),0)))+(IF($BJ$5=TRUE,(O$20*$AX$95/1000),0))+(IF($BJ$6=TRUE,(O$20*$AY$95/1000),0))+(IF($BJ$7=TRUE,0.1,0))+(IF($BJ$8=TRUE,0.1,0))+(IF($BJ$9=TRUE,0.1,0))+(IF($BJ$10=TRUE,0.1,0))+(IF($BJ$11=TRUE,0.1,0)))*$AQ$23 -> 0 | AW45: Wariant II | AX45: -0.1 | AY45: 0.15 | AZ45: -0.1 | BA45: 0.05 | BB45: 0.1 | BC45: 0.05 | BD45: -0.2 | BE45: -0.05 | BF45: 0
B46: W przypadku objęcia ubezpieczeniem wszystkich dzieci i młodzieży danej placówki, do której uczęszczają uczniowie znajdujący się w trudnej sytuacji materialnej, PZU SA - na wniosek ubezpieczającego - może zastosować specjalną zniżkę od składki należnej z całej polisy. Zniżka nie ma zastosowania do umów zawieranych ze szkołami wieczorowymi i zaocznymi. | AI46: FINALNY WYNIK | AJ46: =IF(AQ$39=TRUE,AJ45,AJ47) -> 0 | AK46: =IF(AR$39=TRUE,AK45,AK47) -> 0 | AL46: =IF(AS$39=TRUE,AL45,AL47) -> 0 | AP46: FINALNY WYNIK | AQ46: =IF(AQ$39=TRUE,AQ45,AQ47) -> 0 | AR46: =IF(AR$39=TRUE,AR45,AR47) -> 0 | AS46: =IF(AS$39=TRUE,AS45,AS47) -> 0 | AV46: Liceum zawodowe | AW46: Wariant I | AX46: -0.15 | AY46: -0.1 | AZ46: -0.15 | BA46: -0.05 | BB46: -0.05 | BC46: -0.05 | BD46: -0.05 | BE46: -0.05 | BF46: -0.05
AI47: BEZ ZNIŻKI | AJ47: =(IF(AND($BJ$4=1,$AY$14=TRUE),(I$20*$AV$95/1000),IF(AND($BJ$4=2,$AY$14=TRUE),(I$20*$AW$95/1000),0)))+(IF($BJ$16=TRUE,(I$20*$AX$95/1000),0))+(IF($BJ$17=TRUE,(I$20*$AY$95/1000),0))+(IF($BJ$18=TRUE,0.1,0)) -> 0 | AK47: =(IF(AND($BJ$4=1,$AY$14=TRUE),(L$20*$AV$95/1000),IF(AND($BJ$4=2,$AY$14=TRUE),(L$20*$AW$95/1000),0)))+(IF($BJ$16=TRUE,(L$20*$AX$95/1000),0))+(IF($BJ$17=TRUE,(L$20*$AY$95/1000),0))+(IF($BJ$18=TRUE,0.1,0)) -> 0 | AL47: =(IF(AND($BJ$4=1,$AY$14=TRUE),(O$20*$AV$95/1000),IF(AND($BJ$4=2,$AY$14=TRUE),(O$20*$AW$95/1000),0)))+(IF($BJ$16=TRUE,(O$20*$AX$95/1000),0))+(IF($BJ$17=TRUE,(O$20*$AY$95/1000),0))+(IF($BJ$18=TRUE,0.1,0)) -> 0 | AP47: BEZ ZNIŻKI | AQ47: =(IF(AND($BJ$4=1,$AY$3=TRUE),(I$20*$AV$95/1000),IF(AND($BJ$4=2,$AY$3=TRUE),(I$20*$AW$95/1000),0)))+(IF($BJ$5=TRUE,(I$20*$AX$95/1000),0))+(IF($BJ$6=TRUE,(I$20*$AY$95/1000),0))+(IF($BJ$7=TRUE,0.1,0))+(IF($BJ$8=TRUE,0.1,0))+(IF($BJ$9=TRUE,0.1,0))+(IF($BJ$10=TRUE,0.1,0))+(IF($BJ$11=TRUE,0.1,0)) -> 0 | AR47: =(IF(AND($BJ$4=1,$AY$3=TRUE),(L$20*$AV$95/1000),IF(AND($BJ$4=2,$AY$3=TRUE),(L$20*$AW$95/1000),0)))+(IF($BJ$5=TRUE,(L$20*$AX$95/1000),0))+(IF($BJ$6=TRUE,(L$20*$AY$95/1000),0))+(IF($BJ$7=TRUE,0.1,0))+(IF($BJ$8=TRUE,0.1,0))+(IF($BJ$9=TRUE,0.1,0))+(IF($BJ$10=TRUE,0.1,0))+(IF($BJ$11=TRUE,0.1,0)) -> 0 | AS47: =(IF(AND($BJ$4=1,$AY$3=TRUE),(O$20*$AV$95/1000),IF(AND($BJ$4=2,$AY$3=TRUE),(O$20*$AW$95/1000),0)))+(IF($BJ$5=TRUE,(O$20*$AX$95/1000),0))+(IF($BJ$6=TRUE,(O$20*$AY$95/1000),0))+(IF($BJ$7=TRUE,0.1,0))+(IF($BJ$8=TRUE,0.1,0))+(IF($BJ$9=TRUE,0.1,0))+(IF($BJ$10=TRUE,0.1,0))+(IF($BJ$11=TRUE,0.1,0)) -> 0 | AW47: Wariant II | AX47: -0.1 | AY47: -0.05 | AZ47: -0.05 | BA47: 0 | BB47: -0.15 | BC47: -0.05 | BD47: 0.05 | BE47: -0.05 | BF47: -0.1
AH48: WARIANT 2 | AI48: ZE ZNIŻKĄ | AJ48: =((IF(AND($BJ$4=1,$AY$14=TRUE),(I$20*$AV$95/1000),IF(AND($BJ$4=2,$AY$14=TRUE),(I$20*$AW$95/1000),0)))+(IF($BJ$16=TRUE,(I$20*$AX$95/1000),0))+(IF($BJ$17=TRUE,(I$20*$AY$95/1000),0))+(IF($BJ$18=TRUE,0.1,0)))*$AQ$23 -> 0 | AK48: =((IF(AND($BJ$4=1,$AY$14=TRUE),(L$20*$AV$95/1000),IF(AND($BJ$4=2,$AY$14=TRUE),(L$20*$AW$95/1000),0)))+(IF($BJ$16=TRUE,(L$20*$AX$95/1000),0))+(IF($BJ$17=TRUE,(L$20*$AY$95/1000),0))+(IF($BJ$18=TRUE,0.1,0)))*$AQ$23 -> 0 | AL48: =((IF(AND($BJ$4=1,$AY$14=TRUE),(O$20*$AV$95/1000),IF(AND($BJ$4=2,$AY$14=TRUE),(O$20*$AW$95/1000),0)))+(IF($BJ$16=TRUE,(O$20*$AX$95/1000),0))+(IF($BJ$17=TRUE,(O$20*$AY$95/1000),0))+(IF($BJ$18=TRUE,0.1,0)))*$AQ$23 -> 0 | AO48: WARIANT 2 | AP48: ZE ZNIŻKĄ | AQ48: =((IF(AND($BJ$4=1,$AY$3=TRUE),(I$20*$AV$95/1000),IF(AND($BJ$4=2,$AY$3=TRUE),(I$20*$AW$95/1000),0)))+(IF($BJ$5=TRUE,(I$20*$AX$95/1000),0))+(IF($BJ$6=TRUE,(I$20*$AY$95/1000),0))+(IF($BJ$7=TRUE,0.1,0))+(IF($BJ$8=TRUE,0.1,0))+(IF($BJ$9=TRUE,0.1,0))+(IF($BJ$10=TRUE,0.1,0))+(IF($BJ$11=TRUE,0.1,0)))*$AQ$23 -> 0 | AR48: =((IF(AND($BJ$4=1,$AY$3=TRUE),(L$20*$AV$95/1000),IF(AND($BJ$4=2,$AY$3=TRUE),(L$20*$AW$95/1000),0)))+(IF($BJ$5=TRUE,(L$20*$AX$95/1000),0))+(IF($BJ$6=TRUE,(L$20*$AY$95/1000),0))+(IF($BJ$7=TRUE,0.1,0))+(IF($BJ$8=TRUE,0.1,0))+(IF($BJ$9=TRUE,0.1,0))+(IF($BJ$10=TRUE,0.1,0))+(IF($BJ$11=TRUE,0.1,0)))*$AQ$23 -> 0 | AS48: =((IF(AND($BJ$4=1,$AY$3=TRUE),(O$20*$AV$95/1000),IF(AND($BJ$4=2,$AY$3=TRUE),(O$20*$AW$95/1000),0)))+(IF($BJ$5=TRUE,(O$20*$AX$95/1000),0))+(IF($BJ$6=TRUE,(O$20*$AY$95/1000),0))+(IF($BJ$7=TRUE,0.1,0))+(IF($BJ$8=TRUE,0.1,0))+(IF($BJ$9=TRUE,0.1,0))+(IF($BJ$10=TRUE,0.1,0))+(IF($BJ$11=TRUE,0.1,0)))*$AQ$23 -> 0 | AV48: Technikum | AW48: Wariant I | AX48: -0.05 | AY48: 0.25 | AZ48: -0.05 | BA48: -0.1 | BB48: 0 | BC48: -0.05 | BD48: -0.1 | BE48: 0 | BF48: 0.15
B49: Przedstawiciel PZU: | AI49: FINALNY WYNIK | AJ49: =IF(AQ$40=TRUE,AJ48,AJ50) -> 0 | AK49: =IF(AR$40=TRUE,AK48,AK50) -> 0 | AL49: =IF(AS$40=TRUE,AL48,AL50) -> 0 | AP49: FINALNY WYNIK | AQ49: =IF(AQ$40=TRUE,AQ48,AQ50) -> 0 | AR49: =IF(AR$40=TRUE,AR48,AR50) -> 0 | AS49: =IF(AS$40=TRUE,AS48,AS50) -> 0 | AW49: Wariant II | AX49: 0.2 | AY49: 0.2 | AZ49: 0.2 | BA49: 0.3 | BB49: 0.2 | BC49: 0.3 | BD49: 0.3 | BE49: 0.2 | BF49: 0.2
B50: =IF(F3>0,F3,"") ->  | AI50: BEZ ZNIŻKI | AJ50: =(IF(AND($BJ$4=1,$AY$14=TRUE),(I$20*$AV$95/1000),IF(AND($BJ$4=2,$AY$14=TRUE),(I$20*$AW$95/1000),0)))+(IF($BJ$16=TRUE,(I$20*$AX$95/1000),0))+(IF($BJ$17=TRUE,(I$20*$AY$95/1000),0))+(IF($BJ$18=TRUE,0.1,0)) -> 0 | AK50: =(IF(AND($BJ$4=1,$AY$14=TRUE),(L$20*$AV$95/1000),IF(AND($BJ$4=2,$AY$14=TRUE),(L$20*$AW$95/1000),0)))+(IF($BJ$16=TRUE,(L$20*$AX$95/1000),0))+(IF($BJ$17=TRUE,(L$20*$AY$95/1000),0))+(IF($BJ$18=TRUE,0.1,0)) -> 0 | AL50: =(IF(AND($BJ$4=1,$AY$14=TRUE),(O$20*$AV$95/1000),IF(AND($BJ$4=2,$AY$14=TRUE),(O$20*$AW$95/1000),0)))+(IF($BJ$16=TRUE,(O$20*$AX$95/1000),0))+(IF($BJ$17=TRUE,(O$20*$AY$95/1000),0))+(IF($BJ$18=TRUE,0.1,0)) -> 0 | AP50: BEZ ZNIŻKI | AQ50: =(IF(AND($BJ$4=1,$AY$3=TRUE),(I$20*$AV$95/1000),IF(AND($BJ$4=2,$AY$3=TRUE),(I$20*$AW$95/1000),0)))+(IF($BJ$5=TRUE,(I$20*$AX$95/1000),0))+(IF($BJ$6=TRUE,(I$20*$AY$95/1000),0))+(IF($BJ$7=TRUE,0.1,0))+(IF($BJ$8=TRUE,0.1,0))+(IF($BJ$9=TRUE,0.1,0))+(IF($BJ$10=TRUE,0.1,0))+(IF($BJ$11=TRUE,0.1,0)) -> 0 | AR50: =(IF(AND($BJ$4=1,$AY$3=TRUE),(L$20*$AV$95/1000),IF(AND($BJ$4=2,$AY$3=TRUE),(L$20*$AW$95/1000),0)))+(IF($BJ$5=TRUE,(L$20*$AX$95/1000),0))+(IF($BJ$6=TRUE,(L$20*$AY$95/1000),0))+(IF($BJ$7=TRUE,0.1,0))+(IF($BJ$8=TRUE,0.1,0))+(IF($BJ$9=TRUE,0.1,0))+(IF($BJ$10=TRUE,0.1,0))+(IF($BJ$11=TRUE,0.1,0)) -> 0 | AS50: =(IF(AND($BJ$4=1,$AY$3=TRUE),(O$20*$AV$95/1000),IF(AND($BJ$4=2,$AY$3=TRUE),(O$20*$AW$95/1000),0)))+(IF($BJ$5=TRUE,(O$20*$AX$95/1000),0))+(IF($BJ$6=TRUE,(O$20*$AY$95/1000),0))+(IF($BJ$7=TRUE,0.1,0))+(IF($BJ$8=TRUE,0.1,0))+(IF($BJ$9=TRUE,0.1,0))+(IF($BJ$10=TRUE,0.1,0))+(IF($BJ$11=TRUE,0.1,0)) -> 0 | AV50: Zasadnicza szkoła zawodowa | AW50: Wariant I | AX50: -0.05 | AY50: 0.1 | AZ50: 0 | BA50: -0.05 | BB50: 0.05 | BC50: -0.05 | BD50: 0 | BE50: 0.15 | BF50: 0.05
B51: =IF(F4>0,F4,"") ->  | AH51: WARIANT 2 BIS | AI51: ZE ZNIŻKĄ | AJ51: =((IF(AND($BJ$4=1,$AY$14=TRUE),(I$20*$AV$95/1000),IF(AND($BJ$4=2,$AY$14=TRUE),(I$20*$AW$95/1000),0)))+(IF($BJ$16=TRUE,(I$20*$AX$95/1000),0))+(IF($BJ$17=TRUE,(I$20*$AY$95/1000),0))+(IF($BJ$18=TRUE,0.1,0)))*$AQ$23 -> 0 | AK51: =((IF(AND($BJ$4=1,$AY$14=TRUE),(L$20*$AV$95/1000),IF(AND($BJ$4=2,$AY$14=TRUE),(L$20*$AW$95/1000),0)))+(IF($BJ$16=TRUE,(L$20*$AX$95/1000),0))+(IF($BJ$17=TRUE,(L$20*$AY$95/1000),0))+(IF($BJ$18=TRUE,0.1,0)))*$AQ$23 -> 0 | AL51: =((IF(AND($BJ$4=1,$AY$14=TRUE),(O$20*$AV$95/1000),IF(AND($BJ$4=2,$AY$14=TRUE),(O$20*$AW$95/1000),0)))+(IF($BJ$16=TRUE,(O$20*$AX$95/1000),0))+(IF($BJ$17=TRUE,(O$20*$AY$95/1000),0))+(IF($BJ$18=TRUE,0.1,0)))*$AQ$23 -> 0 | AO51: WARIANT 2 BIS | AP51: ZE ZNIŻKĄ | AQ51: =((IF(AND($BJ$4=1,$AY$3=TRUE),(I$20*$AV$95/1000),IF(AND($BJ$4=2,$AY$3=TRUE),(I$20*$AW$95/1000),0)))+(IF($BJ$5=TRUE,(I$20*$AX$95/1000),0))+(IF($BJ$6=TRUE,(I$20*$AY$95/1000),0))+(IF($BJ$7=TRUE,0.1,0))+(IF($BJ$8=TRUE,0.1,0))+(IF($BJ$9=TRUE,0.1,0))+(IF($BJ$10=TRUE,0.1,0))+(IF($BJ$11=TRUE,0.1,0)))*$AQ$23 -> 0 | AR51: =((IF(AND($BJ$4=1,$AY$3=TRUE),(L$20*$AV$95/1000),IF(AND($BJ$4=2,$AY$3=TRUE),(L$20*$AW$95/1000),0)))+(IF($BJ$5=TRUE,(L$20*$AX$95/1000),0))+(IF($BJ$6=TRUE,(L$20*$AY$95/1000),0))+(IF($BJ$7=TRUE,0.1,0))+(IF($BJ$8=TRUE,0.1,0))+(IF($BJ$9=TRUE,0.1,0))+(IF($BJ$10=TRUE,0.1,0))+(IF($BJ$11=TRUE,0.1,0)))*$AQ$23 -> 0 | AS51: =((IF(AND($BJ$4=1,$AY$3=TRUE),(O$20*$AV$95/1000),IF(AND($BJ$4=2,$AY$3=TRUE),(O$20*$AW$95/1000),0)))+(IF($BJ$5=TRUE,(O$20*$AX$95/1000),0))+(IF($BJ$6=TRUE,(O$20*$AY$95/1000),0))+(IF($BJ$7=TRUE,0.1,0))+(IF($BJ$8=TRUE,0.1,0))+(IF($BJ$9=TRUE,0.1,0))+(IF($BJ$10=TRUE,0.1,0))+(IF($BJ$11=TRUE,0.1,0)))*$AQ$23 -> 0 | AW51: Wariant II | AX51: 0.2 | AY51: 0.3 | AZ51: 0.3 | BA51: 0.2 | BB51: 0.2 | BC51: 0.3 | BD51: 0.2 | BE51: 0.2 | BF51: 0.2
B52: =IF(F5>0,F5,"") ->  | AI52: FINALNY WYNIK | AJ52: =IF(AQ$41=TRUE,AJ51,AJ53) -> 0 | AK52: =IF(AR$41=TRUE,AK51,AK53) -> 0 | AL52: =IF(AS$41=TRUE,AL51,AL53) -> 0 | AP52: FINALNY WYNIK | AQ52: =IF(AQ$41=TRUE,AQ51,AQ53) -> 0 | AR52: =IF(AR$41=TRUE,AR51,AR53) -> 0 | AS52: =IF(AS$41=TRUE,AS51,AS53) -> 0 | AV52: Szkoła policealna | AW52: Wariant I | AX52: -0.1 | AY52: 0 | AZ52: -0.1 | BA52: 0.05 | BB52: -0.1 | BC52: -0.1 | BD52: 0.1 | BE52: 0.05 | BF52: -0.05
B53: =IF(F6>0,F6,"") ->  | H53: PODPIS | AI53: BEZ ZNIŻKI | AJ53: =(IF(AND($BJ$4=1,$AY$14=TRUE),(I$20*$AV$95/1000),IF(AND($BJ$4=2,$AY$14=TRUE),(I$20*$AW$95/1000),0)))+(IF($BJ$16=TRUE,(I$20*$AX$95/1000),0))+(IF($BJ$17=TRUE,(I$20*$AY$95/1000),0))+(IF($BJ$18=TRUE,0.1,0)) -> 0 | AK53: =(IF(AND($BJ$4=1,$AY$14=TRUE),(L$20*$AV$95/1000),IF(AND($BJ$4=2,$AY$14=TRUE),(L$20*$AW$95/1000),0)))+(IF($BJ$16=TRUE,(L$20*$AX$95/1000),0))+(IF($BJ$17=TRUE,(L$20*$AY$95/1000),0))+(IF($BJ$18=TRUE,0.1,0)) -> 0 | AL53: =(IF(AND($BJ$4=1,$AY$14=TRUE),(O$20*$AV$95/1000),IF(AND($BJ$4=2,$AY$14=TRUE),(O$20*$AW$95/1000),0)))+(IF($BJ$16=TRUE,(O$20*$AX$95/1000),0))+(IF($BJ$17=TRUE,(O$20*$AY$95/1000),0))+(IF($BJ$18=TRUE,0.1,0)) -> 0 | AP53: BEZ ZNIŻKI | AQ53: =(IF(AND($BJ$4=1,$AY$3=TRUE),(I$20*$AV$95/1000),IF(AND($BJ$4=2,$AY$3=TRUE),(I$20*$AW$95/1000),0)))+(IF($BJ$5=TRUE,(I$20*$AX$95/1000),0))+(IF($BJ$6=TRUE,(I$20*$AY$95/1000),0))+(IF($BJ$7=TRUE,0.1,0))+(IF($BJ$8=TRUE,0.1,0))+(IF($BJ$9=TRUE,0.1,0))+(IF($BJ$10=TRUE,0.1,0))+(IF($BJ$11=TRUE,0.1,0)) -> 0 | AR53: =(IF(AND($BJ$4=1,$AY$3=TRUE),(L$20*$AV$95/1000),IF(AND($BJ$4=2,$AY$3=TRUE),(L$20*$AW$95/1000),0)))+(IF($BJ$5=TRUE,(L$20*$AX$95/1000),0))+(IF($BJ$6=TRUE,(L$20*$AY$95/1000),0))+(IF($BJ$7=TRUE,0.1,0))+(IF($BJ$8=TRUE,0.1,0))+(IF($BJ$9=TRUE,0.1,0))+(IF($BJ$10=TRUE,0.1,0))+(IF($BJ$11=TRUE,0.1,0)) -> 0 | AS53: =(IF(AND($BJ$4=1,$AY$3=TRUE),(O$20*$AV$95/1000),IF(AND($BJ$4=2,$AY$3=TRUE),(O$20*$AW$95/1000),0)))+(IF($BJ$5=TRUE,(O$20*$AX$95/1000),0))+(IF($BJ$6=TRUE,(O$20*$AY$95/1000),0))+(IF($BJ$7=TRUE,0.1,0))+(IF($BJ$8=TRUE,0.1,0))+(IF($BJ$9=TRUE,0.1,0))+(IF($BJ$10=TRUE,0.1,0))+(IF($BJ$11=TRUE,0.1,0)) -> 0 | AW53: Wariant II | AX53: 0 | AY53: 0.15 | AZ53: 0 | BA53: 0 | BB53: 0 | BC53: 0.1 | BD53: 0 | BE53: -0.1 | BF53: -0.1
AV54: Szkoła wyższa | AW54: Wariant I | AX54: 0 | AY54: -0.1 | AZ54: -0.1 | BA54: -0.15 | BB54: -0.1 | BC54: -0.1 | BD54: -0.1 | BE54: -0.1 | BF54: -0.15
AW55: Wariant II | AX55: -0.2 | AY55: -0.2 | AZ55: -0.2 | BA55: -0.1 | BB55: -0.05 | BC55: -0.2 | BD55: -0.1 | BE55: -0.1 | BF55: -0.1
AV56: Inne | AW56: Wariant I | AX56: -0.15 | AY56: -0.15 | AZ56: -0.2 | BA56: -0.2 | BB56: -0.05 | BC56: -0.2 | BD56: -0.2 | BE56: -0.05 | BF56: -0.2
AW57: Wariant II | AX57: -0.15 | AY57: -0.15 | AZ57: -0.15 | BA57: -0.15 | BB57: -0.05 | BC57: -0.15 | BD57: -0.1 | BE57: 0 | BF57: -0.1
AV58: Zespół szkół | AW58: Wariant I | AX58: 0.05 | AY58: 0.2 | AZ58: -0.05 | BA58: 0.2 | BB58: 0.3 | BC58: -0.05 | BD58: -0.15 | BE58: 0.2 | BF58: 0.1
AW59: Wariant II | AX59: 0.4 | AY59: 0.5 | AZ59: 0.4 | BA59: 0.5 | BB59: 0.4 | BC59: 0.3 | BD59: 0.3 | BE59: 0.5 | BF59: 0.4
AV60: Gimnazjum | AW60: Wariant I | AX60: 0.4 | AY60: 0.4 | AZ60: 0.15 | BA60: 0.4 | BB60: 0.25 | BC60: 0.35 | BD60: 0.15 | BE60: 0.4 | BF60: 0.3
AW61: Wariant II | AX61: 0.7 | AY61: 0.7 | AZ61: 0.5 | BA61: 0.7 | BB61: 0.7 | BC61: 0.7 | BD61: 0.7 | BE61: 0.7 | BF61: 0.7
AV62: Centrum kształcenia | AW62: Wariant I | AX62: -0.2 | AY62: -0.1 | AZ62: -0.1 | BA62: -0.15 | BB62: -0.15 | BC62: -0.1 | BD62: -0.1 | BE62: -0.05 | BF62: -0.05
AW63: Wariant II | AX63: 0.05 | AY63: -0.2 | AZ63: -0.1 | BA63: -0.05 | BB63: -0.05 | BC63: -0.1 | BD63: -0.15 | BE63: -0.15 | BF63: -0.1
AV64: Dom dziecka | AW64: Wariant I | AX64: -0.25 | AY64: -0.25 | AZ64: -0.25 | BA64: -0.25 | BB64: -0.25 | BC64: -0.25 | BD64: -0.25 | BE64: -0.25 | BF64: -0.25
AW65: Wariant II | AX65: -0.25 | AY65: -0.15 | AZ65: -0.25 | BA65: -0.15 | BB65: -0.25 | BC65: -0.25 | BD65: -0.15 | BE65: -0.25 | BF65: -0.25
AV68: Przykład wyliczenia składki za świadczenia podstawowedla szkoły podstawowej w Oddziale w Warszawie o wskaźniku szkodowości > 40%
AV69: suma ubezpieczenia | AW69: 10000
AW70: wariant I | AX70: wariant II | AY70: wariant II Bis*
AV71: składka za 1 osobę za świadczenia podstawowe | AW71: =AW5*AW69/1000*0.9 -> 42.3 | AX71: =AX5*AW69/1000*1.2 -> 48 | AY71: =AX71*0.7 -> 33.6
AV72: * składka za wariant II BIS = składka za wariant II - zniżka 30%
AV74: Przykład wyliczenia składki za świadczenia podstawowe dla szkoły podstawowej w Oddziale w Warszawie o wskaźniku szkodowości ≤ 40%
AV75: suma ubezpieczenia | AW75: 10000
AW76: wariant I | AX76: wariant II | AY76: wariant II Bis*
AV77: składka za 1 osobę za świadczenia podstawowe | AW77: =AW5*AW75/1000*0.8 -> 37.6 | AX77: =AX5*AW75/1000 -> 40 | AY77: =AX77*0.7 -> 28
AV78: * składka za wariant II BIS = składka za wariant II - zniżka 30%
AV80: Przykład wyliczenia składki za swiadczenia podstawowe dla nowej szkoły podstawowej w Oddziale w Warszawie
AV81: suma ubezpieczenia | AW81: 10000
AW82: wariant I | AX82: wariant II | AY82: wariant II Bis*
AV83: składka za 1 osobę za świadczenia podstawowe | AW83: =AW5*AW81/1000*0.9 -> 42.3 | AX83: =AX5*AW81/1000 -> 40 | AY83: =AX83*0.7 -> 28
AV84: * składka za wariant II BIS = składka za wariant II - zniżka 30%
AV86: Zniżki/zwyżki z tabeli stosuje się wyłącznie do taryfowych stawek wyjściowych za świadczenia podstawowe.
AV87: Zniżek/zwyżek z tabeli nie stosuje się do taryfowych stawek wyjściowych za świadczenia dodatkowe
AV89: STAWKI TARYFOWE DLA ŚWIADCZEŃ DODATKOWYCH
AV91: niezależnie od rodzaju placówki i wariantu ubezpieczenia
AV93: Koszty leczenia | AX93: Ryczałt za okres niezdolności | AY93: Dieta szpitalna
AV94: do 20% | AW94: do 30%
AV95: 0.15 | AW95: 0.2 | AX95: 0.45 | AY95: 0.75
AV97: składkę roczną za ubezpieczenie 1 osoby oblicza się mnożąc stawkę taryfową przez 1/1000 sumy ubezpieczenia
AV99: Przykład wyliczenia składki za świadczenia dodatkowe
AV100: suma ubezpieczenia dla świadczeń podstawowych | AW100: 10000
AW101: składka
AV102: Koszty leczenia do 20% | AW102: =AV95*AW100/1000 -> 1.5
AV103: Koszty leczenia do 30% | AW103: =AW95*AW100/1000 -> 2
AV104: Ryczałt za okres niezdolności | AW104: =AX95*AW100/1000 -> 4.5
AV105: Dieta szpitalna | AW105: =AY95*AW100/1000 -> 7.5
AV107: Jednorazowe świadczenie w przypadku zgonu ubezpieczonego spowodowane nowotworem złośliwym | AW107: Jednorazowe świadczenie w przypadku zgonu dziecka, ucznia, studenta w wieku do 25 lat z powodu wrodoznej wady serca | AX107: Zwrot czesnego za każdy 1.000 zł | AY107: Jednorazowe świadczenie w przypadku śmierci przedstawiciela ustawowego | AZ107: Jednorazowe świadczenie w przypadku amputacji kończyny spowodowanej nowotworem złośliwym u dziecka, ucznia, studenta w wieku do 25 lat
AV108: 0.1 | AW108: 0.1 | AX108: 0.1 | AY108: 0.1 | AZ108: 0.1
AV110: składka roczna - niezależna od wysokości sumy ubezpieczenia
AV112: Przykład wyliczenia składki za świadczenia dodatkowe
AV114: Jednorazowe świadczenie w przypadku zgonu ubezpieczonego spowodowane nowotworem złośliwym | AW114: 0.1
AV115: Jednorazowe świadczenie w przypadku zgonu dziecka, ucznia, studenta w wieku do 25 lat z powodu wrodoznej wady serca | AW115: 0.1
AV116: Zwrot czesnego za każdy 1.000 zł | AW116: 0.1
AV117: Jednorazowe świadczenie w przypadku śmierci przedstawiciela ustawowego | AW117: 0.1
AV118: Jednorazowe świadczenie w przypadku amputacji kończyny spowodowanej nowotworem złośliwym u dziecka, ucznia, studenta w wieku do 25 lat | AW118: 0.1
AV120: Składka razem = składka za świadczenia podstawowe + składka za świadczenia dodatkowe
AV122: Przykład wyliczenia składki za świadczenia podstawowe i świadczenia dodatkowe (wszystkie w tym koszty leczenia do 30%) dla szkoły podstawowej w Oddziale w Warszawie o wskaźniku szkodowości > 40%
AV123: suma ubezpieczenia | AW123: 10000
AW124: wariant I | AX124: wariant II | AY124: wariant II Bis*
AV125: składka za 1 osobę za świadczenia podstawowe i świadczenia dodatkowe | AW125: =AW71+$C$94+$D$94+$E$94+$C$101+$C$102+$C$103+$C$104+$B$107+$C$107+$D$107+$E$107+$F$107 -> 42.3 | AX125: =AX71+$C$94+$D$94+$E$94+$C$101+$C$102+$C$103+$C$104+$B$107+$C$107+$D$107+$E$107+$F$107 -> 48 | AY125: =AY71+$C$94+$D$94+$E$94+$C$101+$C$102+$C$103+$C$104+$B$107+$C$107+$D$107+$E$107+$F$107 -> 33.6
AV128: Przykład wyliczenia składki za świadczenia podstawowe dla szkoły podstawowej w Oddziale w Warszawie o wskaźniku szkodowości ≤ 40%
AV129: suma ubezpieczenia | AW129: 10000
AW130: wariant I | AX130: wariant II | AY130: wariant II Bis*
AV131: składka za 1 osobę za świadczenia podstawowe i świadczenia dodatkowe | AW131: =AW77+$C$94+$D$94+$E$94+$C$101+$C$102+$C$103+$C$104+$B$107+$C$107+$D$107+$E$107+$F$107 -> 37.6 | AX131: =AX77+$C$94+$D$94+$E$94+$C$101+$C$102+$C$103+$C$104+$B$107+$C$107+$D$107+$E$107+$F$107 -> 40 | AY131: =AY77+$C$94+$D$94+$E$94+$C$101+$C$102+$C$103+$C$104+$B$107+$C$107+$D$107+$E$107+$F$107 -> 28
AV134: Przykład wyliczenia składki za swiadczenia podstawowe dla nowej szkoły podstawowej w Oddziale w Warszawie
AV135: suma ubezpieczenia | AW135: 10000
AW136: wariant I | AX136: wariant II | AY136: wariant II Bis*
AV137: składka za 1 osobę za świadczenia podstawowe i świadczenia dodatkowe | AW137: =AW83+$C$94+$D$94+$E$94+$C$101+$C$102+$C$103+$C$104+$B$107+$C$107+$D$107+$E$107+$F$107 -> 42.3 | AX137: =AX83+$C$94+$D$94+$E$94+$C$101+$C$102+$C$103+$C$104+$B$107+$C$107+$D$107+$E$107+$F$107 -> 40 | AY137: =AY83+$C$94+$D$94+$E$94+$C$101+$C$102+$C$103+$C$104+$B$107+$C$107+$D$107+$E$107+$F$107 -> 28
AV139: ZNIŻKA INCYDENTALNA
AV141: zniżkę incydentalną stosuje się na samym końcu
AV143: Przykład wyliczenia składki za świadczenia podstawowe i świadczenia dodatkowe (wszystkie w tym koszty leczenia do 30%) dla szkoły podstawowej w Oddziale w Warszawie o wskaźniku szkodowości > 40% z zastosowaniem zniżki incydentalnej w wysokości 25%
AV144: suma ubezpieczenia | AW144: 10000
AW145: wariant I | AX145: wariant II | AY145: wariant II Bis*
AV146: składka za 1 osobę za świadczenia podstawowe i świadczenia dodatkowe | AW146: =(AW71+$C$94+$D$94+$E$94+$C$101+$C$102+$C$103+$C$104+$B$107+$C$107+$D$107+$E$107+$F$107)*0.75 -> 31.725 | AX146: =(AX71+$C$94+$D$94+$E$94+$C$101+$C$102+$C$103+$C$104+$B$107+$C$107+$D$107+$E$107+$F$107)*0.75 -> 36 | AY146: =(AY71+$C$94+$D$94+$E$94+$C$101+$C$102+$C$103+$C$104+$B$107+$C$107+$D$107+$E$107+$F$107)*0.75 -> 25.2
AV149: Przykład wyliczenia składki za świadczenia podstawowe dla szkoły podstawowej w Oddziale w Warszawie o wskaźniku szkodowości ≤ 40% z zastosowaniem zniżki incydentalnej w wysokości 25%
AV150: suma ubezpieczenia | AW150: 10000
AW151: wariant I | AX151: wariant II | AY151: wariant II Bis*
AV152: składka za 1 osobę za świadczenia podstawowe i świadczenia dodatkowe | AW152: =(AW77+$C$94+$D$94+$E$94+$C$101+$C$102+$C$103+$C$104+$B$107+$C$107+$D$107+$E$107+$F$107)*0.75 -> 28.2 | AX152: =(AX77+$C$94+$D$94+$E$94+$C$101+$C$102+$C$103+$C$104+$B$107+$C$107+$D$107+$E$107+$F$107)*0.75 -> 30 | AY152: =(AY77+$C$94+$D$94+$E$94+$C$101+$C$102+$C$103+$C$104+$B$107+$C$107+$D$107+$E$107+$F$107)*0.75 -> 21
AV155: Przykład wyliczenia składki za swiadczenia podstawowe dla nowej szkoły podstawowej w Oddziale w Warszawie z zastosowaniem zniżki incydentalnej w wysokości 25%
AV156: suma ubezpieczenia | AW156: 10000
AW157: wariant I | AX157: wariant II | AY157: wariant II Bis*
AV158: składka za 1 osobę za świadczenia podstawowe i świadczenia dodatkowe | AW158: =(AW83+$C$94+$D$94+$E$94+$C$101+$C$102+$C$103+$C$104+$B$107+$C$107+$D$107+$E$107+$F$107)*0.75 -> 31.725 | AX158: =(AX83+$C$94+$D$94+$E$94+$C$101+$C$102+$C$103+$C$104+$B$107+$C$107+$D$107+$E$107+$F$107)*0.75 -> 30 | AY158: =(AY83+$C$94+$D$94+$E$94+$C$101+$C$102+$C$103+$C$104+$B$107+$C$107+$D$107+$E$107+$F$107)*0.75 -> 21

Sheet Wariant_I_II_IIBIS
AJ1: 1 | AZ1: Świadczenia dodatkowe dla wariantu I, II, II BIS: DLA DZIECI | BJ1: =IF('WYBIERZ ANALIZATOR!'!$L$1=1,Wariant_I!BJ4,IF('WYBIERZ ANALIZATOR!'!$L$1=2,Wariant_II!BJ4,IF('WYBIERZ ANALIZATOR!'!$L$1=3,Wariant_I_II!BJ4,IF('WYBIERZ ANALIZATOR!'!$L$1=4,Wariant_I_II_IIBIS!BJ4,FALSE)))) -> 2 | CE1: agent | CF1: email | CG1: nr telefonu
B2: Doradca: | AU2: =IF('WYBIERZ ANALIZATOR!'!$L$1=1,Wariant_I!AY2,IF('WYBIERZ ANALIZATOR!'!$L$1=2,Wariant_II!AY2,IF('WYBIERZ ANALIZATOR!'!$L$1=3,Wariant_I_II!AY2,IF('WYBIERZ ANALIZATOR!'!$L$1=4,Wariant_I_II_IIBIS!AY2,FALSE)))) -> TRUE | AV2: STAWKI TARYFOWE DLA ŚWIADCZEŃ PODSTAWOWYCH | AY2: =IF(AND(AY3=TRUE,AY4=TRUE),TRUE,FALSE) -> FALSE | CE2: Broniszewski Sławomir | CF2: slbroniszewski@agentpzu.pl | CG2: 603245422 | CH2: ; | CJ2: =CG2&CH2&CF2 -> 603245422; slbroniszewski@agentpzu.pl
B3: Imię i nazwisko | C3: Imię i nazwisko | AU3: =IF('WYBIERZ ANALIZATOR!'!$L$1=1,Wariant_I!AY3,IF('WYBIERZ ANALIZATOR!'!$L$1=2,Wariant_II!AY3,IF('WYBIERZ ANALIZATOR!'!$L$1=3,Wariant_I_II!AY3,IF('WYBIERZ ANALIZATOR!'!$L$1=4,Wariant_I_II_IIBIS!AY3,FALSE)))) -> TRUE | AZ3: zwrot kosztów leczenia do wysokości 20 % sumy ubezpieczenia | BK3: =IF($G$9=BL3,TRUE,FALSE) -> FALSE | BL3: Centrum kształcenia | BM3: Gdańsk | BN3: =IF('WYBIERZ ANALIZATOR!'!$L$1=1,Wariant_I!BK3,IF('WYBIERZ ANALIZATOR!'!$L$1=2,Wariant_II!BK3,IF('WYBIERZ ANALIZATOR!'!$L$1=3,Wariant_I_II!BK3,IF('WYBIERZ ANALIZATOR!'!$L$1=4,Wariant_I_II_IIBIS!BK3,FALSE)))) -> FALSE | BO3: ≤40% | BP3: 0 | BQ3: =IF('WYBIERZ ANALIZATOR!'!$L$1=1,Wariant_I!BJ3,IF('WYBIERZ ANALIZATOR!'!$L$1=2,Wariant_II!BJ3,IF('WYBIERZ ANALIZATOR!'!$L$1=3,Wariant_I_II!BJ3,IF('WYBIERZ ANALIZATOR!'!$L$1=4,Wariant_I_II_IIBIS!BJ3,FALSE)))) -> 0 | CE3: Derkacz Jerzy | CF3: jderkacz@agentpzu.pl | CG3: 607576620 | CH3: ; | CJ3: =CG3&CH3&CF3 -> 607576620; jderkacz@agentpzu.pl
B4: Telefon | C4: Telefon | AU4: =IF('WYBIERZ ANALIZATOR!'!$L$1=1,Wariant_I!AY4,IF('WYBIERZ ANALIZATOR!'!$L$1=2,Wariant_II!AY4,IF('WYBIERZ ANALIZATOR!'!$L$1=3,Wariant_I_II!AY4,IF('WYBIERZ ANALIZATOR!'!$L$1=4,Wariant_I_II_IIBIS!AY4,FALSE)))) -> TRUE | AV4: rodzaj placówki | AW4: wariant I | AX4: wariant II | AY4: =IF(BJ4>0,TRUE,FALSE) -> FALSE | AZ4: zwrot kosztów leczenia do wysokości 30 % sumy ubezpieczenia | BK4: FALSE | BL4: Dom dziecka | BM4: Katowice | BN4: =IF('WYBIERZ ANALIZATOR!'!$L$1=1,Wariant_I!BK4,IF('WYBIERZ ANALIZATOR!'!$L$1=2,Wariant_II!BK4,IF('WYBIERZ ANALIZATOR!'!$L$1=3,Wariant_I_II!BK4,IF('WYBIERZ ANALIZATOR!'!$L$1=4,Wariant_I_II_IIBIS!BK4,FALSE)))) -> FALSE | BO4: nowa = pozyskana w 2015r. | BP4: -0.01 | BQ4: =IF('WYBIERZ ANALIZATOR!'!$L$1=1,Wariant_I!BJ4,IF('WYBIERZ ANALIZATOR!'!$L$1=2,Wariant_II!BJ4,IF('WYBIERZ ANALIZATOR!'!$L$1=3,Wariant_I_II!BJ4,IF('WYBIERZ ANALIZATOR!'!$L$1=4,Wariant_I_II_IIBIS!BJ4,FALSE)))) -> 2 | CE4: Golas Marcin | CF4: mgolas@agentpzu.pl | CG4: 881298939 | CH4: ; | CJ4: 881298939; mgolas@agentpzu.pl
B5: Oddział Region. | C5: Oddział | AU5: =IF('WYBIERZ ANALIZATOR!'!$L$1=1,Wariant_I!AY5,IF('WYBIERZ ANALIZATOR!'!$L$1=2,Wariant_II!AY5,IF('WYBIERZ ANALIZATOR!'!$L$1=3,Wariant_I_II!AY5,IF('WYBIERZ ANALIZATOR!'!$L$1=4,Wariant_I_II_IIBIS!AY5,FALSE)))) -> 0 | AV5: żłobek | AW5: 4.7 | AX5: 4 | AY5: =BJ5 -> 0 | AZ5: ryczałt za okres czasowej, całkowitej niezdolności do nauki lub pracy trwający dłużej niż 14 dni - 0,06% sumy ubezpieczenia za każdy dzień (do 180 dni łącznie ze wszystkich zdarzeń objętych umową) | BK5: FALSE | BL5: Gimnazjum | BM5: Kraków | BN5: =IF('WYBIERZ ANALIZATOR!'!$L$1=1,Wariant_I!BK5,IF('WYBIERZ ANALIZATOR!'!$L$1=2,Wariant_II!BK5,IF('WYBIERZ ANALIZATOR!'!$L$1=3,Wariant_I_II!BK5,IF('WYBIERZ ANALIZATOR!'!$L$1=4,Wariant_I_II_IIBIS!BK5,FALSE)))) -> FALSE | BO5: wznowiona = pozyskana w 2014r. | BP5: -0.02 | BQ5: =IF('WYBIERZ ANALIZATOR!'!$L$1=1,Wariant_I!BJ5,IF('WYBIERZ ANALIZATOR!'!$L$1=2,Wariant_II!BJ5,IF('WYBIERZ ANALIZATOR!'!$L$1=3,Wariant_I_II!BJ5,IF('WYBIERZ ANALIZATOR!'!$L$1=4,Wariant_I_II_IIBIS!BJ5,FALSE)))) -> 0 | CE5: Kalina Elżbieta | CF5: ekalina@agentpzu.pl | CG5: 601987169 | CH5: ; | CJ5: 601987169; ekalina@agentpzu.pl
B6: Adres | C6: Adres | AU6: =IF('WYBIERZ ANALIZATOR!'!$L$1=1,Wariant_I!AY6,IF('WYBIERZ ANALIZATOR!'!$L$1=2,Wariant_II!AY6,IF('WYBIERZ ANALIZATOR!'!$L$1=3,Wariant_I_II!AY6,IF('WYBIERZ ANALIZATOR!'!$L$1=4,Wariant_I_II_IIBIS!AY6,FALSE)))) -> 0 | AV6: przedszkole | AY6: =BJ6 -> 0 | AZ6: dieta szpitalna, za każdy dzień pobytu w szpitalu 0,2% sumy ubezpieczenia (płatna przez maksymalny okres 90 dni z tytułu jednego nieszczęśliwego wypadku lub zdarzenia objętego umową) | BK6: FALSE | BL6: Inne | BM6: Lublin | BN6: =IF('WYBIERZ ANALIZATOR!'!$L$1=1,Wariant_I!BK6,IF('WYBIERZ ANALIZATOR!'!$L$1=2,Wariant_II!BK6,IF('WYBIERZ ANALIZATOR!'!$L$1=3,Wariant_I_II!BK6,IF('WYBIERZ ANALIZATOR!'!$L$1=4,Wariant_I_II_IIBIS!BK6,FALSE)))) -> FALSE | BO6: >40% / NU w PZU (3 lata) | BP6: -0.03 | BQ6: =IF('WYBIERZ ANALIZATOR!'!$L$1=1,Wariant_I!BJ6,IF('WYBIERZ ANALIZATOR!'!$L$1=2,Wariant_II!BJ6,IF('WYBIERZ ANALIZATOR!'!$L$1=3,Wariant_I_II!BJ6,IF('WYBIERZ ANALIZATOR!'!$L$1=4,Wariant_I_II_IIBIS!BJ6,FALSE)))) -> 0 | CE6: Kędzia Jerzy | CF6: jkedzia@agentpzu.pl | CG6: 607082785 | CH6: ; | CJ6: 607082785; jkedzia@agentpzu.pl
AU7: =IF('WYBIERZ ANALIZATOR!'!$L$1=1,Wariant_I!AY7,IF('WYBIERZ ANALIZATOR!'!$L$1=2,Wariant_II!AY7,IF('WYBIERZ ANALIZATOR!'!$L$1=3,Wariant_I_II!AY7,IF('WYBIERZ ANALIZATOR!'!$L$1=4,Wariant_I_II_IIBIS!AY7,FALSE)))) -> TRUE | AV7: szkoła podstawowa | AY7: 0 | AZ7: Jednorazowe świadczenie w przypadku zgonu ubezpieczonego spowodowane nowotworem złośliwym | BK7: FALSE | BL7: Liceum ogólnokształcące | BM7: Łódź | BN7: =IF('WYBIERZ ANALIZATOR!'!$L$1=1,Wariant_I!BK7,IF('WYBIERZ ANALIZATOR!'!$L$1=2,Wariant_II!BK7,IF('WYBIERZ ANALIZATOR!'!$L$1=3,Wariant_I_II!BK7,IF('WYBIERZ ANALIZATOR!'!$L$1=4,Wariant_I_II_IIBIS!BK7,FALSE)))) -> FALSE | BP7: -0.04 | BQ7: =IF('WYBIERZ ANALIZATOR!'!$L$1=1,Wariant_I!BJ7,IF('WYBIERZ ANALIZATOR!'!$L$1=2,Wariant_II!BJ7,IF('WYBIERZ ANALIZATOR!'!$L$1=3,Wariant_I_II!BJ7,IF('WYBIERZ ANALIZATOR!'!$L$1=4,Wariant_I_II_IIBIS!BJ7,FALSE)))) -> TRUE | CE7: Kołodyński Adam | CF7: adakolodynski@agentpzu.pl | CG7: 603169150 | CH7: ; | CJ7: 603169150; adakolodynski@agentpzu.pl
G8: WYBIERZ/WYPEŁNIJ DANE | AP8: TABELA GŁÓWNA !!! | AU8: =IF('WYBIERZ ANALIZATOR!'!$L$1=1,Wariant_I!AY8,IF('WYBIERZ ANALIZATOR!'!$L$1=2,Wariant_II!AY8,IF('WYBIERZ ANALIZATOR!'!$L$1=3,Wariant_I_II!AY8,IF('WYBIERZ ANALIZATOR!'!$L$1=4,Wariant_I_II_IIBIS!AY8,FALSE)))) -> TRUE | AV8: gimnazjum | AY8: 0 | AZ8: Jednorazowe świadczenie w przypadku zgonu dziecka, ucznia, studenta w wieku do 25 lat z powodu wrodoznej wady serca | BK8: FALSE | BL8: Liceum zawodowe | BM8: Poznań | BN8: =IF('WYBIERZ ANALIZATOR!'!$L$1=1,Wariant_I!BK8,IF('WYBIERZ ANALIZATOR!'!$L$1=2,Wariant_II!BK8,IF('WYBIERZ ANALIZATOR!'!$L$1=3,Wariant_I_II!BK8,IF('WYBIERZ ANALIZATOR!'!$L$1=4,Wariant_I_II_IIBIS!BK8,FALSE)))) -> FALSE | BP8: -0.05 | BQ8: =IF('WYBIERZ ANALIZATOR!'!$L$1=1,Wariant_I!BJ8,IF('WYBIERZ ANALIZATOR!'!$L$1=2,Wariant_II!BJ8,IF('WYBIERZ ANALIZATOR!'!$L$1=3,Wariant_I_II!BJ8,IF('WYBIERZ ANALIZATOR!'!$L$1=4,Wariant_I_II_IIBIS!BJ8,FALSE)))) -> TRUE | CE8: Kwiatkowski Dariusz | CF8: dakwiatkowski@agentpzu.pl | CG8: 505632290 | CH8: ; | CJ8: 505632290; dakwiatkowski@agentpzu.pl
B9: Placówka: | L9: WYBIERZ Z LISTY | AQ9: w I | AR9: w II | AU9: =IF('WYBIERZ ANALIZATOR!'!$L$1=1,Wariant_I!AY9,IF('WYBIERZ ANALIZATOR!'!$L$1=2,Wariant_II!AY9,IF('WYBIERZ ANALIZATOR!'!$L$1=3,Wariant_I_II!AY9,IF('WYBIERZ ANALIZATOR!'!$L$1=4,Wariant_I_II_IIBIS!AY9,FALSE)))) -> 0 | AV9: liceum ogólnokształcące | BK9: FALSE | BL9: Szkoła podstawowa | BM9: Szczecin | BN9: =IF('WYBIERZ ANALIZATOR!'!$L$1=1,Wariant_I!BK9,IF('WYBIERZ ANALIZATOR!'!$L$1=2,Wariant_II!BK9,IF('WYBIERZ ANALIZATOR!'!$L$1=3,Wariant_I_II!BK9,IF('WYBIERZ ANALIZATOR!'!$L$1=4,Wariant_I_II_IIBIS!BK9,FALSE)))) -> TRUE | BP9: -0.06 | BQ9: =IF('WYBIERZ ANALIZATOR!'!$L$1=1,Wariant_I!BJ9,IF('WYBIERZ ANALIZATOR!'!$L$1=2,Wariant_II!BJ9,IF('WYBIERZ ANALIZATOR!'!$L$1=3,Wariant_I_II!BJ9,IF('WYBIERZ ANALIZATOR!'!$L$1=4,Wariant_I_II_IIBIS!BJ9,FALSE)))) -> 0 | CE9: Kwikert Bożena | CF9: bkwikert@agentpzu.pl | CG9: 605148579 | CH9: ; | CJ9: 605148579; bkwikert@agentpzu.pl
B10: Oddział Regionalny: | L10: WYBIERZ Z LISTY | O10: =IF(AND(G11="≤40%",SUM(BI39:BQ39)=1),"SPRAWDŹ MOŻLIWOŚĆ PRZEDSTAWIENIA KLIENTOWI DODATKOWEJ ZNIŻKI", "") ->  | AP10: Taryfa | AQ10: =IF($G$9="Szkoła wyższa",AW18,IF($G$9="Szkoła policealna",AW18,IF($G$9="Szkoła sportowa",AW17,AW5))) -> 4.7 | AR10: =IF($G$9="Szkoła wyższa",AX18,IF($G$9="Szkoła policealna",AX18,IF($G$9="Szkoła sportowa",AX17,AX5))) -> 4 | AU10: =IF('WYBIERZ ANALIZATOR!'!$L$1=1,Wariant_I!AY10,IF('WYBIERZ ANALIZATOR!'!$L$1=2,Wariant_II!AY10,IF('WYBIERZ ANALIZATOR!'!$L$1=3,Wariant_I_II!AY10,IF('WYBIERZ ANALIZATOR!'!$L$1=4,Wariant_I_II_IIBIS!AY10,FALSE)))) -> TRUE | AV10: liceum zawodowe | AY10: 0 | AZ10: Jednorazowe świadczenie w przypadku śmierci przedstawiciela ustawowego | BK10: FALSE | BL10: Szkoła policealna | BM10: Warszawa | BN10: =IF('WYBIERZ ANALIZATOR!'!$L$1=1,Wariant_I!BK10,IF('WYBIERZ ANALIZATOR!'!$L$1=2,Wariant_II!BK10,IF('WYBIERZ ANALIZATOR!'!$L$1=3,Wariant_I_II!BK10,IF('WYBIERZ ANALIZATOR!'!$L$1=4,Wariant_I_II_IIBIS!BK10,FALSE)))) -> FALSE | BP10: -0.07 | BQ10: =IF('WYBIERZ ANALIZATOR!'!$L$1=1,Wariant_I!BJ10,IF('WYBIERZ ANALIZATOR!'!$L$1=2,Wariant_II!BJ10,IF('WYBIERZ ANALIZATOR!'!$L$1=3,Wariant_I_II!BJ10,IF('WYBIERZ ANALIZATOR!'!$L$1=4,Wariant_I_II_IIBIS!BJ10,FALSE)))) -> TRUE | CE10: Maciejewski Piotr | CF10: pmaciejewski@agentpzu.pl | CG10: 601176465 | CH10: ; | CJ10: 601176465; pmaciejewski@agentpzu.pl
B11: Szkodowość placówki: | L11: WYBIERZ Z LISTY | AP11: wariant I | AQ11: =IF(G$10="Gdańsk",BI37)+IF(G$10="Katowice",BJ37)+IF(G$10="Kraków",BK37)+IF(G$10="Lublin",BL37)+IF(G$10="Łódź",BM37)+IF(G$10="Poznań",BN37)+IF(G$10="Warszawa",BO37)+IF(G$10="Wrocław",BP37)+IF(G$10="Szczecin",BQ37) -> 0 | AU11: =IF('WYBIERZ ANALIZATOR!'!$L$1=1,Wariant_I!AY11,IF('WYBIERZ ANALIZATOR!'!$L$1=2,Wariant_II!AY11,IF('WYBIERZ ANALIZATOR!'!$L$1=3,Wariant_I_II!AY11,IF('WYBIERZ ANALIZATOR!'!$L$1=4,Wariant_I_II_IIBIS!AY11,FALSE)))) -> TRUE | AV11: technikum | AY11: 0 | AZ11: Jednorazowe świadczenie w przypadku amputacji kończyny spowodowanej nowotworem złośliwym u dziecka, ucznia, studenta w wieku do 25 lat | BK11: FALSE | BL11: Szkoła sportowa | BM11: Wrocław | BN11: =IF('WYBIERZ ANALIZATOR!'!$L$1=1,Wariant_I!BK11,IF('WYBIERZ ANALIZATOR!'!$L$1=2,Wariant_II!BK11,IF('WYBIERZ ANALIZATOR!'!$L$1=3,Wariant_I_II!BK11,IF('WYBIERZ ANALIZATOR!'!$L$1=4,Wariant_I_II_IIBIS!BK11,FALSE)))) -> FALSE | BP11: -0.08 | BQ11: =IF('WYBIERZ ANALIZATOR!'!$L$1=1,Wariant_I!BJ11,IF('WYBIERZ ANALIZATOR!'!$L$1=2,Wariant_II!BJ11,IF('WYBIERZ ANALIZATOR!'!$L$1=3,Wariant_I_II!BJ11,IF('WYBIERZ ANALIZATOR!'!$L$1=4,Wariant_I_II_IIBIS!BJ11,FALSE)))) -> TRUE | CE11: Majewska Magdalena | CF11: magdamajewska@agentpzu.pl | CG11: 790776238 | CH11: ; | CJ11: 790776238; magdamajewska@agentpzu.pl
B12: Podwyższona zniżka z tabeli (do -10%): | L12: WYBIERZ Z LISTY | AH12: NOWE | AI12: =IF(G11="nowa = pozyskana w 2015r.",TRUE,FALSE) -> FALSE | AJ12: =IF('WYBIERZ ANALIZATOR!'!$L$1=1,Wariant_I!AI12,IF('WYBIERZ ANALIZATOR!'!$L$1=2,Wariant_II!AI12,IF('WYBIERZ ANALIZATOR!'!$L$1=3,Wariant_I_II!AI12,IF('WYBIERZ ANALIZATOR!'!$L$1=4,Wariant_I_II_IIBIS!AI12,FALSE)))) -> FALSE | AP12: wariant II | AQ12: =IF(G$10="Gdańsk",BI38)+IF(G$10="Katowice",BJ38)+IF(G$10="Kraków",BK38)+IF(G$10="Lublin",BL38)+IF(G$10="Łódź",BM38)+IF(G$10="Poznań",BN38)+IF(G$10="Warszawa",BO38)+IF(G$10="Wrocław",BP38)+IF(G$10="Szczecin",BQ38) -> 0 | AU12: =IF('WYBIERZ ANALIZATOR!'!$L$1=1,Wariant_I!AY12,IF('WYBIERZ ANALIZATOR!'!$L$1=2,Wariant_II!AY12,IF('WYBIERZ ANALIZATOR!'!$L$1=3,Wariant_I_II!AY12,IF('WYBIERZ ANALIZATOR!'!$L$1=4,Wariant_I_II_IIBIS!AY12,FALSE)))) -> 0 | AV12: zasadnicza szkoła zawodowa | BK12: FALSE | BL12: Technikum | BN12: =IF('WYBIERZ ANALIZATOR!'!$L$1=1,Wariant_I!BK12,IF('WYBIERZ ANALIZATOR!'!$L$1=2,Wariant_II!BK12,IF('WYBIERZ ANALIZATOR!'!$L$1=3,Wariant_I_II!BK12,IF('WYBIERZ ANALIZATOR!'!$L$1=4,Wariant_I_II_IIBIS!BK12,FALSE)))) -> FALSE | BP12: -0.09 | BQ12: =IF('WYBIERZ ANALIZATOR!'!$L$1=1,Wariant_I!BJ12,IF('WYBIERZ ANALIZATOR!'!$L$1=2,Wariant_II!BJ12,IF('WYBIERZ ANALIZATOR!'!$L$1=3,Wariant_I_II!BJ12,IF('WYBIERZ ANALIZATOR!'!$L$1=4,Wariant_I_II_IIBIS!BJ12,FALSE)))) -> 0 | CE12: Nitzke Zbigniew | CF12: znitzke@agentpzu.pl | CG12: 601643921 | CH12: ; | CJ12: 601643921; znitzke@agentpzu.pl
B13: Zniżka incydentalna (format: -x%): | L13: WYPEŁNIJ RĘCZNIE | AH13: WZNOWIONE | AI13: =IF(AI12=TRUE,FALSE,TRUE) -> TRUE | AJ13: =IF('WYBIERZ ANALIZATOR!'!$L$1=1,Wariant_I!AI13,IF('WYBIERZ ANALIZATOR!'!$L$1=2,Wariant_II!AI13,IF('WYBIERZ ANALIZATOR!'!$L$1=3,Wariant_I_II!AI13,IF('WYBIERZ ANALIZATOR!'!$L$1=4,Wariant_I_II_IIBIS!AI13,FALSE)))) -> TRUE | AP13: wariant II ograniczony (wariant II - 30%) | AQ13: 0.7 | AU13: =IF('WYBIERZ ANALIZATOR!'!$L$1=1,Wariant_I!AY13,IF('WYBIERZ ANALIZATOR!'!$L$1=2,Wariant_II!AY13,IF('WYBIERZ ANALIZATOR!'!$L$1=3,Wariant_I_II!AY13,IF('WYBIERZ ANALIZATOR!'!$L$1=4,Wariant_I_II_IIBIS!AY13,FALSE)))) -> TRUE | AV13: zespół szkół | AY13: =IF(AND(AY14=TRUE,AY4=TRUE),TRUE,FALSE) -> FALSE | AZ13: Świadczenia dodatkowe dla wariantu I, II, II BIS: DLA PERSONELU | BK13: FALSE | BL13: Zasadnicza szkoła zawodowa | BN13: =IF('WYBIERZ ANALIZATOR!'!$L$1=1,Wariant_I!BK13,IF('WYBIERZ ANALIZATOR!'!$L$1=2,Wariant_II!BK13,IF('WYBIERZ ANALIZATOR!'!$L$1=3,Wariant_I_II!BK13,IF('WYBIERZ ANALIZATOR!'!$L$1=4,Wariant_I_II_IIBIS!BK13,FALSE)))) -> FALSE | BP13: -0.1 | BQ13: =IF('WYBIERZ ANALIZATOR!'!$L$1=1,Wariant_I!BJ13,IF('WYBIERZ ANALIZATOR!'!$L$1=2,Wariant_II!BJ13,IF('WYBIERZ ANALIZATOR!'!$L$1=3,Wariant_I_II!BJ13,IF('WYBIERZ ANALIZATOR!'!$L$1=4,Wariant_I_II_IIBIS!BJ13,FALSE)))) -> 0 | CE13: Nowicka Mieczysława | CF13: minowicka@agentpzu.pl | CG13: 607182438 | CH13: ; | CJ13: 607182438; minowicka@agentpzu.pl
L14: =IF('WYBIERZ ANALIZATOR!'!$L$1=1,Wariant_I!G13,IF('WYBIERZ ANALIZATOR!'!$L$1=2,Wariant_II!G13,IF('WYBIERZ ANALIZATOR!'!$L$1=3,Wariant_I_II!G13,IF('WYBIERZ ANALIZATOR!'!$L$1=4,Wariant_I_II_IIBIS!G13,0)))) -> 0 | AC14: DLA WSZYSTKICH ANALIZATORÓW | AP14: zniżka incydentalna | AQ14: =1+$G13 -> 1 | AR14: =1+$G13 -> 1 | AS14: =1+$G13 -> 1 | AU14: =IF('WYBIERZ ANALIZATOR!'!$L$1=1,Wariant_I!AY14,IF('WYBIERZ ANALIZATOR!'!$L$1=2,Wariant_II!AY14,IF('WYBIERZ ANALIZATOR!'!$L$1=3,Wariant_I_II!AY14,IF('WYBIERZ ANALIZATOR!'!$L$1=4,Wariant_I_II_IIBIS!AY14,FALSE)))) -> TRUE | AV14: centrum kształcenia | AZ14: zwrot kosztów leczenia do wysokości 20 % sumy ubezpieczenia | BK14: FALSE | BL14: Zespół szkół | BN14: =IF('WYBIERZ ANALIZATOR!'!$L$1=1,Wariant_I!BK14,IF('WYBIERZ ANALIZATOR!'!$L$1=2,Wariant_II!BK14,IF('WYBIERZ ANALIZATOR!'!$L$1=3,Wariant_I_II!BK14,IF('WYBIERZ ANALIZATOR!'!$L$1=4,Wariant_I_II_IIBIS!BK14,FALSE)))) -> FALSE | BQ14: =IF('WYBIERZ ANALIZATOR!'!$L$1=1,Wariant_I!BJ14,IF('WYBIERZ ANALIZATOR!'!$L$1=2,Wariant_II!BJ14,IF('WYBIERZ ANALIZATOR!'!$L$1=3,Wariant_I_II!BJ14,IF('WYBIERZ ANALIZATOR!'!$L$1=4,Wariant_I_II_IIBIS!BJ14,FALSE)))) -> 0 | CE14: Pędziwiatr Mirosław | CF14: mipedziwiatr@agentpzu.pl | CG14: 601709687 | CH14: ; | CJ14: 601709687; mipedziwiatr@agentpzu.pl
AD15: składka podstawowa | AE15: suma 1 | AF15: suma 2 | AG15: suma 3 | AI15: składka podstawowa | AJ15: suma 1 | AK15: suma 2 | AL15: suma 3 | AU15: =IF('WYBIERZ ANALIZATOR!'!$L$1=1,Wariant_I!AY15,IF('WYBIERZ ANALIZATOR!'!$L$1=2,Wariant_II!AY15,IF('WYBIERZ ANALIZATOR!'!$L$1=3,Wariant_I_II!AY15,IF('WYBIERZ ANALIZATOR!'!$L$1=4,Wariant_I_II_IIBIS!AY15,FALSE)))) -> 0 | AV15: dom dziecka | AZ15: zwrot kosztów leczenia do wysokości 30 % sumy ubezpieczenia | BK15: FALSE | BL15: Żłobek, przedszkole | BN15: =IF('WYBIERZ ANALIZATOR!'!$L$1=1,Wariant_I!BK15,IF('WYBIERZ ANALIZATOR!'!$L$1=2,Wariant_II!BK15,IF('WYBIERZ ANALIZATOR!'!$L$1=3,Wariant_I_II!BK15,IF('WYBIERZ ANALIZATOR!'!$L$1=4,Wariant_I_II_IIBIS!BK15,FALSE)))) -> FALSE | BQ15: =IF('WYBIERZ ANALIZATOR!'!$L$1=1,Wariant_I!BJ15,IF('WYBIERZ ANALIZATOR!'!$L$1=2,Wariant_II!BJ15,IF('WYBIERZ ANALIZATOR!'!$L$1=3,Wariant_I_II!BJ15,IF('WYBIERZ ANALIZATOR!'!$L$1=4,Wariant_I_II_IIBIS!BJ15,FALSE)))) -> 0 | CE15: Piątek Lech | CF15: lpiatek@agentpzu.pl | CG15: 603820065 | CH15: ; | CJ15: 603820065; lpiatek@agentpzu.pl
AC16: wariant 1 | AD16: ze zniżką | AE16: =IF('WYBIERZ ANALIZATOR!'!$L$1=1,Wariant_I!AJ16,IF('WYBIERZ ANALIZATOR!'!$L$1=2,Wariant_II!AJ16,IF('WYBIERZ ANALIZATOR!'!$L$1=3,Wariant_I_II!AJ16,IF('WYBIERZ ANALIZATOR!'!$L$1=4,Wariant_I_II_IIBIS!AJ16,FALSE)))) ->  | AF16: =IF('WYBIERZ ANALIZATOR!'!$L$1=1,Wariant_I!AK16,IF('WYBIERZ ANALIZATOR!'!$L$1=2,Wariant_II!AK16,IF('WYBIERZ ANALIZATOR!'!$L$1=3,Wariant_I_II!AK16,IF('WYBIERZ ANALIZATOR!'!$L$1=4,Wariant_I_II_IIBIS!AK16,FALSE)))) ->  | AG16: =IF('WYBIERZ ANALIZATOR!'!$L$1=1,Wariant_I!AL16,IF('WYBIERZ ANALIZATOR!'!$L$1=2,Wariant_II!AL16,IF('WYBIERZ ANALIZATOR!'!$L$1=3,Wariant_I_II!AL16,IF('WYBIERZ ANALIZATOR!'!$L$1=4,Wariant_I_II_IIBIS!AL16,FALSE)))) ->  | AH16: wariant 1 | AI16: ze zniżką | AJ16: =IF(AND(AD25=TRUE,$AM$31=TRUE),AJ31,IF(AND(AD25=TRUE,$AT$27=TRUE),AQ27,"")) ->  | AK16: =IF(AND(AE25=TRUE,$AM$31=TRUE),AK31,IF(AND(AE25=TRUE,$AT$27=TRUE),AR27,"")) ->  | AL16: =IF(AND(AF25=TRUE,$AM$31=TRUE),AL31,IF(AND(AF25=TRUE,$AT$27=TRUE),AS27,"")) ->  | AP16: SZKODOWOŚĆ | AU16: =IF('WYBIERZ ANALIZATOR!'!$L$1=1,Wariant_I!AY16,IF('WYBIERZ ANALIZATOR!'!$L$1=2,Wariant_II!AY16,IF('WYBIERZ ANALIZATOR!'!$L$1=3,Wariant_I_II!AY16,IF('WYBIERZ ANALIZATOR!'!$L$1=4,Wariant_I_II_IIBIS!AY16,FALSE)))) -> 0 | AV16: inne | AY16: =BJ16 -> 0 | AZ16: ryczałt za okres czasowej, całkowitej niezdolności do nauki lub pracy trwający dłużej niż 14 dni - 0,06% sumy ubezpieczenia za każdy dzień (do 180 dni łącznie ze wszystkich zdarzeń objętych umową) | BN16: =IF('WYBIERZ ANALIZATOR!'!$L$1=1,Wariant_I!BK16,IF('WYBIERZ ANALIZATOR!'!$L$1=2,Wariant_II!BK16,IF('WYBIERZ ANALIZATOR!'!$L$1=3,Wariant_I_II!BK16,IF('WYBIERZ ANALIZATOR!'!$L$1=4,Wariant_I_II_IIBIS!BK16,FALSE)))) -> 0 | BQ16: =IF('WYBIERZ ANALIZATOR!'!$L$1=1,Wariant_I!BJ16,IF('WYBIERZ ANALIZATOR!'!$L$1=2,Wariant_II!BJ16,IF('WYBIERZ ANALIZATOR!'!$L$1=3,Wariant_I_II!BJ16,IF('WYBIERZ ANALIZATOR!'!$L$1=4,Wariant_I_II_IIBIS!BJ16,FALSE)))) -> 0 | CE16: Pietrzak Przemysław | CF16: ppietrzak@agentpzu.pl | CG16: 603786176 | CH16: ; | CJ16: 603786176; ppietrzak@agentpzu.pl
AD17: bez zniżki | AE17: =IF('WYBIERZ ANALIZATOR!'!$L$1=1,Wariant_I!AJ17,IF('WYBIERZ ANALIZATOR!'!$L$1=2,Wariant_II!AJ17,IF('WYBIERZ ANALIZATOR!'!$L$1=3,Wariant_I_II!AJ17,IF('WYBIERZ ANALIZATOR!'!$L$1=4,Wariant_I_II_IIBIS!AJ17,FALSE)))) ->  | AF17: =IF('WYBIERZ ANALIZATOR!'!$L$1=1,Wariant_I!AK17,IF('WYBIERZ ANALIZATOR!'!$L$1=2,Wariant_II!AK17,IF('WYBIERZ ANALIZATOR!'!$L$1=3,Wariant_I_II!AK17,IF('WYBIERZ ANALIZATOR!'!$L$1=4,Wariant_I_II_IIBIS!AK17,FALSE)))) ->  | AG17: =IF('WYBIERZ ANALIZATOR!'!$L$1=1,Wariant_I!AL17,IF('WYBIERZ ANALIZATOR!'!$L$1=2,Wariant_II!AL17,IF('WYBIERZ ANALIZATOR!'!$L$1=3,Wariant_I_II!AL17,IF('WYBIERZ ANALIZATOR!'!$L$1=4,Wariant_I_II_IIBIS!AL17,FALSE)))) ->  | AI17: bez zniżki | AJ17: =IF(AND(AD25=TRUE,$AM$31=TRUE),AJ32,IF(AND(AD25=TRUE,$AT$27=TRUE),AQ29,"")) ->  | AK17: =IF(AND(AE25=TRUE,$AM$31=TRUE),AK32,IF(AND(AE25=TRUE,$AT$27=TRUE),AR29,"")) ->  | AL17: =IF(AND(AF25=TRUE,$AM$31=TRUE),AL32,IF(AND(AF25=TRUE,$AT$27=TRUE),AS29,"")) ->  | AQ17: ≤40% | AR17: NOWA | AS17: >40% | AT17: WZNOWIONA | AU17: =IF('WYBIERZ ANALIZATOR!'!$L$1=1,Wariant_I!AY17,IF('WYBIERZ ANALIZATOR!'!$L$1=2,Wariant_II!AY17,IF('WYBIERZ ANALIZATOR!'!$L$1=3,Wariant_I_II!AY17,IF('WYBIERZ ANALIZATOR!'!$L$1=4,Wariant_I_II_IIBIS!AY17,FALSE)))) -> 0 | AV17: szkoły sptotowe wszystkich szczebli | AW17: 9.5 | AX17: 8 | AY17: =BJ17 -> 0 | AZ17: dieta szpitalna, za każdy dzień pobytu w szpitalu 0,2% sumy ubezpieczenia (płatna przez maksymalny okres 90 dni z tytułu jednego nieszczęśliwego wypadku lub zdarzenia objętego umową) | BQ17: =IF('WYBIERZ ANALIZATOR!'!$L$1=1,Wariant_I!BJ17,IF('WYBIERZ ANALIZATOR!'!$L$1=2,Wariant_II!BJ17,IF('WYBIERZ ANALIZATOR!'!$L$1=3,Wariant_I_II!BJ17,IF('WYBIERZ ANALIZATOR!'!$L$1=4,Wariant_I_II_IIBIS!BJ17,FALSE)))) -> 0 | CE17: Podjuk Bronisław | CF17: bpodjuk@agentpzu.pl | CG17: 601683712 | CH17: ; | CJ17: 601683712; bpodjuk@agentpzu.pl
AC18: wariant 2 | AD18: ze zniżką | AE18: =IF('WYBIERZ ANALIZATOR!'!$L$1=1,Wariant_I!AJ18,IF('WYBIERZ ANALIZATOR!'!$L$1=2,Wariant_II!AJ18,IF('WYBIERZ ANALIZATOR!'!$L$1=3,Wariant_I_II!AJ18,IF('WYBIERZ ANALIZATOR!'!$L$1=4,Wariant_I_II_IIBIS!AJ18,FALSE)))) ->  | AF18: =IF('WYBIERZ ANALIZATOR!'!$L$1=1,Wariant_I!AK18,IF('WYBIERZ ANALIZATOR!'!$L$1=2,Wariant_II!AK18,IF('WYBIERZ ANALIZATOR!'!$L$1=3,Wariant_I_II!AK18,IF('WYBIERZ ANALIZATOR!'!$L$1=4,Wariant_I_II_IIBIS!AK18,FALSE)))) ->  | AG18: =IF('WYBIERZ ANALIZATOR!'!$L$1=1,Wariant_I!AL18,IF('WYBIERZ ANALIZATOR!'!$L$1=2,Wariant_II!AL18,IF('WYBIERZ ANALIZATOR!'!$L$1=3,Wariant_I_II!AL18,IF('WYBIERZ ANALIZATOR!'!$L$1=4,Wariant_I_II_IIBIS!AL18,FALSE)))) ->  | AH18: wariant 2 | AI18: ze zniżką | AJ18: =IF(AND(AD26=TRUE,$AM$33=TRUE),AJ33,IF(AND(AD26=TRUE,$AT$30=TRUE),AQ30,"")) ->  | AK18: =IF(AND(AE26=TRUE,$AM$33=TRUE),AK33,IF(AND(AE26=TRUE,$AT$30=TRUE),AR30,"")) ->  | AL18: =IF(AND(AF26=TRUE,$AM$33=TRUE),AL33,IF(AND(AF26=TRUE,$AT$30=TRUE),AS30,"")) ->  | AU18: =IF('WYBIERZ ANALIZATOR!'!$L$1=1,Wariant_I!AY18,IF('WYBIERZ ANALIZATOR!'!$L$1=2,Wariant_II!AY18,IF('WYBIERZ ANALIZATOR!'!$L$1=3,Wariant_I_II!AY18,IF('WYBIERZ ANALIZATOR!'!$L$1=4,Wariant_I_II_IIBIS!AY18,FALSE)))) -> TRUE | AV18: szkoła policealna | AW18: 3 | AX18: 2.5 | AY18: =BJ18 -> 0 | AZ18: Jednorazowe świadczenie w przypadku zgonu ubezpieczonego spowodowane nowotworem złośliwym | BQ18: =IF('WYBIERZ ANALIZATOR!'!$L$1=1,Wariant_I!BJ18,IF('WYBIERZ ANALIZATOR!'!$L$1=2,Wariant_II!BJ18,IF('WYBIERZ ANALIZATOR!'!$L$1=3,Wariant_I_II!BJ18,IF('WYBIERZ ANALIZATOR!'!$L$1=4,Wariant_I_II_IIBIS!BJ18,FALSE)))) -> TRUE | CE18: Rosa Ilona | CF18: irosa@agentpzu.pl | CG18: 697098159 | CH18: ; | CJ18: 697098159; irosa@agentpzu.pl
AD19: bez zniżki | AE19: =IF('WYBIERZ ANALIZATOR!'!$L$1=1,Wariant_I!AJ19,IF('WYBIERZ ANALIZATOR!'!$L$1=2,Wariant_II!AJ19,IF('WYBIERZ ANALIZATOR!'!$L$1=3,Wariant_I_II!AJ19,IF('WYBIERZ ANALIZATOR!'!$L$1=4,Wariant_I_II_IIBIS!AJ19,FALSE)))) ->  | AF19: =IF('WYBIERZ ANALIZATOR!'!$L$1=1,Wariant_I!AK19,IF('WYBIERZ ANALIZATOR!'!$L$1=2,Wariant_II!AK19,IF('WYBIERZ ANALIZATOR!'!$L$1=3,Wariant_I_II!AK19,IF('WYBIERZ ANALIZATOR!'!$L$1=4,Wariant_I_II_IIBIS!AK19,FALSE)))) ->  | AG19: =IF('WYBIERZ ANALIZATOR!'!$L$1=1,Wariant_I!AL19,IF('WYBIERZ ANALIZATOR!'!$L$1=2,Wariant_II!AL19,IF('WYBIERZ ANALIZATOR!'!$L$1=3,Wariant_I_II!AL19,IF('WYBIERZ ANALIZATOR!'!$L$1=4,Wariant_I_II_IIBIS!AL19,FALSE)))) ->  | AI19: bez zniżki | AJ19: =IF(AND(AD26=TRUE,$AM$33=TRUE),AJ34,IF(AND(AD26=TRUE,$AT$30=TRUE),AQ32,"")) ->  | AP19: Taryfa | AQ19: =AQ10 -> 4.7 | AR19: =AQ10 -> 4.7 | AS19: =AQ10 -> 4.7 | AT19: =AQ10 -> 4.7 | AU19: =IF('WYBIERZ ANALIZATOR!'!$L$1=1,Wariant_I!AY19,IF('WYBIERZ ANALIZATOR!'!$L$1=2,Wariant_II!AY19,IF('WYBIERZ ANALIZATOR!'!$L$1=3,Wariant_I_II!AY19,IF('WYBIERZ ANALIZATOR!'!$L$1=4,Wariant_I_II_IIBIS!AY19,FALSE)))) -> 0 | AV19: szkoła wyższa | AY19: =BJ19 -> 0 | AZ19: Jednorazowe świadczenie w przypadku zgonu dziecka, ucznia, studenta w wieku do 25 lat z powodu wrodoznej wady serca | BQ19: =IF('WYBIERZ ANALIZATOR!'!$L$1=1,Wariant_I!BJ19,IF('WYBIERZ ANALIZATOR!'!$L$1=2,Wariant_II!BJ19,IF('WYBIERZ ANALIZATOR!'!$L$1=3,Wariant_I_II!BJ19,IF('WYBIERZ ANALIZATOR!'!$L$1=4,Wariant_I_II_IIBIS!BJ19,FALSE)))) -> 0 | CE19: Ryżak Agata | CF19: aryzak@agentpzu.pl | CG19: 667960950 | CH19: ; | CJ19: 667960950; aryzak@agentpzu.pl
I20: 8000 | L20: 9000 | O20: 10000 | AC20: wariant 2 bis | AD20: ze zniżką | AE20: =IF('WYBIERZ ANALIZATOR!'!$L$1=1,Wariant_I!AJ20,IF('WYBIERZ ANALIZATOR!'!$L$1=2,Wariant_II!AJ20,IF('WYBIERZ ANALIZATOR!'!$L$1=3,Wariant_I_II!AJ20,IF('WYBIERZ ANALIZATOR!'!$L$1=4,Wariant_I_II_IIBIS!AJ20,FALSE)))) ->  | AF20: =IF('WYBIERZ ANALIZATOR!'!$L$1=1,Wariant_I!AK20,IF('WYBIERZ ANALIZATOR!'!$L$1=2,Wariant_II!AK20,IF('WYBIERZ ANALIZATOR!'!$L$1=3,Wariant_I_II!AK20,IF('WYBIERZ ANALIZATOR!'!$L$1=4,Wariant_I_II_IIBIS!AK20,FALSE)))) ->  | AG20: =IF('WYBIERZ ANALIZATOR!'!$L$1=1,Wariant_I!AL20,IF('WYBIERZ ANALIZATOR!'!$L$1=2,Wariant_II!AL20,IF('WYBIERZ ANALIZATOR!'!$L$1=3,Wariant_I_II!AL20,IF('WYBIERZ ANALIZATOR!'!$L$1=4,Wariant_I_II_IIBIS!AL20,FALSE)))) ->  | AH20: wariant 2 bis | AI20: ze zniżką | AP20: wariant I | AQ20: =IF(SUM(BI37:BQ37)>1,1,SUM(BI37:BQ37)+G$12) -> 0 | AR20: =IF(SUM(BI37:BQ37)>1,1,SUM(BI37:BQ37)) -> 0 | AS20: =AQ11 -> 0 | AT20: =IF(SUM(BI37:BQ37)>1,1.1,SUM(BI37:BQ37)) -> 0 | BQ20: =IF('WYBIERZ ANALIZATOR!'!$L$1=1,Wariant_I!BJ20,IF('WYBIERZ ANALIZATOR!'!$L$1=2,Wariant_II!BJ20,IF('WYBIERZ ANALIZATOR!'!$L$1=3,Wariant_I_II!BJ20,IF('WYBIERZ ANALIZATOR!'!$L$1=4,Wariant_I_II_IIBIS!BJ20,FALSE)))) -> 0 | CE20: Sawczyn Benedykt | CF20: bsawczyn@agentpzu.pl | CG20: 601654508 | CH20: ; | CJ20: 601654508; bsawczyn@agentpzu.pl
AD21: bez zniżki | AE21: =IF('WYBIERZ ANALIZATOR!'!$L$1=1,Wariant_I!AJ21,IF('WYBIERZ ANALIZATOR!'!$L$1=2,Wariant_II!AJ21,IF('WYBIERZ ANALIZATOR!'!$L$1=3,Wariant_I_II!AJ21,IF('WYBIERZ ANALIZATOR!'!$L$1=4,Wariant_I_II_IIBIS!AJ21,FALSE)))) ->  | AF21: =IF('WYBIERZ ANALIZATOR!'!$L$1=1,Wariant_I!AK21,IF('WYBIERZ ANALIZATOR!'!$L$1=2,Wariant_II!AK21,IF('WYBIERZ ANALIZATOR!'!$L$1=3,Wariant_I_II!AK21,IF('WYBIERZ ANALIZATOR!'!$L$1=4,Wariant_I_II_IIBIS!AK21,FALSE)))) ->  | AG21: =IF('WYBIERZ ANALIZATOR!'!$L$1=1,Wariant_I!AL21,IF('WYBIERZ ANALIZATOR!'!$L$1=2,Wariant_II!AL21,IF('WYBIERZ ANALIZATOR!'!$L$1=3,Wariant_I_II!AL21,IF('WYBIERZ ANALIZATOR!'!$L$1=4,Wariant_I_II_IIBIS!AL21,FALSE)))) ->  | AI21: bez zniżki | AJ21: =IF(AND(AD27=TRUE,$AM$33=TRUE),AJ36,IF(AND(AD27=TRUE,$AT$30=TRUE),AQ35,"")) ->  | AK21: =IF(AND(AE27=TRUE,$AM$33=TRUE),AK36,IF(AND(AE27=TRUE,$AT$30=TRUE),AR35,"")) ->  | AL21: =IF(AND(AF27=TRUE,$AM$33=TRUE),AL36,IF(AND(AF27=TRUE,$AT$30=TRUE),AS35,"")) ->  | AP21: wariant II | AQ21: =IF(SUM(BI38:BQ38)>1,1,SUM(BI38:BQ38)+G$12) -> 0 | AR21: =IF(SUM(BI38:BQ38)>1,1,SUM(BI38:BQ38)) -> 0 | AS21: =AQ12 -> 0 | AT21: =IF(SUM(BI38:BQ38)>1,1.1,SUM(BI38:BQ38)) -> 0 | AZ21: Jednorazowe świadczenie w przypadku śmierci przedstawiciela ustawowego | BQ21: =IF('WYBIERZ ANALIZATOR!'!$L$1=1,Wariant_I!BJ21,IF('WYBIERZ ANALIZATOR!'!$L$1=2,Wariant_II!BJ21,IF('WYBIERZ ANALIZATOR!'!$L$1=3,Wariant_I_II!BJ21,IF('WYBIERZ ANALIZATOR!'!$L$1=4,Wariant_I_II_IIBIS!BJ21,FALSE)))) -> 0 | CE21: Słupianek Leszek | CF21: lslupianek@agentpzu.pl | CG21: 609397853 | CH21: ; | CJ21: 609397853; lslupianek@agentpzu.pl
B22: =IF('WYBIERZ ANALIZATOR!'!$L$1=1,Wariant_I!C22,IF('WYBIERZ ANALIZATOR!'!$L$1=2,Wariant_II!C22,IF('WYBIERZ ANALIZATOR!'!$L$1=3,Wariant_I_II!C22,IF('WYBIERZ ANALIZATOR!'!$L$1=4,Wariant_I_II_IIBIS!C22,0)))) -> ,0 | C22: =CELL("format",I25) -> ,1 | D22: =IF(C22=",0",1,2) -> 2 | E22: =IF('WYBIERZ ANALIZATOR!'!$L$1=1,Wariant_I!D22,IF('WYBIERZ ANALIZATOR!'!$L$1=2,Wariant_II!D22,IF('WYBIERZ ANALIZATOR!'!$L$1=3,Wariant_I_II!D22,IF('WYBIERZ ANALIZATOR!'!$L$1=4,Wariant_I_II_IIBIS!D22,0)))) -> 1 | G22: =E22 -> 1 | AP22: wariant II ograniczony (wariant II - 30%) | AQ22: 0.7 | AR22: 0.7 | AS22: 0.7 | AT22: 0.7 | AZ22: Jednorazowe świadczenie w przypadku amputacji kończyny spowodowanej nowotworem złośliwym u dziecka, ucznia, studenta w wieku do 25 lat | BQ22: =IF('WYBIERZ ANALIZATOR!'!$L$1=1,Wariant_I!BJ22,IF('WYBIERZ ANALIZATOR!'!$L$1=2,Wariant_II!BJ22,IF('WYBIERZ ANALIZATOR!'!$L$1=3,Wariant_I_II!BJ22,IF('WYBIERZ ANALIZATOR!'!$L$1=4,Wariant_I_II_IIBIS!BJ22,FALSE)))) -> 0 | CE22: Walczak Stanisław | CF22: stwalczak@agentpzu.pl | CG22: 693112343 | CH22: ; | CJ22: 693112343; stwalczak@agentpzu.pl
F23: Świadczenia podstawowe | I23: =AQ28 -> 0 | J23: =I23 -> 0 | L23: =AR28 -> 0 | M23: =L23 -> 0 | O23: =AS28 -> 0 | P23: =O23 -> 0 | R23: Informacja nt. wysokości zniżki/zwyżki z tabeli | AH23: 3 | AP23: zniżka incydentalna | AQ23: =AQ14 -> 1 | AR23: =AQ14 -> 1 | AS23: =AQ14 -> 1 | AT23: =AQ14 -> 1 | AV23: składkę roczną za ubezpieczenie 1 osoby oblicza się mnożąc stawkę taryfową przez 1/1000 sumy ubezpieczenia | BQ23: =IF('WYBIERZ ANALIZATOR!'!$L$1=1,Wariant_I!BJ23,IF('WYBIERZ ANALIZATOR!'!$L$1=2,Wariant_II!BJ23,IF('WYBIERZ ANALIZATOR!'!$L$1=3,Wariant_I_II!BJ23,IF('WYBIERZ ANALIZATOR!'!$L$1=4,Wariant_I_II_IIBIS!BJ23,FALSE)))) -> 0 | CE23: Wardęga Andrzej | CF23: awardęga@agentpzu.pl | CG23: 601958772 | CH23: ; | CJ23: 601958772; awardęga@agentpzu.pl
F24: Świadczenia dodatkowe | I24: =AQ46 -> 0 | J24: =AJ46 -> 0 | L24: =AR46 -> 0 | M24: =AK46 -> 0 | O24: =AS46 -> 0 | P24: =AL46 -> 0 | R24: =AK27 -> 0 | AD24: WYBÓR WARIANTU | AG24: WYBÓR WARIANTU DLA WSZYSTKICH 4 ARKUSZY!!! | AP24: ZNIŻKA DLA WSZYSTKICH ANALIZATORÓW | AQ24: =IF('WYBIERZ ANALIZATOR!'!$L$1=1,Wariant_I!AQ23,IF('WYBIERZ ANALIZATOR!'!$L$1=2,Wariant_II!AQ23,IF('WYBIERZ ANALIZATOR!'!$L$1=3,Wariant_I_II!AQ23,IF('WYBIERZ ANALIZATOR!'!$L$1=4,Wariant_I_II_IIBIS!AQ23,FALSE)))) -> 1 | AR24: =IF('WYBIERZ ANALIZATOR!'!$L$1=1,Wariant_I!AR23,IF('WYBIERZ ANALIZATOR!'!$L$1=2,Wariant_II!AR23,IF('WYBIERZ ANALIZATOR!'!$L$1=3,Wariant_I_II!AR23,IF('WYBIERZ ANALIZATOR!'!$L$1=4,Wariant_I_II_IIBIS!AR23,FALSE)))) -> 1 | AS24: =IF('WYBIERZ ANALIZATOR!'!$L$1=1,Wariant_I!AS23,IF('WYBIERZ ANALIZATOR!'!$L$1=2,Wariant_II!AS23,IF('WYBIERZ ANALIZATOR!'!$L$1=3,Wariant_I_II!AS23,IF('WYBIERZ ANALIZATOR!'!$L$1=4,Wariant_I_II_IIBIS!AS23,FALSE)))) -> 1 | AT24: =IF('WYBIERZ ANALIZATOR!'!$L$1=1,Wariant_I!AT23,IF('WYBIERZ ANALIZATOR!'!$L$1=2,Wariant_II!AT23,IF('WYBIERZ ANALIZATOR!'!$L$1=3,Wariant_I_II!AT23,IF('WYBIERZ ANALIZATOR!'!$L$1=4,Wariant_I_II_IIBIS!AT23,FALSE)))) -> 1 | CE24: Więcław Stanisław | CF24: swieclaw@agentpzu.pl | CG24: 608102452 | CH24: ; | CJ24: 608102452; swieclaw@agentpzu.pl
F25: Razem wysokość składki | I25: =I23+I24 -> 0 | J25: =J23+J24 -> 0 | L25: =L23+L24 -> 0 | M25: =M23+M24 -> 0 | O25: =O23+O24 -> 0 | P25: =P23+P24 -> 0 | R25: Korekta wysokości zniżki/zwyżki z tabeli | AD25: =IF(AE23=1,TRUE,FALSE) -> FALSE | AE25: =IF(AE23=2,TRUE,FALSE) -> FALSE | AF25: =IF(AE23=3,TRUE,FALSE) -> FALSE | AG25: =IF('WYBIERZ ANALIZATOR!'!$L$1=1,Wariant_I!AD25,IF('WYBIERZ ANALIZATOR!'!$L$1=2,Wariant_II!AD25,IF('WYBIERZ ANALIZATOR!'!$L$1=3,Wariant_I_II!AD25,IF('WYBIERZ ANALIZATOR!'!$L$1=4,Wariant_I_II_IIBIS!AD25,FALSE)))) -> FALSE | AH25: =IF('WYBIERZ ANALIZATOR!'!$L$1=1,Wariant_I!AE25,IF('WYBIERZ ANALIZATOR!'!$L$1=2,Wariant_II!AE25,IF('WYBIERZ ANALIZATOR!'!$L$1=3,Wariant_I_II!AE25,IF('WYBIERZ ANALIZATOR!'!$L$1=4,Wariant_I_II_IIBIS!AE25,FALSE)))) -> FALSE | AI25: =IF('WYBIERZ ANALIZATOR!'!$L$1=1,Wariant_I!AF25,IF('WYBIERZ ANALIZATOR!'!$L$1=2,Wariant_II!AF25,IF('WYBIERZ ANALIZATOR!'!$L$1=3,Wariant_I_II!AF25,IF('WYBIERZ ANALIZATOR!'!$L$1=4,Wariant_I_II_IIBIS!AF25,FALSE)))) -> FALSE | AP25: SKŁADKA PODSTAWOWA | AQ25: suma 1 | AR25: suma 2 | AS25: suma 3 | AV25: na składkę wyjściową nakłada się zniżki/zwyżki z poniższej tabeli przy czym zniżki stosuje się zawsze a zwyżki tylko wtedy kiedy wskaźnik szkodowości dla placówki jest wyższy niż 40% lub placówka nie była ubezpieczona w każdym z 3 poprzednich lat | CE25: Woźny Dorota | CF25: dowozny@agentpzu.pl | CG25: 600906655 | CH25: ; | CJ25: 600906655; dowozny@agentpzu.pl
AD26: =IF(AE23=4,TRUE,FALSE) -> FALSE | AE26: =IF(AE23=5,TRUE,FALSE) -> FALSE | AF26: =IF(AE23=6,TRUE,FALSE) -> FALSE | AG26: =IF('WYBIERZ ANALIZATOR!'!$L$1=1,Wariant_I!AD26,IF('WYBIERZ ANALIZATOR!'!$L$1=2,Wariant_II!AD26,IF('WYBIERZ ANALIZATOR!'!$L$1=3,Wariant_I_II!AD26,IF('WYBIERZ ANALIZATOR!'!$L$1=4,Wariant_I_II_IIBIS!AD26,FALSE)))) -> FALSE | AH26: =IF('WYBIERZ ANALIZATOR!'!$L$1=1,Wariant_I!AE26,IF('WYBIERZ ANALIZATOR!'!$L$1=2,Wariant_II!AE26,IF('WYBIERZ ANALIZATOR!'!$L$1=3,Wariant_I_II!AE26,IF('WYBIERZ ANALIZATOR!'!$L$1=4,Wariant_I_II_IIBIS!AE26,FALSE)))) -> FALSE | AI26: =IF('WYBIERZ ANALIZATOR!'!$L$1=1,Wariant_I!AF26,IF('WYBIERZ ANALIZATOR!'!$L$1=2,Wariant_II!AF26,IF('WYBIERZ ANALIZATOR!'!$L$1=3,Wariant_I_II!AF26,IF('WYBIERZ ANALIZATOR!'!$L$1=4,Wariant_I_II_IIBIS!AF26,FALSE)))) -> FALSE | AJ26: Wysokość zniżki z tabeli | AP26: zniżka incydentalna | CE26: Zadka Małgorzata | CF26: mzadka@agentpzu.pl | CG26: 607573755 | CH26: ; | CJ26: 607573755; mzadka@agentpzu.pl
AD27: =IF(AE23=7,TRUE,FALSE) -> FALSE | AE27: =IF(AE23=8,TRUE,FALSE) -> FALSE | AF27: =IF(AE23=9,TRUE,FALSE) -> FALSE | AG27: =IF('WYBIERZ ANALIZATOR!'!$L$1=1,Wariant_I!AD27,IF('WYBIERZ ANALIZATOR!'!$L$1=2,Wariant_II!AD27,IF('WYBIERZ ANALIZATOR!'!$L$1=3,Wariant_I_II!AD27,IF('WYBIERZ ANALIZATOR!'!$L$1=4,Wariant_I_II_IIBIS!AD27,FALSE)))) -> FALSE | AH27: =IF('WYBIERZ ANALIZATOR!'!$L$1=1,Wariant_I!AE27,IF('WYBIERZ ANALIZATOR!'!$L$1=2,Wariant_II!AE27,IF('WYBIERZ ANALIZATOR!'!$L$1=3,Wariant_I_II!AE27,IF('WYBIERZ ANALIZATOR!'!$L$1=4,Wariant_I_II_IIBIS!AE27,FALSE)))) -> FALSE | AI27: =IF('WYBIERZ ANALIZATOR!'!$L$1=1,Wariant_I!AF27,IF('WYBIERZ ANALIZATOR!'!$L$1=2,Wariant_II!AF27,IF('WYBIERZ ANALIZATOR!'!$L$1=3,Wariant_I_II!AF27,IF('WYBIERZ ANALIZATOR!'!$L$1=4,Wariant_I_II_IIBIS!AF27,FALSE)))) -> FALSE | AJ27: wariant I | AK27: =IF($G$11="≤40%",$AQ$20-1,IF($G$11="nowa = pozyskana w 2015r.",$AR$20-1,IF($G$11=">40% / nu w PZU (3 lata)",$AS$20-1,IF($G$11="wznowiona = pozyskana w 2014r.",$AT$20-1,0)))) -> 0 | AO27: WARIANT 1 | AP27: ZE ZNIŻKĄ | AQ27: =IF($G$11="≤40%",$I$20*$AQ$19*$AQ$20/1000*$AQ$23,IF($G$11="nowa = pozyskana w 2015r.",$I$20*$AQ$19*$AR$20/1000*$AR$23,IF($G$11=">40% / nu w PZU (3 lata)",$I$20*$AQ$19*$AS$20/1000*$AS$23,IF($G$11="wznowiona = pozyskana w 2014r.",$I$20*$AT$19*$AT$20/1000*$AT$23,0)))) -> 0 | AR27: =IF($G$11="≤40%",$L$20*$AQ$19*$AQ$20/1000*$AQ$23,IF($G$11="nowa = pozyskana w 2015r.",$L$20*$AQ$19*$AR$20/1000*$AR$23,IF($G$11=">40% / nu w PZU (3 lata)",$L$20*$AQ$19*$AS$20/1000*$AS$23,IF($G$11="wznowiona = pozyskana w 2014r.",$L$20*$AT$19*$AT$20/1000*$AT$23,0)))) -> 0 | AS27: =IF($G$11="≤40%",$O$20*$AQ$19*$AQ$20/1000*$AQ$23,IF($G$11="nowa = pozyskana w 2015r.",$O$20*$AQ$19*$AR$20/1000*$AR$23,IF($G$11=">40% / nu w PZU (3 lata)",$O$20*$AQ$19*$AS$20/1000*$AS$23,IF($G$11="wznowiona = pozyskana w 2014r.",$O$20*$AT$19*$AT$20/1000*$AT$23,0)))) -> 0 | AT27: =IF(AM31=TRUE,FALSE,TRUE) -> TRUE | AV27: wskaźnik szkodowości = | AW27: odszkodowania z polis z lat 2011-2013 | AZ27: > 40% | CE27: Żuberek Marek | CF27: mazuberek@agentpzu.pl | CG27: 604337747 | CH27: ; | CJ27: 604337747; mazuberek@agentpzu.pl
F28: Świadczenia podstawowe | I28: =AQ31 -> 0 | J28: =I28 -> 0 | L28: =AR31 -> 0 | M28: =L28 -> 0 | O28: =AS31 -> 0 | P28: =O28 -> 0 | R28: Informacja nt. wysokości zniżki/zwyżki z tabeli | AD28: =I20 -> 8000 | AE28: =L20 -> 9000 | AF28: =O20 -> 10000 | AG28: =IF('WYBIERZ ANALIZATOR!'!$L$1=1,Wariant_I!AD28,IF('WYBIERZ ANALIZATOR!'!$L$1=2,Wariant_II!AD28,IF('WYBIERZ ANALIZATOR!'!$L$1=3,Wariant_I_II!AD28,IF('WYBIERZ ANALIZATOR!'!$L$1=4,Wariant_I_II_IIBIS!AD28,"")))) -> 10000 | AH28: =IF('WYBIERZ ANALIZATOR!'!$L$1=1,Wariant_I!AE28,IF('WYBIERZ ANALIZATOR!'!$L$1=2,Wariant_II!AE28,IF('WYBIERZ ANALIZATOR!'!$L$1=3,Wariant_I_II!AE28,IF('WYBIERZ ANALIZATOR!'!$L$1=4,Wariant_I_II_IIBIS!AE28,"")))) -> 11000 | AI28: =IF('WYBIERZ ANALIZATOR!'!$L$1=1,Wariant_I!AF28,IF('WYBIERZ ANALIZATOR!'!$L$1=2,Wariant_II!AF28,IF('WYBIERZ ANALIZATOR!'!$L$1=3,Wariant_I_II!AF28,IF('WYBIERZ ANALIZATOR!'!$L$1=4,Wariant_I_II_IIBIS!AF28,"")))) -> 12000 | AJ28: wariant II | AK28: =IF($G$11="≤40%",$AQ$21-1,IF($G$11="nowa = pozyskana w 2015r.",$AR$21-1,IF($G$11=">40% / nu w PZU (3 lata)",$AS$21-1,IF($G$11="wznowiona = pozyskana w 2014r.",$AT$21-1,0)))) -> 0 | AP28: FINALNY WYNIK | AQ28: =IF(AND(AQ$39=TRUE,$AM31=TRUE),AJ31,IF(AND(AQ$39=FALSE,$AM31=TRUE),AJ32,IF(AND(AQ$39=FALSE,$AM31=FALSE),AQ29,IF(AND(AQ$39=TRUE,$AM31=FALSE),AQ27,0)))) -> 0 | AR28: =IF(AND(AR$39=TRUE,$AM31=TRUE),AK31,IF(AND(AR$39=FALSE,$AM31=TRUE),AK32,IF(AND(AR$39=FALSE,$AM31=FALSE),AR29,IF(AND(AR$39=TRUE,$AM31=FALSE),AR27,0)))) -> 0 | AS28: =IF(AND(AS$39=TRUE,$AM31=TRUE),AL31,IF(AND(AS$39=FALSE,$AM31=TRUE),AL32,IF(AND(AS$39=FALSE,$AM31=FALSE),AS29,IF(AND(AS$39=TRUE,$AM31=FALSE),AS27,0)))) -> 0 | AW28: (przypis z lat 2011-2012) + 50% x (przypis z roku 2013)
F29: Świadczenia dodatkowe | I29: =AQ49 -> 0 | J29: =AJ49 -> 0 | L29: =AR49 -> 0 | M29: =AK49 -> 0 | O29: =AS49 -> 0 | P29: =AL49 -> 0 | R29: =AK28 -> 0 | AJ29: wariant II bis | AK29: 0.3 | AP29: BEZ ZNIŻKI | AQ29: =IF($G$11="≤40%",$I$20*$AQ$19*$AQ$20/1000,IF($G$11="nowa = pozyskana w 2015r.",$I$20*$AQ$19*$AR$20/1000,IF($G$11=">40% / nu w PZU (3 lata)",$I$20*$AQ$19*$AS$20/1000,IF($G$11="wznowiona = pozyskana w 2014r.",$I$20*$AT$19*$AT$20/1000,0)))) -> 0 | AR29: =IF($G$11="≤40%",$L$20*$AQ$19*$AQ$20/1000,IF($G$11="nowa = pozyskana w 2015r.",$L$20*$AQ$19*$AR$20/1000,IF($G$11=">40% / nu w PZU (3 lata)",$L$20*$AQ$19*$AS$20/1000,IF($G$11="wznowiona = pozyskana w 2014r.",$L$20*$AT$19*$AT$20/1000,0)))) -> 0 | AS29: =IF($G$11="≤40%",$O$20*$AQ$19*$AQ$20/1000,IF($G$11="nowa = pozyskana w 2015r.",$O$20*$AQ$19*$AR$20/1000,IF($G$11=">40% / nu w PZU (3 lata)",$O$20*$AQ$19*$AS$20/1000,IF($G$11="wznowiona = pozyskana w 2014r.",$O$20*$AT$19*$AT$20/1000,0)))) -> 0
F30: Razem wysokość składki | I30: =I28+I29 -> 0 | J30: =J28+J29 -> 0 | L30: =L28+L29 -> 0 | M30: =M28+M29 -> 0 | O30: =O28+O29 -> 0 | P30: =P28+P29 -> 0 | R30: Korekta wysokości zniżki/zwyżki z tabeli | S30: dla zniżek: maksymalnie z tabeli, ale może być niższa (do zera włącznie). Np. jest 30%, ale może być 15%, albo 0% | AO30: WARIANT 2 | AP30: ZE ZNIŻKĄ | AQ30: =IF($G$11="≤40%",$I$20*$AR$10*$AQ$21/1000*$AQ$23,IF($G$11="nowa = pozyskana w 2015r.",$I$20*$AR$10*$AR$21/1000*$AR$23,IF($G$11=">40% / nu w PZU (3 lata)",$I$20*$AR$10*$AS$21/1000*$AS$23,IF($G$11="wznowiona = pozyskana w 2014r.",$I$20*$AR$10*$AT$21/1000*$AT$23,0)))) -> 0 | AR30: =IF($G$11="≤40%",$L$20*$AR$10*$AQ$21/1000*$AQ$23,IF($G$11="nowa = pozyskana w 2015r.",$L$20*$AR$10*$AR$21/1000*$AR$23,IF($G$11=">40% / nu w PZU (3 lata)",$L$20*$AR$10*$AS$21/1000*$AS$23,IF($G$11="wznowiona = pozyskana w 2014r.",$L$20*$AR$10*$AT$21/1000*$AT$23,0)))) -> 0 | AS30: =IF($G$11="≤40%",$O$20*$AR$10*$AQ$21/1000*$AQ$23,IF($G$11="nowa = pozyskana w 2015r.",$O$20*$AR$10*$AR$21/1000*$AR$23,IF($G$11=">40% / nu w PZU (3 lata)",$O$20*$AR$10*$AS$21/1000*$AS$23,IF($G$11="wznowiona = pozyskana w 2014r.",$O$20*$AR$10*$AT$21/1000*$AT$23,0)))) -> 0 | AT30: =IF(AM33=TRUE,FALSE,TRUE) -> TRUE | AV30: w przypadku placówek, dla których wskaźnik szkodowości jest równy lub niższy od 40% a z tabeli wynika zwyżka wówczas stosuje się taryfowe stawki wyjściowe
S31: dla zwyżek: nie mniej niż wysokość zwyżki, ale może być więcej niż poziom zwyżki (bez ograniczeń wysokości). Np.. Jest 60%, ale może być 80%. | AG31: ZNIŻKA Z PALCA | AH31: ZE ZNIŻKĄ | AI31: WARIANT I | AJ31: =IF($G$11="≤40%",$I$20*$AQ$19*AI37/1000*$AQ$23,IF($G$11="nowa = pozyskana w 2015r.",$I$20*$AQ$19*AI37/1000*$AR$23,IF($G$11=">40% / nu w PZU (3 lata)",$I$20*$AQ$19*AI37/1000*$AS$23,IF($G$11="wznowiona = pozyskana w 2014r.",$I$20*$AT$19*AI37/1000*$AT$23,0)))) -> 0 | AK31: =IF($G$11="≤40%",$L$20*$AQ$19*AI37/1000*$AQ$23,IF($G$11="nowa = pozyskana w 2015r.",$L$20*$AQ$19*AI37/1000*$AR$23,IF($G$11=">40% / nu w PZU (3 lata)",$L$20*$AQ$19*AI37/1000*$AS$23,IF($G$11="wznowiona = pozyskana w 2014r.",$L$20*$AT$19*AI37/1000*$AT$23,0)))) -> 0 | AL31: =IF($G$11="≤40%",$O$20*$AQ$19*AI37/1000*$AQ$23,IF($G$11="nowa = pozyskana w 2015r.",$O$20*$AQ$19*AI37/1000*$AR$23,IF($G$11=">40% / nu w PZU (3 lata)",$O$20*$AQ$19*AI37/1000*$AS$23,IF($G$11="wznowiona = pozyskana w 2014r.",$O$20*$AT$19*AI37/1000*$AT$23,0)))) -> 0 | AM31: =IF(AJ37=TRUE,TRUE,FALSE) -> FALSE | AP31: FINALNY WYNIK | AQ31: =IF(AND(AQ$40=TRUE,$AM33=TRUE),AJ33,IF(AND(AQ$40=FALSE,$AM33=TRUE),AJ34,IF(AND(AQ$40=FALSE,$AM33=FALSE),AQ32,IF(AND(AQ$40=TRUE,$AM33=FALSE),AQ30,0)))) -> 0 | AR31: =IF(AND(AR$40=TRUE,$AM33=TRUE),AK33,IF(AND(AR$40=FALSE,$AM33=TRUE),AK34,IF(AND(AR$40=FALSE,$AM33=FALSE),AR32,IF(AND(AR$40=TRUE,$AM33=FALSE),AR30,0)))) -> 0 | AS31: =IF(AND(AS$40=TRUE,$AM33=TRUE),AL33,IF(AND(AS$40=FALSE,$AM33=TRUE),AL34,IF(AND(AS$40=FALSE,$AM33=FALSE),AS32,IF(AND(AS$40=TRUE,$AM33=FALSE),AS30,0)))) -> 0 | AV31: w przypadku placówek, dla których wskaźnik szkodowości jest równy lub niższy od 40% a z tabeli wynika zniżka wówczas ta zniżka z tabeli może zostać zwiększona o 10 punktów procentowych
AH32: BEZ ZNIŻKI | AJ32: =IF($G$11="≤40%",$I$20*$AQ$19*AI37/1000,IF($G$11="nowa = pozyskana w 2015r.",$I$20*$AQ$19*AI37/1000,IF($G$11=">40% / nu w PZU (3 lata)",$I$20*$AQ$19*AI37/1000,IF($G$11="wznowiona = pozyskana w 2014r.",$I$20*$AT$19*AI37/1000,0)))) -> 0 | AK32: =IF($G$11="≤40%",$L$20*$AQ$19*AI37/1000,IF($G$11="nowa = pozyskana w 2015r.",$L$20*$AQ$19*AI37/1000,IF($G$11=">40% / nu w PZU (3 lata)",$L$20*$AQ$19*AI37/1000,IF($G$11="wznowiona = pozyskana w 2014r.",$L$20*$AT$19*AI37/1000,0)))) -> 0 | AL32: =IF($G$11="≤40%",$O$20*$AQ$19*AI37/1000,IF($G$11="nowa = pozyskana w 2015r.",$O$20*$AQ$19*AI37/1000,IF($G$11=">40% / nu w PZU (3 lata)",$O$20*$AQ$19*AI37/1000,IF($G$11="wznowiona = pozyskana w 2014r.",$O$20*$AT$19*AI37/1000,0)))) -> 0 | AP32: BEZ ZNIŻKI | AQ32: =IF($G$11="≤40%",$I$20*$AR$10*$AQ$21/1000,IF($G$11="nowa = pozyskana w 2015r.",$I$20*$AR$10*$AR$21/1000,IF($G$11=">40% / nu w PZU (3 lata)",$I$20*$AR$10*$AS$21/1000,IF($G$11="wznowiona = pozyskana w 2014r.",$I$20*$AR$10*$AT$21/1000,0)))) -> 0 | AR32: =IF($G$11="≤40%",$L$20*$AR$10*$AQ$21/1000,IF($G$11="nowa = pozyskana w 2015r.",$L$20*$AR$10*$AR$21/1000,IF($G$11=">40% / nu w PZU (3 lata)",$L$20*$AR$10*$AS$21/1000,IF($G$11="wznowiona = pozyskana w 2014r.",$L$20*$AR$10*$AT$21/1000,0)))) -> 0 | AS32: =IF($G$11="≤40%",$O$20*$AR$10*$AQ$21/1000,IF($G$11="nowa = pozyskana w 2015r.",$O$20*$AR$10*$AR$21/1000,IF($G$11=">40% / nu w PZU (3 lata)",$O$20*$AR$10*$AS$21/1000,IF($G$11="wznowiona = pozyskana w 2014r.",$O$20*$AR$10*$AT$21/1000,0)))) -> 0 | AV32: w przypadku placówek nowych tj. takich, które nie były ubezpieczone w PZU w akacji szkolnej 2013/2014 i z tabeli wynika zwyżka stosuje się wyjściowe stawki taryfowe a jeśli z tabeli wynika zniżka to stosuje się tę zniżkę
F33: Świadczenia podstawowe | I33: =AQ34 -> 0 | J33: =I33 -> 0 | L33: =AR34 -> 0 | M33: =L33 -> 0 | O33: =AS34 -> 0 | P33: =O33 -> 0 | S33: dodatkowo komunikat w sytuacji, gdy ktoś wpisze z palca niewłaściwy poziom zniżki lub zwyżki (bo standardowo nie będzie się uwzględniało) | AH33: ZE ZNIŻKĄ | AI33: WARIANT II | AJ33: =IF($G$11="≤40%",$I$20*$AR$10*AI38/1000*$AQ$23,IF($G$11="nowa = pozyskana w 2015r.",$I$20*$AR$10*AI38/1000*$AR$23,IF($G$11=">40% / nu w PZU (3 lata)",$I$20*$AR$10*AI38/1000*$AS$23,IF($G$11="wznowiona = pozyskana w 2014r.",$I$20*$AR$10*AI38/1000*$AT$23,0)))) -> 0 | AK33: =IF($G$11="≤40%",$L$20*$AR$10*AI38/1000*$AQ$23,IF($G$11="nowa = pozyskana w 2015r.",$L$20*$AR$10*AI38/1000*$AR$23,IF($G$11=">40% / nu w PZU (3 lata)",$L$20*$AR$10*AI38/1000*$AS$23,IF($G$11="wznowiona = pozyskana w 2014r.",$L$20*$AR$10*AI38/1000*$AT$23,0)))) -> 0 | AL33: =IF($G$11="≤40%",$O$20*$AR$10*AI38/1000*$AQ$23,IF($G$11="nowa = pozyskana w 2015r.",$O$20*$AR$10*AI38/1000*$AR$23,IF($G$11=">40% / nu w PZU (3 lata)",$O$20*$AR$10*AI38/1000*$AS$23,IF($G$11="wznowiona = pozyskana w 2014r.",$O$20*$AR$10*AI38/1000*$AT$23,0)))) -> 0 | AM33: =IF(AJ38=TRUE,TRUE,FALSE) -> FALSE | AO33: WARIANT 2 BIS | AP33: ZE ZNIŻKĄ | AQ33: =IF($G$11="≤40%",$I$20*$AR$10*$AQ$21/1000*$AQ$22*$AQ$23,IF($G$11="nowa = pozyskana w 2015r.",$I$20*$AR$10*$AR$21/1000*$AQ$22*$AR$23,IF($G$11=">40% / nu w PZU (3 lata)",$I$20*$AR$10*$AS$21/1000*$AQ$22*$AS$23,IF($G$11="wznowiona = pozyskana w 2014r.",$I$20*$AR$10*$AT$21/1000*$AT$23*AQ22,0)))) -> 0 | AR33: =IF($G$11="≤40%",$L$20*$AR$10*$AQ$21/1000*$AQ$22*$AQ$23,IF($G$11="nowa = pozyskana w 2015r.",$L$20*$AR$10*$AR$21/1000*$AQ$22*$AR$23,IF($G$11=">40% / nu w PZU (3 lata)",$L$20*$AR$10*$AS$21/1000*$AQ$22*$AS$23,IF($G$11="wznowiona = pozyskana w 2014r.",$L$20*$AR$10*$AT$21/1000*$AT$23*AQ22,0)))) -> 0 | AS33: =IF($G$11="≤40%",$O$20*$AR$10*$AQ$21/1000*$AQ$22*$AQ$23,IF($G$11="nowa = pozyskana w 2015r.",$O$20*$AR$10*$AR$21/1000*$AR$22*$AR$23,IF($G$11=">40% / nu w PZU (3 lata)",$O$20*$AR$10*$AS$21/1000*$AS$22*$AS$23,IF($G$11="wznowiona = pozyskana w 2014r.",$O$20*$AR$10*$AT$21/1000*$AT$23*AQ22,0)))) -> 0
F34: Świadczenia dodatkowe | I34: =AQ52 -> 0 | J34: =AJ52 -> 0 | L34: =AR52 -> 0 | M34: =AK52 -> 0 | O34: =AS52 -> 0 | P34: =AL52 -> 0 | AH34: BEZ ZNIŻKI | AJ34: =IF($G$11="≤40%",$I$20*$AR$10*AI38/1000,IF($G$11="nowa = pozyskana w 2015r.",$I$20*$AR$10*AI38/1000,IF($G$11=">40% / nu w PZU (3 lata)",$I$20*$AR$10*AI38/1000,IF($G$11="wznowiona = pozyskana w 2014r.",$I$20*$AR$10*AI38/1000,0)))) -> 0 | AK34: =IF($G$11="≤40%",$L$20*$AR$10*AI38/1000,IF($G$11="nowa = pozyskana w 2015r.",$L$20*$AR$10*AI38/1000,IF($G$11=">40% / nu w PZU (3 lata)",$L$20*$AR$10*AI38/1000,IF($G$11="wznowiona = pozyskana w 2014r.",$L$20*$AR$10*AI38/1000,0)))) -> 0 | AL34: =IF($G$11="≤40%",$O$20*$AR$10*AI38/1000,IF($G$11="nowa = pozyskana w 2015r.",$O$20*$AR$10*AI38/1000,IF($G$11=">40% / nu w PZU (3 lata)",$O$20*$AR$10*AI38/1000,IF($G$11="wznowiona = pozyskana w 2014r.",$O$20*$AR$10*AI38/1000,0)))) -> 0 | AP34: FINALNY WYNIK | AQ34: =IF(AND(AQ$41=TRUE,$AM35=TRUE),AJ35,IF(AND(AQ$41=FALSE,$AM35=TRUE),AJ36,IF(AND(AQ$41=FALSE,$AM35=FALSE),AQ35,IF(AND(AQ$41=TRUE,$AM35=FALSE),AQ33,0)))) -> 0 | AR34: =IF(AND(AR$41=TRUE,$AM35=TRUE),AK35,IF(AND(AR$41=FALSE,$AM35=TRUE),AK36,IF(AND(AR$41=FALSE,$AM35=FALSE),AR35,IF(AND(AR$41=TRUE,$AM35=FALSE),AR33,0)))) -> 0 | AS34: =IF(AND(AS$41=TRUE,$AM35=TRUE),AL35,IF(AND(AS$41=FALSE,$AM35=TRUE),AL36,IF(AND(AS$41=FALSE,$AM35=FALSE),AS35,IF(AND(AS$41=TRUE,$AM35=FALSE),AS33,0)))) -> 0
F35: Razem wysokość składki | I35: =I33+I34 -> 0 | J35: =J33+J34 -> 0 | L35: =L33+L34 -> 0 | M35: =M33+M34 -> 0 | O35: =O33+O34 -> 0 | P35: =P33+P34 -> 0 | AH35: ZE ZNIŻKĄ | AI35: WARIANT II BIS | AJ35: =IF($G$11="≤40%",$I$20*$AR$10*AI38/1000*$AQ$22*$AQ$23,IF($G$11="nowa = pozyskana w 2015r.",$I$20*$AR$10*AI38/1000*$AQ$22*$AR$23,IF($G$11=">40% / nu w PZU (3 lata)",$I$20*$AR$10*AI38/1000*$AQ$22*$AS$23,IF($G$11="wznowiona = pozyskana w 2014r.",$I$20*$AR$10*AI38/1000*$AT$23*$AQ$22,0)))) -> 0 | AK35: =IF($G$11="≤40%",$L$20*$AR$10*AI38/1000*$AQ$22*$AQ$23,IF($G$11="nowa = pozyskana w 2015r.",$L$20*$AR$10*AI38/1000*$AQ$22*$AR$23,IF($G$11=">40% / nu w PZU (3 lata)",$L$20*$AR$10*AI38/1000*$AQ$22*$AS$23,IF($G$11="wznowiona = pozyskana w 2014r.",$L$20*$AR$10*AI38/1000*$AT$23*$AQ$22,0)))) -> 0 | AL35: =IF($G$11="≤40%",$O$20*$AR$10*AI38/1000*$AQ$22*$AQ$23,IF($G$11="nowa = pozyskana w 2015r.",$O$20*$AR$10*AI38/1000*$AR$22*$AR$23,IF($G$11=">40% / nu w PZU (3 lata)",$O$20*$AR$10*AI38/1000*$AS$22*$AS$23,IF($G$11="wznowiona = pozyskana w 2014r.",$O$20*$AR$10*AI38/1000*$AT$23*$AQ$22,0)))) -> 0 | AM35: =IF(AM33=TRUE,TRUE,FALSE) -> FALSE | AP35: BEZ ZNIŻKI | AQ35: =IF($G$11="≤40%",$I$20*$AR$10*$AQ$21/1000*$AQ$22,IF($G$11="nowa = pozyskana w 2015r.",$I$20*$AR$10*$AR$21/1000*$AQ$22,IF($G$11=">40% / nu w PZU (3 lata)",$I$20*$AR$10*$AS$21/1000*$AQ$22,IF($G$11="wznowiona = pozyskana w 2014r.",$I$20*$AR$10*$AT$21/1000*$AT$22,0)))) -> 0 | AR35: =IF($G$11="≤40%",$L$20*$AR$10*$AQ$21/1000*$AQ$22,IF($G$11="nowa = pozyskana w 2015r.",$L$20*$AR$10*$AR$21/1000*$AQ$22,IF($G$11=">40% / nu w PZU (3 lata)",$L$20*$AR$10*$AS$21/1000*$AQ$22,IF($G$11="wznowiona = pozyskana w 2014r.",$L$20*$AR$10*$AT$21/1000*$AT$22,0)))) -> 0 | AS35: =IF($G$11="≤40%",$O$20*$AR$10*$AQ$21/1000*$AQ$22,IF($G$11="nowa = pozyskana w 2015r.",$O$20*$AR$10*$AR$21/1000*$AR$22,IF($G$11=">40% / nu w PZU (3 lata)",$O$20*$AR$10*$AS$21/1000*$AS$22,IF($G$11="wznowiona = pozyskana w 2014r.",$O$20*$AR$10*$AT$21/1000*$AT$22,0)))) -> 0 | AV35: Tabela maksymalnych zniżek składki dla poszczególnych rodzajów placówek oraz minimalnych zwyżek składki dla placówek wyróżnionych ustalonych jako stawki wyjściowe dla tego rodzaju placówek na rok szkolny 2014/2015. | BI35: TABELA ZNIŻEK/ZWYŻEK
AH36: BEZ ZNIŻKI | AJ36: =IF($G$11="≤40%",$I$20*$AR$10*AI38/1000*$AQ$22,IF($G$11="nowa = pozyskana w 2015r.",$I$20*$AR$10*AI38/1000*$AQ$22,IF($G$11=">40% / nu w PZU (3 lata)",$I$20*$AR$10*AI38/1000*$AQ$22,IF($G$11="wznowiona = pozyskana w 2014r.",$I$20*$AR$10*AI38/1000*$AQ$22,0)))) -> 0 | AK36: =IF($G$11="≤40%",$L$20*$AR$10*AI38/1000*$AQ$22,IF($G$11="nowa = pozyskana w 2015r.",$L$20*$AR$10*AI38/1000*$AQ$22,IF($G$11=">40% / nu w PZU (3 lata)",$L$20*$AR$10*AI38/1000*$AQ$22,IF($G$11="wznowiona = pozyskana w 2014r.",$L$20*$AR$10*AI38/1000*$AQ$22,0)))) -> 0 | AL36: =IF($G$11="≤40%",$O$20*$AR$10*AI38/1000*$AQ$22,IF($G$11="nowa = pozyskana w 2015r.",$O$20*$AR$10*AI38/1000*$AR$22,IF($G$11=">40% / nu w PZU (3 lata)",$O$20*$AR$10*AI38/1000*$AS$22,IF($G$11="wznowiona = pozyskana w 2014r.",$O$20*$AR$10*AI38/1000*$AQ$22,0)))) -> 0 | AV36: Rodzaj Placówki | AW36: Wariant | AX36: Oddział | BI36: Gdańsk | BJ36: Katowice | BK36: Kraków | BL36: Lublin | BM36: Łódź | BN36: Poznań | BO36: Warszawa | BP36: Wrocław | BQ36: Szczecin
AE37: WARIANT I | AG37: % ZNIŻKI Z PALCA | AI37: =IF(AJ37=TRUE,1+R26,1) -> 1 | AQ37: Zniżka incydentalna | AX37: Gdańsk | AY37: Katowice | AZ37: Kraków | BA37: Lublin | BB37: Łódź | BC37: Poznań | BD37: Warszawa | BE37: Wrocław | BF37: Szczecin | BH37: WARIANT I | BI37: =IF(AND($G$9="Żłobek, przedszkole",$G$10="Gdańsk"),1+AX38,IF(AND($G$9="Szkoła sportowa",$G$10="Gdańsk"),1+AX40,IF(AND($G$9="Szkoła podstawowa",$G$10="Gdańsk"),1+AX42,IF(AND($G$9="Liceum ogólnokształcące",$G$10="Gdańsk"),1+AX44,IF(AND($G$9="Liceum zawodowe",$G$10="Gdańsk"),1+AX46,IF(AND($G$9="Technikum",$G$10="Gdańsk"),1+AX48,IF(AND($G$9="Zasadnicza szkoła zawodowa",$G$10="Gdańsk"),1+AX50,IF(AND($G$9="Szkoła policealna",$G$10="Gdańsk"),1+AX52,IF(AND($G$9="Szkoła wyższa",$G$10="Gdańsk"),1+AX54,IF(AND($G$9="Inne",$G$10="Gdańsk"),1+AX56,IF(AND($G$9="Zespół szkół",$G$10="Gdańsk"),1+AX58,IF(AND($G$9="Gimnazjum",$G$10="Gdańsk"),1+AX60,IF(AND($G$9="Centrum kształcenia",$G$10="Gdańsk"),1+AX62,IF(AND($G$9="Dom dziecka",$G$10="Gdańsk"),1+AX64,"-")))))))))))))) -> - | BJ37: =IF(AND($G$9="Żłobek, przedszkole",$G$10="Katowice"),1+AY38,IF(AND($G$9="Szkoła sportowa",$G$10="Katowice"),1+AY40,IF(AND($G$9="Szkoła podstawowa",$G$10="Katowice"),1+AY42,IF(AND($G$9="Liceum ogólnokształcące",$G$10="Katowice"),1+AY44,IF(AND($G$9="Liceum zawodowe",$G$10="Katowice"),1+AY46,IF(AND($G$9="Technikum",$G$10="Katowice"),1+AY48,IF(AND($G$9="Zasadnicza szkoła zawodowa",$G$10="Katowice"),1+AY50,IF(AND($G$9="Szkoła policealna",$G$10="Katowice"),1+AY52,IF(AND($G$9="Szkoła wyższa",$G$10="Katowice"),1+AY54,IF(AND($G$9="Inne",$G$10="Katowice"),1+AY56,IF(AND($G$9="Zespół szkół",$G$10="Katowice"),1+AY58,IF(AND($G$9="Gimnazjum",$G$10="Katowice"),1+AY60,IF(AND($G$9="Centrum kształcenia",$G$10="Katowice"),1+AY62,IF(AND($G$9="Dom dziecka",$G$10="Katowice"),1+AY64,"-")))))))))))))) -> - | BK37: =IF(AND($G$9="Żłobek, przedszkole",$G$10="Kraków"),1+AZ38,IF(AND($G$9="Szkoła sportowa",$G$10="Kraków"),1+AZ40,IF(AND($G$9="Szkoła podstawowa",$G$10="Kraków"),1+AZ42,IF(AND($G$9="Liceum ogólnokształcące",$G$10="Kraków"),1+AZ44,IF(AND($G$9="Liceum zawodowe",$G$10="Kraków"),1+AZ46,IF(AND($G$9="Technikum",$G$10="Kraków"),1+AZ48,IF(AND($G$9="Zasadnicza szkoła zawodowa",$G$10="Kraków"),1+AZ50,IF(AND($G$9="Szkoła policealna",$G$10="Kraków"),1+AZ52,IF(AND($G$9="Szkoła wyższa",$G$10="Kraków"),1+AZ54,IF(AND($G$9="Inne",$G$10="Kraków"),1+AZ56,IF(AND($G$9="Zespół szkół",$G$10="Kraków"),1+AZ58,IF(AND($G$9="Gimnazjum",$G$10="Kraków"),1+AZ60,IF(AND($G$9="Centrum kształcenia",$G$10="Kraków"),1+AZ62,IF(AND($G$9="Dom dziecka",$G$10="Kraków"),1+AZ64,"-")))))))))))))) -> - | BL37: =IF(AND($G$9="Żłobek, przedszkole",$G$10="Lublin"),1+BA38,IF(AND($G$9="Szkoła sportowa",$G$10="Lublin"),1+BA40,IF(AND($G$9="Szkoła podstawowa",$G$10="Lublin"),1+BA42,IF(AND($G$9="Liceum ogólnokształcące",$G$10="Lublin"),1+BA44,IF(AND($G$9="Liceum zawodowe",$G$10="Lublin"),1+BA46,IF(AND($G$9="Technikum",$G$10="Lublin"),1+BA48,IF(AND($G$9="Zasadnicza szkoła zawodowa",$G$10="Lublin"),1+BA50,IF(AND($G$9="Szkoła policealna",$G$10="Lublin"),1+BA52,IF(AND($G$9="Szkoła wyższa",$G$10="Lublin"),1+BA54,IF(AND($G$9="Inne",$G$10="Lublin"),1+BA56,IF(AND($G$9="Zespół szkół",$G$10="Lublin"),1+BA58,IF(AND($G$9="Gimnazjum",$G$10="Lublin"),1+BA60,IF(AND($G$9="Centrum kształcenia",$G$10="Lublin"),1+BA62,IF(AND($G$9="Dom dziecka",$G$10="Lublin"),1+BA64,"-")))))))))))))) -> - | BM37: =IF(AND($G$9="Żłobek, przedszkole",$G$10="Łódź"),1+BB38,IF(AND($G$9="Szkoła sportowa",$G$10="Łódź"),1+BB40,IF(AND($G$9="Szkoła podstawowa",$G$10="Łódź"),1+BB42,IF(AND($G$9="Liceum ogólnokształcące",$G$10="Łódź"),1+BB44,IF(AND($G$9="Liceum zawodowe",$G$10="Łódź"),1+BB46,IF(AND($G$9="Technikum",$G$10="Łódź"),1+BB48,IF(AND($G$9="Zasadnicza szkoła zawodowa",$G$10="Łódź"),1+BB50,IF(AND($G$9="Szkoła policealna",$G$10="Łódź"),1+BB52,IF(AND($G$9="Szkoła wyższa",$G$10="Łódź"),1+BB54,IF(AND($G$9="Inne",$G$10="Łódź"),1+BB56,IF(AND($G$9="Zespół szkół",$G$10="Łódź"),1+BB58,IF(AND($G$9="Gimnazjum",$G$10="Łódź"),1+BB60,IF(AND($G$9="Centrum kształcenia",$G$10="Łódź"),1+BB62,IF(AND($G$9="Dom dziecka",$G$10="Łódź"),1+BB64,"-")))))))))))))) -> - | BN37: =IF(AND($G$9="Żłobek, przedszkole",$G$10="Poznań"),1+BC38,IF(AND($G$9="Szkoła sportowa",$G$10="Poznań"),1+BC40,IF(AND($G$9="Szkoła podstawowa",$G$10="Poznań"),1+BC42,IF(AND($G$9="Liceum ogólnokształcące",$G$10="Poznań"),1+BC44,IF(AND($G$9="Liceum zawodowe",$G$10="Poznań"),1+BC46,IF(AND($G$9="Technikum",$G$10="Poznań"),1+BC48,IF(AND($G$9="Zasadnicza szkoła zawodowa",$G$10="Poznań"),1+BC50,IF(AND($G$9="Szkoła policealna",$G$10="Poznań"),1+BC52,IF(AND($G$9="Szkoła wyższa",$G$10="Poznań"),1+BC54,IF(AND($G$9="Inne",$G$10="Poznań"),1+BC56,IF(AND($G$9="Zespół szkół",$G$10="Poznań"),1+BC58,IF(AND($G$9="Gimnazjum",$G$10="Poznań"),1+BC60,IF(AND($G$9="Centrum kształcenia",$G$10="Poznań"),1+BC62,IF(AND($G$9="Dom dziecka",$G$10="Poznań"),1+BC64,"-")))))))))))))) -> - | BO37: =IF(AND($G$9="Żłobek, przedszkole",$G$10="Warszawa"),1+BD38,IF(AND($G$9="Szkoła sportowa",$G$10="Warszawa"),1+BD40,IF(AND($G$9="Szkoła podstawowa",$G$10="Warszawa"),1+BD42,IF(AND($G$9="Liceum ogólnokształcące",$G$10="Warszawa"),1+BD44,IF(AND($G$9="Liceum zawodowe",$G$10="Warszawa"),1+BD46,IF(AND($G$9="Technikum",$G$10="Warszawa"),1+BD48,IF(AND($G$9="Zasadnicza szkoła zawodowa",$G$10="Warszawa"),1+BD50,IF(AND($G$9="Szkoła policealna",$G$10="Warszawa"),1+BD52,IF(AND($G$9="Szkoła wyższa",$G$10="Warszawa"),1+BD54,IF(AND($G$9="Inne",$G$10="Warszawa"),1+BD56,IF(AND($G$9="Zespół szkół",$G$10="Warszawa"),1+BD58,IF(AND($G$9="Gimnazjum",$G$10="Warszawa"),1+BD60,IF(AND($G$9="Centrum kształcenia",$G$10="Warszawa"),1+BD62,IF(AND($G$9="Dom dziecka",$G$10="Warszawa"),1+BD64,"-")))))))))))))) -> - | BP37: =IF(AND($G$9="Żłobek, przedszkole",$G$10="Wrocław"),1+BE38,IF(AND($G$9="Szkoła sportowa",$G$10="Wrocław"),1+BE40,IF(AND($G$9="Szkoła podstawowa",$G$10="Wrocław"),1+BE42,IF(AND($G$9="Liceum ogólnokształcące",$G$10="Wrocław"),1+BE44,IF(AND($G$9="Liceum zawodowe",$G$10="Wrocław"),1+BE46,IF(AND($G$9="Technikum",$G$10="Wrocław"),1+BE48,IF(AND($G$9="Zasadnicza szkoła zawodowa",$G$10="Wrocław"),1+BE50,IF(AND($G$9="Szkoła policealna",$G$10="Wrocław"),1+BE52,IF(AND($G$9="Szkoła wyższa",$G$10="Wrocław"),1+BE54,IF(AND($G$9="Inne",$G$10="Wrocław"),1+BE56,IF(AND($G$9="Zespół szkół",$G$10="Wrocław"),1+BE58,IF(AND($G$9="Gimnazjum",$G$10="Wrocław"),1+BE60,IF(AND($G$9="Centrum kształcenia",$G$10="Wrocław"),1+BE62,IF(AND($G$9="Dom dziecka",$G$10="Wrocław"),1+BE64,"-")))))))))))))) -> - | BQ37: =IF(AND($G$9="Żłobek, przedszkole",$G$10="Szczecin"),1+BF38,IF(AND($G$9="Szkoła sportowa",$G$10="Szczecin"),1+BF40,IF(AND($G$9="Szkoła podstawowa",$G$10="Szczecin"),1+BF42,IF(AND($G$9="Liceum ogólnokształcące",$G$10="Szczecin"),1+BF44,IF(AND($G$9="Liceum zawodowe",$G$10="Szczecin"),1+BF46,IF(AND($G$9="Technikum",$G$10="Szczecin"),1+BF48,IF(AND($G$9="Zasadnicza szkoła zawodowa",$G$10="Szczecin"),1+BF50,IF(AND($G$9="Szkoła policealna",$G$10="Szczecin"),1+BF52,IF(AND($G$9="Szkoła wyższa",$G$10="Szczecin"),1+BF54,IF(AND($G$9="Inne",$G$10="Szczecin"),1+BF56,IF(AND($G$9="Zespół szkół",$G$10="Szczecin"),1+BF58,IF(AND($G$9="Gimnazjum",$G$10="Szczecin"),1+BF60,IF(AND($G$9="Centrum kształcenia",$G$10="Szczecin"),1+BF62,IF(AND($G$9="Dom dziecka",$G$10="Szczecin"),1+BF64,"-")))))))))))))) -> -
AE38: WARIANT II | AG38: % ZNIŻKI Z PALCA | AI38: =IF(AJ38=TRUE,1+R31,1) -> 1 | AQ38: Suma 1 | AR38: Suma 2 | AS38: Suma 3 | AV38: Żłobek, przedszkole | AW38: Wariant I | AX38: -0.3 | AY38: -0.15 | AZ38: -0.3 | BA38: -0.3 | BB38: -0.25 | BC38: -0.2 | BD38: -0.3 | BE38: -0.3 | BF38: -0.3 | BH38: WARIANT II | BI38: =IF(AND($G$9="Żłobek, przedszkole",$G$10="Gdańsk"),1+AX39,IF(AND($G$9="Szkoła sportowa",$G$10="Gdańsk"),1+AX41,IF(AND($G$9="Szkoła podstawowa",$G$10="Gdańsk"),1+AX43,IF(AND($G$9="Liceum ogólnokształcące",$G$10="Gdańsk"),1+AX45,IF(AND($G$9="Liceum zawodowe",$G$10="Gdańsk"),1+AX47,IF(AND($G$9="Technikum",$G$10="Gdańsk"),1+AX49,IF(AND($G$9="Zasadnicza szkoła zawodowa",$G$10="Gdańsk"),1+AX51,IF(AND($G$9="Szkoła policealna",$G$10="Gdańsk"),1+AX53,IF(AND($G$9="Szkoła wyższa",$G$10="Gdańsk"),1+AX55,IF(AND($G$9="Inne",$G$10="Gdańsk"),1+AX57,IF(AND($G$9="Zespół szkół",$G$10="Gdańsk"),1+AX59,IF(AND($G$9="Gimnazjum",$G$10="Gdańsk"),1+AX61,IF(AND($G$9="Centrum kształcenia",$G$10="Gdańsk"),1+AX63,IF(AND($G$9="Dom dziecka",$G$10="Gdańsk"),1+AX65,"-")))))))))))))) -> - | BJ38: =IF(AND($G$9="Żłobek, przedszkole",$G$10="Katowice"),1+AY39,IF(AND($G$9="Szkoła sportowa",$G$10="Katowice"),1+AY41,IF(AND($G$9="Szkoła podstawowa",$G$10="Katowice"),1+AY43,IF(AND($G$9="Liceum ogólnokształcące",$G$10="Katowice"),1+AY45,IF(AND($G$9="Liceum zawodowe",$G$10="Katowice"),1+AY47,IF(AND($G$9="Technikum",$G$10="Katowice"),1+AY49,IF(AND($G$9="Zasadnicza szkoła zawodowa",$G$10="Katowice"),1+AY51,IF(AND($G$9="Szkoła policealna",$G$10="Katowice"),1+AY53,IF(AND($G$9="Szkoła wyższa",$G$10="Katowice"),1+AY55,IF(AND($G$9="Inne",$G$10="Katowice"),1+AY57,IF(AND($G$9="Zespół szkół",$G$10="Katowice"),1+AY59,IF(AND($G$9="Gimnazjum",$G$10="Katowice"),1+AY61,IF(AND($G$9="Centrum kształcenia",$G$10="Katowice"),1+AY63,IF(AND($G$9="Dom dziecka",$G$10="Katowice"),1+AY65,"-")))))))))))))) -> - | BK38: =IF(AND($G$9="Żłobek, przedszkole",$G$10="Kraków"),1+AZ39,IF(AND($G$9="Szkoła sportowa",$G$10="Kraków"),1+AZ41,IF(AND($G$9="Szkoła podstawowa",$G$10="Kraków"),1+AZ43,IF(AND($G$9="Liceum ogólnokształcące",$G$10="Kraków"),1+AZ45,IF(AND($G$9="Liceum zawodowe",$G$10="Kraków"),1+AZ47,IF(AND($G$9="Technikum",$G$10="Kraków"),1+AZ49,IF(AND($G$9="Zasadnicza szkoła zawodowa",$G$10="Kraków"),1+AZ51,IF(AND($G$9="Szkoła policealna",$G$10="Kraków"),1+AZ53,IF(AND($G$9="Szkoła wyższa",$G$10="Kraków"),1+AZ55,IF(AND($G$9="Inne",$G$10="Kraków"),1+AZ57,IF(AND($G$9="Zespół szkół",$G$10="Kraków"),1+AZ59,IF(AND($G$9="Gimnazjum",$G$10="Kraków"),1+AZ61,IF(AND($G$9="Centrum kształcenia",$G$10="Kraków"),1+AZ63,IF(AND($G$9="Dom dziecka",$G$10="Kraków"),1+AZ65,"-")))))))))))))) -> - | BL38: =IF(AND($G$9="Żłobek, przedszkole",$G$10="Lublin"),1+BA39,IF(AND($G$9="Szkoła sportowa",$G$10="Lublin"),1+BA41,IF(AND($G$9="Szkoła podstawowa",$G$10="Lublin"),1+BA43,IF(AND($G$9="Liceum ogólnokształcące",$G$10="Lublin"),1+BA45,IF(AND($G$9="Liceum zawodowe",$G$10="Lublin"),1+BA47,IF(AND($G$9="Technikum",$G$10="Lublin"),1+BA49,IF(AND($G$9="Zasadnicza szkoła zawodowa",$G$10="Lublin"),1+BA51,IF(AND($G$9="Szkoła policealna",$G$10="Lublin"),1+BA53,IF(AND($G$9="Szkoła wyższa",$G$10="Lublin"),1+BA55,IF(AND($G$9="Inne",$G$10="Lublin"),1+BA57,IF(AND($G$9="Zespół szkół",$G$10="Lublin"),1+BA59,IF(AND($G$9="Gimnazjum",$G$10="Lublin"),1+BA61,IF(AND($G$9="Centrum kształcenia",$G$10="Lublin"),1+BA63,IF(AND($G$9="Dom dziecka",$G$10="Lublin"),1+BA65,"-")))))))))))))) -> - | BM38: =IF(AND($G$9="Żłobek, przedszkole",$G$10="Łódź"),1+BB39,IF(AND($G$9="Szkoła sportowa",$G$10="Łódź"),1+BB41,IF(AND($G$9="Szkoła podstawowa",$G$10="Łódź"),1+BB43,IF(AND($G$9="Liceum ogólnokształcące",$G$10="Łódź"),1+BB45,IF(AND($G$9="Liceum zawodowe",$G$10="Łódź"),1+BB47,IF(AND($G$9="Technikum",$G$10="Łódź"),1+BB49,IF(AND($G$9="Zasadnicza szkoła zawodowa",$G$10="Łódź"),1+BB51,IF(AND($G$9="Szkoła policealna",$G$10="Łódź"),1+BB53,IF(AND($G$9="Szkoła wyższa",$G$10="Łódź"),1+BB55,IF(AND($G$9="Inne",$G$10="Łódź"),1+BB57,IF(AND($G$9="Zespół szkół",$G$10="Łódź"),1+BB59,IF(AND($G$9="Gimnazjum",$G$10="Łódź"),1+BB61,IF(AND($G$9="Centrum kształcenia",$G$10="Łódź"),1+BB63,IF(AND($G$9="Dom dziecka",$G$10="Łódź"),1+BB65,"-")))))))))))))) -> - | BN38: =IF(AND($G$9="Żłobek, przedszkole",$G$10="Poznań"),1+BC39,IF(AND($G$9="Szkoła sportowa",$G$10="Poznań"),1+BC41,IF(AND($G$9="Szkoła podstawowa",$G$10="Poznań"),1+BC43,IF(AND($G$9="Liceum ogólnokształcące",$G$10="Poznań"),1+BC45,IF(AND($G$9="Liceum zawodowe",$G$10="Poznań"),1+BC47,IF(AND($G$9="Technikum",$G$10="Poznań"),1+BC49,IF(AND($G$9="Zasadnicza szkoła zawodowa",$G$10="Poznań"),1+BC51,IF(AND($G$9="Szkoła policealna",$G$10="Poznań"),1+BC53,IF(AND($G$9="Szkoła wyższa",$G$10="Poznań"),1+BC55,IF(AND($G$9="Inne",$G$10="Poznań"),1+BC57,IF(AND($G$9="Zespół szkół",$G$10="Poznań"),1+BC59,IF(AND($G$9="Gimnazjum",$G$10="Poznań"),1+BC61,IF(AND($G$9="Centrum kształcenia",$G$10="Poznań"),1+BC63,IF(AND($G$9="Dom dziecka",$G$10="Poznań"),1+BC65,"-")))))))))))))) -> - | BO38: =IF(AND($G$9="Żłobek, przedszkole",$G$10="Warszawa"),1+BD39,IF(AND($G$9="Szkoła sportowa",$G$10="Warszawa"),1+BD41,IF(AND($G$9="Szkoła podstawowa",$G$10="Warszawa"),1+BD43,IF(AND($G$9="Liceum ogólnokształcące",$G$10="Warszawa"),1+BD45,IF(AND($G$9="Liceum zawodowe",$G$10="Warszawa"),1+BD47,IF(AND($G$9="Technikum",$G$10="Warszawa"),1+BD49,IF(AND($G$9="Zasadnicza szkoła zawodowa",$G$10="Warszawa"),1+BD51,IF(AND($G$9="Szkoła policealna",$G$10="Warszawa"),1+BD53,IF(AND($G$9="Szkoła wyższa",$G$10="Warszawa"),1+BD55,IF(AND($G$9="Inne",$G$10="Warszawa"),1+BD57,IF(AND($G$9="Zespół szkół",$G$10="Warszawa"),1+BD59,IF(AND($G$9="Gimnazjum",$G$10="Warszawa"),1+BD61,IF(AND($G$9="Centrum kształcenia",$G$10="Warszawa"),1+BD63,IF(AND($G$9="Dom dziecka",$G$10="Warszawa"),1+BD65,"-")))))))))))))) -> - | BP38: =IF(AND($G$9="Żłobek, przedszkole",$G$10="Wrocław"),1+BE39,IF(AND($G$9="Szkoła sportowa",$G$10="Wrocław"),1+BE41,IF(AND($G$9="Szkoła podstawowa",$G$10="Wrocław"),1+BE43,IF(AND($G$9="Liceum ogólnokształcące",$G$10="Wrocław"),1+BE45,IF(AND($G$9="Liceum zawodowe",$G$10="Wrocław"),1+BE47,IF(AND($G$9="Technikum",$G$10="Wrocław"),1+BE49,IF(AND($G$9="Zasadnicza szkoła zawodowa",$G$10="Wrocław"),1+BE51,IF(AND($G$9="Szkoła policealna",$G$10="Wrocław"),1+BE53,IF(AND($G$9="Szkoła wyższa",$G$10="Wrocław"),1+BE55,IF(AND($G$9="Inne",$G$10="Wrocław"),1+BE57,IF(AND($G$9="Zespół szkół",$G$10="Wrocław"),1+BE59,IF(AND($G$9="Gimnazjum",$G$10="Wrocław"),1+BE61,IF(AND($G$9="Centrum kształcenia",$G$10="Wrocław"),1+BE63,IF(AND($G$9="Dom dziecka",$G$10="Wrocław"),1+BE65,"-")))))))))))))) -> - | BQ38: =IF(AND($G$9="Żłobek, przedszkole",$G$10="Szczecin"),1+BF39,IF(AND($G$9="Szkoła sportowa",$G$10="Szczecin"),1+BF41,IF(AND($G$9="Szkoła podstawowa",$G$10="Szczecin"),1+BF43,IF(AND($G$9="Liceum ogólnokształcące",$G$10="Szczecin"),1+BF45,IF(AND($G$9="Liceum zawodowe",$G$10="Szczecin"),1+BF47,IF(AND($G$9="Technikum",$G$10="Szczecin"),1+BF49,IF(AND($G$9="Zasadnicza szkoła zawodowa",$G$10="Szczecin"),1+BF51,IF(AND($G$9="Szkoła policealna",$G$10="Szczecin"),1+BF53,IF(AND($G$9="Szkoła wyższa",$G$10="Szczecin"),1+BF55,IF(AND($G$9="Inne",$G$10="Szczecin"),1+BF57,IF(AND($G$9="Zespół szkół",$G$10="Szczecin"),1+BF59,IF(AND($G$9="Gimnazjum",$G$10="Szczecin"),1+BF61,IF(AND($G$9="Centrum kształcenia",$G$10="Szczecin"),1+BF63,IF(AND($G$9="Dom dziecka",$G$10="Szczecin"),1+BF65,"-")))))))))))))) -> -
F39: Zwrot kosztów leczenia do wysokości: | G39: sumy ubezpieczenia | I39: =IF(AY3=TRUE,IF(AQ39=TRUE,(((IF(AND($BJ$4=1,$AY$3=TRUE),(I$20*$AV$95/1000),IF(AND($BJ$4=2,$AY$3=TRUE),(I$20*$AW$95/1000),""))))*AQ23),((IF(AND($BJ$4=1,$AY$3=TRUE),(I$20*$AV$95/1000),IF(AND($BJ$4=2,$AY$3=TRUE),(I$20*$AW$95/1000),""))))),"") ->  | J39: =IF(AY14=TRUE,IF(AQ39=TRUE,(((IF(AND($BJ$4=1,$AY$14=TRUE),(I$20*$AV$95/1000),IF(AND($BJ$4=2,$AY$14=TRUE),(I$20*$AW$95/1000),""))))*AQ23),((IF(AND($BJ$4=1,$AY$14=TRUE),(I$20*$AV$95/1000),IF(AND($BJ$4=2,$AY$14=TRUE),(I$20*$AW$95/1000),""))))),"") ->  | L39: =IF(AY3=TRUE,IF(AR39=TRUE,(((IF(AND($BJ$4=1,$AY$3=TRUE),(L$20*$AV$95/1000),IF(AND($BJ$4=2,$AY$3=TRUE),(L$20*$AW$95/1000),""))))*AQ23),((IF(AND($BJ$4=1,$AY$3=TRUE),(L$20*$AV$95/1000),IF(AND($BJ$4=2,$AY$3=TRUE),(L$20*$AW$95/1000),""))))),"") ->  | M39: =IF(AY14=TRUE,IF(AR39=TRUE,(((IF(AND($BJ$4=1,$AY$14=TRUE),(L$20*$AV$95/1000),IF(AND($BJ$4=2,$AY$14=TRUE),(L$20*$AW$95/1000),""))))*AQ23),((IF(AND($BJ$4=1,$AY$14=TRUE),(L$20*$AV$95/1000),IF(AND($BJ$4=2,$AY$14=TRUE),(L$20*$AW$95/1000),""))))),"") ->  | O39: =IF(AY3=TRUE,IF(AS39=TRUE,(((IF(AND($BJ$4=1,$AY$3=TRUE),(O$20*$AV$95/1000),IF(AND($BJ$4=2,$AY$3=TRUE),(O$20*$AW$95/1000),""))))*AQ23),((IF(AND($BJ$4=1,$AY$3=TRUE),(O$20*$AV$95/1000),IF(AND($BJ$4=2,$AY$3=TRUE),(O$20*$AW$95/1000),""))))),"") ->  | P39: =IF(AY14=TRUE,IF(AS39=TRUE,(((IF(AND($BJ$4=1,$AY$14=TRUE),(O$20*$AV$95/1000),IF(AND($BJ$4=2,$AY$14=TRUE),(O$20*$AW$95/1000),""))))*AQ23),((IF(AND($BJ$4=1,$AY$14=TRUE),(O$20*$AV$95/1000),IF(AND($BJ$4=2,$AY$14=TRUE),(O$20*$AW$95/1000),""))))),"") ->  | AP39: Wariant 1 | AW39: Wariant II | AX39: -0.2 | AY39: -0.1 | AZ39: -0.25 | BA39: -0.25 | BB39: -0.15 | BC39: -0.2 | BD39: -0.3 | BE39: -0.25 | BF39: -0.2 | BH39: Zniżka (1/0) | BI39: =IF(OR(BI37<1,BI38<1),1,"") ->  | BJ39: =IF(OR(BJ37<1,BJ38<1),1,"") -> 
F40: Ryczałt za okres czasowej, całkowitej niezdolności do nauki lub pracy trwający dłużej niż 14 dni - 0,06% sumy ubezpieczenia za każdy dzień (do 180 dni łącznie ze wszystkich zdarzeń objętych umową) | I40: =IF(BJ5=TRUE,IF(AQ39=TRUE,(((IF($BJ$5=TRUE,(I$20*$AX$95/1000),0)))*AQ23),(((IF($BJ$5=TRUE,(I$20*$AX$95/1000),0))))),"") ->  | J40: =IF(BJ16=TRUE,IF(AQ39=TRUE,(((IF($BJ$16=TRUE,(I$20*$AX$95/1000),0)))*AQ23),(((IF($BJ$16=TRUE,(I$20*$AX$95/1000),0))))),"") ->  | L40: =IF(BJ5=TRUE,IF(AR39=TRUE,(((IF($BJ$5=TRUE,(L$20*$AX$95/1000),0)))*AQ23),(((IF($BJ$5=TRUE,(L$20*$AX$95/1000),0))))),"") ->  | M40: =IF(BJ16=TRUE,IF(AR39=TRUE,(((IF($BJ$16=TRUE,(L$20*$AX$95/1000),0)))*AQ23),(((IF($BJ$16=TRUE,(L$20*$AX$95/1000),0))))),"") ->  | O40: =IF(BJ5=TRUE,IF(AS39=TRUE,(((IF($BJ$5=TRUE,(O$20*$AX$95/1000),0)))*AQ23),(((IF($BJ$5=TRUE,(O$20*$AX$95/1000),0))))),"") ->  | P40: =IF(BJ16=TRUE,IF(AS39=TRUE,(((IF($BJ$16=TRUE,(O$20*$AX$95/1000),0)))*AQ23),(((IF($BJ$16=TRUE,(O$20*$AX$95/1000),0))))),"") ->  | AP40: Wariant 2 | AV40: Szkoła sportowa | AW40: Wariant I | AX40: 0 | AY40: 0 | AZ40: 0 | BA40: 0 | BB40: 0 | BC40: 0 | BD40: 0 | BE40: 0 | BF40: 0
F41: Dieta szpitalna, za każdy dzień pobytu w szpitalu 0,2% sumy ubezpieczenia (płatna przez maksymalny okres 90 dni z tytułu jednego nieszczęśliwego wypadku lub zdarzenia objętego umową) | I41: =IF(BJ6=TRUE,IF(AQ39=TRUE,(((IF($BJ$6=TRUE,(I$20*$AY$95/1000),0)))*AQ23),(((IF($BJ$6=TRUE,(I$20*$AY$95/1000),0))))),"") ->  | J41: =IF(BJ17=TRUE,IF(AQ39=TRUE,(((IF($BJ$17=TRUE,(I$20*$AY$95/1000),0)))*AQ23),(((IF($BJ$17=TRUE,(I$20*$AY$95/1000),0))))),"") ->  | L41: =IF(BJ6=TRUE,IF(AR39=TRUE,(((IF($BJ$6=TRUE,(L$20*$AY$95/1000),0)))*AQ23),(((IF($BJ$6=TRUE,(L$20*$AY$95/1000),0))))),"") ->  | M41: =IF(BJ17=TRUE,IF(AR39=TRUE,(((IF($BJ$17=TRUE,(L$20*$AY$95/1000),0)))*AQ23),(((IF($BJ$17=TRUE,(L$20*$AY$95/1000),0))))),"") ->  | O41: =IF(BJ6=TRUE,IF(AS39=TRUE,(((IF($BJ$6=TRUE,(O$20*$AY$95/1000),0)))*AQ23),(((IF($BJ$6=TRUE,(O$20*$AY$95/1000),0))))),"") ->  | P41: =IF(BJ17=TRUE,IF(AS39=TRUE,(((IF($BJ$17=TRUE,(O$20*$AY$95/1000),0)))*AQ23),(((IF($BJ$17=TRUE,(O$20*$AY$95/1000),0))))),"") ->  | AC41: ZNIŻKA | AD41: Kiedy powyżej 0 | AE41: =IF(R26>0,TRUE, FALSE) -> FALSE | AP41: Wariant 2 BIS | AW41: Wariant II | AX41: 0 | AY41: 0 | AZ41: 0 | BA41: 0 | BB41: 0 | BC41: 0 | BD41: 0 | BE41: 0 | BF41: 0
F42: Jednorazowe świadczenie w przypadku zgonu ubezpieczonego spowodowane nowotworem złośliwym w wysokości 1.000 zł | I42: =IF(BJ7=TRUE,IF(AQ39=TRUE,(((IF($BJ$7=TRUE,0.1,0)))*AQ23),(((IF($BJ$7=TRUE,0.1,0))))),"") ->  | J42: =IF(BJ18=TRUE,IF(AQ39=TRUE,(((IF($BJ$18=TRUE,0.1,0)))*AQ23),(((IF($BJ$18=TRUE,0.1,0))))),"") ->  | L42: =IF(BJ7=TRUE,IF(AR39=TRUE,(((IF($BJ$7=TRUE,0.1,0)))*AQ23),(((IF($BJ$7=TRUE,0.1,0))))),"") ->  | M42: =IF(BJ18=TRUE,IF(AS39=TRUE,(((IF($BJ$18=TRUE,0.1,0)))*AQ23),(((IF($BJ$18=TRUE,0.1,0))))),"") ->  | O42: =IF(BJ7=TRUE,IF(AS39=TRUE,(((IF($BJ$7=TRUE,0.1,0)))*AQ23),(((IF($BJ$7=TRUE,0.1,0))))),"") ->  | P42: =IF(BJ18=TRUE,IF(AS39=TRUE,(((IF($BJ$18=TRUE,0.1,0)))*AQ23),(((IF($BJ$18=TRUE,0.1,0))))),"") ->  | Z42: Zniżka | AA42: =IF(R24<0,TRUE,IF(R24=0,TRUE,IF(R24>0,FALSE,0))) -> TRUE | AD42: Kiedy 0 | AE42: =IF(R26=0,TRUE,FALSE) -> TRUE | AH42: PERSONEL | AO42: DZIECI | AV42: Szkoła podstawowa | AW42: Wariant I | AX42: -0.05 | AY42: 0.2 | AZ42: -0.15 | BA42: 0.1 | BB42: 0.05 | BC42: -0.1 | BD42: -0.1 | BE42: 0.25 | BF42: 0.15
F43: Jednorazowe świadczenie w przypadku zgonu dziecka lub ucznia w wieku do 25 lat z powodu wrodzonej wady serca w wysokości 1.000 zł | I43: =IF(BJ8=TRUE,IF(AQ39=TRUE,(((IF($BJ$8=TRUE,0.1,0)))*AQ23),(((IF($BJ$8=TRUE,0.1,0))))),"") ->  | L43: =IF(BJ8=TRUE,IF(AR39=TRUE,(((IF($BJ$8=TRUE,0.1,0)))*AQ23),(((IF($BJ$8=TRUE,0.1,0))))),"") ->  | O43: =IF(BJ8=TRUE,IF(AS39=TRUE,(((IF($BJ$8=TRUE,0.1,0)))*AQ23),(((IF($BJ$8=TRUE,0.1,0))))),"") ->  | Z43: Zwyżka | AA43: =IF(AA42=TRUE,FALSE,TRUE) -> FALSE | AD43: Pomiędzy 0 a zniżka z tabeli | AE43: =IF(AND(R26<0,R26>R24),TRUE,FALSE) -> FALSE | AI43: ŚWIADCZENIA DODATKOWE | AJ43: suma 1 | AK43: suma 2 | AL43: suma 3 | AP43: ŚWIADCZENIA DODATKOWE | AQ43: suma 1 | AR43: suma 2 | AS43: suma 3 | AW43: Wariant II | AX43: 0.3 | AY43: 0.6 | AZ43: 0 | BA43: 0.3 | BB43: 0.5 | BC43: 0.3 | BD43: 0.2 | BE43: 0.5 | BF43: 0.3
F44: Jednorazowe świadczenie w przypadku śmierci przedstawiciela ustawowego lub osoby, która ma na utrzymaniu ucznia w wysokości 1.000 zł | I44: =IF(BJ10=TRUE,IF(AQ39=TRUE,(((IF($BJ$10=TRUE,0.1,0)))*AQ23),(((IF($BJ$10=TRUE,0.1,0))))),"") ->  | L44: =IF(BJ10=TRUE,IF(AR39=TRUE,(((IF($BJ$10=TRUE,0.1,0)))*AQ23),(((IF($BJ$10=TRUE,0.1,0))))),"") ->  | O44: =IF(BJ10=TRUE,IF(AS39=TRUE,(((IF($BJ$10=TRUE,0.1,0)))*AQ23),(((IF($BJ$10=TRUE,0.1,0))))),"") ->  | AD44: Kiedy poniżej zniżki z tabeli | AE44: =IF(R26<R24,TRUE,FALSE) -> FALSE | AI44: zniżka incydentalna | AP44: zniżka incydentalna | AV44: Liceum ogólnokształcące | AW44: Wariant I | AX44: -0.2 | AY44: 0.05 | AZ44: -0.1 | BA44: -0.1 | BB44: -0.05 | BC44: -0.1 | BD44: -0.2 | BE44: 0.05 | BF44: -0.1
F45: Jednorazowe świadczenie w przypadku amputacji kończyny spowodowanej nowotworem złośliwym u dziecka lub ucznia w wieku do 25 lat w wysokości 1.000 zł | I45: =IF(BJ11=TRUE,IF(AQ39=TRUE,(((IF($BJ$11=TRUE,0.1,0)))*AQ23),(((IF($BJ$11=TRUE,0.1,0))))),"") ->  | L45: =IF(BJ11=TRUE,IF(AR39=TRUE,(((IF($BJ$11=TRUE,0.1,0)))*AQ23),(((IF($BJ$11=TRUE,0.1,0))))),"") ->  | O45: =IF(BJ11=TRUE,IF(AS39=TRUE,(((IF($BJ$11=TRUE,0.1,0)))*AQ23),(((IF($BJ$11=TRUE,0.1,0))))),"") ->  | AD45: Kiedy równe z palca i z tabeli | AE45: =IF(R26=R24,TRUE,FALSE) -> TRUE | AH45: WARIANT 1 | AI45: ZE ZNIŻKĄ | AJ45: =((IF(AND($BJ$4=1,$AY$14=TRUE),(I$20*$AV$95/1000),IF(AND($BJ$4=2,$AY$14=TRUE),(I$20*$AW$95/1000),0)))+(IF($BJ$16=TRUE,(I$20*$AX$95/1000),0))+(IF($BJ$17=TRUE,(I$20*$AY$95/1000),0))+(IF($BJ$18=TRUE,0.1,0)))*$AQ$23 -> 0 | AK45: =((IF(AND($BJ$4=1,$AY$14=TRUE),(L$20*$AV$95/1000),IF(AND($BJ$4=2,$AY$14=TRUE),(L$20*$AW$95/1000),0)))+(IF($BJ$16=TRUE,(L$20*$AX$95/1000),0))+(IF($BJ$17=TRUE,(L$20*$AY$95/1000),0))+(IF($BJ$18=TRUE,0.1,0)))*$AQ$23 -> 0 | AL45: =((IF(AND($BJ$4=1,$AY$14=TRUE),(O$20*$AV$95/1000),IF(AND($BJ$4=2,$AY$14=TRUE),(O$20*$AW$95/1000),0)))+(IF($BJ$16=TRUE,(O$20*$AX$95/1000),0))+(IF($BJ$17=TRUE,(O$20*$AY$95/1000),0))+(IF($BJ$18=TRUE,0.1,0)))*$AQ$23 -> 0 | AO45: WARIANT 1 | AP45: ZE ZNIŻKĄ | AQ45: =((IF(AND($BJ$4=1,$AY$3=TRUE),(I$20*$AV$95/1000),IF(AND($BJ$4=2,$AY$3=TRUE),(I$20*$AW$95/1000),0)))+(IF($BJ$5=TRUE,(I$20*$AX$95/1000),0))+(IF($BJ$6=TRUE,(I$20*$AY$95/1000),0))+(IF($BJ$7=TRUE,0.1,0))+(IF($BJ$8=TRUE,0.1,0))+(IF($BJ$9=TRUE,0.1,0))+(IF($BJ$10=TRUE,0.1,0))+(IF($BJ$11=TRUE,0.1,0)))*$AQ$23 -> 0 | AR45: =((IF(AND($BJ$4=1,$AY$3=TRUE),(L$20*$AV$95/1000),IF(AND($BJ$4=2,$AY$3=TRUE),(L$20*$AW$95/1000),0)))+(IF($BJ$5=TRUE,(L$20*$AX$95/1000),0))+(IF($BJ$6=TRUE,(L$20*$AY$95/1000),0))+(IF($BJ$7=TRUE,0.1,0))+(IF($BJ$8=TRUE,0.1,0))+(IF($BJ$9=TRUE,0.1,0))+(IF($BJ$10=TRUE,0.1,0))+(IF($BJ$11=TRUE,0.1,0)))*$AQ$23 -> 0 | AS45: =((IF(AND($BJ$4=1,$AY$3=TRUE),(O$20*$AV$95/1000),IF(AND($BJ$4=2,$AY$3=TRUE),(O$20*$AW$95/1000),0)))+(IF($BJ$5=TRUE,(O$20*$AX$95/1000),0))+(IF($BJ$6=TRUE,(O$20*$AY$95/1000),0))+(IF($BJ$7=TRUE,0.1,0))+(IF($BJ$8=TRUE,0.1,0))+(IF($BJ$9=TRUE,0.1,0))+(IF($BJ$10=TRUE,0.1,0))+(IF($BJ$11=TRUE,0.1,0)))*$AQ$23 -> 0 | AW45: Wariant II | AX45: -0.1 | AY45: 0.15 | AZ45: -0.1 | BA45: 0.05 | BB45: 0.1 | BC45: 0.05 | BD45: -0.2 | BE45: -0.05 | BF45: 0
B46: W przypadku objęcia ubezpieczeniem wszystkich dzieci i młodzieży danej placówki, do której uczęszczają uczniowie znajdujący się w trudnej sytuacji materialnej, PZU SA - na wniosek ubezpieczającego - może zastosować specjalną zniżkę od składki należnej z całej polisy. Zniżka nie ma zastosowania do umów zawieranych ze szkołami wieczorowymi i zaocznymi. | AI46: FINALNY WYNIK | AJ46: =IF(AQ$39=TRUE,AJ45,AJ47) -> 0 | AK46: =IF(AR$39=TRUE,AK45,AK47) -> 0 | AL46: =IF(AS$39=TRUE,AL45,AL47) -> 0 | AP46: FINALNY WYNIK | AQ46: =IF(AQ$39=TRUE,AQ45,AQ47) -> 0 | AR46: =IF(AR$39=TRUE,AR45,AR47) -> 0 | AS46: =IF(AS$39=TRUE,AS45,AS47) -> 0 | AV46: Liceum zawodowe | AW46: Wariant I | AX46: -0.15 | AY46: -0.1 | AZ46: -0.15 | BA46: -0.05 | BB46: -0.05 | BC46: -0.05 | BD46: -0.05 | BE46: -0.05 | BF46: -0.05
AI47: BEZ ZNIŻKI | AJ47: =(IF(AND($BJ$4=1,$AY$14=TRUE),(I$20*$AV$95/1000),IF(AND($BJ$4=2,$AY$14=TRUE),(I$20*$AW$95/1000),0)))+(IF($BJ$16=TRUE,(I$20*$AX$95/1000),0))+(IF($BJ$17=TRUE,(I$20*$AY$95/1000),0))+(IF($BJ$18=TRUE,0.1,0)) -> 0 | AK47: =(IF(AND($BJ$4=1,$AY$14=TRUE),(L$20*$AV$95/1000),IF(AND($BJ$4=2,$AY$14=TRUE),(L$20*$AW$95/1000),0)))+(IF($BJ$16=TRUE,(L$20*$AX$95/1000),0))+(IF($BJ$17=TRUE,(L$20*$AY$95/1000),0))+(IF($BJ$18=TRUE,0.1,0)) -> 0 | AL47: =(IF(AND($BJ$4=1,$AY$14=TRUE),(O$20*$AV$95/1000),IF(AND($BJ$4=2,$AY$14=TRUE),(O$20*$AW$95/1000),0)))+(IF($BJ$16=TRUE,(O$20*$AX$95/1000),0))+(IF($BJ$17=TRUE,(O$20*$AY$95/1000),0))+(IF($BJ$18=TRUE,0.1,0)) -> 0 | AP47: BEZ ZNIŻKI | AQ47: =(IF(AND($BJ$4=1,$AY$3=TRUE),(I$20*$AV$95/1000),IF(AND($BJ$4=2,$AY$3=TRUE),(I$20*$AW$95/1000),0)))+(IF($BJ$5=TRUE,(I$20*$AX$95/1000),0))+(IF($BJ$6=TRUE,(I$20*$AY$95/1000),0))+(IF($BJ$7=TRUE,0.1,0))+(IF($BJ$8=TRUE,0.1,0))+(IF($BJ$9=TRUE,0.1,0))+(IF($BJ$10=TRUE,0.1,0))+(IF($BJ$11=TRUE,0.1,0)) -> 0 | AR47: =(IF(AND($BJ$4=1,$AY$3=TRUE),(L$20*$AV$95/1000),IF(AND($BJ$4=2,$AY$3=TRUE),(L$20*$AW$95/1000),0)))+(IF($BJ$5=TRUE,(L$20*$AX$95/1000),0))+(IF($BJ$6=TRUE,(L$20*$AY$95/1000),0))+(IF($BJ$7=TRUE,0.1,0))+(IF($BJ$8=TRUE,0.1,0))+(IF($BJ$9=TRUE,0.1,0))+(IF($BJ$10=TRUE,0.1,0))+(IF($BJ$11=TRUE,0.1,0)) -> 0 | AS47: =(IF(AND($BJ$4=1,$AY$3=TRUE),(O$20*$AV$95/1000),IF(AND($BJ$4=2,$AY$3=TRUE),(O$20*$AW$95/1000),0)))+(IF($BJ$5=TRUE,(O$20*$AX$95/1000),0))+(IF($BJ$6=TRUE,(O$20*$AY$95/1000),0))+(IF($BJ$7=TRUE,0.1,0))+(IF($BJ$8=TRUE,0.1,0))+(IF($BJ$9=TRUE,0.1,0))+(IF($BJ$10=TRUE,0.1,0))+(IF($BJ$11=TRUE,0.1,0)) -> 0 | AW47: Wariant II | AX47: -0.1 | AY47: -0.05 | AZ47: -0.05 | BA47: 0 | BB47: -0.15 | BC47: -0.05 | BD47: 0.05 | BE47: -0.05 | BF47: -0.1
AH48: WARIANT 2 | AI48: ZE ZNIŻKĄ | AJ48: =((IF(AND($BJ$4=1,$AY$14=TRUE),(I$20*$AV$95/1000),IF(AND($BJ$4=2,$AY$14=TRUE),(I$20*$AW$95/1000),0)))+(IF($BJ$16=TRUE,(I$20*$AX$95/1000),0))+(IF($BJ$17=TRUE,(I$20*$AY$95/1000),0))+(IF($BJ$18=TRUE,0.1,0)))*$AQ$23 -> 0 | AK48: =((IF(AND($BJ$4=1,$AY$14=TRUE),(L$20*$AV$95/1000),IF(AND($BJ$4=2,$AY$14=TRUE),(L$20*$AW$95/1000),0)))+(IF($BJ$16=TRUE,(L$20*$AX$95/1000),0))+(IF($BJ$17=TRUE,(L$20*$AY$95/1000),0))+(IF($BJ$18=TRUE,0.1,0)))*$AQ$23 -> 0 | AL48: =((IF(AND($BJ$4=1,$AY$14=TRUE),(O$20*$AV$95/1000),IF(AND($BJ$4=2,$AY$14=TRUE),(O$20*$AW$95/1000),0)))+(IF($BJ$16=TRUE,(O$20*$AX$95/1000),0))+(IF($BJ$17=TRUE,(O$20*$AY$95/1000),0))+(IF($BJ$18=TRUE,0.1,0)))*$AQ$23 -> 0 | AO48: WARIANT 2 | AP48: ZE ZNIŻKĄ | AQ48: =((IF(AND($BJ$4=1,$AY$3=TRUE),(I$20*$AV$95/1000),IF(AND($BJ$4=2,$AY$3=TRUE),(I$20*$AW$95/1000),0)))+(IF($BJ$5=TRUE,(I$20*$AX$95/1000),0))+(IF($BJ$6=TRUE,(I$20*$AY$95/1000),0))+(IF($BJ$7=TRUE,0.1,0))+(IF($BJ$8=TRUE,0.1,0))+(IF($BJ$9=TRUE,0.1,0))+(IF($BJ$10=TRUE,0.1,0))+(IF($BJ$11=TRUE,0.1,0)))*$AQ$23 -> 0 | AR48: =((IF(AND($BJ$4=1,$AY$3=TRUE),(L$20*$AV$95/1000),IF(AND($BJ$4=2,$AY$3=TRUE),(L$20*$AW$95/1000),0)))+(IF($BJ$5=TRUE,(L$20*$AX$95/1000),0))+(IF($BJ$6=TRUE,(L$20*$AY$95/1000),0))+(IF($BJ$7=TRUE,0.1,0))+(IF($BJ$8=TRUE,0.1,0))+(IF($BJ$9=TRUE,0.1,0))+(IF($BJ$10=TRUE,0.1,0))+(IF($BJ$11=TRUE,0.1,0)))*$AQ$23 -> 0 | AS48: =((IF(AND($BJ$4=1,$AY$3=TRUE),(O$20*$AV$95/1000),IF(AND($BJ$4=2,$AY$3=TRUE),(O$20*$AW$95/1000),0)))+(IF($BJ$5=TRUE,(O$20*$AX$95/1000),0))+(IF($BJ$6=TRUE,(O$20*$AY$95/1000),0))+(IF($BJ$7=TRUE,0.1,0))+(IF($BJ$8=TRUE,0.1,0))+(IF($BJ$9=TRUE,0.1,0))+(IF($BJ$10=TRUE,0.1,0))+(IF($BJ$11=TRUE,0.1,0)))*$AQ$23 -> 0 | AV48: Technikum | AW48: Wariant I | AX48: -0.05 | AY48: 0.25 | AZ48: -0.05 | BA48: -0.1 | BB48: 0 | BC48: -0.05 | BD48: -0.1 | BE48: 0 | BF48: 0.15
B49: Przedstawiciel PZU: | AI49: FINALNY WYNIK | AJ49: =IF(AQ$40=TRUE,AJ48,AJ50) -> 0 | AK49: =IF(AR$40=TRUE,AK48,AK50) -> 0 | AL49: =IF(AS$40=TRUE,AL48,AL50) -> 0 | AP49: FINALNY WYNIK | AQ49: =IF(AQ$40=TRUE,AQ48,AQ50) -> 0 | AR49: =IF(AR$40=TRUE,AR48,AR50) -> 0 | AS49: =IF(AS$40=TRUE,AS48,AS50) -> 0 | AW49: Wariant II | AX49: 0.2 | AY49: 0.2 | AZ49: 0.2 | BA49: 0.3 | BB49: 0.2 | BC49: 0.3 | BD49: 0.3 | BE49: 0.2 | BF49: 0.2
B50: =IF(F3>0,F3,"") ->  | AI50: BEZ ZNIŻKI | AJ50: =(IF(AND($BJ$4=1,$AY$14=TRUE),(I$20*$AV$95/1000),IF(AND($BJ$4=2,$AY$14=TRUE),(I$20*$AW$95/1000),0)))+(IF($BJ$16=TRUE,(I$20*$AX$95/1000),0))+(IF($BJ$17=TRUE,(I$20*$AY$95/1000),0))+(IF($BJ$18=TRUE,0.1,0)) -> 0 | AK50: =(IF(AND($BJ$4=1,$AY$14=TRUE),(L$20*$AV$95/1000),IF(AND($BJ$4=2,$AY$14=TRUE),(L$20*$AW$95/1000),0)))+(IF($BJ$16=TRUE,(L$20*$AX$95/1000),0))+(IF($BJ$17=TRUE,(L$20*$AY$95/1000),0))+(IF($BJ$18=TRUE,0.1,0)) -> 0 | AL50: =(IF(AND($BJ$4=1,$AY$14=TRUE),(O$20*$AV$95/1000),IF(AND($BJ$4=2,$AY$14=TRUE),(O$20*$AW$95/1000),0)))+(IF($BJ$16=TRUE,(O$20*$AX$95/1000),0))+(IF($BJ$17=TRUE,(O$20*$AY$95/1000),0))+(IF($BJ$18=TRUE,0.1,0)) -> 0 | AP50: BEZ ZNIŻKI | AQ50: =(IF(AND($BJ$4=1,$AY$3=TRUE),(I$20*$AV$95/1000),IF(AND($BJ$4=2,$AY$3=TRUE),(I$20*$AW$95/1000),0)))+(IF($BJ$5=TRUE,(I$20*$AX$95/1000),0))+(IF($BJ$6=TRUE,(I$20*$AY$95/1000),0))+(IF($BJ$7=TRUE,0.1,0))+(IF($BJ$8=TRUE,0.1,0))+(IF($BJ$9=TRUE,0.1,0))+(IF($BJ$10=TRUE,0.1,0))+(IF($BJ$11=TRUE,0.1,0)) -> 0 | AR50: =(IF(AND($BJ$4=1,$AY$3=TRUE),(L$20*$AV$95/1000),IF(AND($BJ$4=2,$AY$3=TRUE),(L$20*$AW$95/1000),0)))+(IF($BJ$5=TRUE,(L$20*$AX$95/1000),0))+(IF($BJ$6=TRUE,(L$20*$AY$95/1000),0))+(IF($BJ$7=TRUE,0.1,0))+(IF($BJ$8=TRUE,0.1,0))+(IF($BJ$9=TRUE,0.1,0))+(IF($BJ$10=TRUE,0.1,0))+(IF($BJ$11=TRUE,0.1,0)) -> 0 | AS50: =(IF(AND($BJ$4=1,$AY$3=TRUE),(O$20*$AV$95/1000),IF(AND($BJ$4=2,$AY$3=TRUE),(O$20*$AW$95/1000),0)))+(IF($BJ$5=TRUE,(O$20*$AX$95/1000),0))+(IF($BJ$6=TRUE,(O$20*$AY$95/1000),0))+(IF($BJ$7=TRUE,0.1,0))+(IF($BJ$8=TRUE,0.1,0))+(IF($BJ$9=TRUE,0.1,0))+(IF($BJ$10=TRUE,0.1,0))+(IF($BJ$11=TRUE,0.1,0)) -> 0 | AV50: Zasadnicza szkoła zawodowa | AW50: Wariant I | AX50: -0.05 | AY50: 0.1 | AZ50: 0 | BA50: -0.05 | BB50: 0.05 | BC50: -0.05 | BD50: 0 | BE50: 0.15 | BF50: 0.05
B51: =IF(F4>0,F4,"") ->  | AH51: WARIANT 2 BIS | AI51: ZE ZNIŻKĄ | AJ51: =((IF(AND($BJ$4=1,$AY$14=TRUE),(I$20*$AV$95/1000),IF(AND($BJ$4=2,$AY$14=TRUE),(I$20*$AW$95/1000),0)))+(IF($BJ$16=TRUE,(I$20*$AX$95/1000),0))+(IF($BJ$17=TRUE,(I$20*$AY$95/1000),0))+(IF($BJ$18=TRUE,0.1,0)))*$AQ$23 -> 0 | AK51: =((IF(AND($BJ$4=1,$AY$14=TRUE),(L$20*$AV$95/1000),IF(AND($BJ$4=2,$AY$14=TRUE),(L$20*$AW$95/1000),0)))+(IF($BJ$16=TRUE,(L$20*$AX$95/1000),0))+(IF($BJ$17=TRUE,(L$20*$AY$95/1000),0))+(IF($BJ$18=TRUE,0.1,0)))*$AQ$23 -> 0 | AL51: =((IF(AND($BJ$4=1,$AY$14=TRUE),(O$20*$AV$95/1000),IF(AND($BJ$4=2,$AY$14=TRUE),(O$20*$AW$95/1000),0)))+(IF($BJ$16=TRUE,(O$20*$AX$95/1000),0))+(IF($BJ$17=TRUE,(O$20*$AY$95/1000),0))+(IF($BJ$18=TRUE,0.1,0)))*$AQ$23 -> 0 | AO51: WARIANT 2 BIS | AP51: ZE ZNIŻKĄ | AQ51: =((IF(AND($BJ$4=1,$AY$3=TRUE),(I$20*$AV$95/1000),IF(AND($BJ$4=2,$AY$3=TRUE),(I$20*$AW$95/1000),0)))+(IF($BJ$5=TRUE,(I$20*$AX$95/1000),0))+(IF($BJ$6=TRUE,(I$20*$AY$95/1000),0))+(IF($BJ$7=TRUE,0.1,0))+(IF($BJ$8=TRUE,0.1,0))+(IF($BJ$9=TRUE,0.1,0))+(IF($BJ$10=TRUE,0.1,0))+(IF($BJ$11=TRUE,0.1,0)))*$AQ$23 -> 0 | AR51: =((IF(AND($BJ$4=1,$AY$3=TRUE),(L$20*$AV$95/1000),IF(AND($BJ$4=2,$AY$3=TRUE),(L$20*$AW$95/1000),0)))+(IF($BJ$5=TRUE,(L$20*$AX$95/1000),0))+(IF($BJ$6=TRUE,(L$20*$AY$95/1000),0))+(IF($BJ$7=TRUE,0.1,0))+(IF($BJ$8=TRUE,0.1,0))+(IF($BJ$9=TRUE,0.1,0))+(IF($BJ$10=TRUE,0.1,0))+(IF($BJ$11=TRUE,0.1,0)))*$AQ$23 -> 0 | AS51: =((IF(AND($BJ$4=1,$AY$3=TRUE),(O$20*$AV$95/1000),IF(AND($BJ$4=2,$AY$3=TRUE),(O$20*$AW$95/1000),0)))+(IF($BJ$5=TRUE,(O$20*$AX$95/1000),0))+(IF($BJ$6=TRUE,(O$20*$AY$95/1000),0))+(IF($BJ$7=TRUE,0.1,0))+(IF($BJ$8=TRUE,0.1,0))+(IF($BJ$9=TRUE,0.1,0))+(IF($BJ$10=TRUE,0.1,0))+(IF($BJ$11=TRUE,0.1,0)))*$AQ$23 -> 0 | AW51: Wariant II | AX51: 0.2 | AY51: 0.3 | AZ51: 0.3 | BA51: 0.2 | BB51: 0.2 | BC51: 0.3 | BD51: 0.2 | BE51: 0.2 | BF51: 0.2
B52: =IF(F5>0,F5,"") ->  | AI52: FINALNY WYNIK | AJ52: =IF(AQ$41=TRUE,AJ51,AJ53) -> 0 | AK52: =IF(AR$41=TRUE,AK51,AK53) -> 0 | AL52: =IF(AS$41=TRUE,AL51,AL53) -> 0 | AP52: FINALNY WYNIK | AQ52: =IF(AQ$41=TRUE,AQ51,AQ53) -> 0 | AR52: =IF(AR$41=TRUE,AR51,AR53) -> 0 | AS52: =IF(AS$41=TRUE,AS51,AS53) -> 0 | AV52: Szkoła policealna | AW52: Wariant I | AX52: -0.1 | AY52: 0 | AZ52: -0.1 | BA52: 0.05 | BB52: -0.1 | BC52: -0.1 | BD52: 0.1 | BE52: 0.05 | BF52: -0.05
B53: =IF(F6>0,F6,"") ->  | H53: PODPIS | AI53: BEZ ZNIŻKI | AJ53: =(IF(AND($BJ$4=1,$AY$14=TRUE),(I$20*$AV$95/1000),IF(AND($BJ$4=2,$AY$14=TRUE),(I$20*$AW$95/1000),0)))+(IF($BJ$16=TRUE,(I$20*$AX$95/1000),0))+(IF($BJ$17=TRUE,(I$20*$AY$95/1000),0))+(IF($BJ$18=TRUE,0.1,0)) -> 0 | AK53: =(IF(AND($BJ$4=1,$AY$14=TRUE),(L$20*$AV$95/1000),IF(AND($BJ$4=2,$AY$14=TRUE),(L$20*$AW$95/1000),0)))+(IF($BJ$16=TRUE,(L$20*$AX$95/1000),0))+(IF($BJ$17=TRUE,(L$20*$AY$95/1000),0))+(IF($BJ$18=TRUE,0.1,0)) -> 0 | AL53: =(IF(AND($BJ$4=1,$AY$14=TRUE),(O$20*$AV$95/1000),IF(AND($BJ$4=2,$AY$14=TRUE),(O$20*$AW$95/1000),0)))+(IF($BJ$16=TRUE,(O$20*$AX$95/1000),0))+(IF($BJ$17=TRUE,(O$20*$AY$95/1000),0))+(IF($BJ$18=TRUE,0.1,0)) -> 0 | AP53: BEZ ZNIŻKI | AQ53: =(IF(AND($BJ$4=1,$AY$3=TRUE),(I$20*$AV$95/1000),IF(AND($BJ$4=2,$AY$3=TRUE),(I$20*$AW$95/1000),0)))+(IF($BJ$5=TRUE,(I$20*$AX$95/1000),0))+(IF($BJ$6=TRUE,(I$20*$AY$95/1000),0))+(IF($BJ$7=TRUE,0.1,0))+(IF($BJ$8=TRUE,0.1,0))+(IF($BJ$9=TRUE,0.1,0))+(IF($BJ$10=TRUE,0.1,0))+(IF($BJ$11=TRUE,0.1,0)) -> 0 | AR53: =(IF(AND($BJ$4=1,$AY$3=TRUE),(L$20*$AV$95/1000),IF(AND($BJ$4=2,$AY$3=TRUE),(L$20*$AW$95/1000),0)))+(IF($BJ$5=TRUE,(L$20*$AX$95/1000),0))+(IF($BJ$6=TRUE,(L$20*$AY$95/1000),0))+(IF($BJ$7=TRUE,0.1,0))+(IF($BJ$8=TRUE,0.1,0))+(IF($BJ$9=TRUE,0.1,0))+(IF($BJ$10=TRUE,0.1,0))+(IF($BJ$11=TRUE,0.1,0)) -> 0 | AS53: =(IF(AND($BJ$4=1,$AY$3=TRUE),(O$20*$AV$95/1000),IF(AND($BJ$4=2,$AY$3=TRUE),(O$20*$AW$95/1000),0)))+(IF($BJ$5=TRUE,(O$20*$AX$95/1000),0))+(IF($BJ$6=TRUE,(O$20*$AY$95/1000),0))+(IF($BJ$7=TRUE,0.1,0))+(IF($BJ$8=TRUE,0.1,0))+(IF($BJ$9=TRUE,0.1,0))+(IF($BJ$10=TRUE,0.1,0))+(IF($BJ$11=TRUE,0.1,0)) -> 0 | AW53: Wariant II | AX53: 0 | AY53: 0.15 | AZ53: 0 | BA53: 0 | BB53: 0 | BC53: 0.1 | BD53: 0 | BE53: -0.1 | BF53: -0.1
AV54: Szkoła wyższa | AW54: Wariant I | AX54: 0 | AY54: -0.1 | AZ54: -0.1 | BA54: -0.15 | BB54: -0.1 | BC54: -0.1 | BD54: -0.1 | BE54: -0.1 | BF54: -0.15
AW55: Wariant II | AX55: -0.2 | AY55: -0.2 | AZ55: -0.2 | BA55: -0.1 | BB55: -0.05 | BC55: -0.2 | BD55: -0.1 | BE55: -0.1 | BF55: -0.1
AV56: Inne | AW56: Wariant I | AX56: -0.15 | AY56: -0.15 | AZ56: -0.2 | BA56: -0.2 | BB56: -0.05 | BC56: -0.2 | BD56: -0.2 | BE56: -0.05 | BF56: -0.2
AW57: Wariant II | AX57: -0.15 | AY57: -0.15 | AZ57: -0.15 | BA57: -0.15 | BB57: -0.05 | BC57: -0.15 | BD57: -0.1 | BE57: 0 | BF57: -0.1
AV58: Zespół szkół | AW58: Wariant I | AX58: 0.05 | AY58: 0.2 | AZ58: -0.05 | BA58: 0.2 | BB58: 0.3 | BC58: -0.05 | BD58: -0.15 | BE58: 0.2 | BF58: 0.1
AW59: Wariant II | AX59: 0.4 | AY59: 0.5 | AZ59: 0.4 | BA59: 0.5 | BB59: 0.4 | BC59: 0.3 | BD59: 0.3 | BE59: 0.5 | BF59: 0.4
AV60: Gimnazjum | AW60: Wariant I | AX60: 0.4 | AY60: 0.4 | AZ60: 0.15 | BA60: 0.4 | BB60: 0.25 | BC60: 0.35 | BD60: 0.15 | BE60: 0.4 | BF60: 0.3
AW61: Wariant II | AX61: 0.7 | AY61: 0.7 | AZ61: 0.5 | BA61: 0.7 | BB61: 0.7 | BC61: 0.7 | BD61: 0.7 | BE61: 0.7 | BF61: 0.7
AV62: Centrum kształcenia | AW62: Wariant I | AX62: -0.2 | AY62: -0.1 | AZ62: -0.1 | BA62: -0.15 | BB62: -0.15 | BC62: -0.1 | BD62: -0.1 | BE62: -0.05 | BF62: -0.05
AW63: Wariant II | AX63: 0.05 | AY63: -0.2 | AZ63: -0.1 | BA63: -0.05 | BB63: -0.05 | BC63: -0.1 | BD63: -0.15 | BE63: -0.15 | BF63: -0.1
AV64: Dom dziecka | AW64: Wariant I | AX64: -0.25 | AY64: -0.25 | AZ64: -0.25 | BA64: -0.25 | BB64: -0.25 | BC64: -0.25 | BD64: -0.25 | BE64: -0.25 | BF64: -0.25
AW65: Wariant II | AX65: -0.25 | AY65: -0.15 | AZ65: -0.25 | BA65: -0.15 | BB65: -0.25 | BC65: -0.25 | BD65: -0.15 | BE65: -0.25 | BF65: -0.25
AV68: Przykład wyliczenia składki za świadczenia podstawowedla szkoły podstawowej w Oddziale w Warszawie o wskaźniku szkodowości > 40%
AV69: suma ubezpieczenia | AW69: 10000
AW70: wariant I | AX70: wariant II | AY70: wariant II Bis*
AV71: składka za 1 osobę za świadczenia podstawowe | AW71: =AW5*AW69/1000*0.9 -> 42.3 | AX71: =AX5*AW69/1000*1.2 -> 48 | AY71: =AX71*0.7 -> 33.6
AV72: * składka za wariant II BIS = składka za wariant II - zniżka 30%
AV74: Przykład wyliczenia składki za świadczenia podstawowe dla szkoły podstawowej w Oddziale w Warszawie o wskaźniku szkodowości ≤ 40%
AV75: suma ubezpieczenia | AW75: 10000
AW76: wariant I | AX76: wariant II | AY76: wariant II Bis*
AV77: składka za 1 osobę za świadczenia podstawowe | AW77: =AW5*AW75/1000*0.8 -> 37.6 | AX77: =AX5*AW75/1000 -> 40 | AY77: =AX77*0.7 -> 28
AV78: * składka za wariant II BIS = składka za wariant II - zniżka 30%
AV80: Przykład wyliczenia składki za swiadczenia podstawowe dla nowej szkoły podstawowej w Oddziale w Warszawie
AV81: suma ubezpieczenia | AW81: 10000
AW82: wariant I | AX82: wariant II | AY82: wariant II Bis*
AV83: składka za 1 osobę za świadczenia podstawowe | AW83: =AW5*AW81/1000*0.9 -> 42.3 | AX83: =AX5*AW81/1000 -> 40 | AY83: =AX83*0.7 -> 28
AV84: * składka za wariant II BIS = składka za wariant II - zniżka 30%
AV86: Zniżki/zwyżki z tabeli stosuje się wyłącznie do taryfowych stawek wyjściowych za świadczenia podstawowe.
AV87: Zniżek/zwyżek z tabeli nie stosuje się do taryfowych stawek wyjściowych za świadczenia dodatkowe
AV89: STAWKI TARYFOWE DLA ŚWIADCZEŃ DODATKOWYCH
AV91: niezależnie od rodzaju placówki i wariantu ubezpieczenia
AV93: Koszty leczenia | AX93: Ryczałt za okres niezdolności | AY93: Dieta szpitalna
AV94: do 20% | AW94: do 30%
AV95: 0.15 | AW95: 0.2 | AX95: 0.45 | AY95: 0.75
AV97: składkę roczną za ubezpieczenie 1 osoby oblicza się mnożąc stawkę taryfową przez 1/1000 sumy ubezpieczenia
